Workbook

Sheet Dégradé
A3: EXTERIEUR | I3: BUREAUX | Q3: Th Moy | Y3: Th ET
B4: -2 | C4: [ < -2 [ | E4: =codecouleur(D4) -> 28,119,202 | J4: 13 | K4: [ < 13 [ | M4: =codecouleur(L4) -> 28,119,202 | Q4: 0 | R4: 13 | S4: [ < 13 [ | U4: =codecouleur(T4) -> 28,119,202 | Z4: 0.2 | AA4: [ < 13 [ | AC4: =codecouleur(AB4) -> 28,119,202
A5: -2 | B5: 0 | C5: [ 0 > 2 [ | E5: 31,133,224 | I5: 13 | J5: 14 | K5: [ 13 > 14 [ | M5: 31,133,224 | Q5: 13 | R5: 14 | S5: [ 13 > 14 [ | U5: 31,133,224 | Y5: 0.2 | Z5: 0.4 | AA5: [ 13 > 14 [ | AC5: 31,133,224
A6: 0 | B6: 2 | C6: [ 0 > 2 [ | E6: 61,163,194 | I6: 14 | J6: 15 | K6: [ 14 > 15 [ | M6: 61,163,194 | Q6: 14 | R6: 15 | S6: [ 14 > 15 [ | U6: 61,163,194 | Y6: =Z5 -> 0.4 | Z6: 0.6 | AA6: [ 14 > 15 [ | AC6: 61,163,194
A7: 2 | B7: 4 | C7: [ 4 > 6 [ | E7: 92,194,163 | I7: 15 | J7: 16 | K7: [ 15 > 16 [ | M7: 92,194,163 | Q7: 15 | R7: 16 | S7: [ 15 > 16 [ | U7: 92,194,163 | Y7: =Z6 -> 0.6 | Z7: 0.8 | AA7: [ 15 > 16 [ | AC7: 92,194,163
A8: 4 | B8: 6 | C8: [ 4 > 6 [ | E8: 122,224,133 | I8: 16 | J8: 17 | K8: [ 16 > 17 [ | M8: 122,224,133 | Q8: 16 | R8: 17 | S8: [ 16 > 17 [ | U8: 122,224,133 | Y8: 0.8 | Z8: 1 | AA8: [ 16 > 17 [ | AC8: 122,224,133
A9: 6 | B9: 8 | C9: [ 6 > 8 [ | E9: 153,255,102 | I9: 17 | J9: 18 | K9: [ 17 > 18 [ | M9: 153,255,102 | Q9: 17 | R9: 18 | S9: [ 17 > 18 [ | U9: 153,255,102 | Y9: 1 | Z9: 1.2 | AA9: [ 17 > 18 [ | AC9: 153,255,102
A10: 8 | B10: 10 | C10: [ 8 > 10 [ | E10: 173,242,82 | I10: 18 | J10: 19 | K10: [ 18 > 19 [ | M10: 173,242,82 | Q10: 18 | R10: 19 | S10: [ 18 > 19 [ | U10: 173,242,82 | Y10: 1.2 | Z10: 1.4 | AA10: [ 18 > 19 [ | AC10: 173,242,82
A11: 10 | B11: 12 | C11: [ 10 > 12 [ | E11: 194,230,61 | I11: 19 | J11: 20 | K11: [ 19 > 20 [ | M11: 194,230,61 | Q11: 19 | R11: 20 | S11: [ 19 > 20 [ | U11: 194,230,61 | Y11: 1.4 | Z11: 1.6 | AA11: [ 19 > 20 [ | AC11: 194,230,61
A12: 12 | B12: 14 | C12: [ 12 > 14 [ | E12: 214,217,41 | I12: 20 | J12: 21 | K12: [ 20 > 21 [ | M12: 214,217,41 | Q12: 20 | R12: 21 | S12: [ 20 > 21 [ | U12: 214,217,41 | Y12: 1.6 | Z12: 1.8 | AA12: [ 20 > 21 [ | AC12: 214,217,41
A13: 14 | B13: 16 | C13: [ 14 > 16 [ | E13: 235,205,20 | I13: 21 | J13: 22 | K13: [ 21 > 22 [ | M13: 235,205,20 | Q13: 21 | R13: 22 | S13: [ 21 > 22 [ | U13: 235,205,20 | Y13: 1.8 | Z13: 2 | AA13: [ 21 > 22 [ | AC13: 235,205,20
A14: 16 | B14: 18 | C14: [ 16 > 18 [ | E14: 252,154,0 | I14: 22 | J14: 23 | K14: [ 22 > 23 [ | M14: 252,154,0 | Q14: 22 | R14: 23 | S14: [ 22 > 23 [ | U14: 252,154,0 | Y14: 2 | Z14: 2.2 | AA14: [ 22 > 23 [ | AC14: 252,154,0
A15: 18 | B15: 20 | C15: [ 18 > 20 [ | E15: 248,115,0 | I15: 23 | J15: 24 | K15: [ 23 > 24 [ | M15: 248,115,0 | Q15: 23 | R15: 24 | S15: [ 23 > 24 [ | U15: 248,115,0 | Y15: 2.2 | Z15: 2.4 | AA15: [ 23 > 24 [ | AC15: 248,115,0
A16: 20 | B16: 22 | C16: [ 20 > 22 [ | E16: 245,77,0 | I16: 24 | J16: 25 | K16: [ 24 > 25 [ | M16: 245,77,0 | Q16: 24 | R16: 25 | S16: [ 24 > 25 [ | U16: 245,77,0 | Y16: 2.4 | Z16: 2.6 | AA16: [ 24 > 25 [ | AC16: 245,77,0
A17: 22 | B17: 24 | C17: [ 22 > 24 [ | E17: 241,38,0 | I17: 25 | J17: 26 | K17: [ 25 > 26 [ | M17: 241,38,0 | Q17: 25 | R17: 26 | S17: [ 25 > 26 [ | U17: 241,38,0 | Y17: 2.6 | Z17: 2.8 | AA17: [ 25 > 26 [ | AC17: 241,38,0
A18: 24 | B18: 26 | C18: [ 24 > 26 [ | E18: 238,0,0 | I18: 26 | J18: 27 | K18: [ 26 > 27 [ | M18: 238,0,0 | Q18: 26 | R18: 27 | S18: [ 26 > 27 [ | U18: 238,0,0 | Y18: 2.8 | Z18: 3 | AA18: [ 26 > 27 [ | AC18: 238,0,0
A19: 26 | B19: 28 | C19: [ 26 > 28 [ | E19: 210,0,0 | I19: 27 | J19: 28 | K19: [ 27 > 28 [ | M19: 210,0,0 | Q19: 27 | R19: 28 | S19: [ 27 > 28 [ | U19: 210,0,0 | Y19: 3 | Z19: 3.2 | AA19: [ 27 > 28 [ | AC19: 210,0,0
B20: 28 | C20: [ > 28 [ | E20: 192,0,0 | J20: 28 | K20: [ > 28 [ | M20: 192,0,0 | Q20: 28 | R20: 50 | S20: [ > 28 [ | U20: 192,0,0 | Z20: 3.2 | AA20: [ > 28 [ | AC20: 192,0,0

Sheet BDD
B1: Ext 1
B2: 06:00:00 | C2: 06:15:00 | D2: 06:30:00 | E2: 06:45:00 | F2: 07:00:00 | G2: 07:15:00 | H2: 07:30:00 | I2: 07:45:00 | J2: 08:00:00 | K2: 08:15:00 | L2: 08:30:00 | M2: 08:45:00 | N2: 09:00:00 | O2: 09:15:00 | P2: 09:30:00 | Q2: 09:45:00 | R2: 10:00:00 | S2: 10:15:00 | T2: 10:30:00 | U2: 10:45:00 | V2: 11:00:00 | W2: 11:15:00 | X2: 11:30:00 | Y2: 11:45:00 | Z2: 12:00:00 | AA2: 12:15:00 | AB2: 12:30:00 | AC2: 12:45:00 | AD2: 13:00:00 | AE2: 13:15:00 | AF2: 13:30:00 | AG2: 13:45:00 | AH2: 14:00:00 | AI2: 14:15:00 | AJ2: 14:30:00 | AK2: 14:45:00 | AL2: 15:00:00 | AM2: 15:15:00 | AN2: 15:30:00 | AO2: 15:45:00 | AP2: 16:00:00 | AQ2: 16:15:00 | AR2: 16:30:00 | AS2: 16:45:00 | AT2: 17:00:00 | AU2: 17:15:00 | AV2: 17:30:00 | AW2: 17:45:00 | AX2: 18:00:00 | AY2: 18:15:00 | AZ2: 18:30:00 | BA2: 18:45:00 | BB2: 19:00:00 | BC2: 19:15:00 | BD2: 19:30:00 | BE2: 19:45:00 | BF2: 20:00:00 | BG2: 20:15:00 | BH2: 20:30:00 | BI2: 20:45:00 | BJ2: 21:00:00 | BK2: 21:15:00 | BL2: 21:30:00 | BM2: 21:45:00 | BN2: 22:00:00 | BO2: 22:15:00 | BP2: 22:30:00 | BQ2: 22:45:00 | BR2: 23:00:00 | BS2: 23:15:00 | BT2: 23:30:00 | BU2: 23:45:00 | BV2: 00:00:00 | BW2: 00:15:00 | BX2: 00:30:00 | BY2: 00:45:00 | BZ2: 01:00:00 | CA2: 01:15:00 | CB2: 01:30:00 | CC2: 01:45:00 | CD2: 02:00:00 | CE2: 02:15:00 | CF2: 02:30:00 | CG2: 02:45:00 | CH2: 03:00:00 | CI2: 03:15:00 | CJ2: 03:30:00 | CK2: 03:45:00 | CL2: 04:00:00 | CM2: 04:15:00 | CN2: 04:30:00 | CO2: 04:45:00 | CP2: 05:00:00 | CQ2: 05:15:00 | CR2: 05:30:00 | CS2: 05:45:00
A3: Jour 1
A4: Jour 2
A5: Jour 3
A6: Jour 4
A7: Jour 5
A8: Jour 6
A9: Jour 7
A10: Jour 8
A11: Jour 9
A12: Jour 10
A13: Jour 11
A14: Jour 12
A15: Jour 13
A16: Jour 14
A17: Jour 15
A18: Jour 16
A19: Jour 17
A20: Jour 18
A21: Jour 19
A22: Jour 20
A23: Jour 21
B25: Ext 2
B26: 06:00:00 | C26: 06:15:00 | D26: 06:30:00 | E26: 06:45:00 | F26: 07:00:00 | G26: 07:15:00 | H26: 07:30:00 | I26: 07:45:00 | J26: 08:00:00 | K26: 08:15:00 | L26: 08:30:00 | M26: 08:45:00 | N26: 09:00:00 | O26: 09:15:00 | P26: 09:30:00 | Q26: 09:45:00 | R26: 10:00:00 | S26: 10:15:00 | T26: 10:30:00 | U26: 10:45:00 | V26: 11:00:00 | W26: 11:15:00 | X26: 11:30:00 | Y26: 11:45:00 | Z26: 12:00:00 | AA26: 12:15:00 | AB26: 12:30:00 | AC26: 12:45:00 | AD26: 13:00:00 | AE26: 13:15:00 | AF26: 13:30:00 | AG26: 13:45:00 | AH26: 14:00:00 | AI26: 14:15:00 | AJ26: 14:30:00 | AK26: 14:45:00 | AL26: 15:00:00 | AM26: 15:15:00 | AN26: 15:30:00 | AO26: 15:45:00 | AP26: 16:00:00 | AQ26: 16:15:00 | AR26: 16:30:00 | AS26: 16:45:00 | AT26: 17:00:00 | AU26: 17:15:00 | AV26: 17:30:00 | AW26: 17:45:00 | AX26: 18:00:00 | AY26: 18:15:00 | AZ26: 18:30:00 | BA26: 18:45:00 | BB26: 19:00:00 | BC26: 19:15:00 | BD26: 19:30:00 | BE26: 19:45:00 | BF26: 20:00:00 | BG26: 20:15:00 | BH26: 20:30:00 | BI26: 20:45:00 | BJ26: 21:00:00 | BK26: 21:15:00 | BL26: 21:30:00 | BM26: 21:45:00 | BN26: 22:00:00 | BO26: 22:15:00 | BP26: 22:30:00 | BQ26: 22:45:00 | BR26: 23:00:00 | BS26: 23:15:00 | BT26: 23:30:00 | BU26: 23:45:00 | BV26: 00:00:00 | BW26: 00:15:00 | BX26: 00:30:00 | BY26: 00:45:00 | BZ26: 01:00:00 | CA26: 01:15:00 | CB26: 01:30:00 | CC26: 01:45:00 | CD26: 02:00:00 | CE26: 02:15:00 | CF26: 02:30:00 | CG26: 02:45:00 | CH26: 03:00:00 | CI26: 03:15:00 | CJ26: 03:30:00 | CK26: 03:45:00 | CL26: 04:00:00 | CM26: 04:15:00 | CN26: 04:30:00 | CO26: 04:45:00 | CP26: 05:00:00 | CQ26: 05:15:00 | CR26: 05:30:00 | CS26: 05:45:00
A27: Jour 1
A28: Jour 2
A29: Jour 3
A30: Jour 4
A31: Jour 5
A32: Jour 6
A33: Jour 7
A34: Jour 8
A35: Jour 9
A36: Jour 10
A37: Jour 11
A38: Jour 12
A39: Jour 13
A40: Jour 14
A41: Jour 15
A42: Jour 16
A43: Jour 17
A44: Jour 18
A45: Jour 19
A46: Jour 20
A47: Jour 21
B49: Th1
B50: 06:00:00 | C50: 06:15:00 | D50: 06:30:00 | E50: 06:45:00 | F50: 07:00:00 | G50: 07:15:00 | H50: 07:30:00 | I50: 07:45:00 | J50: 08:00:00 | K50: 08:15:00 | L50: 08:30:00 | M50: 08:45:00 | N50: 09:00:00 | O50: 09:15:00 | P50: 09:30:00 | Q50: 09:45:00 | R50: 10:00:00 | S50: 10:15:00 | T50: 10:30:00 | U50: 10:45:00 | V50: 11:00:00 | W50: 11:15:00 | X50: 11:30:00 | Y50: 11:45:00 | Z50: 12:00:00 | AA50: 12:15:00 | AB50: 12:30:00 | AC50: 12:45:00 | AD50: 13:00:00 | AE50: 13:15:00 | AF50: 13:30:00 | AG50: 13:45:00 | AH50: 14:00:00 | AI50: 14:15:00 | AJ50: 14:30:00 | AK50: 14:45:00 | AL50: 15:00:00 | AM50: 15:15:00 | AN50: 15:30:00 | AO50: 15:45:00 | AP50: 16:00:00 | AQ50: 16:15:00 | AR50: 16:30:00 | AS50: 16:45:00 | AT50: 17:00:00 | AU50: 17:15:00 | AV50: 17:30:00 | AW50: 17:45:00 | AX50: 18:00:00 | AY50: 18:15:00 | AZ50: 18:30:00 | BA50: 18:45:00 | BB50: 19:00:00 | BC50: 19:15:00 | BD50: 19:30:00 | BE50: 19:45:00 | BF50: 20:00:00 | BG50: 20:15:00 | BH50: 20:30:00 | BI50: 20:45:00 | BJ50: 21:00:00 | BK50: 21:15:00 | BL50: 21:30:00 | BM50: 21:45:00 | BN50: 22:00:00 | BO50: 22:15:00 | BP50: 22:30:00 | BQ50: 22:45:00 | BR50: 23:00:00 | BS50: 23:15:00 | BT50: 23:30:00 | BU50: 23:45:00 | BV50: 00:00:00 | BW50: 00:15:00 | BX50: 00:30:00 | BY50: 00:45:00 | BZ50: 01:00:00 | CA50: 01:15:00 | CB50: 01:30:00 | CC50: 01:45:00 | CD50: 02:00:00 | CE50: 02:15:00 | CF50: 02:30:00 | CG50: 02:45:00 | CH50: 03:00:00 | CI50: 03:15:00 | CJ50: 03:30:00 | CK50: 03:45:00 | CL50: 04:00:00 | CM50: 04:15:00 | CN50: 04:30:00 | CO50: 04:45:00 | CP50: 05:00:00 | CQ50: 05:15:00 | CR50: 05:30:00 | CS50: 05:45:00
A51: Jour 1 | B51: 10 | C51: =B51+1 -> 11 | D51: =C51+1 -> 12 | E51: 13 | F51: 14 | G51: 15 | H51: 16 | I51: 17 | J51: 18 | K51: 19 | L51: 20 | M51: 21 | N51: 22 | O51: 23 | P51: 24 | Q51: 25 | R51: 26 | S51: 27 | T51: 28 | U51: 29 | V51: =U51-1 -> 28 | W51: =V51-1 -> 27 | X51: 26 | Y51: 25 | Z51: 24 | AA51: 23 | AB51: 22 | AC51: 21 | AD51: 20 | AE51: 19 | AF51: 18 | AG51: 17 | AH51: 16 | AI51: 15 | AJ51: 14 | AK51: 13 | AL51: 12 | AM51: =B51 -> 10 | AN51: =C51 -> 11 | AO51: 12 | AP51: 13 | AQ51: 14 | AR51: 15 | AS51: 16 | AT51: 17 | AU51: 18 | AV51: 19 | AW51: 20 | AX51: 21 | AY51: 22 | AZ51: 23 | BA51: 24 | BB51: 25 | BC51: 26 | BD51: 27 | BE51: 28 | BF51: 29 | BG51: 28 | BH51: 27 | BI51: 26 | BJ51: 25 | BK51: 24 | BL51: 23 | BM51: 22 | BN51: 21 | BO51: 20 | BP51: 19 | BQ51: 18 | BR51: 17 | BS51: 16 | BT51: 15 | BU51: 14 | BV51: 13 | BW51: 12 | BX51: 10 | BY51: 11 | BZ51: 12 | CA51: 13 | CB51: 14 | CC51: 15 | CD51: 16 | CE51: 17 | CF51: 18 | CG51: 19 | CH51: 20 | CI51: 21 | CJ51: 22 | CK51: 23 | CL51: 24 | CM51: 25 | CN51: 26 | CO51: 27 | CP51: 28 | CQ51: 29 | CR51: 28 | CS51: 27
A52: Jour 2 | B52: 18.1 | C52: 20 | D52: 18.9 | E52: 20.9 | F52: 20 | G52: 20.5 | H52: 22.3 | I52: 19.1 | J52: 20.3 | K52: 19.4 | L52: 21.4 | M52: 18.9 | N52: 22 | O52: 18.4 | P52: 21.8 | Q52: 20.1 | R52: 20 | S52: 18.6 | T52: 20.2 | U52: 22.2 | V52: 18.6 | W52: 19.2 | X52: 18.8 | Y52: 19.2 | Z52: 18.3 | AA52: 21.8 | AB52: 21.2 | AC52: 18.6 | AD52: 19.2 | AE52: 18.1 | AF52: 22.2 | AG52: 22 | AH52: 19 | AI52: 20.8 | AJ52: 19.6 | AK52: 21.5 | AL52: 21.4 | AM52: 18.7 | AN52: 20.8 | AO52: 21.5 | AP52: 19.2 | AQ52: 18.4 | AR52: 19.8 | AS52: 21.1 | AT52: 20.2 | AU52: 18.1 | AV52: 19.7 | AW52: 21.2 | AX52: 20.7 | AY52: 22.1 | AZ52: 21.3 | BA52: 20.3 | BB52: 19.4 | BC52: 19.4 | BD52: 21.9 | BE52: 18.2 | BF52: 19.8 | BG52: 20.9 | BH52: 21.2 | BI52: 19.6 | BJ52: 21 | BK52: 22.2 | BL52: 21 | BM52: 20.4 | BN52: 21.9 | BO52: 19 | BP52: 21.8 | BQ52: 19.7 | BR52: 20.5 | BS52: 18.4 | BT52: 21.8 | BU52: 19.1 | BV52: 20.4 | BW52: 20.5 | BX52: 20.2 | BY52: 18.8 | BZ52: 19.9 | CA52: 19.6 | CB52: 17.8 | CC52: 20.3 | CD52: 18.1 | CE52: 18.2 | CF52: 18.5 | CG52: 19 | CH52: 20.1 | CI52: 18.1 | CJ52: 20.7 | CK52: 20.4 | CL52: 19.6 | CM52: 17.5 | CN52: 20.8 | CO52: 17.7 | CP52: 19.4 | CQ52: 19.9 | CR52: 19.4 | CS52: 19.3
A53: Jour 3 | B53: 18.3 | C53: 19.3 | D53: 19.5 | E53: 18.7 | F53: 19 | G53: 22.1 | H53: 19.8 | I53: 20.3 | J53: 21.3 | K53: 20.4 | L53: 19.2 | M53: 19.4 | N53: 20.8 | O53: 21.8 | P53: 20.4 | Q53: 22.5 | R53: 19.6 | S53: 20.5 | T53: 21.6 | U53: 21 | V53: 19.5 | W53: 20.7 | X53: 20.2 | Y53: 21.6 | Z53: 20.5 | AA53: 21 | AB53: 21.2 | AC53: 19.8 | AD53: 21.6 | AE53: 21 | AF53: 20.2 | AG53: 21.6 | AH53: 22 | AI53: 20.2 | AJ53: 18.9 | AK53: 21.8 | AL53: 21.9 | AM53: 19.1 | AN53: 18.9 | AO53: 20.6 | AP53: 19.5 | AQ53: 18.2 | AR53: 18.6 | AS53: 21.8 | AT53: 19.1 | AU53: 19 | AV53: 21.3 | AW53: 20.4 | AX53: 20.8 | AY53: 20.8 | AZ53: 18.5 | BA53: 20.8 | BB53: 21.9 | BC53: 18.5 | BD53: 21 | BE53: 18.3 | BF53: 18.2 | BG53: 18 | BH53: 21.2 | BI53: 20.9 | BJ53: 20.8 | BK53: 19.5 | BL53: 22.1 | BM53: 21 | BN53: 19.6 | BO53: 19.2 | BP53: 18.7 | BQ53: 18.4 | BR53: 20.5 | BS53: 19.9 | BT53: 21.1 | BU53: 19.6 | BV53: 21.5 | BW53: 18.1 | BX53: 20.5 | BY53: 20.4 | BZ53: 18 | CA53: 17.6 | CB53: 20.2 | CC53: 18.8 | CD53: 17.8 | CE53: 17.5 | CF53: 18.1 | CG53: 17.8 | CH53: 19.3 | CI53: 20.4 | CJ53: 21 | CK53: 18.2 | CL53: 18.4 | CM53: 18.2 | CN53: 21.1 | CO53: 21.4 | CP53: 19.5 | CQ53: 18.1 | CR53: 21 | CS53: 18.7
A54: Jour 4 | B54: 18.9 | C54: 18.7 | D54: 20.5 | E54: 21.4 | F54: 20.3 | G54: 21.8 | H54: 19.4 | I54: 18.6 | J54: 20.4 | K54: 18.5 | L54: 19 | M54: 21.1 | N54: 18.6 | O54: 19.9 | P54: 20.2 | Q54: 21.1 | R54: 19.1 | S54: 22.3 | T54: 20.9 | U54: 19.7 | V54: 22.4 | W54: 22 | X54: 21.3 | Y54: 21.3 | Z54: 17.8 | AA54: 19.6 | AB54: 21.4 | AC54: 20.6 | AD54: 18.3 | AE54: 21.7 | AF54: 21.1 | AG54: 18.3 | AH54: 18.8 | AI54: 21.8 | AJ54: 19.4 | AK54: 19.1 | AL54: 21.8 | AM54: 21.2 | AN54: 21.3 | AO54: 21.5 | AP54: 18.7 | AQ54: 22.1 | AR54: 20.9 | AS54: 18.7 | AT54: 19.1 | AU54: 21.2 | AV54: 19.6 | AW54: 20.4 | AX54: 18.4 | AY54: 19.5 | AZ54: 19.5 | BA54: 18.3 | BB54: 19.1 | BC54: 22.3 | BD54: 19 | BE54: 20.7 | BF54: 20 | BG54: 19.6 | BH54: 21.7 | BI54: 18.5 | BJ54: 18.8 | BK54: 19.5 | BL54: 21.3 | BM54: 19.1 | BN54: 20.7 | BO54: 19.8 | BP54: 20.8 | BQ54: 18.7 | BR54: 19 | BS54: 21.5 | BT54: 21 | BU54: 20.1 | BV54: 20.6 | BW54: 19.5 | BX54: 18.2 | BY54: 18.2 | BZ54: 20.4 | CA54: 20.2 | CB54: 18.7 | CC54: 18.8 | CD54: 20.5 | CE54: 21 | CF54: 17.7 | CG54: 19.7 | CH54: 20.9 | CI54: 19.6 | CJ54: 21.2 | CK54: 18.6 | CL54: 21.3 | CM54: 19.8 | CN54: 17.8 | CO54: 21.4 | CP54: 19.5 | CQ54: 20.5 | CR54: 18.8 | CS54: 19.4
A55: Jour 5 | B55: 21.3 | C55: 20.2 | D55: 18.1 | E55: 18.8 | F55: 19.9 | G55: 22.1 | H55: 20.6 | I55: 19 | J55: 20.6 | K55: 21.7 | L55: 20 | M55: 21 | N55: 18.9 | O55: 22.1 | P55: 19.5 | Q55: 21.7 | R55: 21.2 | S55: 19.1 | T55: 22.1 | U55: 21.9 | V55: 20.1 | W55: 19.7 | X55: 22 | Y55: 19.8 | Z55: 21.8 | AA55: 20.1 | AB55: 18.4 | AC55: 18 | AD55: 20.6 | AE55: 20.1 | AF55: 21.9 | AG55: 20.2 | AH55: 20.2 | AI55: 21.6 | AJ55: 20.3 | AK55: 20.5 | AL55: 20.1 | AM55: 21 | AN55: 18.6 | AO55: 21.3 | AP55: 22.3 | AQ55: 21.6 | AR55: 20.5 | AS55: 19.8 | AT55: 21.1 | AU55: 19.5 | AV55: 18.7 | AW55: 18.8 | AX55: 20.5 | AY55: 19.3 | AZ55: 20.7 | BA55: 21.3 | BB55: 18.9 | BC55: 22.2 | BD55: 22 | BE55: 19.2 | BF55: 19.8 | BG55: 20.1 | BH55: 20.7 | BI55: 18.5 | BJ55: 20.1 | BK55: 18.6 | BL55: 18.6 | BM55: 19.1 | BN55: 19.2 | BO55: 18.4 | BP55: 21.8 | BQ55: 18.8 | BR55: 22.1 | BS55: 20.9 | BT55: 18.5 | BU55: 20.3 | BV55: 17.6 | BW55: 18.6 | BX55: 19.9 | BY55: 18 | BZ55: 17.7 | CA55: 20.6 | CB55: 18.6 | CC55: 20.2 | CD55: 18.3 | CE55: 19.7 | CF55: 18.8 | CG55: 18.8 | CH55: 18.4 | CI55: 21 | CJ55: 18.2 | CK55: 20.2 | CL55: 19.8 | CM55: 21.4 | CN55: 19.7 | CO55: 21.4 | CP55: 19.7 | CQ55: 17.8 | CR55: 18.6 | CS55: 18.4
A56: Jour 6 | B56: 19.5 | C56: 18.3 | D56: 19.9 | E56: 20.8 | F56: 22 | G56: 22 | H56: 21.4 | I56: 19.5 | J56: 19.6 | K56: 18.5 | L56: 18.9 | M56: 21.6 | N56: 21.1 | O56: 21 | P56: 18.7 | Q56: 20.8 | R56: 20.1 | S56: 19.1 | T56: 21 | U56: 21.4 | V56: 21.1 | W56: 22.3 | X56: 21 | Y56: 20 | Z56: 21.3 | AA56: 21.2 | AB56: 20.9 | AC56: 19.4 | AD56: 18.2 | AE56: 19 | AF56: 19.4 | AG56: 19.8 | AH56: 21.3 | AI56: 19.4 | AJ56: 19.6 | AK56: 19.5 | AL56: 19.8 | AM56: 20.8 | AN56: 20.6 | AO56: 21.6 | AP56: 21.9 | AQ56: 21.7 | AR56: 21.7 | AS56: 20.5 | AT56: 19.9 | AU56: 18.5 | AV56: 21.2 | AW56: 21.5 | AX56: 21.7 | AY56: 20.8 | AZ56: 18.8 | BA56: 20.6 | BB56: 21.3 | BC56: 19.9 | BD56: 21.6 | BE56: 18.3 | BF56: 21 | BG56: 21.3 | BH56: 18.9 | BI56: 20.3 | BJ56: 19.4 | BK56: 18.4 | BL56: 20.8 | BM56: 19.9 | BN56: 21.1 | BO56: 21.5 | BP56: 18.3 | BQ56: 19 | BR56: 22.1 | BS56: 19.8 | BT56: 19.7 | BU56: 20 | BV56: 20.2 | BW56: 19.3 | BX56: 18.6 | BY56: 18.6 | BZ56: 20.3 | CA56: 18.9 | CB56: 19.4 | CC56: 18.8 | CD56: 18 | CE56: 20 | CF56: 17.4 | CG56: 20.5 | CH56: 17.9 | CI56: 20.1 | CJ56: 19.1 | CK56: 20.8 | CL56: 20.8 | CM56: 18.1 | CN56: 20.3 | CO56: 17.8 | CP56: 21.1 | CQ56: 19.1 | CR56: 20.8 | CS56: 20.7
A57: Jour 7 | B57: 22 | C57: 20.8 | D57: 18.7 | E57: 18.6 | F57: 22.2 | G57: 18.7 | H57: 21.4 | I57: 21.4 | J57: 21.9 | K57: 22.3 | L57: 19.7 | M57: 21.6 | N57: 22.2 | O57: 22.3 | P57: 19.4 | Q57: 20.9 | R57: 20.9 | S57: 20.4 | T57: 19 | U57: 19.5 | V57: 20.2 | W57: 19.9 | X57: 19.6 | Y57: 21.9 | Z57: 20.4 | AA57: 19.3 | AB57: 21 | AC57: 20 | AD57: 20.3 | AE57: 19.2 | AF57: 21.6 | AG57: 21.4 | AH57: 19.2 | AI57: 20.5 | AJ57: 20 | AK57: 20.5 | AL57: 18.7 | AM57: 20.5 | AN57: 22 | AO57: 20.1 | AP57: 20.2 | AQ57: 19.4 | AR57: 20.3 | AS57: 18.7 | AT57: 18.6 | AU57: 20.1 | AV57: 20.8 | AW57: 20.1 | AX57: 21.4 | AY57: 20.2 | AZ57: 20.1 | BA57: 21.2 | BB57: 21 | BC57: 22.2 | BD57: 22 | BE57: 19.2 | BF57: 21.9 | BG57: 18.1 | BH57: 19 | BI57: 21.5 | BJ57: 21 | BK57: 22 | BL57: 20.9 | BM57: 19.6 | BN57: 19.5 | BO57: 18.3 | BP57: 19.4 | BQ57: 18.3 | BR57: 21.6 | BS57: 17.8 | BT57: 21 | BU57: 20.9 | BV57: 20.3 | BW57: 21.5 | BX57: 20.2 | BY57: 19 | BZ57: 20.8 | CA57: 20.5 | CB57: 18.4 | CC57: 19.9 | CD57: 17.9 | CE57: 17.1 | CF57: 20.5 | CG57: 18.1 | CH57: 18.4 | CI57: 19.9 | CJ57: 20 | CK57: 18.8 | CL57: 19.7 | CM57: 18.4 | CN57: 19.9 | CO57: 19.7 | CP57: 18.2 | CQ57: 20.2 | CR57: 21.1 | CS57: 19
A58: Jour 8 | B58: 21.7 | C58: 19 | D58: 19.6 | E58: 21.4 | F58: 18.6 | G58: 19.2 | H58: 20.6 | I58: 20.4 | J58: 20.3 | K58: 21.1 | L58: 19.9 | M58: 21.9 | N58: 21.4 | O58: 21.9 | P58: 20.3 | Q58: 21.9 | R58: 19.9 | S58: 20.3 | T58: 19.8 | U58: 20.4 | V58: 21.5 | W58: 20.7 | X58: 20.4 | Y58: 19.4 | Z58: 17.9 | AA58: 19.9 | AB58: 18.8 | AC58: 21.2 | AD58: 18.8 | AE58: 18.3 | AF58: 19.3 | AG58: 20.3 | AH58: 21.1 | AI58: 21.7 | AJ58: 21.1 | AK58: 20.3 | AL58: 18.9 | AM58: 20.8 | AN58: 22 | AO58: 22.1 | AP58: 20.9 | AQ58: 19.5 | AR58: 21.1 | AS58: 20.4 | AT58: 21.2 | AU58: 19.7 | AV58: 18.4 | AW58: 18.8 | AX58: 19.3 | AY58: 20.4 | AZ58: 20.7 | BA58: 22.3 | BB58: 19.8 | BC58: 19.3 | BD58: 21.2 | BE58: 21.7 | BF58: 18.1 | BG58: 18 | BH58: 21.6 | BI58: 21.2 | BJ58: 20.5 | BK58: 20.2 | BL58: 20.3 | BM58: 20.6 | BN58: 19.8 | BO58: 18.1 | BP58: 21.3 | BQ58: 18.9 | BR58: 19.1 | BS58: 21.4 | BT58: 20.5 | BU58: 17.6 | BV58: 21.5 | BW58: 21 | BX58: 20.8 | BY58: 17.8 | BZ58: 19.9 | CA58: 17.2 | CB58: 20.6 | CC58: 18.5 | CD58: 17.5 | CE58: 17.1 | CF58: 21.1 | CG58: 21.2 | CH58: 17.8 | CI58: 17.7 | CJ58: 17.5 | CK58: 17.5 | CL58: 18.7 | CM58: 19.5 | CN58: 19.8 | CO58: 20.1 | CP58: 20 | CQ58: 19.7 | CR58: 18.6 | CS58: 18.7
A59: Jour 9 | B59: 21.4 | C59: 22.2 | D59: 21.1 | E59: 21.8 | F59: 18.2 | G59: 18.2 | H59: 20.6 | I59: 20.8 | J59: 21.1 | K59: 20.5 | L59: 20.2 | M59: 21.5 | N59: 22.2 | O59: 18.5 | P59: 20.8 | Q59: 20.2 | R59: 18.5 | S59: 21.4 | T59: 19.2 | U59: 21.7 | V59: 20.4 | W59: 22.5 | X59: 18.4 | Y59: 18.4 | Z59: 21.4 | AA59: 18.2 | AB59: 21.3 | AC59: 21.6 | AD59: 19.8 | AE59: 19.5 | AF59: 18.5 | AG59: 20 | AH59: 18.6 | AI59: 21.8 | AJ59: 21 | AK59: 21 | AL59: 20.9 | AM59: 20.5 | AN59: 19.5 | AO59: 21.3 | AP59: 21.5 | AQ59: 20.9 | AR59: 22.1 | AS59: 18.2 | AT59: 18.6 | AU59: 19.6 | AV59: 19.7 | AW59: 21.8 | AX59: 20.5 | AY59: 20.4 | AZ59: 18.2 | BA59: 19.7 | BB59: 18.5 | BC59: 22.1 | BD59: 18.6 | BE59: 21.5 | BF59: 21.7 | BG59: 20.7 | BH59: 19.8 | BI59: 19.5 | BJ59: 18.2 | BK59: 20.2 | BL59: 20.8 | BM59: 19.4 | BN59: 20 | BO59: 19.7 | BP59: 18.1 | BQ59: 19 | BR59: 20.9 | BS59: 20.7 | BT59: 19 | BU59: 18.5 | BV59: 20.4 | BW59: 17.8 | BX59: 20.2 | BY59: 19.6 | BZ59: 18.5 | CA59: 21.2 | CB59: 20.8 | CC59: 19.6 | CD59: 20.4 | CE59: 17.8 | CF59: 20.5 | CG59: 19.7 | CH59: 20.2 | CI59: 18.9 | CJ59: 19.2 | CK59: 20.4 | CL59: 20.3 | CM59: 20.8 | CN59: 18.2 | CO59: 21.4 | CP59: 18.4 | CQ59: 21.2 | CR59: 20.9 | CS59: 21
A60: Jour 10 | B60: 19.7 | C60: 21.5 | D60: 19.2 | E60: 20.2 | F60: 19 | G60: 20.9 | H60: 21.3 | I60: 19.8 | J60: 22.3 | K60: 20.1 | L60: 22.2 | M60: 20.8 | N60: 20.5 | O60: 22.1 | P60: 18.7 | Q60: 18.6 | R60: 19.5 | S60: 18.7 | T60: 20 | U60: 20.1 | V60: 18.6 | W60: 20.2 | X60: 18.7 | Y60: 21.8 | Z60: 17.9 | AA60: 20.5 | AB60: 21.3 | AC60: 17.8 | AD60: 20.6 | AE60: 20.1 | AF60: 20 | AG60: 21.2 | AH60: 20.8 | AI60: 21.5 | AJ60: 21.8 | AK60: 21.1 | AL60: 21.8 | AM60: 18.2 | AN60: 20.8 | AO60: 18.8 | AP60: 20.2 | AQ60: 21.3 | AR60: 21.2 | AS60: 21.1 | AT60: 20 | AU60: 21.9 | AV60: 18.9 | AW60: 19.6 | AX60: 21.1 | AY60: 21.3 | AZ60: 20.9 | BA60: 21.9 | BB60: 20.9 | BC60: 18.8 | BD60: 19.3 | BE60: 22 | BF60: 21.2 | BG60: 20.4 | BH60: 21 | BI60: 21.1 | BJ60: 20.7 | BK60: 21.9 | BL60: 20.8 | BM60: 19 | BN60: 21.4 | BO60: 18.3 | BP60: 20.5 | BQ60: 18.8 | BR60: 21.4 | BS60: 21.7 | BT60: 20.1 | BU60: 17.8 | BV60: 21.2 | BW60: 21 | BX60: 20.4 | BY60: 18.5 | BZ60: 18.7 | CA60: 20.4 | CB60: 21 | CC60: 19.2 | CD60: 20 | CE60: 17.1 | CF60: 20.8 | CG60: 20.3 | CH60: 18.5 | CI60: 20.4 | CJ60: 17.4 | CK60: 19.1 | CL60: 18.3 | CM60: 18 | CN60: 21.2 | CO60: 19.1 | CP60: 19.9 | CQ60: 20.3 | CR60: 21.3 | CS60: 19
A61: Jour 11 | B61: 20.6 | C61: 20.6 | D61: 19.9 | E61: 19.9 | F61: 21.3 | G61: 20.4 | H61: 20.3 | I61: 18.5 | J61: 20.9 | K61: 22.3 | L61: 20 | M61: 20.5 | N61: 19.6 | O61: 18.7 | P61: 20.2 | Q61: 19.5 | R61: 18.7 | S61: 21.6 | T61: 20.8 | U61: 18.8 | V61: 20.9 | W61: 18.8 | X61: 22.2 | Y61: 18.4 | Z61: 20.4 | AA61: 17.8 | AB61: 19 | AC61: 20.2 | AD61: 20.8 | AE61: 19.1 | AF61: 21.8 | AG61: 21.8 | AH61: 18.3 | AI61: 19 | AJ61: 18.5 | AK61: 21.7 | AL61: 20.4 | AM61: 18.4 | AN61: 18.8 | AO61: 19.6 | AP61: 19.8 | AQ61: 19.7 | AR61: 21.5 | AS61: 19.2 | AT61: 18.8 | AU61: 18.4 | AV61: 20.3 | AW61: 20.3 | AX61: 21.6 | AY61: 19.3 | AZ61: 21.6 | BA61: 21.3 | BB61: 21.5 | BC61: 18.8 | BD61: 18.6 | BE61: 18.7 | BF61: 19.4 | BG61: 18.8 | BH61: 20.8 | BI61: 18.5 | BJ61: 19.9 | BK61: 20.7 | BL61: 21.3 | BM61: 18.4 | BN61: 18.5 | BO61: 21.9 | BP61: 21.4 | BQ61: 19.8 | BR61: 18.1 | BS61: 18.3 | BT61: 18.8 | BU61: 17.9 | BV61: 21 | BW61: 18.3 | BX61: 20 | BY61: 20.5 | BZ61: 17.9 | CA61: 18.1 | CB61: 19.7 | CC61: 17.3 | CD61: 17.4 | CE61: 18.1 | CF61: 19.5 | CG61: 18 | CH61: 20 | CI61: 18.6 | CJ61: 17.7 | CK61: 20.6 | CL61: 19.3 | CM61: 18.7 | CN61: 18.4 | CO61: 18 | CP61: 20.5 | CQ61: 18.7 | CR61: 20.6 | CS61: 19.4
A62: Jour 12 | B62: 18.6 | C62: 21.3 | D62: 18.5 | E62: 19.3 | F62: 22.1 | G62: 18.3 | H62: 19.1 | I62: 21.8 | J62: 20.7 | K62: 18.6 | L62: 20 | M62: 18.2 | N62: 19.6 | O62: 18.6 | P62: 18.9 | Q62: 18.5 | R62: 19.8 | S62: 21.5 | T62: 22.1 | U62: 19.9 | V62: 20.6 | W62: 21.5 | X62: 20.7 | Y62: 21.4 | Z62: 20.1 | AA62: 19.7 | AB62: 20.3 | AC62: 20.3 | AD62: 19.2 | AE62: 22 | AF62: 18.7 | AG62: 19.4 | AH62: 20.8 | AI62: 21.4 | AJ62: 21.9 | AK62: 20.6 | AL62: 20.7 | AM62: 18.8 | AN62: 18.2 | AO62: 21.8 | AP62: 19.5 | AQ62: 21 | AR62: 19 | AS62: 19.1 | AT62: 20.1 | AU62: 18.2 | AV62: 18.7 | AW62: 20.7 | AX62: 20.7 | AY62: 19.7 | AZ62: 21.9 | BA62: 20.6 | BB62: 20.6 | BC62: 19.1 | BD62: 19.4 | BE62: 18.9 | BF62: 20.1 | BG62: 20.8 | BH62: 20.9 | BI62: 19.3 | BJ62: 20.3 | BK62: 19.5 | BL62: 21.9 | BM62: 19.6 | BN62: 19.2 | BO62: 21.4 | BP62: 19.7 | BQ62: 20.9 | BR62: 18.1 | BS62: 19.3 | BT62: 21.8 | BU62: 20.4 | BV62: 19.2 | BW62: 18.1 | BX62: 17.9 | BY62: 19.1 | BZ62: 17.5 | CA62: 21.2 | CB62: 19.8 | CC62: 18.7 | CD62: 17.6 | CE62: 20.9 | CF62: 20.1 | CG62: 20.5 | CH62: 20.1 | CI62: 20.4 | CJ62: 18.3 | CK62: 20.6 | CL62: 20.6 | CM62: 20.6 | CN62: 17.8 | CO62: 19.7 | CP62: 17.9 | CQ62: 21.4 | CR62: 17.9 | CS62: 19.2
A63: Jour 13 | B63: 21.6 | C63: 21.6 | D63: 21.7 | E63: 18.5 | F63: 21.9 | G63: 18.5 | H63: 19.1 | I63: 21.3 | J63: 22.2 | K63: 21.6 | L63: 20.9 | M63: 18.2 | N63: 18.7 | O63: 18.7 | P63: 22.2 | Q63: 18.8 | R63: 22.2 | S63: 21 | T63: 21.1 | U63: 21.1 | V63: 21.3 | W63: 22.3 | X63: 20.1 | Y63: 19.7 | Z63: 19.3 | AA63: 18.8 | AB63: 18.9 | AC63: 17.9 | AD63: 18.4 | AE63: 18.2 | AF63: 19.7 | AG63: 18.8 | AH63: 21.1 | AI63: 18.8 | AJ63: 21.6 | AK63: 21.5 | AL63: 19.6 | AM63: 19.6 | AN63: 18.7 | AO63: 18.7 | AP63: 19.1 | AQ63: 20.4 | AR63: 21.9 | AS63: 20 | AT63: 21.7 | AU63: 18.1 | AV63: 18.7 | AW63: 18.9 | AX63: 22.1 | AY63: 20.8 | AZ63: 20.4 | BA63: 22 | BB63: 19.7 | BC63: 19.5 | BD63: 21.9 | BE63: 18.2 | BF63: 18.9 | BG63: 21.1 | BH63: 19.1 | BI63: 21.8 | BJ63: 19.9 | BK63: 22.3 | BL63: 19.7 | BM63: 19.6 | BN63: 22 | BO63: 19.8 | BP63: 18.1 | BQ63: 20.5 | BR63: 19.8 | BS63: 19.3 | BT63: 19.5 | BU63: 19 | BV63: 20.5 | BW63: 20.1 | BX63: 18.1 | BY63: 18 | BZ63: 21.3 | CA63: 18.5 | CB63: 18.4 | CC63: 18.5 | CD63: 19.7 | CE63: 18.4 | CF63: 19.9 | CG63: 17.5 | CH63: 20.1 | CI63: 20.7 | CJ63: 17.7 | CK63: 19.8 | CL63: 18.9 | CM63: 20.7 | CN63: 21.3 | CO63: 20.6 | CP63: 19.9 | CQ63: 17.9 | CR63: 20.5 | CS63: 19.8
A64: Jour 14 | B64: 21.6 | C64: 19.2 | D64: 20.7 | E64: 19.8 | F64: 19.3 | G64: 19.3 | H64: 21.6 | I64: 22.1 | J64: 19.4 | K64: 19.7 | L64: 20.8 | M64: 20.1 | N64: 21.3 | O64: 18.8 | P64: 21.8 | Q64: 21.5 | R64: 19.1 | S64: 21.6 | T64: 22.3 | U64: 22.3 | V64: 19.9 | W64: 20.8 | X64: 20.4 | Y64: 20 | Z64: 20.4 | AA64: 20.5 | AB64: 19.3 | AC64: 20.5 | AD64: 21.1 | AE64: 19.8 | AF64: 19.3 | AG64: 20.2 | AH64: 20.4 | AI64: 21.7 | AJ64: 21.9 | AK64: 20 | AL64: 18.3 | AM64: 19.9 | AN64: 19.3 | AO64: 19.6 | AP64: 21.5 | AQ64: 21.3 | AR64: 19.1 | AS64: 20.6 | AT64: 21.1 | AU64: 19 | AV64: 21.9 | AW64: 18.9 | AX64: 21.5 | AY64: 19.9 | AZ64: 21.7 | BA64: 22.1 | BB64: 20.1 | BC64: 19.7 | BD64: 22.1 | BE64: 20.7 | BF64: 20.2 | BG64: 18.8 | BH64: 19.5 | BI64: 20.5 | BJ64: 21.3 | BK64: 20.8 | BL64: 21.7 | BM64: 21.5 | BN64: 21.3 | BO64: 18.6 | BP64: 18.9 | BQ64: 20.9 | BR64: 19.5 | BS64: 21 | BT64: 21.8 | BU64: 19.2 | BV64: 19.2 | BW64: 17.6 | BX64: 19.7 | BY64: 18.7 | BZ64: 20.2 | CA64: 19.8 | CB64: 20.5 | CC64: 18.6 | CD64: 21 | CE64: 18.1 | CF64: 20.7 | CG64: 20.6 | CH64: 20.2 | CI64: 18.3 | CJ64: 19.9 | CK64: 20.5 | CL64: 20.7 | CM64: 21.2 | CN64: 18.9 | CO64: 18.9 | CP64: 19.4 | CQ64: 18.5 | CR64: 20.1 | CS64: 20.5
A65: Jour 15 | B65: 18.9 | C65: 21.4 | D65: 21.6 | E65: 18.8 | F65: 20.2 | G65: 21.2 | H65: 18.7 | I65: 19.4 | J65: 19.1 | K65: 19.9 | L65: 19.9 | M65: 20.1 | N65: 18.6 | O65: 19.8 | P65: 19 | Q65: 22.3 | R65: 22.1 | S65: 21.4 | T65: 22.2 | U65: 22.2 | V65: 22.3 | W65: 20 | X65: 20.4 | Y65: 20.5 | Z65: 19.7 | AA65: 19.2 | AB65: 19.5 | AC65: 18.6 | AD65: 20.2 | AE65: 21.2 | AF65: 21.8 | AG65: 18.4 | AH65: 18.1 | AI65: 19.4 | AJ65: 20.7 | AK65: 19.3 | AL65: 18.5 | AM65: 19.1 | AN65: 19.8 | AO65: 19 | AP65: 21.7 | AQ65: 18.4 | AR65: 20.9 | AS65: 19.7 | AT65: 20.2 | AU65: 21 | AV65: 18.7 | AW65: 22.1 | AX65: 21.5 | AY65: 21.9 | AZ65: 20.2 | BA65: 19.1 | BB65: 18.5 | BC65: 19.1 | BD65: 21.3 | BE65: 20.2 | BF65: 21.5 | BG65: 20.9 | BH65: 19.7 | BI65: 18.4 | BJ65: 21.9 | BK65: 18.4 | BL65: 21.8 | BM65: 21.8 | BN65: 20.8 | BO65: 21.7 | BP65: 19 | BQ65: 20.8 | BR65: 18.6 | BS65: 21.3 | BT65: 19.3 | BU65: 19 | BV65: 18.6 | BW65: 17.5 | BX65: 19.7 | BY65: 19.7 | BZ65: 19.8 | CA65: 20.8 | CB65: 20.5 | CC65: 19.3 | CD65: 18 | CE65: 20 | CF65: 19.3 | CG65: 20.3 | CH65: 20.4 | CI65: 20.3 | CJ65: 18.2 | CK65: 18 | CL65: 20.6 | CM65: 20.1 | CN65: 20.5 | CO65: 19.5 | CP65: 21.2 | CQ65: 20.5 | CR65: 20.3 | CS65: 18.5
A66: Jour 16 | B66: 19.1 | C66: 19.4 | D66: 21.1 | E66: 19.8 | F66: 20.8 | G66: 22 | H66: 21 | I66: 20 | J66: 18.3 | K66: 20.5 | L66: 19.3 | M66: 20.6 | N66: 18.2 | O66: 19.2 | P66: 22.4 | Q66: 19.8 | R66: 20 | S66: 22.1 | T66: 19.6 | U66: 19.6 | V66: 21.3 | W66: 20.5 | X66: 21.6 | Y66: 20.6 | Z66: 20.3 | AA66: 18.2 | AB66: 17.5 | AC66: 18.5 | AD66: 20.6 | AE66: 22.1 | AF66: 19.8 | AG66: 19.5 | AH66: 21.7 | AI66: 18.1 | AJ66: 18.6 | AK66: 18.6 | AL66: 19.6 | AM66: 20.2 | AN66: 19.5 | AO66: 20 | AP66: 20.8 | AQ66: 20.6 | AR66: 18.1 | AS66: 21 | AT66: 18.3 | AU66: 20.3 | AV66: 19.4 | AW66: 21.4 | AX66: 20.6 | AY66: 18.6 | AZ66: 19 | BA66: 19.3 | BB66: 20.9 | BC66: 20.3 | BD66: 20.9 | BE66: 21.4 | BF66: 18.2 | BG66: 20.6 | BH66: 21.3 | BI66: 20.4 | BJ66: 20.6 | BK66: 20.1 | BL66: 19.2 | BM66: 21.5 | BN66: 19.9 | BO66: 21.3 | BP66: 19.1 | BQ66: 19.2 | BR66: 20.4 | BS66: 19.3 | BT66: 17.9 | BU66: 21 | BV66: 21.4 | BW66: 21.3 | BX66: 18.4 | BY66: 21.4 | BZ66: 19.3 | CA66: 17.3 | CB66: 19.8 | CC66: 18.6 | CD66: 19.1 | CE66: 19.9 | CF66: 19.3 | CG66: 17.7 | CH66: 18.8 | CI66: 18.1 | CJ66: 20.9 | CK66: 19.2 | CL66: 19.2 | CM66: 17.5 | CN66: 19.2 | CO66: 18.6 | CP66: 18.5 | CQ66: 17.8 | CR66: 20.6 | CS66: 21.7
A67: Jour 17 | B67: 18.7 | C67: 20 | D67: 20.1 | E67: 19.8 | F67: 22.2 | G67: 18.7 | H67: 18.9 | I67: 18.8 | J67: 19.3 | K67: 18.5 | L67: 21.5 | M67: 22.1 | N67: 21 | O67: 19.8 | P67: 19.4 | Q67: 21.9 | R67: 21.2 | S67: 19.9 | T67: 22.5 | U67: 20.8 | V67: 19.6 | W67: 20 | X67: 21.2 | Y67: 21.2 | Z67: 20 | AA67: 20.2 | AB67: 20.6 | AC67: 21 | AD67: 20 | AE67: 18.6 | AF67: 22.1 | AG67: 21.6 | AH67: 21.1 | AI67: 20.3 | AJ67: 21 | AK67: 20 | AL67: 19.3 | AM67: 19.2 | AN67: 20.9 | AO67: 19.8 | AP67: 18.7 | AQ67: 21.5 | AR67: 20.6 | AS67: 21 | AT67: 18.6 | AU67: 21.5 | AV67: 19.6 | AW67: 22 | AX67: 20.5 | AY67: 21.6 | AZ67: 19.5 | BA67: 19.9 | BB67: 20.5 | BC67: 19.2 | BD67: 20.4 | BE67: 21.8 | BF67: 20.2 | BG67: 18.9 | BH67: 20.1 | BI67: 21.1 | BJ67: 18.6 | BK67: 19.8 | BL67: 20.7 | BM67: 19.7 | BN67: 20.6 | BO67: 19 | BP67: 19.4 | BQ67: 20.5 | BR67: 19.9 | BS67: 21.6 | BT67: 20.7 | BU67: 20.4 | BV67: 17.9 | BW67: 20.7 | BX67: 18 | BY67: 18.4 | BZ67: 20.6 | CA67: 18.1 | CB67: 18.3 | CC67: 17.9 | CD67: 17.9 | CE67: 18.6 | CF67: 19.3 | CG67: 21 | CH67: 19.4 | CI67: 18.4 | CJ67: 19.2 | CK67: 18.3 | CL67: 21.4 | CM67: 18.8 | CN67: 17.6 | CO67: 20.4 | CP67: 19.2 | CQ67: 21.2 | CR67: 20.2 | CS67: 18.7
A68: Jour 18 | B68: 20.7 | C68: 22.2 | D68: 20.1 | E68: 21.8 | F68: 19.6 | G68: 20.9 | H68: 20.1 | I68: 20.4 | J68: 21.3 | K68: 22.2 | L68: 21.4 | M68: 21 | N68: 21.7 | O68: 18.8 | P68: 22.4 | Q68: 18.7 | R68: 20.5 | S68: 19.9 | T68: 21 | U68: 19 | V68: 22.1 | W68: 21.2 | X68: 20.7 | Y68: 20.1 | Z68: 20.4 | AA68: 21.3 | AB68: 18.2 | AC68: 21.3 | AD68: 21 | AE68: 18.7 | AF68: 22 | AG68: 19.4 | AH68: 18.8 | AI68: 18.5 | AJ68: 20.7 | AK68: 19.7 | AL68: 21.6 | AM68: 18.3 | AN68: 20.7 | AO68: 18.2 | AP68: 20.6 | AQ68: 18.8 | AR68: 19.4 | AS68: 20.8 | AT68: 20.8 | AU68: 18.8 | AV68: 21.6 | AW68: 20.9 | AX68: 21.2 | AY68: 19.5 | AZ68: 21.2 | BA68: 21.7 | BB68: 21 | BC68: 20.4 | BD68: 18.5 | BE68: 22.2 | BF68: 19.7 | BG68: 21.1 | BH68: 19 | BI68: 19.2 | BJ68: 18.4 | BK68: 21.1 | BL68: 18.2 | BM68: 20.6 | BN68: 20.2 | BO68: 19 | BP68: 19.6 | BQ68: 21.5 | BR68: 18.3 | BS68: 21.7 | BT68: 18.7 | BU68: 20.4 | BV68: 20.6 | BW68: 19.8 | BX68: 21 | BY68: 21.2 | BZ68: 20.4 | CA68: 19.3 | CB68: 17.8 | CC68: 21 | CD68: 19.7 | CE68: 17.3 | CF68: 21 | CG68: 19.3 | CH68: 18.8 | CI68: 17.4 | CJ68: 20.2 | CK68: 19.3 | CL68: 19.4 | CM68: 19.7 | CN68: 20.4 | CO68: 20.4 | CP68: 19.3 | CQ68: 20.6 | CR68: 21.8 | CS68: 18.3
A69: Jour 19 | B69: 20 | C69: 20.5 | D69: 21.1 | E69: 21.2 | F69: 20.2 | G69: 21.1 | H69: 19.8 | I69: 19.7 | J69: 19.8 | K69: 18.6 | L69: 18.9 | M69: 19.8 | N69: 22.2 | O69: 19.4 | P69: 19.7 | Q69: 20 | R69: 19 | S69: 21.5 | T69: 18.8 | U69: 18.7 | V69: 19.2 | W69: 22.2 | X69: 21.4 | Y69: 21.3 | Z69: 19.6 | AA69: 21.1 | AB69: 17.6 | AC69: 18.7 | AD69: 21 | AE69: 21.4 | AF69: 19.5 | AG69: 18.5 | AH69: 20.2 | AI69: 21.2 | AJ69: 18.5 | AK69: 19.5 | AL69: 18.4 | AM69: 19.4 | AN69: 19.8 | AO69: 18.8 | AP69: 20.5 | AQ69: 20.2 | AR69: 18.6 | AS69: 18.9 | AT69: 21 | AU69: 19.1 | AV69: 18.4 | AW69: 21.7 | AX69: 21.8 | AY69: 21.7 | AZ69: 18.7 | BA69: 22 | BB69: 20.9 | BC69: 18.8 | BD69: 20.5 | BE69: 22 | BF69: 19 | BG69: 21.1 | BH69: 19.7 | BI69: 21.4 | BJ69: 22 | BK69: 20.4 | BL69: 18.1 | BM69: 22.2 | BN69: 18.4 | BO69: 19.1 | BP69: 19.5 | BQ69: 19.7 | BR69: 22 | BS69: 20.6 | BT69: 20 | BU69: 18 | BV69: 20 | BW69: 19.2 | BX69: 17.6 | BY69: 19.3 | BZ69: 18.1 | CA69: 17.6 | CB69: 18.4 | CC69: 18.4 | CD69: 19.1 | CE69: 19.8 | CF69: 20.9 | CG69: 20 | CH69: 19.6 | CI69: 19.6 | CJ69: 19.3 | CK69: 21.4 | CL69: 17.4 | CM69: 18.8 | CN69: 20.4 | CO69: 17.7 | CP69: 18.4 | CQ69: 19.8 | CR69: 21 | CS69: 17.9
A70: Jour 20 | B70: 18.5 | C70: 20.4 | D70: 19.9 | E70: 20.8 | F70: 18.4 | G70: 19 | H70: 21.4 | I70: 19.8 | J70: 21.6 | K70: 19.5 | L70: 20.6 | M70: 20.8 | N70: 19.4 | O70: 21.5 | P70: 19.5 | Q70: 20.8 | R70: 21.5 | S70: 20.5 | T70: 22.2 | U70: 19.6 | V70: 22.4 | W70: 19.7 | X70: 20.9 | Y70: 19.1 | Z70: 18.3 | AA70: 21.1 | AB70: 18.2 | AC70: 18.1 | AD70: 18.2 | AE70: 21 | AF70: 21.9 | AG70: 21 | AH70: 20.9 | AI70: 19.1 | AJ70: 20.1 | AK70: 21.4 | AL70: 22.1 | AM70: 19.9 | AN70: 20.6 | AO70: 21.6 | AP70: 19.1 | AQ70: 18.5 | AR70: 18.2 | AS70: 19.4 | AT70: 18.5 | AU70: 21.5 | AV70: 19 | AW70: 21.1 | AX70: 21.6 | AY70: 21.9 | AZ70: 19.4 | BA70: 21.8 | BB70: 18.2 | BC70: 19.3 | BD70: 18.8 | BE70: 19.4 | BF70: 21.5 | BG70: 19.2 | BH70: 18.2 | BI70: 21.2 | BJ70: 20.3 | BK70: 19.9 | BL70: 20.3 | BM70: 20.2 | BN70: 18.5 | BO70: 21.8 | BP70: 18.3 | BQ70: 20.7 | BR70: 19.8 | BS70: 20.2 | BT70: 19.6 | BU70: 20.4 | BV70: 19.8 | BW70: 21.2 | BX70: 20.9 | BY70: 19 | BZ70: 18.4 | CA70: 18.5 | CB70: 19.8 | CC70: 19.6 | CD70: 20.3 | CE70: 17.4 | CF70: 18.4 | CG70: 18.2 | CH70: 18.3 | CI70: 21 | CJ70: 21.2 | CK70: 18 | CL70: 17.9 | CM70: 19.7 | CN70: 19.6 | CO70: 18.9 | CP70: 21.1 | CQ70: 18.6 | CR70: 21 | CS70: 21.8
A71: Jour 21 | B71: 20.5 | C71: 19.3 | D71: 21.9 | E71: 20.6 | F71: 19 | G71: 19.1 | H71: 21.7 | I71: 21.1 | J71: 22 | K71: 20.2 | L71: 20.6 | M71: 18.9 | N71: 19.5 | O71: 22.1 | P71: 21.7 | Q71: 21.6 | R71: 21.8 | S71: 18.9 | T71: 21.3 | U71: 22.4 | V71: 21.3 | W71: 20.3 | X71: 21.3 | Y71: 18 | Z71: 21.1 | AA71: 20.2 | AB71: 18.6 | AC71: 21.7 | AD71: 20.8 | AE71: 19.4 | AF71: 19 | AG71: 20.9 | AH71: 18.2 | AI71: 21.4 | AJ71: 19.6 | AK71: 18.8 | AL71: 21.3 | AM71: 19 | AN71: 18.9 | AO71: 19.4 | AP71: 20.5 | AQ71: 19.8 | AR71: 21.9 | AS71: 19.1 | AT71: 20.5 | AU71: 19.1 | AV71: 19.4 | AW71: 20.2 | AX71: 21.6 | AY71: 19.1 | AZ71: 21.6 | BA71: 21.6 | BB71: 20.9 | BC71: 21.7 | BD71: 21.4 | BE71: 20.5 | BF71: 21.9 | BG71: 20.6 | BH71: 19.8 | BI71: 20.2 | BJ71: 18.6 | BK71: 22.1 | BL71: 18.8 | BM71: 19 | BN71: 20.3 | BO71: 19 | BP71: 22.1 | BQ71: 19.8 | BR71: 21 | BS71: 18.7 | BT71: 18.1 | BU71: 21.3 | BV71: 21.2 | BW71: 18.6 | BX71: 17.6 | BY71: 19.8 | BZ71: 21.2 | CA71: 17.3 | CB71: 18.2 | CC71: 19.6 | CD71: 21 | CE71: 19.7 | CF71: 20.1 | CG71: 17.8 | CH71: 18.8 | CI71: 20.5 | CJ71: 18.8 | CK71: 17.6 | CL71: 17.9 | CM71: 18.8 | CN71: 20.3 | CO71: 18 | CP71: 21.7 | CQ71: 18.7 | CR71: 18.6 | CS71: 18.8
B73: Th2
B74: 06:00:00 | C74: 06:15:00 | D74: 06:30:00 | E74: 06:45:00 | F74: 07:00:00 | G74: 07:15:00 | H74: 07:30:00 | I74: 07:45:00 | J74: 08:00:00 | K74: 08:15:00 | L74: 08:30:00 | M74: 08:45:00 | N74: 09:00:00 | O74: 09:15:00 | P74: 09:30:00 | Q74: 09:45:00 | R74: 10:00:00 | S74: 10:15:00 | T74: 10:30:00 | U74: 10:45:00 | V74: 11:00:00 | W74: 11:15:00 | X74: 11:30:00 | Y74: 11:45:00 | Z74: 12:00:00 | AA74: 12:15:00 | AB74: 12:30:00 | AC74: 12:45:00 | AD74: 13:00:00 | AE74: 13:15:00 | AF74: 13:30:00 | AG74: 13:45:00 | AH74: 14:00:00 | AI74: 14:15:00 | AJ74: 14:30:00 | AK74: 14:45:00 | AL74: 15:00:00 | AM74: 15:15:00 | AN74: 15:30:00 | AO74: 15:45:00 | AP74: 16:00:00 | AQ74: 16:15:00 | AR74: 16:30:00 | AS74: 16:45:00 | AT74: 17:00:00 | AU74: 17:15:00 | AV74: 17:30:00 | AW74: 17:45:00 | AX74: 18:00:00 | AY74: 18:15:00 | AZ74: 18:30:00 | BA74: 18:45:00 | BB74: 19:00:00 | BC74: 19:15:00 | BD74: 19:30:00 | BE74: 19:45:00 | BF74: 20:00:00 | BG74: 20:15:00 | BH74: 20:30:00 | BI74: 20:45:00 | BJ74: 21:00:00 | BK74: 21:15:00 | BL74: 21:30:00 | BM74: 21:45:00 | BN74: 22:00:00 | BO74: 22:15:00 | BP74: 22:30:00 | BQ74: 22:45:00 | BR74: 23:00:00 | BS74: 23:15:00 | BT74: 23:30:00 | BU74: 23:45:00 | BV74: 00:00:00 | BW74: 00:15:00 | BX74: 00:30:00 | BY74: 00:45:00 | BZ74: 01:00:00 | CA74: 01:15:00 | CB74: 01:30:00 | CC74: 01:45:00 | CD74: 02:00:00 | CE74: 02:15:00 | CF74: 02:30:00 | CG74: 02:45:00 | CH74: 03:00:00 | CI74: 03:15:00 | CJ74: 03:30:00 | CK74: 03:45:00 | CL74: 04:00:00 | CM74: 04:15:00 | CN74: 04:30:00 | CO74: 04:45:00 | CP74: 05:00:00 | CQ74: 05:15:00 | CR74: 05:30:00 | CS74: 05:45:00
A75: Jour 1 | B75: =B51+1 -> 11 | C75: =C51+1 -> 12 | D75: 13 | E75: 14 | F75: 15 | G75: 16 | H75: 17 | I75: 18 | J75: 19 | K75: 20 | L75: 21 | M75: 22 | N75: 23 | O75: 24 | P75: 25 | Q75: 26 | R75: 27 | S75: 28 | T75: 29 | U75: 30 | V75: 29 | W75: 28 | X75: 27 | Y75: 26 | Z75: 25 | AA75: 24 | AB75: 23 | AC75: 22 | AD75: 21 | AE75: 20 | AF75: 19 | AG75: 18 | AH75: 17 | AI75: 16 | AJ75: 15 | AK75: 14 | AL75: 13 | AM75: 11 | AN75: 12 | AO75: 13 | AP75: 14 | AQ75: 15 | AR75: 16 | AS75: 17 | AT75: 18 | AU75: 19 | AV75: 20 | AW75: 21 | AX75: 22 | AY75: 23 | AZ75: 24 | BA75: 25 | BB75: 26 | BC75: 27 | BD75: 28 | BE75: 29 | BF75: 30 | BG75: 29 | BH75: 28 | BI75: 27 | BJ75: 26 | BK75: 25 | BL75: 24 | BM75: 23 | BN75: 22 | BO75: =BO51+1 -> 21 | BP75: 20 | BQ75: 19 | BR75: 18 | BS75: 17 | BT75: 16 | BU75: 15 | BV75: 14 | BW75: 13 | BX75: 11 | BY75: 12 | BZ75: 13 | CA75: 14 | CB75: 15 | CC75: 16 | CD75: 17 | CE75: 18 | CF75: 19 | CG75: 20 | CH75: 21 | CI75: 22 | CJ75: 23 | CK75: 24 | CL75: 25 | CM75: 26 | CN75: 27 | CO75: 28 | CP75: 29 | CQ75: 30 | CR75: 29 | CS75: 28
A76: Jour 2
A77: Jour 3
A78: Jour 4
A79: Jour 5
A80: Jour 6
A81: Jour 7
A82: Jour 8
A83: Jour 9
A84: Jour 10
A85: Jour 11
A86: Jour 12
A87: Jour 13
A88: Jour 14
A89: Jour 15
A90: Jour 16
A91: Jour 17
A92: Jour 18
A93: Jour 19
A94: Jour 20
A95: Jour 21
B97: Th3
B98: 06:00:00 | C98: 06:15:00 | D98: 06:30:00 | E98: 06:45:00 | F98: 07:00:00 | G98: 07:15:00 | H98: 07:30:00 | I98: 07:45:00 | J98: 08:00:00 | K98: 08:15:00 | L98: 08:30:00 | M98: 08:45:00 | N98: 09:00:00 | O98: 09:15:00 | P98: 09:30:00 | Q98: 09:45:00 | R98: 10:00:00 | S98: 10:15:00 | T98: 10:30:00 | U98: 10:45:00 | V98: 11:00:00 | W98: 11:15:00 | X98: 11:30:00 | Y98: 11:45:00 | Z98: 12:00:00 | AA98: 12:15:00 | AB98: 12:30:00 | AC98: 12:45:00 | AD98: 13:00:00 | AE98: 13:15:00 | AF98: 13:30:00 | AG98: 13:45:00 | AH98: 14:00:00 | AI98: 14:15:00 | AJ98: 14:30:00 | AK98: 14:45:00 | AL98: 15:00:00 | AM98: 15:15:00 | AN98: 15:30:00 | AO98: 15:45:00 | AP98: 16:00:00 | AQ98: 16:15:00 | AR98: 16:30:00 | AS98: 16:45:00 | AT98: 17:00:00 | AU98: 17:15:00 | AV98: 17:30:00 | AW98: 17:45:00 | AX98: 18:00:00 | AY98: 18:15:00 | AZ98: 18:30:00 | BA98: 18:45:00 | BB98: 19:00:00 | BC98: 19:15:00 | BD98: 19:30:00 | BE98: 19:45:00 | BF98: 20:00:00 | BG98: 20:15:00 | BH98: 20:30:00 | BI98: 20:45:00 | BJ98: 21:00:00 | BK98: 21:15:00 | BL98: 21:30:00 | BM98: 21:45:00 | BN98: 22:00:00 | BO98: 22:15:00 | BP98: 22:30:00 | BQ98: 22:45:00 | BR98: 23:00:00 | BS98: 23:15:00 | BT98: 23:30:00 | BU98: 23:45:00 | BV98: 00:00:00 | BW98: 00:15:00 | BX98: 00:30:00 | BY98: 00:45:00 | BZ98: 01:00:00 | CA98: 01:15:00 | CB98: 01:30:00 | CC98: 01:45:00 | CD98: 02:00:00 | CE98: 02:15:00 | CF98: 02:30:00 | CG98: 02:45:00 | CH98: 03:00:00 | CI98: 03:15:00 | CJ98: 03:30:00 | CK98: 03:45:00 | CL98: 04:00:00 | CM98: 04:15:00 | CN98: 04:30:00 | CO98: 04:45:00 | CP98: 05:00:00 | CQ98: 05:15:00 | CR98: 05:30:00 | CS98: 05:45:00
A99: Jour 1 | B99: =B75+1 -> 12 | C99: =C75+1 -> 13 | D99: 14 | E99: 15 | F99: 16 | G99: 17 | H99: 18 | I99: 19 | J99: 20 | K99: 21 | L99: 22 | M99: 23 | N99: 24 | O99: 25 | P99: 26 | Q99: 27 | R99: 28 | S99: 29 | T99: 30 | U99: 31 | V99: 30 | W99: 29 | X99: 28 | Y99: 27 | Z99: 26 | AA99: 25 | AB99: 24 | AC99: 23 | AD99: 22 | AE99: 21 | AF99: 20 | AG99: 19 | AH99: 18 | AI99: 17 | AJ99: 16 | AK99: 15 | AL99: 14 | AM99: 12 | AN99: 13 | AO99: 14 | AP99: 15 | AQ99: 16 | AR99: 17 | AS99: 18 | AT99: 19 | AU99: 20 | AV99: 21 | AW99: 22 | AX99: 23 | AY99: 24 | AZ99: 25 | BA99: 26 | BB99: 27 | BC99: 28 | BD99: 29 | BE99: 30 | BF99: 31 | BG99: 30 | BH99: 29 | BI99: 28 | BJ99: 27 | BK99: 26 | BL99: 25 | BM99: 24 | BN99: 23 | BO99: =BO75+1 -> 22 | BP99: 21 | BQ99: 20 | BR99: 19 | BS99: 18 | BT99: 17 | BU99: 16 | BV99: 15 | BW99: 14 | BX99: 12 | BY99: 13 | BZ99: 14 | CA99: 15 | CB99: 16 | CC99: 17 | CD99: 18 | CE99: 19 | CF99: 20 | CG99: 21 | CH99: 22 | CI99: 23 | CJ99: 24 | CK99: 25 | CL99: 26 | CM99: 27 | CN99: 28 | CO99: 29 | CP99: 30 | CQ99: 31 | CR99: 30 | CS99: 29
A100: Jour 2
A101: Jour 3
A102: Jour 4
A103: Jour 5
A104: Jour 6
A105: Jour 7
A106: Jour 8
A107: Jour 9
A108: Jour 10
A109: Jour 11
A110: Jour 12
A111: Jour 13
A112: Jour 14
A113: Jour 15
A114: Jour 16
A115: Jour 17
A116: Jour 18
A117: Jour 19
A118: Jour 20
A119: Jour 21
B121: Th4
B122: 06:00:00 | C122: 06:15:00 | D122: 06:30:00 | E122: 06:45:00 | F122: 07:00:00 | G122: 07:15:00 | H122: 07:30:00 | I122: 07:45:00 | J122: 08:00:00 | K122: 08:15:00 | L122: 08:30:00 | M122: 08:45:00 | N122: 09:00:00 | O122: 09:15:00 | P122: 09:30:00 | Q122: 09:45:00 | R122: 10:00:00 | S122: 10:15:00 | T122: 10:30:00 | U122: 10:45:00 | V122: 11:00:00 | W122: 11:15:00 | X122: 11:30:00 | Y122: 11:45:00 | Z122: 12:00:00 | AA122: 12:15:00 | AB122: 12:30:00 | AC122: 12:45:00 | AD122: 13:00:00 | AE122: 13:15:00 | AF122: 13:30:00 | AG122: 13:45:00 | AH122: 14:00:00 | AI122: 14:15:00 | AJ122: 14:30:00 | AK122: 14:45:00 | AL122: 15:00:00 | AM122: 15:15:00 | AN122: 15:30:00 | AO122: 15:45:00 | AP122: 16:00:00 | AQ122: 16:15:00 | AR122: 16:30:00 | AS122: 16:45:00 | AT122: 17:00:00 | AU122: 17:15:00 | AV122: 17:30:00 | AW122: 17:45:00 | AX122: 18:00:00 | AY122: 18:15:00 | AZ122: 18:30:00 | BA122: 18:45:00 | BB122: 19:00:00 | BC122: 19:15:00 | BD122: 19:30:00 | BE122: 19:45:00 | BF122: 20:00:00 | BG122: 20:15:00 | BH122: 20:30:00 | BI122: 20:45:00 | BJ122: 21:00:00 | BK122: 21:15:00 | BL122: 21:30:00 | BM122: 21:45:00 | BN122: 22:00:00 | BO122: 22:15:00 | BP122: 22:30:00 | BQ122: 22:45:00 | BR122: 23:00:00 | BS122: 23:15:00 | BT122: 23:30:00 | BU122: 23:45:00 | BV122: 00:00:00 | BW122: 00:15:00 | BX122: 00:30:00 | BY122: 00:45:00 | BZ122: 01:00:00 | CA122: 01:15:00 | CB122: 01:30:00 | CC122: 01:45:00 | CD122: 02:00:00 | CE122: 02:15:00 | CF122: 02:30:00 | CG122: 02:45:00 | CH122: 03:00:00 | CI122: 03:15:00 | CJ122: 03:30:00 | CK122: 03:45:00 | CL122: 04:00:00 | CM122: 04:15:00 | CN122: 04:30:00 | CO122: 04:45:00 | CP122: 05:00:00 | CQ122: 05:15:00 | CR122: 05:30:00 | CS122: 05:45:00
A123: Jour 1 | B123: =B99+1 -> 13 | C123: =C99+1 -> 14 | D123: 15 | E123: 16 | F123: 17 | G123: 18 | H123: 19 | I123: 20 | J123: 21 | K123: 22 | L123: 23 | M123: 24 | N123: 25 | O123: 26 | P123: 27 | Q123: 28 | R123: 29 | S123: 30 | T123: 31 | U123: 32 | V123: 31 | W123: 30 | X123: 29 | Y123: 28 | Z123: 27 | AA123: 26 | AB123: 25 | AC123: 24 | AD123: 23 | AE123: 22 | AF123: 21 | AG123: 20 | AH123: 19 | AI123: 18 | AJ123: 17 | AK123: 16 | AL123: 15 | AM123: 13 | AN123: 14 | AO123: 15 | AP123: 16 | AQ123: 17 | AR123: 18 | AS123: 19 | AT123: 20 | AU123: 21 | AV123: 22 | AW123: 23 | AX123: 24 | AY123: 25 | AZ123: 26 | BA123: 27 | BB123: 28 | BC123: 29 | BD123: 30 | BE123: 31 | BF123: 32 | BG123: 31 | BH123: 30 | BI123: 29 | BJ123: 28 | BK123: 27 | BL123: 26 | BM123: 25 | BN123: 24 | BO123: =BO99+1 -> 23 | BP123: 22 | BQ123: 21 | BR123: 20 | BS123: 19 | BT123: 18 | BU123: 17 | BV123: 16 | BW123: 15 | BX123: 13 | BY123: 14 | BZ123: 15 | CA123: 16 | CB123: 17 | CC123: 18 | CD123: 19 | CE123: 20 | CF123: 21 | CG123: 22 | CH123: 23 | CI123: 24 | CJ123: 25 | CK123: 26 | CL123: 27 | CM123: 28 | CN123: 29 | CO123: 30 | CP123: 31 | CQ123: 32 | CR123: 31 | CS123: 30
A124: Jour 2
A125: Jour 3
A126: Jour 4
A127: Jour 5
A128: Jour 6
A129: Jour 7
A130: Jour 8
A131: Jour 9
A132: Jour 10
A133: Jour 11
A134: Jour 12
A135: Jour 13
A136: Jour 14
A137: Jour 15
A138: Jour 16
A139: Jour 17
A140: Jour 18
A141: Jour 19
A142: Jour 20
A143: Jour 21
B145: Th5
B146: 06:00:00 | C146: 06:15:00 | D146: 06:30:00 | E146: 06:45:00 | F146: 07:00:00 | G146: 07:15:00 | H146: 07:30:00 | I146: 07:45:00 | J146: 08:00:00 | K146: 08:15:00 | L146: 08:30:00 | M146: 08:45:00 | N146: 09:00:00 | O146: 09:15:00 | P146: 09:30:00 | Q146: 09:45:00 | R146: 10:00:00 | S146: 10:15:00 | T146: 10:30:00 | U146: 10:45:00 | V146: 11:00:00 | W146: 11:15:00 | X146: 11:30:00 | Y146: 11:45:00 | Z146: 12:00:00 | AA146: 12:15:00 | AB146: 12:30:00 | AC146: 12:45:00 | AD146: 13:00:00 | AE146: 13:15:00 | AF146: 13:30:00 | AG146: 13:45:00 | AH146: 14:00:00 | AI146: 14:15:00 | AJ146: 14:30:00 | AK146: 14:45:00 | AL146: 15:00:00 | AM146: 15:15:00 | AN146: 15:30:00 | AO146: 15:45:00 | AP146: 16:00:00 | AQ146: 16:15:00 | AR146: 16:30:00 | AS146: 16:45:00 | AT146: 17:00:00 | AU146: 17:15:00 | AV146: 17:30:00 | AW146: 17:45:00 | AX146: 18:00:00 | AY146: 18:15:00 | AZ146: 18:30:00 | BA146: 18:45:00 | BB146: 19:00:00 | BC146: 19:15:00 | BD146: 19:30:00 | BE146: 19:45:00 | BF146: 20:00:00 | BG146: 20:15:00 | BH146: 20:30:00 | BI146: 20:45:00 | BJ146: 21:00:00 | BK146: 21:15:00 | BL146: 21:30:00 | BM146: 21:45:00 | BN146: 22:00:00 | BO146: 22:15:00 | BP146: 22:30:00 | BQ146: 22:45:00 | BR146: 23:00:00 | BS146: 23:15:00 | BT146: 23:30:00 | BU146: 23:45:00 | BV146: 00:00:00 | BW146: 00:15:00 | BX146: 00:30:00 | BY146: 00:45:00 | BZ146: 01:00:00 | CA146: 01:15:00 | CB146: 01:30:00 | CC146: 01:45:00 | CD146: 02:00:00 | CE146: 02:15:00 | CF146: 02:30:00 | CG146: 02:45:00 | CH146: 03:00:00 | CI146: 03:15:00 | CJ146: 03:30:00 | CK146: 03:45:00 | CL146: 04:00:00 | CM146: 04:15:00 | CN146: 04:30:00 | CO146: 04:45:00 | CP146: 05:00:00 | CQ146: 05:15:00 | CR146: 05:30:00 | CS146: 05:45:00
A147: Jour 1 | B147: =B123+1 -> 14 | C147: =C123+1 -> 15 | D147: 16 | E147: 17 | F147: 18 | G147: 19 | H147: 20 | I147: 21 | J147: 22 | K147: 23 | L147: 24 | M147: 25 | N147: 26 | O147: 27 | P147: 28 | Q147: 29 | R147: 30 | S147: 31 | T147: 32 | U147: 33 | V147: 32 | W147: 31 | X147: 30 | Y147: 29 | Z147: 28 | AA147: 27 | AB147: 26 | AC147: 25 | AD147: 24 | AE147: 23 | AF147: 22 | AG147: 21 | AH147: 20 | AI147: 19 | AJ147: 18 | AK147: 17 | AL147: 16 | AM147: 14 | AN147: 15 | AO147: 16 | AP147: 17 | AQ147: 18 | AR147: 19 | AS147: 20 | AT147: 21 | AU147: 22 | AV147: 23 | AW147: 24 | AX147: 25 | AY147: 26 | AZ147: 27 | BA147: 28 | BB147: 29 | BC147: 30 | BD147: 31 | BE147: 32 | BF147: 33 | BG147: 32 | BH147: 31 | BI147: 30 | BJ147: 29 | BK147: 28 | BL147: 27 | BM147: 26 | BN147: 25 | BO147: =BO123+1 -> 24 | BP147: 23 | BQ147: 22 | BR147: 21 | BS147: 20 | BT147: 19 | BU147: 18 | BV147: 17 | BW147: 16 | BX147: 14 | BY147: 15 | BZ147: 16 | CA147: 17 | CB147: 18 | CC147: 19 | CD147: 20 | CE147: 21 | CF147: 22 | CG147: 23 | CH147: 24 | CI147: 25 | CJ147: 26 | CK147: 27 | CL147: 28 | CM147: 29 | CN147: 30 | CO147: 31 | CP147: 32 | CQ147: 33 | CR147: 32 | CS147: 31
A148: Jour 2
A149: Jour 3
A150: Jour 4
A151: Jour 5
A152: Jour 6
A153: Jour 7
A154: Jour 8
A155: Jour 9
A156: Jour 10
A157: Jour 11
A158: Jour 12
A159: Jour 13
A160: Jour 14
A161: Jour 15
A162: Jour 16
A163: Jour 17
A164: Jour 18
A165: Jour 19
A166: Jour 20
A167: Jour 21
B169: Th6
B170: 06:00:00 | C170: 06:15:00 | D170: 06:30:00 | E170: 06:45:00 | F170: 07:00:00 | G170: 07:15:00 | H170: 07:30:00 | I170: 07:45:00 | J170: 08:00:00 | K170: 08:15:00 | L170: 08:30:00 | M170: 08:45:00 | N170: 09:00:00 | O170: 09:15:00 | P170: 09:30:00 | Q170: 09:45:00 | R170: 10:00:00 | S170: 10:15:00 | T170: 10:30:00 | U170: 10:45:00 | V170: 11:00:00 | W170: 11:15:00 | X170: 11:30:00 | Y170: 11:45:00 | Z170: 12:00:00 | AA170: 12:15:00 | AB170: 12:30:00 | AC170: 12:45:00 | AD170: 13:00:00 | AE170: 13:15:00 | AF170: 13:30:00 | AG170: 13:45:00 | AH170: 14:00:00 | AI170: 14:15:00 | AJ170: 14:30:00 | AK170: 14:45:00 | AL170: 15:00:00 | AM170: 15:15:00 | AN170: 15:30:00 | AO170: 15:45:00 | AP170: 16:00:00 | AQ170: 16:15:00 | AR170: 16:30:00 | AS170: 16:45:00 | AT170: 17:00:00 | AU170: 17:15:00 | AV170: 17:30:00 | AW170: 17:45:00 | AX170: 18:00:00 | AY170: 18:15:00 | AZ170: 18:30:00 | BA170: 18:45:00 | BB170: 19:00:00 | BC170: 19:15:00 | BD170: 19:30:00 | BE170: 19:45:00 | BF170: 20:00:00 | BG170: 20:15:00 | BH170: 20:30:00 | BI170: 20:45:00 | BJ170: 21:00:00 | BK170: 21:15:00 | BL170: 21:30:00 | BM170: 21:45:00 | BN170: 22:00:00 | BO170: 22:15:00 | BP170: 22:30:00 | BQ170: 22:45:00 | BR170: 23:00:00 | BS170: 23:15:00 | BT170: 23:30:00 | BU170: 23:45:00 | BV170: 00:00:00 | BW170: 00:15:00 | BX170: 00:30:00 | BY170: 00:45:00 | BZ170: 01:00:00 | CA170: 01:15:00 | CB170: 01:30:00 | CC170: 01:45:00 | CD170: 02:00:00 | CE170: 02:15:00 | CF170: 02:30:00 | CG170: 02:45:00 | CH170: 03:00:00 | CI170: 03:15:00 | CJ170: 03:30:00 | CK170: 03:45:00 | CL170: 04:00:00 | CM170: 04:15:00 | CN170: 04:30:00 | CO170: 04:45:00 | CP170: 05:00:00 | CQ170: 05:15:00 | CR170: 05:30:00 | CS170: 05:45:00
A171: Jour 1 | B171: =B147+1 -> 15 | C171: =C147+1 -> 16 | D171: 17 | E171: 18 | F171: 19 | G171: 20 | H171: 21 | I171: 22 | J171: 23 | K171: 24 | L171: 25 | M171: 26 | N171: 27 | O171: 28 | P171: 29 | Q171: 30 | R171: 31 | S171: 32 | T171: 33 | U171: 34 | V171: 33 | W171: 32 | X171: 31 | Y171: 30 | Z171: 29 | AA171: 28 | AB171: 27 | AC171: 26 | AD171: 25 | AE171: 24 | AF171: 23 | AG171: 22 | AH171: 21 | AI171: 20 | AJ171: 19 | AK171: 18 | AL171: 17 | AM171: 15 | AN171: 16 | AO171: 17 | AP171: 18 | AQ171: 19 | AR171: 20 | AS171: 21 | AT171: 22 | AU171: 23 | AV171: 24 | AW171: 25 | AX171: 26 | AY171: 27 | AZ171: 28 | BA171: 29 | BB171: 30 | BC171: 31 | BD171: 32 | BE171: 33 | BF171: 34 | BG171: 33 | BH171: 32 | BI171: 31 | BJ171: 30 | BK171: 29 | BL171: 28 | BM171: 27 | BN171: 26 | BO171: =BO147+1 -> 25 | BP171: 24 | BQ171: 23 | BR171: 22 | BS171: 21 | BT171: 20 | BU171: 19 | BV171: 18 | BW171: 17 | BX171: 15 | BY171: 16 | BZ171: 17 | CA171: 18 | CB171: 19 | CC171: 20 | CD171: 21 | CE171: 22 | CF171: 23 | CG171: 24 | CH171: 25 | CI171: 26 | CJ171: 27 | CK171: 28 | CL171: 29 | CM171: 30 | CN171: 31 | CO171: 32 | CP171: 33 | CQ171: 34 | CR171: 33 | CS171: 32
A172: Jour 2
A173: Jour 3
A174: Jour 4
A175: Jour 5
A176: Jour 6
A177: Jour 7
A178: Jour 8
A179: Jour 9
A180: Jour 10
A181: Jour 11
A182: Jour 12
A183: Jour 13
A184: Jour 14
A185: Jour 15
A186: Jour 16
A187: Jour 17
A188: Jour 18
A189: Jour 19
A190: Jour 20
A191: Jour 21
B193: Th7
B194: 06:00:00 | C194: 06:15:00 | D194: 06:30:00 | E194: 06:45:00 | F194: 07:00:00 | G194: 07:15:00 | H194: 07:30:00 | I194: 07:45:00 | J194: 08:00:00 | K194: 08:15:00 | L194: 08:30:00 | M194: 08:45:00 | N194: 09:00:00 | O194: 09:15:00 | P194: 09:30:00 | Q194: 09:45:00 | R194: 10:00:00 | S194: 10:15:00 | T194: 10:30:00 | U194: 10:45:00 | V194: 11:00:00 | W194: 11:15:00 | X194: 11:30:00 | Y194: 11:45:00 | Z194: 12:00:00 | AA194: 12:15:00 | AB194: 12:30:00 | AC194: 12:45:00 | AD194: 13:00:00 | AE194: 13:15:00 | AF194: 13:30:00 | AG194: 13:45:00 | AH194: 14:00:00 | AI194: 14:15:00 | AJ194: 14:30:00 | AK194: 14:45:00 | AL194: 15:00:00 | AM194: 15:15:00 | AN194: 15:30:00 | AO194: 15:45:00 | AP194: 16:00:00 | AQ194: 16:15:00 | AR194: 16:30:00 | AS194: 16:45:00 | AT194: 17:00:00 | AU194: 17:15:00 | AV194: 17:30:00 | AW194: 17:45:00 | AX194: 18:00:00 | AY194: 18:15:00 | AZ194: 18:30:00 | BA194: 18:45:00 | BB194: 19:00:00 | BC194: 19:15:00 | BD194: 19:30:00 | BE194: 19:45:00 | BF194: 20:00:00 | BG194: 20:15:00 | BH194: 20:30:00 | BI194: 20:45:00 | BJ194: 21:00:00 | BK194: 21:15:00 | BL194: 21:30:00 | BM194: 21:45:00 | BN194: 22:00:00 | BO194: 22:15:00 | BP194: 22:30:00 | BQ194: 22:45:00 | BR194: 23:00:00 | BS194: 23:15:00 | BT194: 23:30:00 | BU194: 23:45:00 | BV194: 00:00:00 | BW194: 00:15:00 | BX194: 00:30:00 | BY194: 00:45:00 | BZ194: 01:00:00 | CA194: 01:15:00 | CB194: 01:30:00 | CC194: 01:45:00 | CD194: 02:00:00 | CE194: 02:15:00 | CF194: 02:30:00 | CG194: 02:45:00 | CH194: 03:00:00 | CI194: 03:15:00 | CJ194: 03:30:00 | CK194: 03:45:00 | CL194: 04:00:00 | CM194: 04:15:00 | CN194: 04:30:00 | CO194: 04:45:00 | CP194: 05:00:00 | CQ194: 05:15:00 | CR194: 05:30:00 | CS194: 05:45:00
A195: Jour 1 | B195: =B171+1 -> 16 | C195: =C171+1 -> 17 | D195: 18 | E195: 19 | F195: 20 | G195: 21 | H195: 22 | I195: 23 | J195: 24 | K195: 25 | L195: 26 | M195: 27 | N195: 28 | O195: 29 | P195: 30 | Q195: 31 | R195: 32 | S195: 33 | T195: 34 | U195: 35 | V195: 34 | W195: 33 | X195: 32 | Y195: 31 | Z195: 30 | AA195: 29 | AB195: 28 | AC195: 27 | AD195: 26 | AE195: 25 | AF195: 24 | AG195: 23 | AH195: 22 | AI195: 21 | AJ195: 20 | AK195: 19 | AL195: 18 | AM195: 16 | AN195: 17 | AO195: 18 | AP195: 19 | AQ195: 20 | AR195: 21 | AS195: 22 | AT195: 23 | AU195: 24 | AV195: 25 | AW195: 26 | AX195: 27 | AY195: 28 | AZ195: 29 | BA195: 30 | BB195: 31 | BC195: 32 | BD195: 33 | BE195: 34 | BF195: 35 | BG195: 34 | BH195: 33 | BI195: 32 | BJ195: 31 | BK195: 30 | BL195: 29 | BM195: 28 | BN195: 27 | BO195: =BO171+1 -> 26 | BP195: 25 | BQ195: 24 | BR195: 23 | BS195: 22 | BT195: 21 | BU195: 20 | BV195: 19 | BW195: 18 | BX195: 16 | BY195: 17 | BZ195: 18 | CA195: 19 | CB195: 20 | CC195: 21 | CD195: 22 | CE195: 23 | CF195: 24 | CG195: 25 | CH195: 26 | CI195: 27 | CJ195: 28 | CK195: 29 | CL195: 30 | CM195: 31 | CN195: 32 | CO195: 33 | CP195: 34 | CQ195: 35 | CR195: 34 | CS195: 33
A196: Jour 2
A197: Jour 3
A198: Jour 4
A199: Jour 5
A200: Jour 6
A201: Jour 7
A202: Jour 8
A203: Jour 9
A204: Jour 10
A205: Jour 11
A206: Jour 12
A207: Jour 13
A208: Jour 14
... 375 more rows

Sheet Ext1
B1: Ext 1 | C1: 6h | G1: 7h | K1: 8h | O1: 9h | S1: 10h | W1: 11h | AA1: 12h | AE1: 13h | AI1: 14h | AM1: 15h | AQ1: 16h | AU1: 17h | AY1: 18h | BC1: 19h | BG1: 20h | BK1: 21h | BO1: 22h | BS1: 23h | BW1: 24h | CA1: 1h | CE1: 2h | CI1: 3h | CM1: 4h | CQ1: 5h
B2: Jour 1 | C2: 4.5 | D2: 5.6 | E2: 5.2 | F2: 5.2 | G2: 5 | H2: 6.3 | I2: 6.5 | J2: 6.4 | K2: 6 | L2: 6.9 | M2: 6.2 | N2: 7.9 | O2: 7.6 | P2: 7.8 | Q2: 8.8 | R2: 7.9 | S2: 9.5 | T2: 8.1 | U2: 9.2 | V2: 10.5 | W2: 10.4 | X2: 11.4 | Y2: 11.3 | Z2: 10.3 | AA2: 11.5 | AB2: 10.7 | AC2: 11.5 | AD2: 13.2 | AE2: 12.8 | AF2: 12.4 | AG2: 13.2 | AH2: 12.5 | AI2: 11.6 | AJ2: 11.1 | AK2: 12 | AL2: 11.4 | AM2: 11 | AN2: 11.7 | AO2: 12.4 | AP2: 10.3 | AQ2: 11.1 | AR2: 11.6 | AS2: 10.6 | AT2: 10 | AU2: 10.1 | AV2: 9.9 | AW2: 10.4 | AX2: 10.2 | AY2: 9.9 | AZ2: 9.3 | BA2: 10.5 | BB2: 10.4 | BC2: 10.5 | BD2: 9.4 | BE2: 9.2 | BF2: 8.9 | BG2: 9.1 | BH2: 8.4 | BI2: 8.3 | BJ2: 9.9 | BK2: 8.9 | BL2: 8.5 | BM2: 8.2 | BN2: 7.7 | BO2: 7.7 | BP2: 7.8 | BQ2: 7.3 | BR2: 8.9 | BS2: 8.7 | BT2: 8.1 | BU2: 7.2 | BV2: 8.6 | BW2: 8.3 | BX2: 7 | BY2: 8.1 | BZ2: 6.9 | CA2: 8.4 | CB2: 6.9 | CC2: 6.4 | CD2: 7.2 | CE2: 6.7 | CF2: 6.8 | CG2: 7.8 | CH2: 7.8 | CI2: 6 | CJ2: 5.9 | CK2: 6.4 | CL2: 7.2 | CM2: 7.2 | CN2: 7.3 | CO2: 6.4 | CP2: 5.4 | CQ2: 6.8 | CR2: 6.7 | CS2: 5.6 | CT2: 6.8
B3: Jour 2 | C3: 5.4 | D3: 5.6 | E3: 5.6 | F3: 5.3 | G3: 4.8 | H3: 6.8 | I3: 6.2 | J3: 6.2 | K3: 7.4 | L3: 6.4 | M3: 6.9 | N3: 6.7 | O3: 7.8 | P3: 8.6 | Q3: 8.6 | R3: 7.9 | S3: 8.7 | T3: 8.7 | U3: 9.7 | V3: 8.8 | W3: 9.3 | X3: 9.5 | Y3: 10.3 | Z3: 12 | AA3: 11.9 | AB3: 11.2 | AC3: 12.8 | AD3: 12.6 | AE3: 12.8 | AF3: 12.1 | AG3: 12 | AH3: 12 | AI3: 11.2 | AJ3: 11.4 | AK3: 11.3 | AL3: 12.3 | AM3: 12.5 | AN3: 11.6 | AO3: 11.4 | AP3: 10.4 | AQ3: 11.2 | AR3: 9.7 | AS3: 11.6 | AT3: 10.9 | AU3: 11.2 | AV3: 10.2 | AW3: 10.5 | AX3: 11 | AY3: 9.5 | AZ3: 9.9 | BA3: 8.8 | BB3: 9 | BC3: 9.9 | BD3: 10.1 | BE3: 9.1 | BF3: 9.7 | BG3: 8.5 | BH3: 8.8 | BI3: 9.8 | BJ3: 8.8 | BK3: 8.4 | BL3: 7.9 | BM3: 9.2 | BN3: 8 | BO3: 8 | BP3: 8.2 | BQ3: 8.8 | BR3: 9 | BS3: 8.6 | BT3: 8 | BU3: 7.4 | BV3: 8.1 | BW3: 8 | BX3: 7.6 | BY3: 7.7 | BZ3: 7 | CA3: 6.4 | CB3: 6.5 | CC3: 8 | CD3: 7.3 | CE3: 7.6 | CF3: 7.7 | CG3: 7.7 | CH3: 6.4 | CI3: 6.1 | CJ3: 6 | CK3: 6.1 | CL3: 6.4 | CM3: 5.9 | CN3: 6.6 | CO3: 5.9 | CP3: 5.7 | CQ3: 6.2 | CR3: 5.4 | CS3: 6.2 | CT3: 6.6
B4: Jour 3 | C4: 4.5 | D4: 4.7 | E4: 5.3 | F4: 4.9 | G4: 4.8 | H4: 6.8 | I4: 5.2 | J4: 7.2 | K4: 6 | L4: 5.8 | M4: 6.1 | N4: 7 | O4: 7.4 | P4: 8.7 | Q4: 8.1 | R4: 8.4 | S4: 8 | T4: 10 | U4: 9.7 | V4: 10.5 | W4: 10 | X4: 10.4 | Y4: 11.7 | Z4: 11.7 | AA4: 12 | AB4: 12.2 | AC4: 13 | AD4: 13 | AE4: 12.1 | AF4: 12.2 | AG4: 12.6 | AH4: 11.9 | AI4: 13.1 | AJ4: 12.7 | AK4: 12.3 | AL4: 10.9 | AM4: 11.3 | AN4: 12.7 | AO4: 11.2 | AP4: 10.6 | AQ4: 11.5 | AR4: 10.2 | AS4: 10.4 | AT4: 10.6 | AU4: 10 | AV4: 11.2 | AW4: 9.4 | AX4: 9.9 | AY4: 8.8 | AZ4: 10.2 | BA4: 10.5 | BB4: 9.9 | BC4: 9 | BD4: 8.8 | BE4: 10.3 | BF4: 9.9 | BG4: 8.7 | BH4: 8.9 | BI4: 9.3 | BJ4: 10 | BK4: 9.1 | BL4: 8.5 | BM4: 8.2 | BN4: 9.2 | BO4: 7.7 | BP4: 8.6 | BQ4: 8 | BR4: 7.9 | BS4: 7.2 | BT4: 7.8 | BU4: 7.8 | BV4: 7.6 | BW4: 7 | BX4: 7.7 | BY4: 7.4 | BZ4: 7.9 | CA4: 6.7 | CB4: 7.5 | CC4: 6.5 | CD4: 7.2 | CE4: 6.5 | CF4: 6.7 | CG4: 7.7 | CH4: 6.5 | CI4: 7.2 | CJ4: 7.4 | CK4: 7.3 | CL4: 6.7 | CM4: 7 | CN4: 6 | CO4: 6.6 | CP4: 6.9 | CQ4: 7.1 | CR4: 5.4 | CS4: 6.5 | CT4: 5.3
B5: Jour 4 | C5: 4.6 | D5: 6.1 | E5: 5 | F5: 4.8 | G5: 6.1 | H5: 5.1 | I5: 5.6 | J5: 6 | K5: 6.3 | L5: 6.1 | M5: 7.2 | N5: 6.5 | O5: 7.4 | P5: 7.5 | Q5: 8.4 | R5: 7.6 | S5: 9.7 | T5: 8.2 | U5: 8.4 | V5: 9.8 | W5: 9.9 | X5: 9.9 | Y5: 11.4 | Z5: 11 | AA5: 11.4 | AB5: 11.1 | AC5: 11.5 | AD5: 12.7 | AE5: 12.5 | AF5: 11.9 | AG5: 11.4 | AH5: 12.6 | AI5: 11.9 | AJ5: 12.6 | AK5: 12.4 | AL5: 12.8 | AM5: 12.5 | AN5: 12.4 | AO5: 11.7 | AP5: 10.8 | AQ5: 11.4 | AR5: 11.1 | AS5: 10 | AT5: 9.6 | AU5: 11.1 | AV5: 10 | AW5: 10.1 | AX5: 9.6 | AY5: 9.6 | AZ5: 9.8 | BA5: 10.3 | BB5: 10.1 | BC5: 9.8 | BD5: 9.4 | BE5: 9.2 | BF5: 9.1 | BG5: 9.8 | BH5: 9.2 | BI5: 10.2 | BJ5: 10.1 | BK5: 8 | BL5: 9 | BM5: 9.5 | BN5: 8.9 | BO5: 8.6 | BP5: 8.9 | BQ5: 8.5 | BR5: 8.8 | BS5: 7.8 | BT5: 7.7 | BU5: 7.1 | BV5: 8.1 | BW5: 8.4 | BX5: 7.7 | BY5: 7.4 | BZ5: 7.2 | CA5: 8 | CB5: 6.6 | CC5: 6.2 | CD5: 7.1 | CE5: 7.5 | CF5: 6 | CG5: 6.1 | CH5: 7.1 | CI5: 7.4 | CJ5: 7.2 | CK5: 6.9 | CL5: 7.6 | CM5: 6.9 | CN5: 6.9 | CO5: 6.7 | CP5: 5.2 | CQ5: 5.2 | CR5: 6.2 | CS5: 5.9 | CT5: 6.9
B6: Jour 5 | C6: 6 | D6: 5.4 | E6: 4.6 | F6: 4.9 | G6: 5.7 | H6: 5.2 | I6: 6.2 | J6: 6.2 | K6: 6.9 | L6: 5.5 | M6: 8 | N6: 7.6 | O6: 8.2 | P6: 6.8 | Q6: 8.9 | R6: 8.6 | S6: 8.7 | T6: 8 | U6: 9.8 | V6: 8.9 | W6: 11.2 | X6: 9.9 | Y6: 10.5 | Z6: 11.2 | AA6: 10.4 | AB6: 12.5 | AC6: 11 | AD6: 11.3 | AE6: 13 | AF6: 11.4 | AG6: 11.3 | AH6: 13.3 | AI6: 12.7 | AJ6: 13.1 | AK6: 12.1 | AL6: 12.3 | AM6: 11.4 | AN6: 11.1 | AO6: 11 | AP6: 11.3 | AQ6: 11.4 | AR6: 9.8 | AS6: 10.7 | AT6: 10.4 | AU6: 9.3 | AV6: 9.8 | AW6: 10.5 | AX6: 10.7 | AY6: 9.9 | AZ6: 10 | BA6: 10.7 | BB6: 9.8 | BC6: 9.7 | BD6: 9.3 | BE6: 10.2 | BF6: 9.9 | BG6: 10 | BH6: 9.6 | BI6: 8.4 | BJ6: 9.7 | BK6: 8.8 | BL6: 8.5 | BM6: 9.5 | BN6: 8.1 | BO6: 8.5 | BP6: 8.8 | BQ6: 8.2 | BR6: 9.2 | BS6: 7.4 | BT6: 6.9 | BU6: 8.3 | BV6: 6.8 | BW6: 7.7 | BX6: 8.5 | BY6: 7.6 | BZ6: 8.3 | CA6: 6.4 | CB6: 7.6 | CC6: 6.3 | CD6: 7.2 | CE6: 7.3 | CF6: 7.1 | CG6: 7.9 | CH6: 7 | CI6: 7.2 | CJ6: 7 | CK6: 7.6 | CL6: 7.1 | CM6: 7 | CN6: 7.1 | CO6: 6.6 | CP6: 6.6 | CQ6: 6.9 | CR6: 6.6 | CS6: 6 | CT6: 5
B7: Jour 6 | C7: 4.5 | D7: 4.7 | E7: 6.4 | F7: 6.3 | G7: 6.4 | H7: 5.9 | I7: 6.3 | J7: 6 | K7: 5.7 | L7: 5.5 | M7: 7.1 | N7: 8.2 | O7: 6.5 | P7: 6.9 | Q7: 8 | R7: 9.1 | S7: 9.6 | T7: 8.2 | U7: 9 | V7: 10.7 | W7: 9.4 | X7: 11.5 | Y7: 11.1 | Z7: 11.3 | AA7: 10.8 | AB7: 12.2 | AC7: 11.7 | AD7: 11.9 | AE7: 11.2 | AF7: 12.1 | AG7: 11.3 | AH7: 11.5 | AI7: 13.1 | AJ7: 13 | AK7: 11.1 | AL7: 11.9 | AM7: 12.4 | AN7: 10.9 | AO7: 11.3 | AP7: 11.4 | AQ7: 11.3 | AR7: 11.6 | AS7: 10.9 | AT7: 10.4 | AU7: 10.8 | AV7: 10.1 | AW7: 10.8 | AX7: 10.7 | AY7: 9.8 | AZ7: 9.2 | BA7: 9.7 | BB7: 10.1 | BC7: 10.6 | BD7: 10.2 | BE7: 9.5 | BF7: 10.4 | BG7: 9.1 | BH7: 9.5 | BI7: 9.4 | BJ7: 8.2 | BK7: 9.3 | BL7: 9.2 | BM7: 7.7 | BN7: 9 | BO7: 8.3 | BP7: 8.7 | BQ7: 8.4 | BR7: 7.9 | BS7: 8.9 | BT7: 8.7 | BU7: 7 | BV7: 8.8 | BW7: 6.9 | BX7: 7.7 | BY7: 8.3 | BZ7: 6.4 | CA7: 8.2 | CB7: 6.6 | CC7: 7.1 | CD7: 8.1 | CE7: 6.1 | CF7: 6.8 | CG7: 7.7 | CH7: 6 | CI7: 7.4 | CJ7: 7.5 | CK7: 5.7 | CL7: 6.4 | CM7: 5.7 | CN7: 5.9 | CO7: 7.3 | CP7: 5.7 | CQ7: 6.5 | CR7: 7 | CS7: 5.5 | CT7: 5.8
B8: Jour 7 | C8: 5.9 | D8: 5.2 | E8: 5.5 | F8: 6.1 | G8: 5.4 | H8: 5.6 | I8: 5.3 | J8: 6.7 | K8: 6.9 | L8: 6.9 | M8: 7.4 | N8: 7.1 | O8: 8.1 | P8: 7.1 | Q8: 7.9 | R8: 9.4 | S8: 8.9 | T8: 10 | U8: 9.9 | V8: 8.9 | W8: 9.7 | X8: 11.2 | Y8: 9.8 | Z8: 11 | AA8: 12.2 | AB8: 11.3 | AC8: 11.7 | AD8: 12 | AE8: 11.8 | AF8: 12.4 | AG8: 12 | AH8: 13.2 | AI8: 11.8 | AJ8: 12.7 | AK8: 12.6 | AL8: 12.9 | AM8: 12.4 | AN8: 12.4 | AO8: 10.9 | AP8: 12 | AQ8: 10.7 | AR8: 11.6 | AS8: 10.3 | AT8: 9.8 | AU8: 11.3 | AV8: 9.4 | AW8: 10.6 | AX8: 9.3 | AY8: 10.4 | AZ8: 9.5 | BA8: 9.9 | BB8: 10 | BC8: 8.6 | BD8: 8.7 | BE8: 9.7 | BF8: 9.2 | BG8: 9.4 | BH8: 10.1 | BI8: 8.8 | BJ8: 8.3 | BK8: 8.8 | BL8: 9.6 | BM8: 7.8 | BN8: 8.6 | BO8: 8.6 | BP8: 8 | BQ8: 7.8 | BR8: 8.5 | BS8: 8.3 | BT8: 8.8 | BU8: 8.5 | BV8: 7.1 | BW8: 7.5 | BX8: 8.2 | BY8: 7.9 | BZ8: 8 | CA8: 6.8 | CB8: 8.2 | CC8: 7.7 | CD8: 6.6 | CE8: 7.5 | CF8: 6.1 | CG8: 6.7 | CH8: 7.7 | CI8: 6.8 | CJ8: 5.9 | CK8: 6.3 | CL8: 7 | CM8: 5.8 | CN8: 6 | CO8: 5.8 | CP8: 6.7 | CQ8: 6.4 | CR8: 7.1 | CS8: 6.3 | CT8: 6.1
B9: Jour 8 | C9: 4 | D9: 5.6 | E9: 5.7 | F9: 5.1 | G9: 6.3 | H9: 5.6 | I9: 6 | J9: 5.7 | K9: 5.6 | L9: 6.5 | M9: 6.4 | N9: 6.8 | O9: 7.5 | P9: 8.5 | Q9: 7.5 | R9: 9 | S9: 9 | T9: 9.4 | U9: 10.4 | V9: 9.5 | W9: 9.2 | X9: 11.1 | Y9: 11.1 | Z9: 10 | AA9: 12 | AB9: 11.2 | AC9: 11.9 | AD9: 13.2 | AE9: 12.5 | AF9: 12.9 | AG9: 11.9 | AH9: 12.6 | AI9: 11.9 | AJ9: 13.1 | AK9: 11.2 | AL9: 12.3 | AM9: 11.7 | AN9: 10.8 | AO9: 11.6 | AP9: 11.9 | AQ9: 11.1 | AR9: 11.6 | AS9: 11.3 | AT9: 9.8 | AU9: 11.1 | AV9: 9.8 | AW9: 10.6 | AX9: 10.1 | AY9: 10 | AZ9: 9.9 | BA9: 9.8 | BB9: 9.4 | BC9: 9.8 | BD9: 8.6 | BE9: 8.8 | BF9: 8.4 | BG9: 10.4 | BH9: 8.4 | BI9: 10 | BJ9: 9 | BK9: 9 | BL9: 8.5 | BM9: 8.7 | BN9: 8.7 | BO9: 7.6 | BP9: 7.8 | BQ9: 7.7 | BR9: 8.7 | BS9: 7.5 | BT9: 7.6 | BU9: 7.1 | BV9: 7.8 | BW9: 8.3 | BX9: 6.6 | BY9: 7.4 | BZ9: 6.9 | CA9: 7.6 | CB9: 6.7 | CC9: 7.2 | CD9: 7.4 | CE9: 6.9 | CF9: 7.7 | CG9: 6.1 | CH9: 6.7 | CI9: 5.9 | CJ9: 7.1 | CK9: 6.6 | CL9: 5.8 | CM9: 7 | CN9: 6.1 | CO9: 5.8 | CP9: 5.9 | CQ9: 6.5 | CR9: 6.5 | CS9: 5.1 | CT9: 5.9
B10: Jour 9 | C10: 5.3 | D10: 5.5 | E10: 5.2 | F10: 6.4 | G10: 6.3 | H10: 6.4 | I10: 5.2 | J10: 7.2 | K10: 6.4 | L10: 6.2 | M10: 7.1 | N10: 7.2 | O10: 7.8 | P10: 8.5 | Q10: 7.4 | R10: 9 | S10: 8.5 | T10: 9.8 | U10: 8.4 | V10: 10.4 | W10: 10.1 | X10: 10.7 | Y10: 11.6 | Z10: 11.9 | AA10: 12 | AB10: 10.7 | AC10: 12.9 | AD10: 12.4 | AE10: 12.7 | AF10: 12 | AG10: 12.7 | AH10: 11.9 | AI10: 13.1 | AJ10: 11.4 | AK10: 12.8 | AL10: 10.9 | AM10: 11.4 | AN10: 11.9 | AO10: 11.4 | AP10: 11.1 | AQ10: 11.3 | AR10: 11.6 | AS10: 10.7 | AT10: 9.9 | AU10: 9.4 | AV10: 11 | AW10: 10.7 | AX10: 9.9 | AY10: 8.8 | AZ10: 10.3 | BA10: 10.6 | BB10: 10.4 | BC10: 10.3 | BD10: 8.6 | BE10: 10.5 | BF10: 8.5 | BG10: 10.1 | BH10: 9.6 | BI10: 10.2 | BJ10: 9.6 | BK10: 8.5 | BL10: 7.9 | BM10: 8.8 | BN10: 9.4 | BO10: 8.5 | BP10: 8.6 | BQ10: 8.1 | BR10: 8.8 | BS10: 8.4 | BT10: 7.8 | BU10: 7.8 | BV10: 6.8 | BW10: 7.9 | BX10: 6.8 | BY10: 7.6 | BZ10: 7.3 | CA10: 6.5 | CB10: 7 | CC10: 6.4 | CD10: 7.6 | CE10: 6.3 | CF10: 8 | CG10: 7 | CH10: 7.7 | CI10: 6.1 | CJ10: 6.6 | CK10: 6.5 | CL10: 7.2 | CM10: 5.9 | CN10: 6.5 | CO10: 6.9 | CP10: 5.8 | CQ10: 6.7 | CR10: 6.6 | CS10: 6.8 | CT10: 5
B11: Jour 10 | C11: 5.1 | D11: 5.9 | E11: 4.6 | F11: 5.7 | G11: 6.6 | H11: 5.6 | I11: 5.2 | J11: 6 | K11: 6.9 | L11: 7 | M11: 7.5 | N11: 6.9 | O11: 8.3 | P11: 7.1 | Q11: 8.9 | R11: 7.6 | S11: 7.7 | T11: 8.8 | U11: 8.8 | V11: 10.5 | W11: 9.8 | X11: 11.1 | Y11: 11.1 | Z11: 10.5 | AA11: 10.9 | AB11: 11.1 | AC11: 12.6 | AD11: 13.2 | AE11: 12.4 | AF11: 11.7 | AG11: 12 | AH11: 12.9 | AI11: 12.1 | AJ11: 12.1 | AK11: 12.3 | AL11: 11 | AM11: 11.8 | AN11: 12.7 | AO11: 11.6 | AP11: 11.6 | AQ11: 11.7 | AR11: 10.6 | AS11: 10.7 | AT11: 9.8 | AU11: 9.9 | AV11: 10.6 | AW11: 9.7 | AX11: 9.4 | AY11: 10 | AZ11: 10.1 | BA11: 9.5 | BB11: 8.7 | BC11: 8.6 | BD11: 8.7 | BE11: 9.6 | BF11: 9 | BG11: 9.6 | BH11: 9.1 | BI11: 10.1 | BJ11: 8.8 | BK11: 8.6 | BL11: 9.3 | BM11: 7.7 | BN11: 7.9 | BO11: 8.3 | BP11: 8.9 | BQ11: 7.7 | BR11: 8.5 | BS11: 7.4 | BT11: 7.9 | BU11: 7.4 | BV11: 7.6 | BW11: 7.3 | BX11: 7.4 | BY11: 6.8 | BZ11: 6.5 | CA11: 7.1 | CB11: 6.6 | CC11: 6.3 | CD11: 7.1 | CE11: 6.1 | CF11: 8 | CG11: 7.6 | CH11: 7.5 | CI11: 7.1 | CJ11: 6.2 | CK11: 6.4 | CL11: 6.4 | CM11: 5.6 | CN11: 6.5 | CO11: 6.8 | CP11: 5.6 | CQ11: 6.8 | CR11: 5.1 | CS11: 5 | CT11: 5.9
B12: Jour 11 | C12: 5.3 | D12: 5.9 | E12: 6 | F12: 5.4 | G12: 6.3 | H12: 5.4 | I12: 5.6 | J12: 5.5 | K12: 6.8 | L12: 7.1 | M12: 6.9 | N12: 6.5 | O12: 6.5 | P12: 8.5 | Q12: 7.5 | R12: 8.9 | S12: 9.6 | T12: 8.6 | U12: 10.1 | V12: 9.2 | W12: 9.3 | X12: 10.5 | Y12: 11.4 | Z12: 10.6 | AA12: 11.9 | AB12: 11.9 | AC12: 11.7 | AD12: 12.3 | AE12: 12.2 | AF12: 12.7 | AG12: 12.7 | AH12: 12.4 | AI12: 13 | AJ12: 12.4 | AK12: 13 | AL12: 11.4 | AM12: 11.5 | AN12: 11.2 | AO12: 10.5 | AP12: 10.7 | AQ12: 11.5 | AR12: 10.5 | AS12: 9.9 | AT12: 9.7 | AU12: 10.3 | AV12: 10.2 | AW12: 10.5 | AX12: 9.5 | AY12: 8.8 | AZ12: 9.2 | BA12: 9.4 | BB12: 10.4 | BC12: 9.9 | BD12: 9.1 | BE12: 8.8 | BF12: 9.3 | BG12: 8.6 | BH12: 8.7 | BI12: 9.7 | BJ12: 9.7 | BK12: 9.3 | BL12: 9.1 | BM12: 9.4 | BN12: 9.1 | BO12: 9.1 | BP12: 7.7 | BQ12: 8.9 | BR12: 7.4 | BS12: 9.1 | BT12: 7.9 | BU12: 7.1 | BV12: 7.1 | BW12: 8.1 | BX12: 6.6 | BY12: 7.8 | BZ12: 8.3 | CA12: 7.1 | CB12: 7.5 | CC12: 7.2 | CD12: 7.4 | CE12: 6.5 | CF12: 6.3 | CG12: 6.3 | CH12: 6.1 | CI12: 6.6 | CJ12: 6.1 | CK12: 6.3 | CL12: 6.7 | CM12: 6.5 | CN12: 7.4 | CO12: 6.6 | CP12: 5.4 | CQ12: 5.8 | CR12: 7.1 | CS12: 6.3 | CT12: 5.5
B13: Jour 12 | C13: 5.2 | D13: 5.8 | E13: 6.4 | F13: 6.7 | G13: 6.5 | H13: 6.2 | I13: 6.8 | J13: 6.5 | K13: 7.3 | L13: 7.2 | M13: 6 | N13: 6.3 | O13: 6.7 | P13: 8.3 | Q13: 8.7 | R13: 9 | S13: 8.6 | T13: 9.5 | U13: 9.3 | V13: 8.8 | W13: 9.5 | X13: 9.7 | Y13: 11.5 | Z13: 11.5 | AA13: 11.8 | AB13: 10.7 | AC13: 12 | AD13: 12.9 | AE13: 12.3 | AF13: 11.7 | AG13: 11.7 | AH13: 13.1 | AI13: 12.3 | AJ13: 12.5 | AK13: 11.5 | AL13: 11.1 | AM13: 10.9 | AN13: 11.7 | AO13: 12.4 | AP13: 11 | AQ13: 10.6 | AR13: 10 | AS13: 10.9 | AT13: 10.5 | AU13: 9.5 | AV13: 9.8 | AW13: 9.6 | AX13: 10 | AY13: 9.1 | AZ13: 10.6 | BA13: 10.2 | BB13: 10 | BC13: 9.5 | BD13: 9.5 | BE13: 10.2 | BF13: 9.3 | BG13: 8.9 | BH13: 8.9 | BI13: 8.8 | BJ13: 8.7 | BK13: 8.9 | BL13: 8.8 | BM13: 9.3 | BN13: 9.3 | BO13: 8.9 | BP13: 7.4 | BQ13: 8.1 | BR13: 7.5 | BS13: 7.4 | BT13: 8 | BU13: 8.1 | BV13: 8.4 | BW13: 6.9 | BX13: 8.1 | BY13: 8.2 | BZ13: 7.6 | CA13: 6.4 | CB13: 8.1 | CC13: 6.6 | CD13: 7.2 | CE13: 6.1 | CF13: 7.1 | CG13: 7.5 | CH13: 6.1 | CI13: 5.9 | CJ13: 6.4 | CK13: 5.6 | CL13: 6.3 | CM13: 6.2 | CN13: 7.1 | CO13: 5.4 | CP13: 5.4 | CQ13: 5.8 | CR13: 5.8 | CS13: 5.2 | CT13: 6.2
B14: Jour 13 | C14: 4.1 | D14: 4.5 | E14: 6.4 | F14: 5.3 | G14: 6.8 | H14: 5.7 | I14: 6.8 | J14: 6.6 | K14: 6.3 | L14: 6.8 | M14: 6 | N14: 7.9 | O14: 6.9 | P14: 7.1 | Q14: 7.9 | R14: 8.9 | S14: 9.7 | T14: 9.3 | U14: 10.1 | V14: 10 | W14: 11.1 | X14: 10.3 | Y14: 10 | Z14: 10.9 | AA14: 11.2 | AB14: 12.2 | AC14: 12.8 | AD14: 12.6 | AE14: 13.2 | AF14: 11.5 | AG14: 11.8 | AH14: 12.7 | AI14: 11.3 | AJ14: 12 | AK14: 11.6 | AL14: 12.1 | AM14: 10.9 | AN14: 12.7 | AO14: 11.6 | AP14: 10.9 | AQ14: 10.4 | AR14: 10.6 | AS14: 10.1 | AT14: 11.4 | AU14: 9.5 | AV14: 9.8 | AW14: 9.2 | AX14: 10.8 | AY14: 10.8 | AZ14: 10.8 | BA14: 9.7 | BB14: 10.7 | BC14: 9.7 | BD14: 8.6 | BE14: 9.9 | BF14: 10 | BG14: 10.4 | BH14: 10.2 | BI14: 8.5 | BJ14: 9.2 | BK14: 8.6 | BL14: 8.9 | BM14: 9.4 | BN14: 9.4 | BO14: 7.9 | BP14: 9 | BQ14: 7.4 | BR14: 9.1 | BS14: 7.6 | BT14: 8.9 | BU14: 7.2 | BV14: 8.8 | BW14: 8 | BX14: 6.7 | BY14: 8.4 | BZ14: 7.5 | CA14: 7.9 | CB14: 7.1 | CC14: 7.6 | CD14: 7 | CE14: 7 | CF14: 7.3 | CG14: 7.3 | CH14: 7.3 | CI14: 6.2 | CJ14: 6.9 | CK14: 6.5 | CL14: 7 | CM14: 7 | CN14: 5.5 | CO14: 6.3 | CP14: 5.6 | CQ14: 6 | CR14: 6 | CS14: 5.7 | CT14: 5.6
B15: Jour 14 | C15: 5.1 | D15: 6.5 | E15: 5 | F15: 5.6 | G15: 5 | H15: 6.5 | I15: 6.5 | J15: 7.1 | K15: 6 | L15: 5.6 | M15: 7.4 | N15: 6.9 | O15: 8.5 | P15: 6.8 | Q15: 8.6 | R15: 8.8 | S15: 8.2 | T15: 8.4 | U15: 9.7 | V15: 9.2 | W15: 9.8 | X15: 10.3 | Y15: 11.1 | Z15: 10.4 | AA15: 11.1 | AB15: 10.7 | AC15: 11.5 | AD15: 11.3 | AE15: 11.9 | AF15: 13.2 | AG15: 11.9 | AH15: 12.4 | AI15: 12.2 | AJ15: 12.5 | AK15: 11.3 | AL15: 12.6 | AM15: 11.6 | AN15: 12.1 | AO15: 10.8 | AP15: 10.6 | AQ15: 11.8 | AR15: 11.6 | AS15: 10.3 | AT15: 10.7 | AU15: 9.3 | AV15: 11.1 | AW15: 10.4 | AX15: 10.4 | AY15: 10.3 | AZ15: 10.4 | BA15: 9.8 | BB15: 10.6 | BC15: 9.2 | BD15: 9.2 | BE15: 8.5 | BF15: 10.4 | BG15: 9 | BH15: 9.1 | BI15: 10 | BJ15: 8.2 | BK15: 9.7 | BL15: 9 | BM15: 8 | BN15: 9.2 | BO15: 9.3 | BP15: 9.4 | BQ15: 9.2 | BR15: 8.5 | BS15: 8.7 | BT15: 7.4 | BU15: 8.3 | BV15: 6.9 | BW15: 6.8 | BX15: 7.8 | BY15: 7.9 | BZ15: 6.4 | CA15: 8.3 | CB15: 6.9 | CC15: 6.5 | CD15: 7.3 | CE15: 6.4 | CF15: 6.8 | CG15: 7.3 | CH15: 6.5 | CI15: 7.6 | CJ15: 7.6 | CK15: 6.9 | CL15: 7.2 | CM15: 6.8 | CN15: 6.3 | CO15: 6.9 | CP15: 6 | CQ15: 5.8 | CR15: 7.1 | CS15: 6.1 | CT15: 5.6
B16: Jour 15 | C16: 5.5 | D16: 5.8 | E16: 4.9 | F16: 5.8 | G16: 6.5 | H16: 5.8 | I16: 6.7 | J16: 5.9 | K16: 7.4 | L16: 6.2 | M16: 7.8 | N16: 7 | O16: 7.5 | P16: 7.3 | Q16: 8.2 | R16: 8.6 | S16: 8.7 | T16: 9.9 | U16: 9.9 | V16: 9.2 | W16: 9.2 | X16: 10 | Y16: 11.3 | Z16: 10.4 | AA16: 10.3 | AB16: 12.4 | AC16: 11.1 | AD16: 12.7 | AE16: 11.6 | AF16: 12.7 | AG16: 12.6 | AH16: 12.4 | AI16: 12.6 | AJ16: 13.1 | AK16: 11.2 | AL16: 12.5 | AM16: 10.8 | AN16: 10.9 | AO16: 12.2 | AP16: 11.7 | AQ16: 10.6 | AR16: 10.7 | AS16: 9.6 | AT16: 10.2 | AU16: 10.3 | AV16: 10.2 | AW16: 11 | AX16: 9.8 | AY16: 8.8 | AZ16: 10.7 | BA16: 10.1 | BB16: 10.7 | BC16: 9.7 | BD16: 9.5 | BE16: 9.8 | BF16: 9.1 | BG16: 10.1 | BH16: 9.2 | BI16: 8.9 | BJ16: 8.6 | BK16: 8.5 | BL16: 9.7 | BM16: 8.2 | BN16: 8.8 | BO16: 8 | BP16: 7.9 | BQ16: 7.8 | BR16: 8 | BS16: 7.9 | BT16: 6.9 | BU16: 6.9 | BV16: 8.3 | BW16: 8.7 | BX16: 8.4 | BY16: 7.4 | BZ16: 6.7 | CA16: 7 | CB16: 8 | CC16: 7.9 | CD16: 7.3 | CE16: 6.1 | CF16: 7.9 | CG16: 7.9 | CH16: 7.3 | CI16: 7.6 | CJ16: 6.2 | CK16: 7.5 | CL16: 6.5 | CM16: 6.4 | CN16: 6.1 | CO16: 5.8 | CP16: 6.8 | CQ16: 5.8 | CR16: 5.8 | CS16: 5.1 | CT16: 6.4
B17: Jour 16 | C17: 4.6 | D17: 5.7 | E17: 5.6 | F17: 6 | G17: 5.4 | H17: 5.9 | I17: 6.3 | J17: 7.5 | K17: 7 | L17: 6.8 | M17: 6.7 | N17: 8.2 | O17: 8 | P17: 7.6 | Q17: 7.9 | R17: 8.5 | S17: 7.7 | T17: 9.1 | U17: 9.7 | V17: 9.5 | W17: 9.6 | X17: 11 | Y17: 10.9 | Z17: 11 | AA17: 11.2 | AB17: 11.3 | AC17: 11.6 | AD17: 11.2 | AE17: 13.1 | AF17: 12.1 | AG17: 13.3 | AH17: 11.4 | AI17: 11.4 | AJ17: 12.3 | AK17: 13 | AL17: 11.9 | AM17: 12.7 | AN17: 11.6 | AO17: 10.5 | AP17: 10.5 | AQ17: 10.8 | AR17: 11.7 | AS17: 10.4 | AT17: 10.9 | AU17: 11 | AV17: 9.4 | AW17: 9.4 | AX17: 10.1 | AY17: 8.8 | AZ17: 9.6 | BA17: 9.8 | BB17: 8.9 | BC17: 8.7 | BD17: 10.1 | BE17: 10 | BF17: 8.7 | BG17: 8.4 | BH17: 9.8 | BI17: 9.3 | BJ17: 9.9 | BK17: 8.8 | BL17: 8.5 | BM17: 7.7 | BN17: 9.5 | BO17: 8.6 | BP17: 7.5 | BQ17: 8.6 | BR17: 8.9 | BS17: 7.8 | BT17: 8.2 | BU17: 7.9 | BV17: 8 | BW17: 7.7 | BX17: 7.2 | BY17: 7.5 | BZ17: 8.3 | CA17: 6.6 | CB17: 6.5 | CC17: 6.7 | CD17: 6.7 | CE17: 6.8 | CF17: 6 | CG17: 7.8 | CH17: 7.1 | CI17: 5.9 | CJ17: 6.3 | CK17: 6.5 | CL17: 5.9 | CM17: 6.6 | CN17: 5.7 | CO17: 6.5 | CP17: 7.2 | CQ17: 5.5 | CR17: 6.2 | CS17: 5 | CT17: 5.4
B18: Jour 17 | C18: 4.8 | D18: 4.7 | E18: 5.4 | F18: 5.5 | G18: 5.3 | H18: 6.4 | I18: 6.3 | J18: 7.2 | K18: 5.9 | L18: 6.8 | M18: 6.9 | N18: 6.3 | O18: 7.1 | P18: 7.3 | Q18: 8.6 | R18: 7.5 | S18: 8.5 | T18: 8.1 | U18: 9.8 | V18: 10.2 | W18: 9.4 | X18: 10.9 | Y18: 10.8 | Z18: 11.8 | AA18: 12.3 | AB18: 12.7 | AC18: 12.7 | AD18: 12.1 | AE18: 11.9 | AF18: 11.4 | AG18: 11.3 | AH18: 12.5 | AI18: 11.4 | AJ18: 11.8 | AK18: 11.8 | AL18: 12.2 | AM18: 12.8 | AN18: 11.6 | AO18: 11.3 | AP18: 10.7 | AQ18: 10 | AR18: 11.5 | AS18: 10.5 | AT18: 11 | AU18: 10.5 | AV18: 10.5 | AW18: 10.8 | AX18: 10.7 | AY18: 10.5 | AZ18: 10.7 | BA18: 9.6 | BB18: 9.6 | BC18: 10 | BD18: 10.3 | BE18: 10 | BF18: 9.4 | BG18: 9.2 | BH18: 10.1 | BI18: 8.4 | BJ18: 9.7 | BK18: 8.9 | BL18: 8.5 | BM18: 9 | BN18: 9.2 | BO18: 8.6 | BP18: 7.4 | BQ18: 7.3 | BR18: 7.8 | BS18: 7.9 | BT18: 7.1 | BU18: 7.4 | BV18: 8.6 | BW18: 8.4 | BX18: 8 | BY18: 7 | BZ18: 6.5 | CA18: 8 | CB18: 7.7 | CC18: 7.5 | CD18: 6.8 | CE18: 7.4 | CF18: 7.2 | CG18: 7.8 | CH18: 5.9 | CI18: 5.9 | CJ18: 7.1 | CK18: 6.4 | CL18: 7.2 | CM18: 6 | CN18: 5.7 | CO18: 6.3 | CP18: 6.3 | CQ18: 6.9 | CR18: 6 | CS18: 5.5 | CT18: 5.7
B19: Jour 18 | C19: 4.9 | D19: 6.5 | E19: 4.5 | F19: 6.6 | G19: 6.7 | H19: 5.4 | I19: 5.4 | J19: 7.2 | K19: 6 | L19: 6.3 | M19: 6.1 | N19: 7 | O19: 7 | P19: 8.6 | Q19: 8.8 | R19: 8.3 | S19: 9.4 | T19: 8.8 | U19: 10.1 | V19: 9.2 | W19: 10.3 | X19: 10.3 | Y19: 11.4 | Z19: 10.9 | AA19: 11.8 | AB19: 11.3 | AC19: 11.3 | AD19: 11.4 | AE19: 12.3 | AF19: 12.7 | AG19: 13.1 | AH19: 13.3 | AI19: 12.8 | AJ19: 11.4 | AK19: 11.5 | AL19: 12.7 | AM19: 11.3 | AN19: 12.7 | AO19: 12.3 | AP19: 12 | AQ19: 10.7 | AR19: 9.9 | AS19: 10.7 | AT19: 11.1 | AU19: 10 | AV19: 10.4 | AW19: 10.2 | AX19: 9.3 | AY19: 10.3 | AZ19: 9.6 | BA19: 9.8 | BB19: 8.8 | BC19: 9.1 | BD19: 9.1 | BE19: 9.6 | BF19: 9.5 | BG19: 10.3 | BH19: 9.7 | BI19: 10.3 | BJ19: 8.5 | BK19: 8.8 | BL19: 7.8 | BM19: 9.1 | BN19: 8.6 | BO19: 8.5 | BP19: 9.2 | BQ19: 9 | BR19: 8.6 | BS19: 7.4 | BT19: 6.9 | BU19: 7.2 | BV19: 7.9 | BW19: 8.4 | BX19: 7.3 | BY19: 7 | BZ19: 7.2 | CA19: 8.3 | CB19: 7.9 | CC19: 7.5 | CD19: 7.3 | CE19: 7 | CF19: 7.8 | CG19: 6.1 | CH19: 6.1 | CI19: 6.2 | CJ19: 5.9 | CK19: 6.4 | CL19: 5.7 | CM19: 7.5 | CN19: 7.3 | CO19: 5.5 | CP19: 5.4 | CQ19: 6 | CR19: 6 | CS19: 6.9 | CT19: 4.9
B20: Jour 19 | C20: 4.4 | D20: 6.1 | E20: 5.7 | F20: 6.3 | G20: 6.1 | H20: 6.3 | I20: 7.2 | J20: 6.8 | K20: 5.9 | L20: 6.8 | M20: 7.1 | N20: 6.5 | O20: 8.5 | P20: 8.1 | Q20: 8.9 | R20: 9 | S20: 9 | T20: 9 | U20: 9.4 | V20: 9.4 | W20: 11.2 | X20: 9.7 | Y20: 9.9 | Z20: 11.4 | AA20: 10.6 | AB20: 11.9 | AC20: 12.3 | AD20: 11.9 | AE20: 12.5 | AF20: 11.8 | AG20: 12.3 | AH20: 11.8 | AI20: 11.4 | AJ20: 12.4 | AK20: 12.5 | AL20: 11.8 | AM20: 11 | AN20: 10.8 | AO20: 11.5 | AP20: 10.4 | AQ20: 10.4 | AR20: 10.8 | AS20: 10.7 | AT20: 10.4 | AU20: 9.9 | AV20: 10.1 | AW20: 9.4 | AX20: 11 | AY20: 10.8 | AZ20: 10.7 | BA20: 9.8 | BB20: 10.5 | BC20: 10.1 | BD20: 10.1 | BE20: 9 | BF20: 10 | BG20: 10.3 | BH20: 8.3 | BI20: 9.9 | BJ20: 8.4 | BK20: 9.4 | BL20: 9.5 | BM20: 9.4 | BN20: 8.6 | BO20: 8 | BP20: 9.3 | BQ20: 8.2 | BR20: 8.1 | BS20: 7.2 | BT20: 7 | BU20: 7.2 | BV20: 7.9 | BW20: 8.1 | BX20: 7.6 | BY20: 6.7 | BZ20: 8 | CA20: 7.7 | CB20: 6.3 | CC20: 6.3 | CD20: 7.3 | CE20: 6.4 | CF20: 7.7 | CG20: 6.6 | CH20: 6.5 | CI20: 6.9 | CJ20: 6.5 | CK20: 5.6 | CL20: 6.5 | CM20: 6.8 | CN20: 5.5 | CO20: 7.3 | CP20: 7.1 | CQ20: 6 | CR20: 6.5 | CS20: 5.4 | CT20: 5.1
B21: Jour 20 | C21: 4.4 | D21: 5.8 | E21: 5.9 | F21: 6.7 | G21: 5 | H21: 6.4 | I21: 5.9 | J21: 5.6 | K21: 7.3 | L21: 5.9 | M21: 6.1 | N21: 7 | O21: 6.8 | P21: 6.8 | Q21: 7.4 | R21: 7.9 | S21: 9.7 | T21: 8.2 | U21: 8.6 | V21: 9.1 | W21: 9.5 | X21: 10.2 | Y21: 11.7 | Z21: 10.7 | AA21: 11.1 | AB21: 12.6 | AC21: 11.5 | AD21: 12 | AE21: 12.6 | AF21: 13.3 | AG21: 12.2 | AH21: 13.3 | AI21: 11.4 | AJ21: 12.7 | AK21: 12.7 | AL21: 11.3 | AM21: 11.5 | AN21: 11.6 | AO21: 11.2 | AP21: 10.4 | AQ21: 11.4 | AR21: 10.4 | AS21: 10.9 | AT21: 10.9 | AU21: 9.8 | AV21: 9.9 | AW21: 10.9 | AX21: 9.9 | AY21: 10.2 | AZ21: 9.5 | BA21: 9.3 | BB21: 10.5 | BC21: 9.7 | BD21: 8.5 | BE21: 9.9 | BF21: 8.9 | BG21: 10.3 | BH21: 8.6 | BI21: 8.4 | BJ21: 8.7 | BK21: 9.9 | BL21: 9.4 | BM21: 7.8 | BN21: 7.7 | BO21: 7.5 | BP21: 9.2 | BQ21: 9.2 | BR21: 7.2 | BS21: 9.1 | BT21: 6.9 | BU21: 7.4 | BV21: 7.2 | BW21: 8 | BX21: 6.6 | BY21: 7.1 | BZ21: 7.6 | CA21: 7.6 | CB21: 7.4 | CC21: 6.7 | CD21: 7.1 | CE21: 8 | CF21: 6.6 | CG21: 7.5 | CH21: 6.6 | CI21: 6.1 | CJ21: 6.1 | CK21: 6.1 | CL21: 5.9 | CM21: 6 | CN21: 7 | CO21: 5.6 | CP21: 6 | CQ21: 5.8 | CR21: 6.7 | CS21: 5.1 | CT21: 5.9
B22: Jour 21 | C22: 5.5 | D22: 5.2 | E22: 5 | F22: 5.4 | G22: 6.5 | H22: 5.7 | I22: 6 | J22: 6.1 | K22: 6.8 | L22: 7.2 | M22: 6.3 | N22: 6.3 | O22: 8.2 | P22: 7.2 | Q22: 7.4 | R22: 8.4 | S22: 9.5 | T22: 9.8 | U22: 9 | V22: 9.5 | W22: 9.3 | X22: 10.6 | Y22: 9.8 | Z22: 11.3 | AA22: 11.1 | AB22: 11.4 | AC22: 12.7 | AD22: 13 | AE22: 12.6 | AF22: 12.4 | AG22: 12.1 | AH22: 12.3 | AI22: 11.6 | AJ22: 11.8 | AK22: 13.1 | AL22: 11.4 | AM22: 11.2 | AN22: 11.4 | AO22: 10.8 | AP22: 11.5 | AQ22: 10 | AR22: 10.6 | AS22: 10.4 | AT22: 9.5 | AU22: 10.8 | AV22: 9.3 | AW22: 10.2 | AX22: 10.9 | AY22: 10.6 | AZ22: 10.6 | BA22: 9.2 | BB22: 10.1 | BC22: 9.1 | BD22: 9 | BE22: 8.7 | BF22: 9.9 | BG22: 9.2 | BH22: 8.9 | BI22: 8.3 | BJ22: 9.7 | BK22: 9.1 | BL22: 7.8 | BM22: 7.9 | BN22: 7.7 | BO22: 7.9 | BP22: 9.2 | BQ22: 7.3 | BR22: 8.2 | BS22: 8.4 | BT22: 7.2 | BU22: 7.6 | BV22: 7.7 | BW22: 8.4 | BX22: 7.7 | BY22: 7.4 | BZ22: 7.5 | CA22: 6.9 | CB22: 7.1 | CC22: 6.5 | CD22: 6.8 | CE22: 6.1 | CF22: 7 | CG22: 7.4 | CH22: 7.6 | CI22: 7.7 | CJ22: 5.8 | CK22: 7 | CL22: 7.3 | CM22: 7.5 | CN22: 6.9 | CO22: 7.2 | CP22: 5.7 | CQ22: 5.4 | CR22: 6.2 | CS22: 5.6 | CT22: 6.6
B23: Mini | C23: =MIN(C2:CT22) -> 4
B24: Maxi | C24: =MAX(C2:CT22) -> 13.3

Sheet Ext2
B1: Ext 2 | C1: 6h | G1: 7h | K1: 8h | O1: 9h | S1: 10h | W1: 11h | AA1: 12h | AE1: 13h | AI1: 14h | AM1: 15h | AQ1: 16h | AU1: 17h | AY1: 18h | BC1: 19h | BG1: 20h | BK1: 21h | BO1: 22h | BS1: 23h | BW1: 24h | CA1: 1h | CE1: 2h | CI1: 3h | CM1: 4h | CQ1: 5h
B2: Jour 1 | C2: 4.78 | D2: 5.81 | E2: 5.43 | F2: 5.4 | G2: 5.39 | H2: 6.7 | I2: 6.84 | J2: 6.74 | K2: 6.37 | L2: 7.28 | M2: 6.55 | N2: 8.1 | O2: 7.89 | P2: 8.1 | Q2: 9.03 | R2: 8.24 | S2: 9.83 | T2: 8.36 | U2: 9.51 | V2: 10.74 | W2: 10.76 | X2: 11.76 | Y2: 11.58 | Z2: 10.62 | AA2: 11.8 | AB2: 10.91 | AC2: 11.87 | AD2: 13.47 | AE2: 13.11 | AF2: 12.66 | AG2: 13.4 | AH2: 12.84 | AI2: 11.97 | AJ2: 11.5 | AK2: 12.26 | AL2: 11.77 | AM2: 11.21 | AN2: 12.04 | AO2: 12.8 | AP2: 10.54 | AQ2: 11.48 | AR2: 11.96 | AS2: 10.92 | AT2: 10.29 | AU2: 10.44 | AV2: 10.2 | AW2: 10.65 | AX2: 10.42 | AY2: 10.2 | AZ2: 9.64 | BA2: 10.89 | BB2: 10.8 | BC2: 10.75 | BD2: 9.74 | BE2: 9.43 | BF2: 9.17 | BG2: 9.43 | BH2: 8.75 | BI2: 8.65 | BJ2: 10.17 | BK2: 9.26 | BL2: 8.89 | BM2: 8.58 | BN2: 7.99 | BO2: 8.02 | BP2: 8.1 | BQ2: 7.59 | BR2: 9.16 | BS2: 8.91 | BT2: 8.44 | BU2: 7.44 | BV2: 8.82 | BW2: 8.56 | BX2: 7.29 | BY2: 8.4 | BZ2: 7.29 | CA2: 8.77 | CB2: 7.11 | CC2: 6.66 | CD2: 7.43 | CE2: 6.9 | CF2: 7.03 | CG2: 8.06 | CH2: 8.05 | CI2: 6.37 | CJ2: 6.14 | CK2: 6.64 | CL2: 7.59 | CM2: 7.48 | CN2: 7.53 | CO2: 6.61 | CP2: 5.76 | CQ2: 7.12 | CR2: 6.91 | CS2: 5.93 | CT2: 7.14
B3: Jour 2 | C3: 5.68 | D3: 5.81 | E3: 5.83 | F3: 5.5 | G3: 5.19 | H3: 7.2 | I3: 6.54 | J3: 6.54 | K3: 7.77 | L3: 6.78 | M3: 7.25 | N3: 6.9 | O3: 8.09 | P3: 8.9 | Q3: 8.83 | R3: 8.24 | S3: 9.03 | T3: 8.96 | U3: 10.01 | V3: 9.04 | W3: 9.66 | X3: 9.86 | Y3: 10.58 | Z3: 12.32 | AA3: 12.2 | AB3: 11.41 | AC3: 13.17 | AD3: 12.87 | AE3: 13.11 | AF3: 12.36 | AG3: 12.2 | AH3: 12.34 | AI3: 11.57 | AJ3: 11.8 | AK3: 11.56 | AL3: 12.67 | AM3: 12.71 | AN3: 11.94 | AO3: 11.8 | AP3: 10.64 | AQ3: 11.58 | AR3: 10.06 | AS3: 11.92 | AT3: 11.19 | AU3: 11.54 | AV3: 10.5 | AW3: 10.75 | AX3: 11.22 | AY3: 9.8 | AZ3: 10.24 | BA3: 9.19 | BB3: 9.4 | BC3: 10.15 | BD3: 10.44 | BE3: 9.33 | BF3: 9.97 | BG3: 8.83 | BH3: 9.15 | BI3: 10.15 | BJ3: 9.07 | BK3: 8.76 | BL3: 8.29 | BM3: 9.58 | BN3: 8.29 | BO3: 8.32 | BP3: 8.5 | BQ3: 9.09 | BR3: 9.26 | BS3: 8.81 | BT3: 8.34 | BU3: 7.64 | BV3: 8.32 | BW3: 8.26 | BX3: 7.89 | BY3: 8 | BZ3: 7.39 | CA3: 6.77 | CB3: 6.71 | CC3: 8.26 | CD3: 7.53 | CE3: 7.8 | CF3: 7.93 | CG3: 7.96 | CH3: 6.65 | CI3: 6.47 | CJ3: 6.24 | CK3: 6.34 | CL3: 6.79 | CM3: 6.18 | CN3: 6.83 | CO3: 6.11 | CP3: 6.06 | CQ3: 6.52 | CR3: 5.61 | CS3: 6.53 | CT3: 6.94
B4: Jour 3 | C4: 4.78 | D4: 4.91 | E4: 5.53 | F4: 5.1 | G4: 5.19 | H4: 7.2 | I4: 5.54 | J4: 7.54 | K4: 6.37 | L4: 6.18 | M4: 6.45 | N4: 7.2 | O4: 7.69 | P4: 9 | Q4: 8.33 | R4: 8.74 | S4: 8.33 | T4: 10.26 | U4: 10.01 | V4: 10.74 | W4: 10.36 | X4: 10.76 | Y4: 11.98 | Z4: 12.02 | AA4: 12.3 | AB4: 12.41 | AC4: 13.37 | AD4: 13.27 | AE4: 12.41 | AF4: 12.46 | AG4: 12.8 | AH4: 12.24 | AI4: 13.47 | AJ4: 13.1 | AK4: 12.56 | AL4: 11.27 | AM4: 11.51 | AN4: 13.04 | AO4: 11.6 | AP4: 10.84 | AQ4: 11.88 | AR4: 10.56 | AS4: 10.72 | AT4: 10.89 | AU4: 10.34 | AV4: 11.5 | AW4: 9.65 | AX4: 10.12 | AY4: 9.1 | AZ4: 10.54 | BA4: 10.89 | BB4: 10.3 | BC4: 9.25 | BD4: 9.14 | BE4: 10.53 | BF4: 10.17 | BG4: 9.03 | BH4: 9.25 | BI4: 9.65 | BJ4: 10.27 | BK4: 9.46 | BL4: 8.89 | BM4: 8.58 | BN4: 9.49 | BO4: 8.02 | BP4: 8.9 | BQ4: 8.29 | BR4: 8.16 | BS4: 7.41 | BT4: 8.14 | BU4: 8.04 | BV4: 7.82 | BW4: 7.26 | BX4: 7.99 | BY4: 7.7 | BZ4: 8.29 | CA4: 7.07 | CB4: 7.71 | CC4: 6.76 | CD4: 7.43 | CE4: 6.7 | CF4: 6.93 | CG4: 7.96 | CH4: 6.75 | CI4: 7.57 | CJ4: 7.64 | CK4: 7.54 | CL4: 7.09 | CM4: 7.28 | CN4: 6.23 | CO4: 6.81 | CP4: 7.26 | CQ4: 7.42 | CR4: 5.61 | CS4: 6.83 | CT4: 5.64
B5: Jour 4 | C5: 4.88 | D5: 6.31 | E5: 5.23 | F5: 5 | G5: 6.49 | H5: 5.5 | I5: 5.94 | J5: 6.34 | K5: 6.67 | L5: 6.48 | M5: 7.55 | N5: 6.7 | O5: 7.69 | P5: 7.8 | Q5: 8.63 | R5: 7.94 | S5: 10.03 | T5: 8.46 | U5: 8.71 | V5: 10.04 | W5: 10.26 | X5: 10.26 | Y5: 11.68 | Z5: 11.32 | AA5: 11.7 | AB5: 11.31 | AC5: 11.87 | AD5: 12.97 | AE5: 12.81 | AF5: 12.16 | AG5: 11.6 | AH5: 12.94 | AI5: 12.27 | AJ5: 13 | AK5: 12.66 | AL5: 13.17 | AM5: 12.71 | AN5: 12.74 | AO5: 12.1 | AP5: 11.04 | AQ5: 11.78 | AR5: 11.46 | AS5: 10.32 | AT5: 9.89 | AU5: 11.44 | AV5: 10.3 | AW5: 10.35 | AX5: 9.82 | AY5: 9.9 | AZ5: 10.14 | BA5: 10.69 | BB5: 10.5 | BC5: 10.05 | BD5: 9.74 | BE5: 9.43 | BF5: 9.37 | BG5: 10.13 | BH5: 9.55 | BI5: 10.55 | BJ5: 10.37 | BK5: 8.36 | BL5: 9.39 | BM5: 9.88 | BN5: 9.19 | BO5: 8.92 | BP5: 9.2 | BQ5: 8.79 | BR5: 9.06 | BS5: 8.01 | BT5: 8.04 | BU5: 7.34 | BV5: 8.32 | BW5: 8.66 | BX5: 7.99 | BY5: 7.7 | BZ5: 7.59 | CA5: 8.37 | CB5: 6.81 | CC5: 6.46 | CD5: 7.33 | CE5: 7.7 | CF5: 6.23 | CG5: 6.36 | CH5: 7.35 | CI5: 7.77 | CJ5: 7.44 | CK5: 7.14 | CL5: 7.99 | CM5: 7.18 | CN5: 7.13 | CO5: 6.91 | CP5: 5.56 | CQ5: 5.52 | CR5: 6.41 | CS5: 6.23 | CT5: 7.24
B6: Jour 5 | C6: 6.28 | D6: 5.61 | E6: 4.83 | F6: 5.1 | G6: 6.09 | H6: 5.6 | I6: 6.54 | J6: 6.54 | K6: 7.27 | L6: 5.88 | M6: 8.35 | N6: 7.8 | O6: 8.49 | P6: 7.1 | Q6: 9.13 | R6: 8.94 | S6: 9.03 | T6: 8.26 | U6: 10.11 | V6: 9.14 | W6: 11.56 | X6: 10.26 | Y6: 10.78 | Z6: 11.52 | AA6: 10.7 | AB6: 12.71 | AC6: 11.37 | AD6: 11.57 | AE6: 13.31 | AF6: 11.66 | AG6: 11.5 | AH6: 13.64 | AI6: 13.07 | AJ6: 13.5 | AK6: 12.36 | AL6: 12.67 | AM6: 11.61 | AN6: 11.44 | AO6: 11.4 | AP6: 11.54 | AQ6: 11.78 | AR6: 10.16 | AS6: 11.02 | AT6: 10.69 | AU6: 9.64 | AV6: 10.1 | AW6: 10.75 | AX6: 10.92 | AY6: 10.2 | AZ6: 10.34 | BA6: 11.09 | BB6: 10.2 | BC6: 9.95 | BD6: 9.64 | BE6: 10.43 | BF6: 10.17 | BG6: 10.33 | BH6: 9.95 | BI6: 8.75 | BJ6: 9.97 | BK6: 9.16 | BL6: 8.89 | BM6: 9.88 | BN6: 8.39 | BO6: 8.82 | BP6: 9.1 | BQ6: 8.49 | BR6: 9.46 | BS6: 7.61 | BT6: 7.24 | BU6: 8.54 | BV6: 7.02 | BW6: 7.96 | BX6: 8.79 | BY6: 7.9 | BZ6: 8.69 | CA6: 6.77 | CB6: 7.81 | CC6: 6.56 | CD6: 7.43 | CE6: 7.5 | CF6: 7.33 | CG6: 8.16 | CH6: 7.25 | CI6: 7.57 | CJ6: 7.24 | CK6: 7.84 | CL6: 7.49 | CM6: 7.28 | CN6: 7.33 | CO6: 6.81 | CP6: 6.96 | CQ6: 7.22 | CR6: 6.81 | CS6: 6.33 | CT6: 5.34
B7: Jour 6 | C7: 4.78 | D7: 4.91 | E7: 6.63 | F7: 6.5 | G7: 6.79 | H7: 6.3 | I7: 6.64 | J7: 6.34 | K7: 6.07 | L7: 5.88 | M7: 7.45 | N7: 8.4 | O7: 6.79 | P7: 7.2 | Q7: 8.23 | R7: 9.44 | S7: 9.93 | T7: 8.46 | U7: 9.31 | V7: 10.94 | W7: 9.76 | X7: 11.86 | Y7: 11.38 | Z7: 11.62 | AA7: 11.1 | AB7: 12.41 | AC7: 12.07 | AD7: 12.17 | AE7: 11.51 | AF7: 12.36 | AG7: 11.5 | AH7: 11.84 | AI7: 13.47 | AJ7: 13.4 | AK7: 11.36 | AL7: 12.27 | AM7: 12.61 | AN7: 11.24 | AO7: 11.7 | AP7: 11.64 | AQ7: 11.68 | AR7: 11.96 | AS7: 11.22 | AT7: 10.69 | AU7: 11.14 | AV7: 10.4 | AW7: 11.05 | AX7: 10.92 | AY7: 10.1 | AZ7: 9.54 | BA7: 10.09 | BB7: 10.5 | BC7: 10.85 | BD7: 10.54 | BE7: 9.73 | BF7: 10.67 | BG7: 9.43 | BH7: 9.85 | BI7: 9.75 | BJ7: 8.47 | BK7: 9.66 | BL7: 9.59 | BM7: 8.08 | BN7: 9.29 | BO7: 8.62 | BP7: 9 | BQ7: 8.69 | BR7: 8.16 | BS7: 9.11 | BT7: 9.04 | BU7: 7.24 | BV7: 9.02 | BW7: 7.16 | BX7: 7.99 | BY7: 8.6 | BZ7: 6.79 | CA7: 8.57 | CB7: 6.81 | CC7: 7.36 | CD7: 8.33 | CE7: 6.3 | CF7: 7.03 | CG7: 7.96 | CH7: 6.25 | CI7: 7.77 | CJ7: 7.74 | CK7: 5.94 | CL7: 6.79 | CM7: 5.98 | CN7: 6.13 | CO7: 7.51 | CP7: 6.06 | CQ7: 6.82 | CR7: 7.21 | CS7: 5.83 | CT7: 6.14
B8: Jour 7 | C8: 6.18 | D8: 5.41 | E8: 5.73 | F8: 6.3 | G8: 5.79 | H8: 6 | I8: 5.64 | J8: 7.04 | K8: 7.27 | L8: 7.28 | M8: 7.75 | N8: 7.3 | O8: 8.39 | P8: 7.4 | Q8: 8.13 | R8: 9.74 | S8: 9.23 | T8: 10.26 | U8: 10.21 | V8: 9.14 | W8: 10.06 | X8: 11.56 | Y8: 10.08 | Z8: 11.32 | AA8: 12.5 | AB8: 11.51 | AC8: 12.07 | AD8: 12.27 | AE8: 12.11 | AF8: 12.66 | AG8: 12.2 | AH8: 13.54 | AI8: 12.17 | AJ8: 13.1 | AK8: 12.86 | AL8: 13.27 | AM8: 12.61 | AN8: 12.74 | AO8: 11.3 | AP8: 12.24 | AQ8: 11.08 | AR8: 11.96 | AS8: 10.62 | AT8: 10.09 | AU8: 11.64 | AV8: 9.7 | AW8: 10.85 | AX8: 9.52 | AY8: 10.7 | AZ8: 9.84 | BA8: 10.29 | BB8: 10.4 | BC8: 8.85 | BD8: 9.04 | BE8: 9.93 | BF8: 9.47 | BG8: 9.73 | BH8: 10.45 | BI8: 9.15 | BJ8: 8.57 | BK8: 9.16 | BL8: 9.99 | BM8: 8.18 | BN8: 8.89 | BO8: 8.92 | BP8: 8.3 | BQ8: 8.09 | BR8: 8.76 | BS8: 8.51 | BT8: 9.14 | BU8: 8.74 | BV8: 7.32 | BW8: 7.76 | BX8: 8.49 | BY8: 8.2 | BZ8: 8.39 | CA8: 7.17 | CB8: 8.41 | CC8: 7.96 | CD8: 6.83 | CE8: 7.7 | CF8: 6.33 | CG8: 6.96 | CH8: 7.95 | CI8: 7.17 | CJ8: 6.14 | CK8: 6.54 | CL8: 7.39 | CM8: 6.08 | CN8: 6.23 | CO8: 6.01 | CP8: 7.06 | CQ8: 6.72 | CR8: 7.31 | CS8: 6.63 | CT8: 6.44
B9: Jour 8 | C9: 4.28 | D9: 5.81 | E9: 5.93 | F9: 5.3 | G9: 6.69 | H9: 6 | I9: 6.34 | J9: 6.04 | K9: 5.97 | L9: 6.88 | M9: 6.75 | N9: 7 | O9: 7.79 | P9: 8.8 | Q9: 7.73 | R9: 9.34 | S9: 9.33 | T9: 9.66 | U9: 10.71 | V9: 9.74 | W9: 9.56 | X9: 11.46 | Y9: 11.38 | Z9: 10.32 | AA9: 12.3 | AB9: 11.41 | AC9: 12.27 | AD9: 13.47 | AE9: 12.81 | AF9: 13.16 | AG9: 12.1 | AH9: 12.94 | AI9: 12.27 | AJ9: 13.5 | AK9: 11.46 | AL9: 12.67 | AM9: 11.91 | AN9: 11.14 | AO9: 12 | AP9: 12.14 | AQ9: 11.48 | AR9: 11.96 | AS9: 11.62 | AT9: 10.09 | AU9: 11.44 | AV9: 10.1 | AW9: 10.85 | AX9: 10.32 | AY9: 10.3 | AZ9: 10.24 | BA9: 10.19 | BB9: 9.8 | BC9: 10.05 | BD9: 8.94 | BE9: 9.03 | BF9: 8.67 | BG9: 10.73 | BH9: 8.75 | BI9: 10.35 | BJ9: 9.27 | BK9: 9.36 | BL9: 8.89 | BM9: 9.08 | BN9: 8.99 | BO9: 7.92 | BP9: 8.1 | BQ9: 7.99 | BR9: 8.96 | BS9: 7.71 | BT9: 7.94 | BU9: 7.34 | BV9: 8.02 | BW9: 8.56 | BX9: 6.89 | BY9: 7.7 | BZ9: 7.29 | CA9: 7.97 | CB9: 6.91 | CC9: 7.46 | CD9: 7.63 | CE9: 7.1 | CF9: 7.93 | CG9: 6.36 | CH9: 6.95 | CI9: 6.27 | CJ9: 7.34 | CK9: 6.84 | CL9: 6.19 | CM9: 7.28 | CN9: 6.33 | CO9: 6.01 | CP9: 6.26 | CQ9: 6.82 | CR9: 6.71 | CS9: 5.43 | CT9: 6.24
B10: Jour 9 | C10: 5.58 | D10: 5.71 | E10: 5.43 | F10: 6.6 | G10: 6.69 | H10: 6.8 | I10: 5.54 | J10: 7.54 | K10: 6.77 | L10: 6.58 | M10: 7.45 | N10: 7.4 | O10: 8.09 | P10: 8.8 | Q10: 7.63 | R10: 9.34 | S10: 8.83 | T10: 10.06 | U10: 8.71 | V10: 10.64 | W10: 10.46 | X10: 11.06 | Y10: 11.88 | Z10: 12.22 | AA10: 12.3 | AB10: 10.91 | AC10: 13.27 | AD10: 12.67 | AE10: 13.01 | AF10: 12.26 | AG10: 12.9 | AH10: 12.24 | AI10: 13.47 | AJ10: 11.8 | AK10: 13.06 | AL10: 11.27 | AM10: 11.61 | AN10: 12.24 | AO10: 11.8 | AP10: 11.34 | AQ10: 11.68 | AR10: 11.96 | AS10: 11.02 | AT10: 10.19 | AU10: 9.74 | AV10: 11.3 | AW10: 10.95 | AX10: 10.12 | AY10: 9.1 | AZ10: 10.64 | BA10: 10.99 | BB10: 10.8 | BC10: 10.55 | BD10: 8.94 | BE10: 10.73 | BF10: 8.77 | BG10: 10.43 | BH10: 9.95 | BI10: 10.55 | BJ10: 9.87 | BK10: 8.86 | BL10: 8.29 | BM10: 9.18 | BN10: 9.69 | BO10: 8.82 | BP10: 8.9 | BQ10: 8.39 | BR10: 9.06 | BS10: 8.61 | BT10: 8.14 | BU10: 8.04 | BV10: 7.02 | BW10: 8.16 | BX10: 7.09 | BY10: 7.9 | BZ10: 7.69 | CA10: 6.87 | CB10: 7.21 | CC10: 6.66 | CD10: 7.83 | CE10: 6.5 | CF10: 8.23 | CG10: 7.26 | CH10: 7.95 | CI10: 6.47 | CJ10: 6.84 | CK10: 6.74 | CL10: 7.59 | CM10: 6.18 | CN10: 6.73 | CO10: 7.11 | CP10: 6.16 | CQ10: 7.02 | CR10: 6.81 | CS10: 7.13 | CT10: 5.34
B11: Jour 10 | C11: 5.38 | D11: 6.11 | E11: 4.83 | F11: 5.9 | G11: 6.99 | H11: 6 | I11: 5.54 | J11: 6.34 | K11: 7.27 | L11: 7.38 | M11: 7.85 | N11: 7.1 | O11: 8.59 | P11: 7.4 | Q11: 9.13 | R11: 7.94 | S11: 8.03 | T11: 9.06 | U11: 9.11 | V11: 10.74 | W11: 10.16 | X11: 11.46 | Y11: 11.38 | Z11: 10.82 | AA11: 11.2 | AB11: 11.31 | AC11: 12.97 | AD11: 13.47 | AE11: 12.71 | AF11: 11.96 | AG11: 12.2 | AH11: 13.24 | AI11: 12.47 | AJ11: 12.5 | AK11: 12.56 | AL11: 11.37 | AM11: 12.01 | AN11: 13.04 | AO11: 12 | AP11: 11.84 | AQ11: 12.08 | AR11: 10.96 | AS11: 11.02 | AT11: 10.09 | AU11: 10.24 | AV11: 10.9 | AW11: 9.95 | AX11: 9.62 | AY11: 10.3 | AZ11: 10.44 | BA11: 9.89 | BB11: 9.1 | BC11: 8.85 | BD11: 9.04 | BE11: 9.83 | BF11: 9.27 | BG11: 9.93 | BH11: 9.45 | BI11: 10.45 | BJ11: 9.07 | BK11: 8.96 | BL11: 9.69 | BM11: 8.08 | BN11: 8.19 | BO11: 8.62 | BP11: 9.2 | BQ11: 7.99 | BR11: 8.76 | BS11: 7.61 | BT11: 8.24 | BU11: 7.64 | BV11: 7.82 | BW11: 7.56 | BX11: 7.69 | BY11: 7.1 | BZ11: 6.89 | CA11: 7.47 | CB11: 6.81 | CC11: 6.56 | CD11: 7.33 | CE11: 6.3 | CF11: 8.23 | CG11: 7.86 | CH11: 7.75 | CI11: 7.47 | CJ11: 6.44 | CK11: 6.64 | CL11: 6.79 | CM11: 5.88 | CN11: 6.73 | CO11: 7.01 | CP11: 5.96 | CQ11: 7.12 | CR11: 5.31 | CS11: 5.33 | CT11: 6.24
B12: Jour 11 | C12: 5.58 | D12: 6.11 | E12: 6.23 | F12: 5.6 | G12: 6.69 | H12: 5.8 | I12: 5.94 | J12: 5.84 | K12: 7.17 | L12: 7.48 | M12: 7.25 | N12: 6.7 | O12: 6.79 | P12: 8.8 | Q12: 7.73 | R12: 9.24 | S12: 9.93 | T12: 8.86 | U12: 10.41 | V12: 9.44 | W12: 9.66 | X12: 10.86 | Y12: 11.68 | Z12: 10.92 | AA12: 12.2 | AB12: 12.11 | AC12: 12.07 | AD12: 12.57 | AE12: 12.51 | AF12: 12.96 | AG12: 12.9 | AH12: 12.74 | AI12: 13.37 | AJ12: 12.8 | AK12: 13.26 | AL12: 11.77 | AM12: 11.71 | AN12: 11.54 | AO12: 10.9 | AP12: 10.94 | AQ12: 11.88 | AR12: 10.86 | AS12: 10.22 | AT12: 9.99 | AU12: 10.64 | AV12: 10.5 | AW12: 10.75 | AX12: 9.72 | AY12: 9.1 | AZ12: 9.54 | BA12: 9.79 | BB12: 10.8 | BC12: 10.15 | BD12: 9.44 | BE12: 9.03 | BF12: 9.57 | BG12: 8.93 | BH12: 9.05 | BI12: 10.05 | BJ12: 9.97 | BK12: 9.66 | BL12: 9.49 | BM12: 9.78 | BN12: 9.39 | BO12: 9.42 | BP12: 8 | BQ12: 9.19 | BR12: 7.66 | BS12: 9.31 | BT12: 8.24 | BU12: 7.34 | BV12: 7.32 | BW12: 8.36 | BX12: 6.89 | BY12: 8.1 | BZ12: 8.69 | CA12: 7.47 | CB12: 7.71 | CC12: 7.46 | CD12: 7.63 | CE12: 6.7 | CF12: 6.53 | CG12: 6.56 | CH12: 6.35 | CI12: 6.97 | CJ12: 6.34 | CK12: 6.54 | CL12: 7.09 | CM12: 6.78 | CN12: 7.63 | CO12: 6.81 | CP12: 5.76 | CQ12: 6.12 | CR12: 7.31 | CS12: 6.63 | CT12: 5.84
B13: Jour 12 | C13: 5.48 | D13: 6.01 | E13: 6.63 | F13: 6.9 | G13: 6.89 | H13: 6.6 | I13: 7.14 | J13: 6.84 | K13: 7.67 | L13: 7.58 | M13: 6.35 | N13: 6.5 | O13: 6.99 | P13: 8.6 | Q13: 8.93 | R13: 9.34 | S13: 8.93 | T13: 9.76 | U13: 9.61 | V13: 9.04 | W13: 9.86 | X13: 10.06 | Y13: 11.78 | Z13: 11.82 | AA13: 12.1 | AB13: 10.91 | AC13: 12.37 | AD13: 13.17 | AE13: 12.61 | AF13: 11.96 | AG13: 11.9 | AH13: 13.44 | AI13: 12.67 | AJ13: 12.9 | AK13: 11.76 | AL13: 11.47 | AM13: 11.11 | AN13: 12.04 | AO13: 12.8 | AP13: 11.24 | AQ13: 10.98 | AR13: 10.36 | AS13: 11.22 | AT13: 10.79 | AU13: 9.84 | AV13: 10.1 | AW13: 9.85 | AX13: 10.22 | AY13: 9.4 | AZ13: 10.94 | BA13: 10.59 | BB13: 10.4 | BC13: 9.75 | BD13: 9.84 | BE13: 10.43 | BF13: 9.57 | BG13: 9.23 | BH13: 9.25 | BI13: 9.15 | BJ13: 8.97 | BK13: 9.26 | BL13: 9.19 | BM13: 9.68 | BN13: 9.59 | BO13: 9.22 | BP13: 7.7 | BQ13: 8.39 | BR13: 7.76 | BS13: 7.61 | BT13: 8.34 | BU13: 8.34 | BV13: 8.62 | BW13: 7.16 | BX13: 8.39 | BY13: 8.5 | BZ13: 7.99 | CA13: 6.77 | CB13: 8.31 | CC13: 6.86 | CD13: 7.43 | CE13: 6.3 | CF13: 7.33 | CG13: 7.76 | CH13: 6.35 | CI13: 6.27 | CJ13: 6.64 | CK13: 5.84 | CL13: 6.69 | CM13: 6.48 | CN13: 7.33 | CO13: 5.61 | CP13: 5.76 | CQ13: 6.12 | CR13: 6.01 | CS13: 5.53 | CT13: 6.54
B14: Jour 13 | C14: 4.38 | D14: 4.71 | E14: 6.63 | F14: 5.5 | G14: 7.19 | H14: 6.1 | I14: 7.14 | J14: 6.94 | K14: 6.67 | L14: 7.18 | M14: 6.35 | N14: 8.1 | O14: 7.19 | P14: 7.4 | Q14: 8.13 | R14: 9.24 | S14: 10.03 | T14: 9.56 | U14: 10.41 | V14: 10.24 | W14: 11.46 | X14: 10.66 | Y14: 10.28 | Z14: 11.22 | AA14: 11.5 | AB14: 12.41 | AC14: 13.17 | AD14: 12.87 | AE14: 13.51 | AF14: 11.76 | AG14: 12 | AH14: 13.04 | AI14: 11.67 | AJ14: 12.4 | AK14: 11.86 | AL14: 12.47 | AM14: 11.11 | AN14: 13.04 | AO14: 12 | AP14: 11.14 | AQ14: 10.78 | AR14: 10.96 | AS14: 10.42 | AT14: 11.69 | AU14: 9.84 | AV14: 10.1 | AW14: 9.45 | AX14: 11.02 | AY14: 11.1 | AZ14: 11.14 | BA14: 10.09 | BB14: 11.1 | BC14: 9.95 | BD14: 8.94 | BE14: 10.13 | BF14: 10.27 | BG14: 10.73 | BH14: 10.55 | BI14: 8.85 | BJ14: 9.47 | BK14: 8.96 | BL14: 9.29 | BM14: 9.78 | BN14: 9.69 | BO14: 8.22 | BP14: 9.3 | BQ14: 7.69 | BR14: 9.36 | BS14: 7.81 | BT14: 9.24 | BU14: 7.44 | BV14: 9.02 | BW14: 8.26 | BX14: 6.99 | BY14: 8.7 | BZ14: 7.89 | CA14: 8.27 | CB14: 7.31 | CC14: 7.86 | CD14: 7.23 | CE14: 7.2 | CF14: 7.53 | CG14: 7.56 | CH14: 7.55 | CI14: 6.57 | CJ14: 7.14 | CK14: 6.74 | CL14: 7.39 | CM14: 7.28 | CN14: 5.73 | CO14: 6.51 | CP14: 5.96 | CQ14: 6.32 | CR14: 6.21 | CS14: 6.03 | CT14: 5.94
B15: Jour 14 | C15: 5.38 | D15: 6.71 | E15: 5.23 | F15: 5.8 | G15: 5.39 | H15: 6.9 | I15: 6.84 | J15: 7.44 | K15: 6.37 | L15: 5.98 | M15: 7.75 | N15: 7.1 | O15: 8.79 | P15: 7.1 | Q15: 8.83 | R15: 9.14 | S15: 8.53 | T15: 8.66 | U15: 10.01 | V15: 9.44 | W15: 10.16 | X15: 10.66 | Y15: 11.38 | Z15: 10.72 | AA15: 11.4 | AB15: 10.91 | AC15: 11.87 | AD15: 11.57 | AE15: 12.21 | AF15: 13.46 | AG15: 12.1 | AH15: 12.74 | AI15: 12.57 | AJ15: 12.9 | AK15: 11.56 | AL15: 12.97 | AM15: 11.81 | AN15: 12.44 | AO15: 11.2 | AP15: 10.84 | AQ15: 12.18 | AR15: 11.96 | AS15: 10.62 | AT15: 10.99 | AU15: 9.64 | AV15: 11.4 | AW15: 10.65 | AX15: 10.62 | AY15: 10.6 | AZ15: 10.74 | BA15: 10.19 | BB15: 11 | BC15: 9.45 | BD15: 9.54 | BE15: 8.73 | BF15: 10.67 | BG15: 9.33 | BH15: 9.45 | BI15: 10.35 | BJ15: 8.47 | BK15: 10.06 | BL15: 9.39 | BM15: 8.38 | BN15: 9.49 | BO15: 9.62 | BP15: 9.7 | BQ15: 9.49 | BR15: 8.76 | BS15: 8.91 | BT15: 7.74 | BU15: 8.54 | BV15: 7.12 | BW15: 7.06 | BX15: 8.09 | BY15: 8.2 | BZ15: 6.79 | CA15: 8.67 | CB15: 7.11 | CC15: 6.76 | CD15: 7.53 | CE15: 6.6 | CF15: 7.03 | CG15: 7.56 | CH15: 6.75 | CI15: 7.97 | CJ15: 7.84 | CK15: 7.14 | CL15: 7.59 | CM15: 7.08 | CN15: 6.53 | CO15: 7.11 | CP15: 6.36 | CQ15: 6.12 | CR15: 7.31 | CS15: 6.43 | CT15: 5.94
B16: Jour 15 | C16: 5.78 | D16: 6.01 | E16: 5.13 | F16: 6 | G16: 6.89 | H16: 6.2 | I16: 7.04 | J16: 6.24 | K16: 7.77 | L16: 6.58 | M16: 8.15 | N16: 7.2 | O16: 7.79 | P16: 7.6 | Q16: 8.43 | R16: 8.94 | S16: 9.03 | T16: 10.16 | U16: 10.21 | V16: 9.44 | W16: 9.56 | X16: 10.36 | Y16: 11.58 | Z16: 10.72 | AA16: 10.6 | AB16: 12.61 | AC16: 11.47 | AD16: 12.97 | AE16: 11.91 | AF16: 12.96 | AG16: 12.8 | AH16: 12.74 | AI16: 12.97 | AJ16: 13.5 | AK16: 11.46 | AL16: 12.87 | AM16: 11.01 | AN16: 11.24 | AO16: 12.6 | AP16: 11.94 | AQ16: 10.98 | AR16: 11.06 | AS16: 9.92 | AT16: 10.49 | AU16: 10.64 | AV16: 10.5 | AW16: 11.25 | AX16: 10.02 | AY16: 9.1 | AZ16: 11.04 | BA16: 10.49 | BB16: 11.1 | BC16: 9.95 | BD16: 9.84 | BE16: 10.03 | BF16: 9.37 | BG16: 10.43 | BH16: 9.55 | BI16: 9.25 | BJ16: 8.87 | BK16: 8.86 | BL16: 10.09 | BM16: 8.58 | BN16: 9.09 | BO16: 8.32 | BP16: 8.2 | BQ16: 8.09 | BR16: 8.26 | BS16: 8.11 | BT16: 7.24 | BU16: 7.14 | BV16: 8.52 | BW16: 8.96 | BX16: 8.69 | BY16: 7.7 | BZ16: 7.09 | CA16: 7.37 | CB16: 8.21 | CC16: 8.16 | CD16: 7.53 | CE16: 6.3 | CF16: 8.13 | CG16: 8.16 | CH16: 7.55 | CI16: 7.97 | CJ16: 6.44 | CK16: 7.74 | CL16: 6.89 | CM16: 6.68 | CN16: 6.33 | CO16: 6.01 | CP16: 7.16 | CQ16: 6.12 | CR16: 6.01 | CS16: 5.43 | CT16: 6.74
B17: Jour 16 | C17: 4.88 | D17: 5.91 | E17: 5.83 | F17: 6.2 | G17: 5.79 | H17: 6.3 | I17: 6.64 | J17: 7.84 | K17: 7.37 | L17: 7.18 | M17: 7.05 | N17: 8.4 | O17: 8.29 | P17: 7.9 | Q17: 8.13 | R17: 8.84 | S17: 8.03 | T17: 9.36 | U17: 10.01 | V17: 9.74 | W17: 9.96 | X17: 11.36 | Y17: 11.18 | Z17: 11.32 | AA17: 11.5 | AB17: 11.51 | AC17: 11.97 | AD17: 11.47 | AE17: 13.41 | AF17: 12.36 | AG17: 13.5 | AH17: 11.74 | AI17: 11.77 | AJ17: 12.7 | AK17: 13.26 | AL17: 12.27 | AM17: 12.91 | AN17: 11.94 | AO17: 10.9 | AP17: 10.74 | AQ17: 11.18 | AR17: 12.06 | AS17: 10.72 | AT17: 11.19 | AU17: 11.34 | AV17: 9.7 | AW17: 9.65 | AX17: 10.32 | AY17: 9.1 | AZ17: 9.94 | BA17: 10.19 | BB17: 9.3 | BC17: 8.95 | BD17: 10.44 | BE17: 10.23 | BF17: 8.97 | BG17: 8.73 | BH17: 10.15 | BI17: 9.65 | BJ17: 10.17 | BK17: 9.16 | BL17: 8.89 | BM17: 8.08 | BN17: 9.79 | BO17: 8.92 | BP17: 7.8 | BQ17: 8.89 | BR17: 9.16 | BS17: 8.01 | BT17: 8.54 | BU17: 8.14 | BV17: 8.22 | BW17: 7.96 | BX17: 7.49 | BY17: 7.8 | BZ17: 8.69 | CA17: 6.97 | CB17: 6.71 | CC17: 6.96 | CD17: 6.93 | CE17: 7 | CF17: 6.23 | CG17: 8.06 | CH17: 7.35 | CI17: 6.27 | CJ17: 6.54 | CK17: 6.74 | CL17: 6.29 | CM17: 6.88 | CN17: 5.93 | CO17: 6.71 | CP17: 7.56 | CQ17: 5.82 | CR17: 6.41 | CS17: 5.33 | CT17: 5.74
B18: Jour 17 | C18: 5.08 | D18: 4.91 | E18: 5.63 | F18: 5.7 | G18: 5.69 | H18: 6.8 | I18: 6.64 | J18: 7.54 | K18: 6.27 | L18: 7.18 | M18: 7.25 | N18: 6.5 | O18: 7.39 | P18: 7.6 | Q18: 8.83 | R18: 7.84 | S18: 8.83 | T18: 8.36 | U18: 10.11 | V18: 10.44 | W18: 9.76 | X18: 11.26 | Y18: 11.08 | Z18: 12.12 | AA18: 12.6 | AB18: 12.91 | AC18: 13.07 | AD18: 12.37 | AE18: 12.21 | AF18: 11.66 | AG18: 11.5 | AH18: 12.84 | AI18: 11.77 | AJ18: 12.2 | AK18: 12.06 | AL18: 12.57 | AM18: 13.01 | AN18: 11.94 | AO18: 11.7 | AP18: 10.94 | AQ18: 10.38 | AR18: 11.86 | AS18: 10.82 | AT18: 11.29 | AU18: 10.84 | AV18: 10.8 | AW18: 11.05 | AX18: 10.92 | AY18: 10.8 | AZ18: 11.04 | BA18: 9.99 | BB18: 10 | BC18: 10.25 | BD18: 10.64 | BE18: 10.23 | BF18: 9.67 | BG18: 9.53 | BH18: 10.45 | BI18: 8.75 | BJ18: 9.97 | BK18: 9.26 | BL18: 8.89 | BM18: 9.38 | BN18: 9.49 | BO18: 8.92 | BP18: 7.7 | BQ18: 7.59 | BR18: 8.06 | BS18: 8.11 | BT18: 7.44 | BU18: 7.64 | BV18: 8.82 | BW18: 8.66 | BX18: 8.29 | BY18: 7.3 | BZ18: 6.89 | CA18: 8.37 | CB18: 7.91 | CC18: 7.76 | CD18: 7.03 | CE18: 7.6 | CF18: 7.43 | CG18: 8.06 | CH18: 6.15 | CI18: 6.27 | CJ18: 7.34 | CK18: 6.64 | CL18: 7.59 | CM18: 6.28 | CN18: 5.93 | CO18: 6.51 | CP18: 6.66 | CQ18: 7.22 | CR18: 6.21 | CS18: 5.83 | CT18: 6.04
B19: Jour 18 | C19: 5.18 | D19: 6.71 | E19: 4.73 | F19: 6.8 | G19: 7.09 | H19: 5.8 | I19: 5.74 | J19: 7.54 | K19: 6.37 | L19: 6.68 | M19: 6.45 | N19: 7.2 | O19: 7.29 | P19: 8.9 | Q19: 9.03 | R19: 8.64 | S19: 9.73 | T19: 9.06 | U19: 10.41 | V19: 9.44 | W19: 10.66 | X19: 10.66 | Y19: 11.68 | Z19: 11.22 | AA19: 12.1 | AB19: 11.51 | AC19: 11.67 | AD19: 11.67 | AE19: 12.61 | AF19: 12.96 | AG19: 13.3 | AH19: 13.64 | AI19: 13.17 | AJ19: 11.8 | AK19: 11.76 | AL19: 13.07 | AM19: 11.51 | AN19: 13.04 | AO19: 12.7 | AP19: 12.24 | AQ19: 11.08 | AR19: 10.26 | AS19: 11.02 | AT19: 11.39 | AU19: 10.34 | AV19: 10.7 | AW19: 10.45 | AX19: 9.52 | AY19: 10.6 | AZ19: 9.94 | BA19: 10.19 | BB19: 9.2 | BC19: 9.35 | BD19: 9.44 | BE19: 9.83 | BF19: 9.77 | BG19: 10.63 | BH19: 10.05 | BI19: 10.65 | BJ19: 8.77 | BK19: 9.16 | BL19: 8.19 | BM19: 9.48 | BN19: 8.89 | BO19: 8.82 | BP19: 9.5 | BQ19: 9.29 | BR19: 8.86 | BS19: 7.61 | BT19: 7.24 | BU19: 7.44 | BV19: 8.12 | BW19: 8.66 | BX19: 7.59 | BY19: 7.3 | BZ19: 7.59 | CA19: 8.67 | CB19: 8.11 | CC19: 7.76 | CD19: 7.53 | CE19: 7.2 | CF19: 8.03 | CG19: 6.36 | CH19: 6.35 | CI19: 6.57 | CJ19: 6.14 | CK19: 6.64 | CL19: 6.09 | CM19: 7.78 | CN19: 7.53 | CO19: 5.71 | CP19: 5.76 | CQ19: 6.32 | CR19: 6.21 | CS19: 7.23 | CT19: 5.24
B20: Jour 19 | C20: 4.68 | D20: 6.31 | E20: 5.93 | F20: 6.5 | G20: 6.49 | H20: 6.7 | I20: 7.54 | J20: 7.14 | K20: 6.27 | L20: 7.18 | M20: 7.45 | N20: 6.7 | O20: 8.79 | P20: 8.4 | Q20: 9.13 | R20: 9.34 | S20: 9.33 | T20: 9.26 | U20: 9.71 | V20: 9.64 | W20: 11.56 | X20: 10.06 | Y20: 10.18 | Z20: 11.72 | AA20: 10.9 | AB20: 12.11 | AC20: 12.67 | AD20: 12.17 | AE20: 12.81 | AF20: 12.06 | AG20: 12.5 | AH20: 12.14 | AI20: 11.77 | AJ20: 12.8 | AK20: 12.76 | AL20: 12.17 | AM20: 11.21 | AN20: 11.14 | AO20: 11.9 | AP20: 10.64 | AQ20: 10.78 | AR20: 11.16 | AS20: 11.02 | AT20: 10.69 | AU20: 10.24 | AV20: 10.4 | AW20: 9.65 | AX20: 11.22 | AY20: 11.1 | AZ20: 11.04 | BA20: 10.19 | BB20: 10.9 | BC20: 10.35 | BD20: 10.44 | BE20: 9.23 | BF20: 10.27 | BG20: 10.63 | BH20: 8.65 | BI20: 10.25 | BJ20: 8.67 | BK20: 9.76 | BL20: 9.89 | BM20: 9.78 | BN20: 8.89 | BO20: 8.32 | BP20: 9.6 | BQ20: 8.49 | BR20: 8.36 | BS20: 7.41 | BT20: 7.34 | BU20: 7.44 | BV20: 8.12 | BW20: 8.36 | BX20: 7.89 | BY20: 7 | BZ20: 8.39 | CA20: 8.07 | CB20: 6.51 | CC20: 6.56 | CD20: 7.53 | CE20: 6.6 | CF20: 7.93 | CG20: 6.86 | CH20: 6.75 | CI20: 7.27 | CJ20: 6.74 | CK20: 5.84 | CL20: 6.89 | CM20: 7.08 | CN20: 5.73 | CO20: 7.51 | CP20: 7.46 | CQ20: 6.32 | CR20: 6.71 | CS20: 5.73 | CT20: 5.44
B21: Jour 20 | C21: 4.68 | D21: 6.01 | E21: 6.13 | F21: 6.9 | G21: 5.39 | H21: 6.8 | I21: 6.24 | J21: 5.94 | K21: 7.67 | L21: 6.28 | M21: 6.45 | N21: 7.2 | O21: 7.09 | P21: 7.1 | Q21: 7.63 | R21: 8.24 | S21: 10.03 | T21: 8.46 | U21: 8.91 | V21: 9.34 | W21: 9.86 | X21: 10.56 | Y21: 11.98 | Z21: 11.02 | AA21: 11.4 | AB21: 12.81 | AC21: 11.87 | AD21: 12.27 | AE21: 12.91 | AF21: 13.56 | AG21: 12.4 | AH21: 13.64 | AI21: 11.77 | AJ21: 13.1 | AK21: 12.96 | AL21: 11.67 | AM21: 11.71 | AN21: 11.94 | AO21: 11.6 | AP21: 10.64 | AQ21: 11.78 | AR21: 10.76 | AS21: 11.22 | AT21: 11.19 | AU21: 10.14 | AV21: 10.2 | AW21: 11.15 | AX21: 10.12 | AY21: 10.5 | AZ21: 9.84 | BA21: 9.69 | BB21: 10.9 | BC21: 9.95 | BD21: 8.84 | BE21: 10.13 | BF21: 9.17 | BG21: 10.63 | BH21: 8.95 | BI21: 8.75 | BJ21: 8.97 | BK21: 10.26 | BL21: 9.79 | BM21: 8.18 | BN21: 7.99 | BO21: 7.82 | BP21: 9.5 | BQ21: 9.49 | BR21: 7.46 | BS21: 9.31 | BT21: 7.24 | BU21: 7.64 | BV21: 7.42 | BW21: 8.26 | BX21: 6.89 | BY21: 7.4 | BZ21: 7.99 | CA21: 7.97 | CB21: 7.61 | CC21: 6.96 | CD21: 7.33 | CE21: 8.2 | CF21: 6.83 | CG21: 7.76 | CH21: 6.85 | CI21: 6.47 | CJ21: 6.34 | CK21: 6.34 | CL21: 6.29 | CM21: 6.28 | CN21: 7.23 | CO21: 5.81 | CP21: 6.36 | CQ21: 6.12 | CR21: 6.91 | CS21: 5.43 | CT21: 6.24
B22: Jour 21 | C22: 5.78 | D22: 5.41 | E22: 5.23 | F22: 5.6 | G22: 6.89 | H22: 6.1 | I22: 6.34 | J22: 6.44 | K22: 7.17 | L22: 7.58 | M22: 6.65 | N22: 6.5 | O22: 8.49 | P22: 7.5 | Q22: 7.63 | R22: 8.74 | S22: 9.83 | T22: 10.06 | U22: 9.31 | V22: 9.74 | W22: 9.66 | X22: 10.96 | Y22: 10.08 | Z22: 11.62 | AA22: 11.4 | AB22: 11.61 | AC22: 13.07 | AD22: 13.27 | AE22: 12.91 | AF22: 12.66 | AG22: 12.3 | AH22: 12.64 | AI22: 11.97 | AJ22: 12.2 | AK22: 13.36 | AL22: 11.77 | AM22: 11.41 | AN22: 11.74 | AO22: 11.2 | AP22: 11.74 | AQ22: 10.38 | AR22: 10.96 | AS22: 10.72 | AT22: 9.79 | AU22: 11.14 | AV22: 9.6 | AW22: 10.45 | AX22: 11.12 | AY22: 10.9 | AZ22: 10.94 | BA22: 9.59 | BB22: 10.5 | BC22: 9.35 | BD22: 9.34 | BE22: 8.93 | BF22: 10.17 | BG22: 9.53 | BH22: 9.25 | BI22: 8.65 | BJ22: 9.97 | BK22: 9.46 | BL22: 8.19 | BM22: 8.28 | BN22: 7.99 | BO22: 8.22 | BP22: 9.5 | BQ22: 7.59 | BR22: 8.46 | BS22: 8.61 | BT22: 7.54 | BU22: 7.84 | BV22: 7.92 | BW22: 8.66 | BX22: 7.99 | BY22: 7.7 | BZ22: 7.89 | CA22: 7.27 | CB22: 7.31 | CC22: 6.76 | CD22: 7.03 | CE22: 6.3 | CF22: 7.23 | CG22: 7.66 | CH22: 7.85 | CI22: 8.07 | CJ22: 6.04 | CK22: 7.24 | CL22: 7.69 | CM22: 7.78 | CN22: 7.13 | CO22: 7.41 | CP22: 6.06 | CQ22: 5.72 | CR22: 6.41 | CS22: 5.93 | CT22: 6.94
B23: Mini | C23: =MIN(C2:CT22) -> 4.28
B24: Maxi | C24: =MAX(C2:CT22) -> 13.64

Sheet Ext Moy
B1: Ext Moy | C1: 6h | G1: 7h | K1: 8h | O1: 9h | S1: 10h | W1: 11h | AA1: 12h | AE1: 13h | AI1: 14h | AM1: 15h | AQ1: 16h | AU1: 17h | AY1: 18h | BC1: 19h | BG1: 20h | BK1: 21h | BO1: 22h | BS1: 23h | BW1: 24h | CA1: 1h | CE1: 2h | CI1: 3h | CM1: 4h | CQ1: 5h
B2: Jour 1 | C2: =('Ext1'!C2+'Ext2'!C2)/2 -> 4.64 | D2: =('Ext1'!D2+'Ext2'!D2)/2 -> 5.705 | E2: =('Ext1'!E2+'Ext2'!E2)/2 -> 5.315 | F2: =('Ext1'!F2+'Ext2'!F2)/2 -> 5.3 | G2: =('Ext1'!G2+'Ext2'!G2)/2 -> 5.195 | H2: =('Ext1'!H2+'Ext2'!H2)/2 -> 6.5 | I2: =('Ext1'!I2+'Ext2'!I2)/2 -> 6.67 | J2: =('Ext1'!J2+'Ext2'!J2)/2 -> 6.57 | K2: =('Ext1'!K2+'Ext2'!K2)/2 -> 6.185 | L2: =('Ext1'!L2+'Ext2'!L2)/2 -> 7.09 | M2: =('Ext1'!M2+'Ext2'!M2)/2 -> 6.375 | N2: =('Ext1'!N2+'Ext2'!N2)/2 -> 8 | O2: =('Ext1'!O2+'Ext2'!O2)/2 -> 7.745 | P2: =('Ext1'!P2+'Ext2'!P2)/2 -> 7.95 | Q2: =('Ext1'!Q2+'Ext2'!Q2)/2 -> 8.915 | R2: =('Ext1'!R2+'Ext2'!R2)/2 -> 8.07 | S2: =('Ext1'!S2+'Ext2'!S2)/2 -> 9.665 | T2: =('Ext1'!T2+'Ext2'!T2)/2 -> 8.23 | U2: =('Ext1'!U2+'Ext2'!U2)/2 -> 9.355 | V2: =('Ext1'!V2+'Ext2'!V2)/2 -> 10.62 | W2: =('Ext1'!W2+'Ext2'!W2)/2 -> 10.58 | X2: =('Ext1'!X2+'Ext2'!X2)/2 -> 11.58 | Y2: =('Ext1'!Y2+'Ext2'!Y2)/2 -> 11.44 | Z2: =('Ext1'!Z2+'Ext2'!Z2)/2 -> 10.46 | AA2: =('Ext1'!AA2+'Ext2'!AA2)/2 -> 11.65 | AB2: =('Ext1'!AB2+'Ext2'!AB2)/2 -> 10.805 | AC2: =('Ext1'!AC2+'Ext2'!AC2)/2 -> 11.685 | AD2: =('Ext1'!AD2+'Ext2'!AD2)/2 -> 13.335 | AE2: =('Ext1'!AE2+'Ext2'!AE2)/2 -> 12.955 | AF2: =('Ext1'!AF2+'Ext2'!AF2)/2 -> 12.53 | AG2: =('Ext1'!AG2+'Ext2'!AG2)/2 -> 13.3 | AH2: =('Ext1'!AH2+'Ext2'!AH2)/2 -> 12.67 | AI2: =('Ext1'!AI2+'Ext2'!AI2)/2 -> 11.785 | AJ2: =('Ext1'!AJ2+'Ext2'!AJ2)/2 -> 11.3 | AK2: =('Ext1'!AK2+'Ext2'!AK2)/2 -> 12.13 | AL2: =('Ext1'!AL2+'Ext2'!AL2)/2 -> 11.585 | AM2: =('Ext1'!AM2+'Ext2'!AM2)/2 -> 11.105 | AN2: =('Ext1'!AN2+'Ext2'!AN2)/2 -> 11.87 | AO2: =('Ext1'!AO2+'Ext2'!AO2)/2 -> 12.6 | AP2: =('Ext1'!AP2+'Ext2'!AP2)/2 -> 10.42 | AQ2: =('Ext1'!AQ2+'Ext2'!AQ2)/2 -> 11.29 | AR2: =('Ext1'!AR2+'Ext2'!AR2)/2 -> 11.78 | AS2: =('Ext1'!AS2+'Ext2'!AS2)/2 -> 10.76 | AT2: =('Ext1'!AT2+'Ext2'!AT2)/2 -> 10.145 | AU2: =('Ext1'!AU2+'Ext2'!AU2)/2 -> 10.27 | AV2: =('Ext1'!AV2+'Ext2'!AV2)/2 -> 10.05 | AW2: =('Ext1'!AW2+'Ext2'!AW2)/2 -> 10.525 | AX2: =('Ext1'!AX2+'Ext2'!AX2)/2 -> 10.31 | AY2: =('Ext1'!AY2+'Ext2'!AY2)/2 -> 10.05 | AZ2: =('Ext1'!AZ2+'Ext2'!AZ2)/2 -> 9.47 | BA2: =('Ext1'!BA2+'Ext2'!BA2)/2 -> 10.695 | BB2: =('Ext1'!BB2+'Ext2'!BB2)/2 -> 10.6 | BC2: =('Ext1'!BC2+'Ext2'!BC2)/2 -> 10.625 | BD2: =('Ext1'!BD2+'Ext2'!BD2)/2 -> 9.57 | BE2: =('Ext1'!BE2+'Ext2'!BE2)/2 -> 9.315 | BF2: =('Ext1'!BF2+'Ext2'!BF2)/2 -> 9.035 | BG2: =('Ext1'!BG2+'Ext2'!BG2)/2 -> 9.265 | BH2: =('Ext1'!BH2+'Ext2'!BH2)/2 -> 8.575 | BI2: =('Ext1'!BI2+'Ext2'!BI2)/2 -> 8.475 | BJ2: =('Ext1'!BJ2+'Ext2'!BJ2)/2 -> 10.035 | BK2: =('Ext1'!BK2+'Ext2'!BK2)/2 -> 9.08 | BL2: =('Ext1'!BL2+'Ext2'!BL2)/2 -> 8.695 | BM2: =('Ext1'!BM2+'Ext2'!BM2)/2 -> 8.39 | BN2: =('Ext1'!BN2+'Ext2'!BN2)/2 -> 7.845 | BO2: =('Ext1'!BO2+'Ext2'!BO2)/2 -> 7.86 | BP2: =('Ext1'!BP2+'Ext2'!BP2)/2 -> 7.95 | BQ2: =('Ext1'!BQ2+'Ext2'!BQ2)/2 -> 7.445 | BR2: =('Ext1'!BR2+'Ext2'!BR2)/2 -> 9.03 | BS2: =('Ext1'!BS2+'Ext2'!BS2)/2 -> 8.805 | BT2: =('Ext1'!BT2+'Ext2'!BT2)/2 -> 8.27 | BU2: =('Ext1'!BU2+'Ext2'!BU2)/2 -> 7.32 | BV2: =('Ext1'!BV2+'Ext2'!BV2)/2 -> 8.71 | BW2: =('Ext1'!BW2+'Ext2'!BW2)/2 -> 8.43 | BX2: =('Ext1'!BX2+'Ext2'!BX2)/2 -> 7.145 | BY2: =('Ext1'!BY2+'Ext2'!BY2)/2 -> 8.25 | BZ2: =('Ext1'!BZ2+'Ext2'!BZ2)/2 -> 7.095 | CA2: =('Ext1'!CA2+'Ext2'!CA2)/2 -> 8.585 | CB2: =('Ext1'!CB2+'Ext2'!CB2)/2 -> 7.005 | CC2: =('Ext1'!CC2+'Ext2'!CC2)/2 -> 6.53 | CD2: =('Ext1'!CD2+'Ext2'!CD2)/2 -> 7.315 | CE2: =('Ext1'!CE2+'Ext2'!CE2)/2 -> 6.8 | CF2: =('Ext1'!CF2+'Ext2'!CF2)/2 -> 6.915 | CG2: =('Ext1'!CG2+'Ext2'!CG2)/2 -> 7.93 | CH2: =('Ext1'!CH2+'Ext2'!CH2)/2 -> 7.925 | CI2: =('Ext1'!CI2+'Ext2'!CI2)/2 -> 6.185 | CJ2: =('Ext1'!CJ2+'Ext2'!CJ2)/2 -> 6.02 | CK2: =('Ext1'!CK2+'Ext2'!CK2)/2 -> 6.52 | CL2: =('Ext1'!CL2+'Ext2'!CL2)/2 -> 7.395 | CM2: =('Ext1'!CM2+'Ext2'!CM2)/2 -> 7.34 | CN2: =('Ext1'!CN2+'Ext2'!CN2)/2 -> 7.415 | CO2: =('Ext1'!CO2+'Ext2'!CO2)/2 -> 6.505 | CP2: =('Ext1'!CP2+'Ext2'!CP2)/2 -> 5.58 | CQ2: =('Ext1'!CQ2+'Ext2'!CQ2)/2 -> 6.96 | CR2: =('Ext1'!CR2+'Ext2'!CR2)/2 -> 6.805 | CS2: =('Ext1'!CS2+'Ext2'!CS2)/2 -> 5.765 | CT2: =('Ext1'!CT2+'Ext2'!CT2)/2 -> 6.97
B3: Jour 2 | C3: =('Ext1'!C3+'Ext2'!C3)/2 -> 5.54 | D3: =('Ext1'!D3+'Ext2'!D3)/2 -> 5.705 | E3: =('Ext1'!E3+'Ext2'!E3)/2 -> 5.715 | F3: =('Ext1'!F3+'Ext2'!F3)/2 -> 5.4 | G3: =('Ext1'!G3+'Ext2'!G3)/2 -> 4.995 | H3: =('Ext1'!H3+'Ext2'!H3)/2 -> 7 | I3: =('Ext1'!I3+'Ext2'!I3)/2 -> 6.37 | J3: =('Ext1'!J3+'Ext2'!J3)/2 -> 6.37 | K3: =('Ext1'!K3+'Ext2'!K3)/2 -> 7.585 | L3: =('Ext1'!L3+'Ext2'!L3)/2 -> 6.59 | M3: =('Ext1'!M3+'Ext2'!M3)/2 -> 7.075 | N3: =('Ext1'!N3+'Ext2'!N3)/2 -> 6.8 | O3: =('Ext1'!O3+'Ext2'!O3)/2 -> 7.945 | P3: =('Ext1'!P3+'Ext2'!P3)/2 -> 8.75 | Q3: =('Ext1'!Q3+'Ext2'!Q3)/2 -> 8.715 | R3: =('Ext1'!R3+'Ext2'!R3)/2 -> 8.07 | S3: =('Ext1'!S3+'Ext2'!S3)/2 -> 8.865 | T3: =('Ext1'!T3+'Ext2'!T3)/2 -> 8.83 | U3: =('Ext1'!U3+'Ext2'!U3)/2 -> 9.855 | V3: =('Ext1'!V3+'Ext2'!V3)/2 -> 8.92 | W3: =('Ext1'!W3+'Ext2'!W3)/2 -> 9.48 | X3: =('Ext1'!X3+'Ext2'!X3)/2 -> 9.68 | Y3: =('Ext1'!Y3+'Ext2'!Y3)/2 -> 10.44 | Z3: =('Ext1'!Z3+'Ext2'!Z3)/2 -> 12.16 | AA3: =('Ext1'!AA3+'Ext2'!AA3)/2 -> 12.05 | AB3: =('Ext1'!AB3+'Ext2'!AB3)/2 -> 11.305 | AC3: =('Ext1'!AC3+'Ext2'!AC3)/2 -> 12.985 | AD3: =('Ext1'!AD3+'Ext2'!AD3)/2 -> 12.735 | AE3: =('Ext1'!AE3+'Ext2'!AE3)/2 -> 12.955 | AF3: =('Ext1'!AF3+'Ext2'!AF3)/2 -> 12.23 | AG3: =('Ext1'!AG3+'Ext2'!AG3)/2 -> 12.1 | AH3: =('Ext1'!AH3+'Ext2'!AH3)/2 -> 12.17 | AI3: =('Ext1'!AI3+'Ext2'!AI3)/2 -> 11.385 | AJ3: =('Ext1'!AJ3+'Ext2'!AJ3)/2 -> 11.6 | AK3: =('Ext1'!AK3+'Ext2'!AK3)/2 -> 11.43 | AL3: =('Ext1'!AL3+'Ext2'!AL3)/2 -> 12.485 | AM3: =('Ext1'!AM3+'Ext2'!AM3)/2 -> 12.605 | AN3: =('Ext1'!AN3+'Ext2'!AN3)/2 -> 11.77 | AO3: =('Ext1'!AO3+'Ext2'!AO3)/2 -> 11.6 | AP3: =('Ext1'!AP3+'Ext2'!AP3)/2 -> 10.52 | AQ3: =('Ext1'!AQ3+'Ext2'!AQ3)/2 -> 11.39 | AR3: =('Ext1'!AR3+'Ext2'!AR3)/2 -> 9.88 | AS3: =('Ext1'!AS3+'Ext2'!AS3)/2 -> 11.76 | AT3: =('Ext1'!AT3+'Ext2'!AT3)/2 -> 11.045 | AU3: =('Ext1'!AU3+'Ext2'!AU3)/2 -> 11.37 | AV3: =('Ext1'!AV3+'Ext2'!AV3)/2 -> 10.35 | AW3: =('Ext1'!AW3+'Ext2'!AW3)/2 -> 10.625 | AX3: =('Ext1'!AX3+'Ext2'!AX3)/2 -> 11.11 | AY3: =('Ext1'!AY3+'Ext2'!AY3)/2 -> 9.65 | AZ3: =('Ext1'!AZ3+'Ext2'!AZ3)/2 -> 10.07 | BA3: =('Ext1'!BA3+'Ext2'!BA3)/2 -> 8.995 | BB3: =('Ext1'!BB3+'Ext2'!BB3)/2 -> 9.2 | BC3: =('Ext1'!BC3+'Ext2'!BC3)/2 -> 10.025 | BD3: =('Ext1'!BD3+'Ext2'!BD3)/2 -> 10.27 | BE3: =('Ext1'!BE3+'Ext2'!BE3)/2 -> 9.215 | BF3: =('Ext1'!BF3+'Ext2'!BF3)/2 -> 9.835 | BG3: =('Ext1'!BG3+'Ext2'!BG3)/2 -> 8.665 | BH3: =('Ext1'!BH3+'Ext2'!BH3)/2 -> 8.975 | BI3: =('Ext1'!BI3+'Ext2'!BI3)/2 -> 9.975 | BJ3: =('Ext1'!BJ3+'Ext2'!BJ3)/2 -> 8.935 | BK3: =('Ext1'!BK3+'Ext2'!BK3)/2 -> 8.58 | BL3: =('Ext1'!BL3+'Ext2'!BL3)/2 -> 8.095 | BM3: =('Ext1'!BM3+'Ext2'!BM3)/2 -> 9.39 | BN3: =('Ext1'!BN3+'Ext2'!BN3)/2 -> 8.145 | BO3: =('Ext1'!BO3+'Ext2'!BO3)/2 -> 8.16 | BP3: =('Ext1'!BP3+'Ext2'!BP3)/2 -> 8.35 | BQ3: =('Ext1'!BQ3+'Ext2'!BQ3)/2 -> 8.945 | BR3: =('Ext1'!BR3+'Ext2'!BR3)/2 -> 9.13 | BS3: =('Ext1'!BS3+'Ext2'!BS3)/2 -> 8.705 | BT3: =('Ext1'!BT3+'Ext2'!BT3)/2 -> 8.17 | BU3: =('Ext1'!BU3+'Ext2'!BU3)/2 -> 7.52 | BV3: =('Ext1'!BV3+'Ext2'!BV3)/2 -> 8.21 | BW3: =('Ext1'!BW3+'Ext2'!BW3)/2 -> 8.13 | BX3: =('Ext1'!BX3+'Ext2'!BX3)/2 -> 7.745 | BY3: =('Ext1'!BY3+'Ext2'!BY3)/2 -> 7.85 | BZ3: =('Ext1'!BZ3+'Ext2'!BZ3)/2 -> 7.195 | CA3: =('Ext1'!CA3+'Ext2'!CA3)/2 -> 6.585 | CB3: =('Ext1'!CB3+'Ext2'!CB3)/2 -> 6.605 | CC3: =('Ext1'!CC3+'Ext2'!CC3)/2 -> 8.13 | CD3: =('Ext1'!CD3+'Ext2'!CD3)/2 -> 7.415 | CE3: =('Ext1'!CE3+'Ext2'!CE3)/2 -> 7.7 | CF3: =('Ext1'!CF3+'Ext2'!CF3)/2 -> 7.815 | CG3: =('Ext1'!CG3+'Ext2'!CG3)/2 -> 7.83 | CH3: =('Ext1'!CH3+'Ext2'!CH3)/2 -> 6.525 | CI3: =('Ext1'!CI3+'Ext2'!CI3)/2 -> 6.285 | CJ3: =('Ext1'!CJ3+'Ext2'!CJ3)/2 -> 6.12 | CK3: =('Ext1'!CK3+'Ext2'!CK3)/2 -> 6.22 | CL3: =('Ext1'!CL3+'Ext2'!CL3)/2 -> 6.595 | CM3: =('Ext1'!CM3+'Ext2'!CM3)/2 -> 6.04 | CN3: =('Ext1'!CN3+'Ext2'!CN3)/2 -> 6.715 | CO3: =('Ext1'!CO3+'Ext2'!CO3)/2 -> 6.005 | CP3: =('Ext1'!CP3+'Ext2'!CP3)/2 -> 5.88 | CQ3: =('Ext1'!CQ3+'Ext2'!CQ3)/2 -> 6.36 | CR3: =('Ext1'!CR3+'Ext2'!CR3)/2 -> 5.505 | CS3: =('Ext1'!CS3+'Ext2'!CS3)/2 -> 6.365 | CT3: =('Ext1'!CT3+'Ext2'!CT3)/2 -> 6.77
B4: Jour 3 | C4: =('Ext1'!C4+'Ext2'!C4)/2 -> 4.64 | D4: =('Ext1'!D4+'Ext2'!D4)/2 -> 4.805 | E4: =('Ext1'!E4+'Ext2'!E4)/2 -> 5.415 | F4: =('Ext1'!F4+'Ext2'!F4)/2 -> 5 | G4: =('Ext1'!G4+'Ext2'!G4)/2 -> 4.995 | H4: =('Ext1'!H4+'Ext2'!H4)/2 -> 7 | I4: =('Ext1'!I4+'Ext2'!I4)/2 -> 5.37 | J4: =('Ext1'!J4+'Ext2'!J4)/2 -> 7.37 | K4: =('Ext1'!K4+'Ext2'!K4)/2 -> 6.185 | L4: =('Ext1'!L4+'Ext2'!L4)/2 -> 5.99 | M4: =('Ext1'!M4+'Ext2'!M4)/2 -> 6.275 | N4: =('Ext1'!N4+'Ext2'!N4)/2 -> 7.1 | O4: =('Ext1'!O4+'Ext2'!O4)/2 -> 7.545 | P4: =('Ext1'!P4+'Ext2'!P4)/2 -> 8.85 | Q4: =('Ext1'!Q4+'Ext2'!Q4)/2 -> 8.215 | R4: =('Ext1'!R4+'Ext2'!R4)/2 -> 8.57 | S4: =('Ext1'!S4+'Ext2'!S4)/2 -> 8.165 | T4: =('Ext1'!T4+'Ext2'!T4)/2 -> 10.13 | U4: =('Ext1'!U4+'Ext2'!U4)/2 -> 9.855 | V4: =('Ext1'!V4+'Ext2'!V4)/2 -> 10.62 | W4: =('Ext1'!W4+'Ext2'!W4)/2 -> 10.18 | X4: =('Ext1'!X4+'Ext2'!X4)/2 -> 10.58 | Y4: =('Ext1'!Y4+'Ext2'!Y4)/2 -> 11.84 | Z4: =('Ext1'!Z4+'Ext2'!Z4)/2 -> 11.86 | AA4: =('Ext1'!AA4+'Ext2'!AA4)/2 -> 12.15 | AB4: =('Ext1'!AB4+'Ext2'!AB4)/2 -> 12.305 | AC4: =('Ext1'!AC4+'Ext2'!AC4)/2 -> 13.185 | AD4: =('Ext1'!AD4+'Ext2'!AD4)/2 -> 13.135 | AE4: =('Ext1'!AE4+'Ext2'!AE4)/2 -> 12.255 | AF4: =('Ext1'!AF4+'Ext2'!AF4)/2 -> 12.33 | AG4: =('Ext1'!AG4+'Ext2'!AG4)/2 -> 12.7 | AH4: =('Ext1'!AH4+'Ext2'!AH4)/2 -> 12.07 | AI4: =('Ext1'!AI4+'Ext2'!AI4)/2 -> 13.285 | AJ4: =('Ext1'!AJ4+'Ext2'!AJ4)/2 -> 12.9 | AK4: =('Ext1'!AK4+'Ext2'!AK4)/2 -> 12.43 | AL4: =('Ext1'!AL4+'Ext2'!AL4)/2 -> 11.085 | AM4: =('Ext1'!AM4+'Ext2'!AM4)/2 -> 11.405 | AN4: =('Ext1'!AN4+'Ext2'!AN4)/2 -> 12.87 | AO4: =('Ext1'!AO4+'Ext2'!AO4)/2 -> 11.4 | AP4: =('Ext1'!AP4+'Ext2'!AP4)/2 -> 10.72 | AQ4: =('Ext1'!AQ4+'Ext2'!AQ4)/2 -> 11.69 | AR4: =('Ext1'!AR4+'Ext2'!AR4)/2 -> 10.38 | AS4: =('Ext1'!AS4+'Ext2'!AS4)/2 -> 10.56 | AT4: =('Ext1'!AT4+'Ext2'!AT4)/2 -> 10.745 | AU4: =('Ext1'!AU4+'Ext2'!AU4)/2 -> 10.17 | AV4: =('Ext1'!AV4+'Ext2'!AV4)/2 -> 11.35 | AW4: =('Ext1'!AW4+'Ext2'!AW4)/2 -> 9.525 | AX4: =('Ext1'!AX4+'Ext2'!AX4)/2 -> 10.01 | AY4: =('Ext1'!AY4+'Ext2'!AY4)/2 -> 8.95 | AZ4: =('Ext1'!AZ4+'Ext2'!AZ4)/2 -> 10.37 | BA4: =('Ext1'!BA4+'Ext2'!BA4)/2 -> 10.695 | BB4: =('Ext1'!BB4+'Ext2'!BB4)/2 -> 10.1 | BC4: =('Ext1'!BC4+'Ext2'!BC4)/2 -> 9.125 | BD4: =('Ext1'!BD4+'Ext2'!BD4)/2 -> 8.97 | BE4: =('Ext1'!BE4+'Ext2'!BE4)/2 -> 10.415 | BF4: =('Ext1'!BF4+'Ext2'!BF4)/2 -> 10.035 | BG4: =('Ext1'!BG4+'Ext2'!BG4)/2 -> 8.865 | BH4: =('Ext1'!BH4+'Ext2'!BH4)/2 -> 9.075 | BI4: =('Ext1'!BI4+'Ext2'!BI4)/2 -> 9.475 | BJ4: =('Ext1'!BJ4+'Ext2'!BJ4)/2 -> 10.135 | BK4: =('Ext1'!BK4+'Ext2'!BK4)/2 -> 9.28 | BL4: =('Ext1'!BL4+'Ext2'!BL4)/2 -> 8.695 | BM4: =('Ext1'!BM4+'Ext2'!BM4)/2 -> 8.39 | BN4: =('Ext1'!BN4+'Ext2'!BN4)/2 -> 9.345 | BO4: =('Ext1'!BO4+'Ext2'!BO4)/2 -> 7.86 | BP4: =('Ext1'!BP4+'Ext2'!BP4)/2 -> 8.75 | BQ4: =('Ext1'!BQ4+'Ext2'!BQ4)/2 -> 8.145 | BR4: =('Ext1'!BR4+'Ext2'!BR4)/2 -> 8.03 | BS4: =('Ext1'!BS4+'Ext2'!BS4)/2 -> 7.305 | BT4: =('Ext1'!BT4+'Ext2'!BT4)/2 -> 7.97 | BU4: =('Ext1'!BU4+'Ext2'!BU4)/2 -> 7.92 | BV4: =('Ext1'!BV4+'Ext2'!BV4)/2 -> 7.71 | BW4: =('Ext1'!BW4+'Ext2'!BW4)/2 -> 7.13 | BX4: =('Ext1'!BX4+'Ext2'!BX4)/2 -> 7.845 | BY4: =('Ext1'!BY4+'Ext2'!BY4)/2 -> 7.55 | BZ4: =('Ext1'!BZ4+'Ext2'!BZ4)/2 -> 8.095 | CA4: =('Ext1'!CA4+'Ext2'!CA4)/2 -> 6.885 | CB4: =('Ext1'!CB4+'Ext2'!CB4)/2 -> 7.605 | CC4: =('Ext1'!CC4+'Ext2'!CC4)/2 -> 6.63 | CD4: =('Ext1'!CD4+'Ext2'!CD4)/2 -> 7.315 | CE4: =('Ext1'!CE4+'Ext2'!CE4)/2 -> 6.6 | CF4: =('Ext1'!CF4+'Ext2'!CF4)/2 -> 6.815 | CG4: =('Ext1'!CG4+'Ext2'!CG4)/2 -> 7.83 | CH4: =('Ext1'!CH4+'Ext2'!CH4)/2 -> 6.625 | CI4: =('Ext1'!CI4+'Ext2'!CI4)/2 -> 7.385 | CJ4: =('Ext1'!CJ4+'Ext2'!CJ4)/2 -> 7.52 | CK4: =('Ext1'!CK4+'Ext2'!CK4)/2 -> 7.42 | CL4: =('Ext1'!CL4+'Ext2'!CL4)/2 -> 6.895 | CM4: =('Ext1'!CM4+'Ext2'!CM4)/2 -> 7.14 | CN4: =('Ext1'!CN4+'Ext2'!CN4)/2 -> 6.115 | CO4: =('Ext1'!CO4+'Ext2'!CO4)/2 -> 6.705 | CP4: =('Ext1'!CP4+'Ext2'!CP4)/2 -> 7.08 | CQ4: =('Ext1'!CQ4+'Ext2'!CQ4)/2 -> 7.26 | CR4: =('Ext1'!CR4+'Ext2'!CR4)/2 -> 5.505 | CS4: =('Ext1'!CS4+'Ext2'!CS4)/2 -> 6.665 | CT4: =('Ext1'!CT4+'Ext2'!CT4)/2 -> 5.47
B5: Jour 4 | C5: =('Ext1'!C5+'Ext2'!C5)/2 -> 4.74 | D5: =('Ext1'!D5+'Ext2'!D5)/2 -> 6.205 | E5: =('Ext1'!E5+'Ext2'!E5)/2 -> 5.115 | F5: =('Ext1'!F5+'Ext2'!F5)/2 -> 4.9 | G5: =('Ext1'!G5+'Ext2'!G5)/2 -> 6.295 | H5: =('Ext1'!H5+'Ext2'!H5)/2 -> 5.3 | I5: =('Ext1'!I5+'Ext2'!I5)/2 -> 5.77 | J5: =('Ext1'!J5+'Ext2'!J5)/2 -> 6.17 | K5: =('Ext1'!K5+'Ext2'!K5)/2 -> 6.485 | L5: =('Ext1'!L5+'Ext2'!L5)/2 -> 6.29 | M5: =('Ext1'!M5+'Ext2'!M5)/2 -> 7.375 | N5: =('Ext1'!N5+'Ext2'!N5)/2 -> 6.6 | O5: =('Ext1'!O5+'Ext2'!O5)/2 -> 7.545 | P5: =('Ext1'!P5+'Ext2'!P5)/2 -> 7.65 | Q5: =('Ext1'!Q5+'Ext2'!Q5)/2 -> 8.515 | R5: =('Ext1'!R5+'Ext2'!R5)/2 -> 7.77 | S5: =('Ext1'!S5+'Ext2'!S5)/2 -> 9.865 | T5: =('Ext1'!T5+'Ext2'!T5)/2 -> 8.33 | U5: =('Ext1'!U5+'Ext2'!U5)/2 -> 8.555 | V5: =('Ext1'!V5+'Ext2'!V5)/2 -> 9.92 | W5: =('Ext1'!W5+'Ext2'!W5)/2 -> 10.08 | X5: =('Ext1'!X5+'Ext2'!X5)/2 -> 10.08 | Y5: =('Ext1'!Y5+'Ext2'!Y5)/2 -> 11.54 | Z5: =('Ext1'!Z5+'Ext2'!Z5)/2 -> 11.16 | AA5: =('Ext1'!AA5+'Ext2'!AA5)/2 -> 11.55 | AB5: =('Ext1'!AB5+'Ext2'!AB5)/2 -> 11.205 | AC5: =('Ext1'!AC5+'Ext2'!AC5)/2 -> 11.685 | AD5: =('Ext1'!AD5+'Ext2'!AD5)/2 -> 12.835 | AE5: =('Ext1'!AE5+'Ext2'!AE5)/2 -> 12.655 | AF5: =('Ext1'!AF5+'Ext2'!AF5)/2 -> 12.03 | AG5: =('Ext1'!AG5+'Ext2'!AG5)/2 -> 11.5 | AH5: =('Ext1'!AH5+'Ext2'!AH5)/2 -> 12.77 | AI5: =('Ext1'!AI5+'Ext2'!AI5)/2 -> 12.085 | AJ5: =('Ext1'!AJ5+'Ext2'!AJ5)/2 -> 12.8 | AK5: =('Ext1'!AK5+'Ext2'!AK5)/2 -> 12.53 | AL5: =('Ext1'!AL5+'Ext2'!AL5)/2 -> 12.985 | AM5: =('Ext1'!AM5+'Ext2'!AM5)/2 -> 12.605 | AN5: =('Ext1'!AN5+'Ext2'!AN5)/2 -> 12.57 | AO5: =('Ext1'!AO5+'Ext2'!AO5)/2 -> 11.9 | AP5: =('Ext1'!AP5+'Ext2'!AP5)/2 -> 10.92 | AQ5: =('Ext1'!AQ5+'Ext2'!AQ5)/2 -> 11.59 | AR5: =('Ext1'!AR5+'Ext2'!AR5)/2 -> 11.28 | AS5: =('Ext1'!AS5+'Ext2'!AS5)/2 -> 10.16 | AT5: =('Ext1'!AT5+'Ext2'!AT5)/2 -> 9.745 | AU5: =('Ext1'!AU5+'Ext2'!AU5)/2 -> 11.27 | AV5: =('Ext1'!AV5+'Ext2'!AV5)/2 -> 10.15 | AW5: =('Ext1'!AW5+'Ext2'!AW5)/2 -> 10.225 | AX5: =('Ext1'!AX5+'Ext2'!AX5)/2 -> 9.71 | AY5: =('Ext1'!AY5+'Ext2'!AY5)/2 -> 9.75 | AZ5: =('Ext1'!AZ5+'Ext2'!AZ5)/2 -> 9.97 | BA5: =('Ext1'!BA5+'Ext2'!BA5)/2 -> 10.495 | BB5: =('Ext1'!BB5+'Ext2'!BB5)/2 -> 10.3 | BC5: =('Ext1'!BC5+'Ext2'!BC5)/2 -> 9.925 | BD5: =('Ext1'!BD5+'Ext2'!BD5)/2 -> 9.57 | BE5: =('Ext1'!BE5+'Ext2'!BE5)/2 -> 9.315 | BF5: =('Ext1'!BF5+'Ext2'!BF5)/2 -> 9.235 | BG5: =('Ext1'!BG5+'Ext2'!BG5)/2 -> 9.965 | BH5: =('Ext1'!BH5+'Ext2'!BH5)/2 -> 9.375 | BI5: =('Ext1'!BI5+'Ext2'!BI5)/2 -> 10.375 | BJ5: =('Ext1'!BJ5+'Ext2'!BJ5)/2 -> 10.235 | BK5: =('Ext1'!BK5+'Ext2'!BK5)/2 -> 8.18 | BL5: =('Ext1'!BL5+'Ext2'!BL5)/2 -> 9.195 | BM5: =('Ext1'!BM5+'Ext2'!BM5)/2 -> 9.69 | BN5: =('Ext1'!BN5+'Ext2'!BN5)/2 -> 9.045 | BO5: =('Ext1'!BO5+'Ext2'!BO5)/2 -> 8.76 | BP5: =('Ext1'!BP5+'Ext2'!BP5)/2 -> 9.05 | BQ5: =('Ext1'!BQ5+'Ext2'!BQ5)/2 -> 8.645 | BR5: =('Ext1'!BR5+'Ext2'!BR5)/2 -> 8.93 | BS5: =('Ext1'!BS5+'Ext2'!BS5)/2 -> 7.905 | BT5: =('Ext1'!BT5+'Ext2'!BT5)/2 -> 7.87 | BU5: =('Ext1'!BU5+'Ext2'!BU5)/2 -> 7.22 | BV5: =('Ext1'!BV5+'Ext2'!BV5)/2 -> 8.21 | BW5: =('Ext1'!BW5+'Ext2'!BW5)/2 -> 8.53 | BX5: =('Ext1'!BX5+'Ext2'!BX5)/2 -> 7.845 | BY5: =('Ext1'!BY5+'Ext2'!BY5)/2 -> 7.55 | BZ5: =('Ext1'!BZ5+'Ext2'!BZ5)/2 -> 7.395 | CA5: =('Ext1'!CA5+'Ext2'!CA5)/2 -> 8.185 | CB5: =('Ext1'!CB5+'Ext2'!CB5)/2 -> 6.705 | CC5: =('Ext1'!CC5+'Ext2'!CC5)/2 -> 6.33 | CD5: =('Ext1'!CD5+'Ext2'!CD5)/2 -> 7.215 | CE5: =('Ext1'!CE5+'Ext2'!CE5)/2 -> 7.6 | CF5: =('Ext1'!CF5+'Ext2'!CF5)/2 -> 6.115 | CG5: =('Ext1'!CG5+'Ext2'!CG5)/2 -> 6.23 | CH5: =('Ext1'!CH5+'Ext2'!CH5)/2 -> 7.225 | CI5: =('Ext1'!CI5+'Ext2'!CI5)/2 -> 7.585 | CJ5: =('Ext1'!CJ5+'Ext2'!CJ5)/2 -> 7.32 | CK5: =('Ext1'!CK5+'Ext2'!CK5)/2 -> 7.02 | CL5: =('Ext1'!CL5+'Ext2'!CL5)/2 -> 7.795 | CM5: =('Ext1'!CM5+'Ext2'!CM5)/2 -> 7.04 | CN5: =('Ext1'!CN5+'Ext2'!CN5)/2 -> 7.015 | CO5: =('Ext1'!CO5+'Ext2'!CO5)/2 -> 6.805 | CP5: =('Ext1'!CP5+'Ext2'!CP5)/2 -> 5.38 | CQ5: =('Ext1'!CQ5+'Ext2'!CQ5)/2 -> 5.36 | CR5: =('Ext1'!CR5+'Ext2'!CR5)/2 -> 6.305 | CS5: =('Ext1'!CS5+'Ext2'!CS5)/2 -> 6.065 | CT5: =('Ext1'!CT5+'Ext2'!CT5)/2 -> 7.07
B6: Jour 5 | C6: =('Ext1'!C6+'Ext2'!C6)/2 -> 6.14 | D6: =('Ext1'!D6+'Ext2'!D6)/2 -> 5.505 | E6: =('Ext1'!E6+'Ext2'!E6)/2 -> 4.715 | F6: =('Ext1'!F6+'Ext2'!F6)/2 -> 5 | G6: =('Ext1'!G6+'Ext2'!G6)/2 -> 5.895 | H6: =('Ext1'!H6+'Ext2'!H6)/2 -> 5.4 | I6: =('Ext1'!I6+'Ext2'!I6)/2 -> 6.37 | J6: =('Ext1'!J6+'Ext2'!J6)/2 -> 6.37 | K6: =('Ext1'!K6+'Ext2'!K6)/2 -> 7.085 | L6: =('Ext1'!L6+'Ext2'!L6)/2 -> 5.69 | M6: =('Ext1'!M6+'Ext2'!M6)/2 -> 8.175 | N6: =('Ext1'!N6+'Ext2'!N6)/2 -> 7.7 | O6: =('Ext1'!O6+'Ext2'!O6)/2 -> 8.345 | P6: =('Ext1'!P6+'Ext2'!P6)/2 -> 6.95 | Q6: =('Ext1'!Q6+'Ext2'!Q6)/2 -> 9.015 | R6: =('Ext1'!R6+'Ext2'!R6)/2 -> 8.77 | S6: =('Ext1'!S6+'Ext2'!S6)/2 -> 8.865 | T6: =('Ext1'!T6+'Ext2'!T6)/2 -> 8.13 | U6: =('Ext1'!U6+'Ext2'!U6)/2 -> 9.955 | V6: =('Ext1'!V6+'Ext2'!V6)/2 -> 9.02 | W6: =('Ext1'!W6+'Ext2'!W6)/2 -> 11.38 | X6: =('Ext1'!X6+'Ext2'!X6)/2 -> 10.08 | Y6: =('Ext1'!Y6+'Ext2'!Y6)/2 -> 10.64 | Z6: =('Ext1'!Z6+'Ext2'!Z6)/2 -> 11.36 | AA6: =('Ext1'!AA6+'Ext2'!AA6)/2 -> 10.55 | AB6: =('Ext1'!AB6+'Ext2'!AB6)/2 -> 12.605 | AC6: =('Ext1'!AC6+'Ext2'!AC6)/2 -> 11.185 | AD6: =('Ext1'!AD6+'Ext2'!AD6)/2 -> 11.435 | AE6: =('Ext1'!AE6+'Ext2'!AE6)/2 -> 13.155 | AF6: =('Ext1'!AF6+'Ext2'!AF6)/2 -> 11.53 | AG6: =('Ext1'!AG6+'Ext2'!AG6)/2 -> 11.4 | AH6: =('Ext1'!AH6+'Ext2'!AH6)/2 -> 13.47 | AI6: =('Ext1'!AI6+'Ext2'!AI6)/2 -> 12.885 | AJ6: =('Ext1'!AJ6+'Ext2'!AJ6)/2 -> 13.3 | AK6: =('Ext1'!AK6+'Ext2'!AK6)/2 -> 12.23 | AL6: =('Ext1'!AL6+'Ext2'!AL6)/2 -> 12.485 | AM6: =('Ext1'!AM6+'Ext2'!AM6)/2 -> 11.505 | AN6: =('Ext1'!AN6+'Ext2'!AN6)/2 -> 11.27 | AO6: =('Ext1'!AO6+'Ext2'!AO6)/2 -> 11.2 | AP6: =('Ext1'!AP6+'Ext2'!AP6)/2 -> 11.42 | AQ6: =('Ext1'!AQ6+'Ext2'!AQ6)/2 -> 11.59 | AR6: =('Ext1'!AR6+'Ext2'!AR6)/2 -> 9.98 | AS6: =('Ext1'!AS6+'Ext2'!AS6)/2 -> 10.86 | AT6: =('Ext1'!AT6+'Ext2'!AT6)/2 -> 10.545 | AU6: =('Ext1'!AU6+'Ext2'!AU6)/2 -> 9.47 | AV6: =('Ext1'!AV6+'Ext2'!AV6)/2 -> 9.95 | AW6: =('Ext1'!AW6+'Ext2'!AW6)/2 -> 10.625 | AX6: =('Ext1'!AX6+'Ext2'!AX6)/2 -> 10.81 | AY6: =('Ext1'!AY6+'Ext2'!AY6)/2 -> 10.05 | AZ6: =('Ext1'!AZ6+'Ext2'!AZ6)/2 -> 10.17 | BA6: =('Ext1'!BA6+'Ext2'!BA6)/2 -> 10.895 | BB6: =('Ext1'!BB6+'Ext2'!BB6)/2 -> 10 | BC6: =('Ext1'!BC6+'Ext2'!BC6)/2 -> 9.825 | BD6: =('Ext1'!BD6+'Ext2'!BD6)/2 -> 9.47 | BE6: =('Ext1'!BE6+'Ext2'!BE6)/2 -> 10.315 | BF6: =('Ext1'!BF6+'Ext2'!BF6)/2 -> 10.035 | BG6: =('Ext1'!BG6+'Ext2'!BG6)/2 -> 10.165 | BH6: =('Ext1'!BH6+'Ext2'!BH6)/2 -> 9.775 | BI6: =('Ext1'!BI6+'Ext2'!BI6)/2 -> 8.575 | BJ6: =('Ext1'!BJ6+'Ext2'!BJ6)/2 -> 9.835 | BK6: =('Ext1'!BK6+'Ext2'!BK6)/2 -> 8.98 | BL6: =('Ext1'!BL6+'Ext2'!BL6)/2 -> 8.695 | BM6: =('Ext1'!BM6+'Ext2'!BM6)/2 -> 9.69 | BN6: =('Ext1'!BN6+'Ext2'!BN6)/2 -> 8.245 | BO6: =('Ext1'!BO6+'Ext2'!BO6)/2 -> 8.66 | BP6: =('Ext1'!BP6+'Ext2'!BP6)/2 -> 8.95 | BQ6: =('Ext1'!BQ6+'Ext2'!BQ6)/2 -> 8.345 | BR6: =('Ext1'!BR6+'Ext2'!BR6)/2 -> 9.33 | BS6: =('Ext1'!BS6+'Ext2'!BS6)/2 -> 7.505 | BT6: =('Ext1'!BT6+'Ext2'!BT6)/2 -> 7.07 | BU6: =('Ext1'!BU6+'Ext2'!BU6)/2 -> 8.42 | BV6: =('Ext1'!BV6+'Ext2'!BV6)/2 -> 6.91 | BW6: =('Ext1'!BW6+'Ext2'!BW6)/2 -> 7.83 | BX6: =('Ext1'!BX6+'Ext2'!BX6)/2 -> 8.645 | BY6: =('Ext1'!BY6+'Ext2'!BY6)/2 -> 7.75 | BZ6: =('Ext1'!BZ6+'Ext2'!BZ6)/2 -> 8.495 | CA6: =('Ext1'!CA6+'Ext2'!CA6)/2 -> 6.585 | CB6: =('Ext1'!CB6+'Ext2'!CB6)/2 -> 7.705 | CC6: =('Ext1'!CC6+'Ext2'!CC6)/2 -> 6.43 | CD6: =('Ext1'!CD6+'Ext2'!CD6)/2 -> 7.315 | CE6: =('Ext1'!CE6+'Ext2'!CE6)/2 -> 7.4 | CF6: =('Ext1'!CF6+'Ext2'!CF6)/2 -> 7.215 | CG6: =('Ext1'!CG6+'Ext2'!CG6)/2 -> 8.03 | CH6: =('Ext1'!CH6+'Ext2'!CH6)/2 -> 7.125 | CI6: =('Ext1'!CI6+'Ext2'!CI6)/2 -> 7.385 | CJ6: =('Ext1'!CJ6+'Ext2'!CJ6)/2 -> 7.12 | CK6: =('Ext1'!CK6+'Ext2'!CK6)/2 -> 7.72 | CL6: =('Ext1'!CL6+'Ext2'!CL6)/2 -> 7.295 | CM6: =('Ext1'!CM6+'Ext2'!CM6)/2 -> 7.14 | CN6: =('Ext1'!CN6+'Ext2'!CN6)/2 -> 7.215 | CO6: =('Ext1'!CO6+'Ext2'!CO6)/2 -> 6.705 | CP6: =('Ext1'!CP6+'Ext2'!CP6)/2 -> 6.78 | CQ6: =('Ext1'!CQ6+'Ext2'!CQ6)/2 -> 7.06 | CR6: =('Ext1'!CR6+'Ext2'!CR6)/2 -> 6.705 | CS6: =('Ext1'!CS6+'Ext2'!CS6)/2 -> 6.165 | CT6: =('Ext1'!CT6+'Ext2'!CT6)/2 -> 5.17
B7: Jour 6 | C7: =('Ext1'!C7+'Ext2'!C7)/2 -> 4.64 | D7: =('Ext1'!D7+'Ext2'!D7)/2 -> 4.805 | E7: =('Ext1'!E7+'Ext2'!E7)/2 -> 6.515 | F7: =('Ext1'!F7+'Ext2'!F7)/2 -> 6.4 | G7: =('Ext1'!G7+'Ext2'!G7)/2 -> 6.595 | H7: =('Ext1'!H7+'Ext2'!H7)/2 -> 6.1 | I7: =('Ext1'!I7+'Ext2'!I7)/2 -> 6.47 | J7: =('Ext1'!J7+'Ext2'!J7)/2 -> 6.17 | K7: =('Ext1'!K7+'Ext2'!K7)/2 -> 5.885 | L7: =('Ext1'!L7+'Ext2'!L7)/2 -> 5.69 | M7: =('Ext1'!M7+'Ext2'!M7)/2 -> 7.275 | N7: =('Ext1'!N7+'Ext2'!N7)/2 -> 8.3 | O7: =('Ext1'!O7+'Ext2'!O7)/2 -> 6.645 | P7: =('Ext1'!P7+'Ext2'!P7)/2 -> 7.05 | Q7: =('Ext1'!Q7+'Ext2'!Q7)/2 -> 8.115 | R7: =('Ext1'!R7+'Ext2'!R7)/2 -> 9.27 | S7: =('Ext1'!S7+'Ext2'!S7)/2 -> 9.765 | T7: =('Ext1'!T7+'Ext2'!T7)/2 -> 8.33 | U7: =('Ext1'!U7+'Ext2'!U7)/2 -> 9.155 | V7: =('Ext1'!V7+'Ext2'!V7)/2 -> 10.82 | W7: =('Ext1'!W7+'Ext2'!W7)/2 -> 9.58 | X7: =('Ext1'!X7+'Ext2'!X7)/2 -> 11.68 | Y7: =('Ext1'!Y7+'Ext2'!Y7)/2 -> 11.24 | Z7: =('Ext1'!Z7+'Ext2'!Z7)/2 -> 11.46 | AA7: =('Ext1'!AA7+'Ext2'!AA7)/2 -> 10.95 | AB7: =('Ext1'!AB7+'Ext2'!AB7)/2 -> 12.305 | AC7: =('Ext1'!AC7+'Ext2'!AC7)/2 -> 11.885 | AD7: =('Ext1'!AD7+'Ext2'!AD7)/2 -> 12.035 | AE7: =('Ext1'!AE7+'Ext2'!AE7)/2 -> 11.355 | AF7: =('Ext1'!AF7+'Ext2'!AF7)/2 -> 12.23 | AG7: =('Ext1'!AG7+'Ext2'!AG7)/2 -> 11.4 | AH7: =('Ext1'!AH7+'Ext2'!AH7)/2 -> 11.67 | AI7: =('Ext1'!AI7+'Ext2'!AI7)/2 -> 13.285 | AJ7: =('Ext1'!AJ7+'Ext2'!AJ7)/2 -> 13.2 | AK7: =('Ext1'!AK7+'Ext2'!AK7)/2 -> 11.23 | AL7: =('Ext1'!AL7+'Ext2'!AL7)/2 -> 12.085 | AM7: =('Ext1'!AM7+'Ext2'!AM7)/2 -> 12.505 | AN7: =('Ext1'!AN7+'Ext2'!AN7)/2 -> 11.07 | AO7: =('Ext1'!AO7+'Ext2'!AO7)/2 -> 11.5 | AP7: =('Ext1'!AP7+'Ext2'!AP7)/2 -> 11.52 | AQ7: =('Ext1'!AQ7+'Ext2'!AQ7)/2 -> 11.49 | AR7: =('Ext1'!AR7+'Ext2'!AR7)/2 -> 11.78 | AS7: =('Ext1'!AS7+'Ext2'!AS7)/2 -> 11.06 | AT7: =('Ext1'!AT7+'Ext2'!AT7)/2 -> 10.545 | AU7: =('Ext1'!AU7+'Ext2'!AU7)/2 -> 10.97 | AV7: =('Ext1'!AV7+'Ext2'!AV7)/2 -> 10.25 | AW7: =('Ext1'!AW7+'Ext2'!AW7)/2 -> 10.925 | AX7: =('Ext1'!AX7+'Ext2'!AX7)/2 -> 10.81 | AY7: =('Ext1'!AY7+'Ext2'!AY7)/2 -> 9.95 | AZ7: =('Ext1'!AZ7+'Ext2'!AZ7)/2 -> 9.37 | BA7: =('Ext1'!BA7+'Ext2'!BA7)/2 -> 9.895 | BB7: =('Ext1'!BB7+'Ext2'!BB7)/2 -> 10.3 | BC7: =('Ext1'!BC7+'Ext2'!BC7)/2 -> 10.725 | BD7: =('Ext1'!BD7+'Ext2'!BD7)/2 -> 10.37 | BE7: =('Ext1'!BE7+'Ext2'!BE7)/2 -> 9.615 | BF7: =('Ext1'!BF7+'Ext2'!BF7)/2 -> 10.535 | BG7: =('Ext1'!BG7+'Ext2'!BG7)/2 -> 9.265 | BH7: =('Ext1'!BH7+'Ext2'!BH7)/2 -> 9.675 | BI7: =('Ext1'!BI7+'Ext2'!BI7)/2 -> 9.575 | BJ7: =('Ext1'!BJ7+'Ext2'!BJ7)/2 -> 8.335 | BK7: =('Ext1'!BK7+'Ext2'!BK7)/2 -> 9.48 | BL7: =('Ext1'!BL7+'Ext2'!BL7)/2 -> 9.395 | BM7: =('Ext1'!BM7+'Ext2'!BM7)/2 -> 7.89 | BN7: =('Ext1'!BN7+'Ext2'!BN7)/2 -> 9.145 | BO7: =('Ext1'!BO7+'Ext2'!BO7)/2 -> 8.46 | BP7: =('Ext1'!BP7+'Ext2'!BP7)/2 -> 8.85 | BQ7: =('Ext1'!BQ7+'Ext2'!BQ7)/2 -> 8.545 | BR7: =('Ext1'!BR7+'Ext2'!BR7)/2 -> 8.03 | BS7: =('Ext1'!BS7+'Ext2'!BS7)/2 -> 9.005 | BT7: =('Ext1'!BT7+'Ext2'!BT7)/2 -> 8.87 | BU7: =('Ext1'!BU7+'Ext2'!BU7)/2 -> 7.12 | BV7: =('Ext1'!BV7+'Ext2'!BV7)/2 -> 8.91 | BW7: =('Ext1'!BW7+'Ext2'!BW7)/2 -> 7.03 | BX7: =('Ext1'!BX7+'Ext2'!BX7)/2 -> 7.845 | BY7: =('Ext1'!BY7+'Ext2'!BY7)/2 -> 8.45 | BZ7: =('Ext1'!BZ7+'Ext2'!BZ7)/2 -> 6.595 | CA7: =('Ext1'!CA7+'Ext2'!CA7)/2 -> 8.385 | CB7: =('Ext1'!CB7+'Ext2'!CB7)/2 -> 6.705 | CC7: =('Ext1'!CC7+'Ext2'!CC7)/2 -> 7.23 | CD7: =('Ext1'!CD7+'Ext2'!CD7)/2 -> 8.215 | CE7: =('Ext1'!CE7+'Ext2'!CE7)/2 -> 6.2 | CF7: =('Ext1'!CF7+'Ext2'!CF7)/2 -> 6.915 | CG7: =('Ext1'!CG7+'Ext2'!CG7)/2 -> 7.83 | CH7: =('Ext1'!CH7+'Ext2'!CH7)/2 -> 6.125 | CI7: =('Ext1'!CI7+'Ext2'!CI7)/2 -> 7.585 | CJ7: =('Ext1'!CJ7+'Ext2'!CJ7)/2 -> 7.62 | CK7: =('Ext1'!CK7+'Ext2'!CK7)/2 -> 5.82 | CL7: =('Ext1'!CL7+'Ext2'!CL7)/2 -> 6.595 | CM7: =('Ext1'!CM7+'Ext2'!CM7)/2 -> 5.84 | CN7: =('Ext1'!CN7+'Ext2'!CN7)/2 -> 6.015 | CO7: =('Ext1'!CO7+'Ext2'!CO7)/2 -> 7.405 | CP7: =('Ext1'!CP7+'Ext2'!CP7)/2 -> 5.88 | CQ7: =('Ext1'!CQ7+'Ext2'!CQ7)/2 -> 6.66 | CR7: =('Ext1'!CR7+'Ext2'!CR7)/2 -> 7.105 | CS7: =('Ext1'!CS7+'Ext2'!CS7)/2 -> 5.665 | CT7: =('Ext1'!CT7+'Ext2'!CT7)/2 -> 5.97
B8: Jour 7 | C8: =('Ext1'!C8+'Ext2'!C8)/2 -> 6.04 | D8: =('Ext1'!D8+'Ext2'!D8)/2 -> 5.305 | E8: =('Ext1'!E8+'Ext2'!E8)/2 -> 5.615 | F8: =('Ext1'!F8+'Ext2'!F8)/2 -> 6.2 | G8: =('Ext1'!G8+'Ext2'!G8)/2 -> 5.595 | H8: =('Ext1'!H8+'Ext2'!H8)/2 -> 5.8 | I8: =('Ext1'!I8+'Ext2'!I8)/2 -> 5.47 | J8: =('Ext1'!J8+'Ext2'!J8)/2 -> 6.87 | K8: =('Ext1'!K8+'Ext2'!K8)/2 -> 7.085 | L8: =('Ext1'!L8+'Ext2'!L8)/2 -> 7.09 | M8: =('Ext1'!M8+'Ext2'!M8)/2 -> 7.575 | N8: =('Ext1'!N8+'Ext2'!N8)/2 -> 7.2 | O8: =('Ext1'!O8+'Ext2'!O8)/2 -> 8.245 | P8: =('Ext1'!P8+'Ext2'!P8)/2 -> 7.25 | Q8: =('Ext1'!Q8+'Ext2'!Q8)/2 -> 8.015 | R8: =('Ext1'!R8+'Ext2'!R8)/2 -> 9.57 | S8: =('Ext1'!S8+'Ext2'!S8)/2 -> 9.065 | T8: =('Ext1'!T8+'Ext2'!T8)/2 -> 10.13 | U8: =('Ext1'!U8+'Ext2'!U8)/2 -> 10.055 | V8: =('Ext1'!V8+'Ext2'!V8)/2 -> 9.02 | W8: =('Ext1'!W8+'Ext2'!W8)/2 -> 9.88 | X8: =('Ext1'!X8+'Ext2'!X8)/2 -> 11.38 | Y8: =('Ext1'!Y8+'Ext2'!Y8)/2 -> 9.94 | Z8: =('Ext1'!Z8+'Ext2'!Z8)/2 -> 11.16 | AA8: =('Ext1'!AA8+'Ext2'!AA8)/2 -> 12.35 | AB8: =('Ext1'!AB8+'Ext2'!AB8)/2 -> 11.405 | AC8: =('Ext1'!AC8+'Ext2'!AC8)/2 -> 11.885 | AD8: =('Ext1'!AD8+'Ext2'!AD8)/2 -> 12.135 | AE8: =('Ext1'!AE8+'Ext2'!AE8)/2 -> 11.955 | AF8: =('Ext1'!AF8+'Ext2'!AF8)/2 -> 12.53 | AG8: =('Ext1'!AG8+'Ext2'!AG8)/2 -> 12.1 | AH8: =('Ext1'!AH8+'Ext2'!AH8)/2 -> 13.37 | AI8: =('Ext1'!AI8+'Ext2'!AI8)/2 -> 11.985 | AJ8: =('Ext1'!AJ8+'Ext2'!AJ8)/2 -> 12.9 | AK8: =('Ext1'!AK8+'Ext2'!AK8)/2 -> 12.73 | AL8: =('Ext1'!AL8+'Ext2'!AL8)/2 -> 13.085 | AM8: =('Ext1'!AM8+'Ext2'!AM8)/2 -> 12.505 | AN8: =('Ext1'!AN8+'Ext2'!AN8)/2 -> 12.57 | AO8: =('Ext1'!AO8+'Ext2'!AO8)/2 -> 11.1 | AP8: =('Ext1'!AP8+'Ext2'!AP8)/2 -> 12.12 | AQ8: =('Ext1'!AQ8+'Ext2'!AQ8)/2 -> 10.89 | AR8: =('Ext1'!AR8+'Ext2'!AR8)/2 -> 11.78 | AS8: =('Ext1'!AS8+'Ext2'!AS8)/2 -> 10.46 | AT8: =('Ext1'!AT8+'Ext2'!AT8)/2 -> 9.945 | AU8: =('Ext1'!AU8+'Ext2'!AU8)/2 -> 11.47 | AV8: =('Ext1'!AV8+'Ext2'!AV8)/2 -> 9.55 | AW8: =('Ext1'!AW8+'Ext2'!AW8)/2 -> 10.725 | AX8: =('Ext1'!AX8+'Ext2'!AX8)/2 -> 9.41 | AY8: =('Ext1'!AY8+'Ext2'!AY8)/2 -> 10.55 | AZ8: =('Ext1'!AZ8+'Ext2'!AZ8)/2 -> 9.67 | BA8: =('Ext1'!BA8+'Ext2'!BA8)/2 -> 10.095 | BB8: =('Ext1'!BB8+'Ext2'!BB8)/2 -> 10.2 | BC8: =('Ext1'!BC8+'Ext2'!BC8)/2 -> 8.725 | BD8: =('Ext1'!BD8+'Ext2'!BD8)/2 -> 8.87 | BE8: =('Ext1'!BE8+'Ext2'!BE8)/2 -> 9.815 | BF8: =('Ext1'!BF8+'Ext2'!BF8)/2 -> 9.335 | BG8: =('Ext1'!BG8+'Ext2'!BG8)/2 -> 9.565 | BH8: =('Ext1'!BH8+'Ext2'!BH8)/2 -> 10.275 | BI8: =('Ext1'!BI8+'Ext2'!BI8)/2 -> 8.975 | BJ8: =('Ext1'!BJ8+'Ext2'!BJ8)/2 -> 8.435 | BK8: =('Ext1'!BK8+'Ext2'!BK8)/2 -> 8.98 | BL8: =('Ext1'!BL8+'Ext2'!BL8)/2 -> 9.795 | BM8: =('Ext1'!BM8+'Ext2'!BM8)/2 -> 7.99 | BN8: =('Ext1'!BN8+'Ext2'!BN8)/2 -> 8.745 | BO8: =('Ext1'!BO8+'Ext2'!BO8)/2 -> 8.76 | BP8: =('Ext1'!BP8+'Ext2'!BP8)/2 -> 8.15 | BQ8: =('Ext1'!BQ8+'Ext2'!BQ8)/2 -> 7.945 | BR8: =('Ext1'!BR8+'Ext2'!BR8)/2 -> 8.63 | BS8: =('Ext1'!BS8+'Ext2'!BS8)/2 -> 8.405 | BT8: =('Ext1'!BT8+'Ext2'!BT8)/2 -> 8.97 | BU8: =('Ext1'!BU8+'Ext2'!BU8)/2 -> 8.62 | BV8: =('Ext1'!BV8+'Ext2'!BV8)/2 -> 7.21 | BW8: =('Ext1'!BW8+'Ext2'!BW8)/2 -> 7.63 | BX8: =('Ext1'!BX8+'Ext2'!BX8)/2 -> 8.345 | BY8: =('Ext1'!BY8+'Ext2'!BY8)/2 -> 8.05 | BZ8: =('Ext1'!BZ8+'Ext2'!BZ8)/2 -> 8.195 | CA8: =('Ext1'!CA8+'Ext2'!CA8)/2 -> 6.985 | CB8: =('Ext1'!CB8+'Ext2'!CB8)/2 -> 8.305 | CC8: =('Ext1'!CC8+'Ext2'!CC8)/2 -> 7.83 | CD8: =('Ext1'!CD8+'Ext2'!CD8)/2 -> 6.715 | CE8: =('Ext1'!CE8+'Ext2'!CE8)/2 -> 7.6 | CF8: =('Ext1'!CF8+'Ext2'!CF8)/2 -> 6.215 | CG8: =('Ext1'!CG8+'Ext2'!CG8)/2 -> 6.83 | CH8: =('Ext1'!CH8+'Ext2'!CH8)/2 -> 7.825 | CI8: =('Ext1'!CI8+'Ext2'!CI8)/2 -> 6.985 | CJ8: =('Ext1'!CJ8+'Ext2'!CJ8)/2 -> 6.02 | CK8: =('Ext1'!CK8+'Ext2'!CK8)/2 -> 6.42 | CL8: =('Ext1'!CL8+'Ext2'!CL8)/2 -> 7.195 | CM8: =('Ext1'!CM8+'Ext2'!CM8)/2 -> 5.94 | CN8: =('Ext1'!CN8+'Ext2'!CN8)/2 -> 6.115 | CO8: =('Ext1'!CO8+'Ext2'!CO8)/2 -> 5.905 | CP8: =('Ext1'!CP8+'Ext2'!CP8)/2 -> 6.88 | CQ8: =('Ext1'!CQ8+'Ext2'!CQ8)/2 -> 6.56 | CR8: =('Ext1'!CR8+'Ext2'!CR8)/2 -> 7.205 | CS8: =('Ext1'!CS8+'Ext2'!CS8)/2 -> 6.465 | CT8: =('Ext1'!CT8+'Ext2'!CT8)/2 -> 6.27
B9: Jour 8 | C9: =('Ext1'!C9+'Ext2'!C9)/2 -> 4.14 | D9: =('Ext1'!D9+'Ext2'!D9)/2 -> 5.705 | E9: =('Ext1'!E9+'Ext2'!E9)/2 -> 5.815 | F9: =('Ext1'!F9+'Ext2'!F9)/2 -> 5.2 | G9: =('Ext1'!G9+'Ext2'!G9)/2 -> 6.495 | H9: =('Ext1'!H9+'Ext2'!H9)/2 -> 5.8 | I9: =('Ext1'!I9+'Ext2'!I9)/2 -> 6.17 | J9: =('Ext1'!J9+'Ext2'!J9)/2 -> 5.87 | K9: =('Ext1'!K9+'Ext2'!K9)/2 -> 5.785 | L9: =('Ext1'!L9+'Ext2'!L9)/2 -> 6.69 | M9: =('Ext1'!M9+'Ext2'!M9)/2 -> 6.575 | N9: =('Ext1'!N9+'Ext2'!N9)/2 -> 6.9 | O9: =('Ext1'!O9+'Ext2'!O9)/2 -> 7.645 | P9: =('Ext1'!P9+'Ext2'!P9)/2 -> 8.65 | Q9: =('Ext1'!Q9+'Ext2'!Q9)/2 -> 7.615 | R9: =('Ext1'!R9+'Ext2'!R9)/2 -> 9.17 | S9: =('Ext1'!S9+'Ext2'!S9)/2 -> 9.165 | T9: =('Ext1'!T9+'Ext2'!T9)/2 -> 9.53 | U9: =('Ext1'!U9+'Ext2'!U9)/2 -> 10.555 | V9: =('Ext1'!V9+'Ext2'!V9)/2 -> 9.62 | W9: =('Ext1'!W9+'Ext2'!W9)/2 -> 9.38 | X9: =('Ext1'!X9+'Ext2'!X9)/2 -> 11.28 | Y9: =('Ext1'!Y9+'Ext2'!Y9)/2 -> 11.24 | Z9: =('Ext1'!Z9+'Ext2'!Z9)/2 -> 10.16 | AA9: =('Ext1'!AA9+'Ext2'!AA9)/2 -> 12.15 | AB9: =('Ext1'!AB9+'Ext2'!AB9)/2 -> 11.305 | AC9: =('Ext1'!AC9+'Ext2'!AC9)/2 -> 12.085 | AD9: =('Ext1'!AD9+'Ext2'!AD9)/2 -> 13.335 | AE9: =('Ext1'!AE9+'Ext2'!AE9)/2 -> 12.655 | AF9: =('Ext1'!AF9+'Ext2'!AF9)/2 -> 13.03 | AG9: =('Ext1'!AG9+'Ext2'!AG9)/2 -> 12 | AH9: =('Ext1'!AH9+'Ext2'!AH9)/2 -> 12.77 | AI9: =('Ext1'!AI9+'Ext2'!AI9)/2 -> 12.085 | AJ9: =('Ext1'!AJ9+'Ext2'!AJ9)/2 -> 13.3 | AK9: =('Ext1'!AK9+'Ext2'!AK9)/2 -> 11.33 | AL9: =('Ext1'!AL9+'Ext2'!AL9)/2 -> 12.485 | AM9: =('Ext1'!AM9+'Ext2'!AM9)/2 -> 11.805 | AN9: =('Ext1'!AN9+'Ext2'!AN9)/2 -> 10.97 | AO9: =('Ext1'!AO9+'Ext2'!AO9)/2 -> 11.8 | AP9: =('Ext1'!AP9+'Ext2'!AP9)/2 -> 12.02 | AQ9: =('Ext1'!AQ9+'Ext2'!AQ9)/2 -> 11.29 | AR9: =('Ext1'!AR9+'Ext2'!AR9)/2 -> 11.78 | AS9: =('Ext1'!AS9+'Ext2'!AS9)/2 -> 11.46 | AT9: =('Ext1'!AT9+'Ext2'!AT9)/2 -> 9.945 | AU9: =('Ext1'!AU9+'Ext2'!AU9)/2 -> 11.27 | AV9: =('Ext1'!AV9+'Ext2'!AV9)/2 -> 9.95 | AW9: =('Ext1'!AW9+'Ext2'!AW9)/2 -> 10.725 | AX9: =('Ext1'!AX9+'Ext2'!AX9)/2 -> 10.21 | AY9: =('Ext1'!AY9+'Ext2'!AY9)/2 -> 10.15 | AZ9: =('Ext1'!AZ9+'Ext2'!AZ9)/2 -> 10.07 | BA9: =('Ext1'!BA9+'Ext2'!BA9)/2 -> 9.995 | BB9: =('Ext1'!BB9+'Ext2'!BB9)/2 -> 9.6 | BC9: =('Ext1'!BC9+'Ext2'!BC9)/2 -> 9.925 | BD9: =('Ext1'!BD9+'Ext2'!BD9)/2 -> 8.77 | BE9: =('Ext1'!BE9+'Ext2'!BE9)/2 -> 8.915 | BF9: =('Ext1'!BF9+'Ext2'!BF9)/2 -> 8.535 | BG9: =('Ext1'!BG9+'Ext2'!BG9)/2 -> 10.565 | BH9: =('Ext1'!BH9+'Ext2'!BH9)/2 -> 8.575 | BI9: =('Ext1'!BI9+'Ext2'!BI9)/2 -> 10.175 | BJ9: =('Ext1'!BJ9+'Ext2'!BJ9)/2 -> 9.135 | BK9: =('Ext1'!BK9+'Ext2'!BK9)/2 -> 9.18 | BL9: =('Ext1'!BL9+'Ext2'!BL9)/2 -> 8.695 | BM9: =('Ext1'!BM9+'Ext2'!BM9)/2 -> 8.89 | BN9: =('Ext1'!BN9+'Ext2'!BN9)/2 -> 8.845 | BO9: =('Ext1'!BO9+'Ext2'!BO9)/2 -> 7.76 | BP9: =('Ext1'!BP9+'Ext2'!BP9)/2 -> 7.95 | BQ9: =('Ext1'!BQ9+'Ext2'!BQ9)/2 -> 7.845 | BR9: =('Ext1'!BR9+'Ext2'!BR9)/2 -> 8.83 | BS9: =('Ext1'!BS9+'Ext2'!BS9)/2 -> 7.605 | BT9: =('Ext1'!BT9+'Ext2'!BT9)/2 -> 7.77 | BU9: =('Ext1'!BU9+'Ext2'!BU9)/2 -> 7.22 | BV9: =('Ext1'!BV9+'Ext2'!BV9)/2 -> 7.91 | BW9: =('Ext1'!BW9+'Ext2'!BW9)/2 -> 8.43 | BX9: =('Ext1'!BX9+'Ext2'!BX9)/2 -> 6.745 | BY9: =('Ext1'!BY9+'Ext2'!BY9)/2 -> 7.55 | BZ9: =('Ext1'!BZ9+'Ext2'!BZ9)/2 -> 7.095 | CA9: =('Ext1'!CA9+'Ext2'!CA9)/2 -> 7.785 | CB9: =('Ext1'!CB9+'Ext2'!CB9)/2 -> 6.805 | CC9: =('Ext1'!CC9+'Ext2'!CC9)/2 -> 7.33 | CD9: =('Ext1'!CD9+'Ext2'!CD9)/2 -> 7.515 | CE9: =('Ext1'!CE9+'Ext2'!CE9)/2 -> 7 | CF9: =('Ext1'!CF9+'Ext2'!CF9)/2 -> 7.815 | CG9: =('Ext1'!CG9+'Ext2'!CG9)/2 -> 6.23 | CH9: =('Ext1'!CH9+'Ext2'!CH9)/2 -> 6.825 | CI9: =('Ext1'!CI9+'Ext2'!CI9)/2 -> 6.085 | CJ9: =('Ext1'!CJ9+'Ext2'!CJ9)/2 -> 7.22 | CK9: =('Ext1'!CK9+'Ext2'!CK9)/2 -> 6.72 | CL9: =('Ext1'!CL9+'Ext2'!CL9)/2 -> 5.995 | CM9: =('Ext1'!CM9+'Ext2'!CM9)/2 -> 7.14 | CN9: =('Ext1'!CN9+'Ext2'!CN9)/2 -> 6.215 | CO9: =('Ext1'!CO9+'Ext2'!CO9)/2 -> 5.905 | CP9: =('Ext1'!CP9+'Ext2'!CP9)/2 -> 6.08 | CQ9: =('Ext1'!CQ9+'Ext2'!CQ9)/2 -> 6.66 | CR9: =('Ext1'!CR9+'Ext2'!CR9)/2 -> 6.605 | CS9: =('Ext1'!CS9+'Ext2'!CS9)/2 -> 5.265 | CT9: =('Ext1'!CT9+'Ext2'!CT9)/2 -> 6.07
B10: Jour 9 | C10: =('Ext1'!C10+'Ext2'!C10)/2 -> 5.44 | D10: =('Ext1'!D10+'Ext2'!D10)/2 -> 5.605 | E10: =('Ext1'!E10+'Ext2'!E10)/2 -> 5.315 | F10: =('Ext1'!F10+'Ext2'!F10)/2 -> 6.5 | G10: =('Ext1'!G10+'Ext2'!G10)/2 -> 6.495 | H10: =('Ext1'!H10+'Ext2'!H10)/2 -> 6.6 | I10: =('Ext1'!I10+'Ext2'!I10)/2 -> 5.37 | J10: =('Ext1'!J10+'Ext2'!J10)/2 -> 7.37 | K10: =('Ext1'!K10+'Ext2'!K10)/2 -> 6.585 | L10: =('Ext1'!L10+'Ext2'!L10)/2 -> 6.39 | M10: =('Ext1'!M10+'Ext2'!M10)/2 -> 7.275 | N10: =('Ext1'!N10+'Ext2'!N10)/2 -> 7.3 | O10: =('Ext1'!O10+'Ext2'!O10)/2 -> 7.945 | P10: =('Ext1'!P10+'Ext2'!P10)/2 -> 8.65 | Q10: =('Ext1'!Q10+'Ext2'!Q10)/2 -> 7.515 | R10: =('Ext1'!R10+'Ext2'!R10)/2 -> 9.17 | S10: =('Ext1'!S10+'Ext2'!S10)/2 -> 8.665 | T10: =('Ext1'!T10+'Ext2'!T10)/2 -> 9.93 | U10: =('Ext1'!U10+'Ext2'!U10)/2 -> 8.555 | V10: =('Ext1'!V10+'Ext2'!V10)/2 -> 10.52 | W10: =('Ext1'!W10+'Ext2'!W10)/2 -> 10.28 | X10: =('Ext1'!X10+'Ext2'!X10)/2 -> 10.88 | Y10: =('Ext1'!Y10+'Ext2'!Y10)/2 -> 11.74 | Z10: =('Ext1'!Z10+'Ext2'!Z10)/2 -> 12.06 | AA10: =('Ext1'!AA10+'Ext2'!AA10)/2 -> 12.15 | AB10: =('Ext1'!AB10+'Ext2'!AB10)/2 -> 10.805 | AC10: =('Ext1'!AC10+'Ext2'!AC10)/2 -> 13.085 | AD10: =('Ext1'!AD10+'Ext2'!AD10)/2 -> 12.535 | AE10: =('Ext1'!AE10+'Ext2'!AE10)/2 -> 12.855 | AF10: =('Ext1'!AF10+'Ext2'!AF10)/2 -> 12.13 | AG10: =('Ext1'!AG10+'Ext2'!AG10)/2 -> 12.8 | AH10: =('Ext1'!AH10+'Ext2'!AH10)/2 -> 12.07 | AI10: =('Ext1'!AI10+'Ext2'!AI10)/2 -> 13.285 | AJ10: =('Ext1'!AJ10+'Ext2'!AJ10)/2 -> 11.6 | AK10: =('Ext1'!AK10+'Ext2'!AK10)/2 -> 12.93 | AL10: =('Ext1'!AL10+'Ext2'!AL10)/2 -> 11.085 | AM10: =('Ext1'!AM10+'Ext2'!AM10)/2 -> 11.505 | AN10: =('Ext1'!AN10+'Ext2'!AN10)/2 -> 12.07 | AO10: =('Ext1'!AO10+'Ext2'!AO10)/2 -> 11.6 | AP10: =('Ext1'!AP10+'Ext2'!AP10)/2 -> 11.22 | AQ10: =('Ext1'!AQ10+'Ext2'!AQ10)/2 -> 11.49 | AR10: =('Ext1'!AR10+'Ext2'!AR10)/2 -> 11.78 | AS10: =('Ext1'!AS10+'Ext2'!AS10)/2 -> 10.86 | AT10: =('Ext1'!AT10+'Ext2'!AT10)/2 -> 10.045 | AU10: =('Ext1'!AU10+'Ext2'!AU10)/2 -> 9.57 | AV10: =('Ext1'!AV10+'Ext2'!AV10)/2 -> 11.15 | AW10: =('Ext1'!AW10+'Ext2'!AW10)/2 -> 10.825 | AX10: =('Ext1'!AX10+'Ext2'!AX10)/2 -> 10.01 | AY10: =('Ext1'!AY10+'Ext2'!AY10)/2 -> 8.95 | AZ10: =('Ext1'!AZ10+'Ext2'!AZ10)/2 -> 10.47 | BA10: =('Ext1'!BA10+'Ext2'!BA10)/2 -> 10.795 | BB10: =('Ext1'!BB10+'Ext2'!BB10)/2 -> 10.6 | BC10: =('Ext1'!BC10+'Ext2'!BC10)/2 -> 10.425 | BD10: =('Ext1'!BD10+'Ext2'!BD10)/2 -> 8.77 | BE10: =('Ext1'!BE10+'Ext2'!BE10)/2 -> 10.615 | BF10: =('Ext1'!BF10+'Ext2'!BF10)/2 -> 8.635 | BG10: =('Ext1'!BG10+'Ext2'!BG10)/2 -> 10.265 | BH10: =('Ext1'!BH10+'Ext2'!BH10)/2 -> 9.775 | BI10: =('Ext1'!BI10+'Ext2'!BI10)/2 -> 10.375 | BJ10: =('Ext1'!BJ10+'Ext2'!BJ10)/2 -> 9.735 | BK10: =('Ext1'!BK10+'Ext2'!BK10)/2 -> 8.68 | BL10: =('Ext1'!BL10+'Ext2'!BL10)/2 -> 8.095 | BM10: =('Ext1'!BM10+'Ext2'!BM10)/2 -> 8.99 | BN10: =('Ext1'!BN10+'Ext2'!BN10)/2 -> 9.545 | BO10: =('Ext1'!BO10+'Ext2'!BO10)/2 -> 8.66 | BP10: =('Ext1'!BP10+'Ext2'!BP10)/2 -> 8.75 | BQ10: =('Ext1'!BQ10+'Ext2'!BQ10)/2 -> 8.245 | BR10: =('Ext1'!BR10+'Ext2'!BR10)/2 -> 8.93 | BS10: =('Ext1'!BS10+'Ext2'!BS10)/2 -> 8.505 | BT10: =('Ext1'!BT10+'Ext2'!BT10)/2 -> 7.97 | BU10: =('Ext1'!BU10+'Ext2'!BU10)/2 -> 7.92 | BV10: =('Ext1'!BV10+'Ext2'!BV10)/2 -> 6.91 | BW10: =('Ext1'!BW10+'Ext2'!BW10)/2 -> 8.03 | BX10: =('Ext1'!BX10+'Ext2'!BX10)/2 -> 6.945 | BY10: =('Ext1'!BY10+'Ext2'!BY10)/2 -> 7.75 | BZ10: =('Ext1'!BZ10+'Ext2'!BZ10)/2 -> 7.495 | CA10: =('Ext1'!CA10+'Ext2'!CA10)/2 -> 6.685 | CB10: =('Ext1'!CB10+'Ext2'!CB10)/2 -> 7.105 | CC10: =('Ext1'!CC10+'Ext2'!CC10)/2 -> 6.53 | CD10: =('Ext1'!CD10+'Ext2'!CD10)/2 -> 7.715 | CE10: =('Ext1'!CE10+'Ext2'!CE10)/2 -> 6.4 | CF10: =('Ext1'!CF10+'Ext2'!CF10)/2 -> 8.115 | CG10: =('Ext1'!CG10+'Ext2'!CG10)/2 -> 7.13 | CH10: =('Ext1'!CH10+'Ext2'!CH10)/2 -> 7.825 | CI10: =('Ext1'!CI10+'Ext2'!CI10)/2 -> 6.285 | CJ10: =('Ext1'!CJ10+'Ext2'!CJ10)/2 -> 6.72 | CK10: =('Ext1'!CK10+'Ext2'!CK10)/2 -> 6.62 | CL10: =('Ext1'!CL10+'Ext2'!CL10)/2 -> 7.395 | CM10: =('Ext1'!CM10+'Ext2'!CM10)/2 -> 6.04 | CN10: =('Ext1'!CN10+'Ext2'!CN10)/2 -> 6.615 | CO10: =('Ext1'!CO10+'Ext2'!CO10)/2 -> 7.005 | CP10: =('Ext1'!CP10+'Ext2'!CP10)/2 -> 5.98 | CQ10: =('Ext1'!CQ10+'Ext2'!CQ10)/2 -> 6.86 | CR10: =('Ext1'!CR10+'Ext2'!CR10)/2 -> 6.705 | CS10: =('Ext1'!CS10+'Ext2'!CS10)/2 -> 6.965 | CT10: =('Ext1'!CT10+'Ext2'!CT10)/2 -> 5.17
B11: Jour 10 | C11: =('Ext1'!C11+'Ext2'!C11)/2 -> 5.24 | D11: =('Ext1'!D11+'Ext2'!D11)/2 -> 6.005 | E11: =('Ext1'!E11+'Ext2'!E11)/2 -> 4.715 | F11: =('Ext1'!F11+'Ext2'!F11)/2 -> 5.8 | G11: =('Ext1'!G11+'Ext2'!G11)/2 -> 6.795 | H11: =('Ext1'!H11+'Ext2'!H11)/2 -> 5.8 | I11: =('Ext1'!I11+'Ext2'!I11)/2 -> 5.37 | J11: =('Ext1'!J11+'Ext2'!J11)/2 -> 6.17 | K11: =('Ext1'!K11+'Ext2'!K11)/2 -> 7.085 | L11: =('Ext1'!L11+'Ext2'!L11)/2 -> 7.19 | M11: =('Ext1'!M11+'Ext2'!M11)/2 -> 7.675 | N11: =('Ext1'!N11+'Ext2'!N11)/2 -> 7 | O11: =('Ext1'!O11+'Ext2'!O11)/2 -> 8.445 | P11: =('Ext1'!P11+'Ext2'!P11)/2 -> 7.25 | Q11: =('Ext1'!Q11+'Ext2'!Q11)/2 -> 9.015 | R11: =('Ext1'!R11+'Ext2'!R11)/2 -> 7.77 | S11: =('Ext1'!S11+'Ext2'!S11)/2 -> 7.865 | T11: =('Ext1'!T11+'Ext2'!T11)/2 -> 8.93 | U11: =('Ext1'!U11+'Ext2'!U11)/2 -> 8.955 | V11: =('Ext1'!V11+'Ext2'!V11)/2 -> 10.62 | W11: =('Ext1'!W11+'Ext2'!W11)/2 -> 9.98 | X11: =('Ext1'!X11+'Ext2'!X11)/2 -> 11.28 | Y11: =('Ext1'!Y11+'Ext2'!Y11)/2 -> 11.24 | Z11: =('Ext1'!Z11+'Ext2'!Z11)/2 -> 10.66 | AA11: =('Ext1'!AA11+'Ext2'!AA11)/2 -> 11.05 | AB11: =('Ext1'!AB11+'Ext2'!AB11)/2 -> 11.205 | AC11: =('Ext1'!AC11+'Ext2'!AC11)/2 -> 12.785 | AD11: =('Ext1'!AD11+'Ext2'!AD11)/2 -> 13.335 | AE11: =('Ext1'!AE11+'Ext2'!AE11)/2 -> 12.555 | AF11: =('Ext1'!AF11+'Ext2'!AF11)/2 -> 11.83 | AG11: =('Ext1'!AG11+'Ext2'!AG11)/2 -> 12.1 | AH11: =('Ext1'!AH11+'Ext2'!AH11)/2 -> 13.07 | AI11: =('Ext1'!AI11+'Ext2'!AI11)/2 -> 12.285 | AJ11: =('Ext1'!AJ11+'Ext2'!AJ11)/2 -> 12.3 | AK11: =('Ext1'!AK11+'Ext2'!AK11)/2 -> 12.43 | AL11: =('Ext1'!AL11+'Ext2'!AL11)/2 -> 11.185 | AM11: =('Ext1'!AM11+'Ext2'!AM11)/2 -> 11.905 | AN11: =('Ext1'!AN11+'Ext2'!AN11)/2 -> 12.87 | AO11: =('Ext1'!AO11+'Ext2'!AO11)/2 -> 11.8 | AP11: =('Ext1'!AP11+'Ext2'!AP11)/2 -> 11.72 | AQ11: =('Ext1'!AQ11+'Ext2'!AQ11)/2 -> 11.89 | AR11: =('Ext1'!AR11+'Ext2'!AR11)/2 -> 10.78 | AS11: =('Ext1'!AS11+'Ext2'!AS11)/2 -> 10.86 | AT11: =('Ext1'!AT11+'Ext2'!AT11)/2 -> 9.945 | AU11: =('Ext1'!AU11+'Ext2'!AU11)/2 -> 10.07 | AV11: =('Ext1'!AV11+'Ext2'!AV11)/2 -> 10.75 | AW11: =('Ext1'!AW11+'Ext2'!AW11)/2 -> 9.825 | AX11: =('Ext1'!AX11+'Ext2'!AX11)/2 -> 9.51 | AY11: =('Ext1'!AY11+'Ext2'!AY11)/2 -> 10.15 | AZ11: =('Ext1'!AZ11+'Ext2'!AZ11)/2 -> 10.27 | BA11: =('Ext1'!BA11+'Ext2'!BA11)/2 -> 9.695 | BB11: =('Ext1'!BB11+'Ext2'!BB11)/2 -> 8.9 | BC11: =('Ext1'!BC11+'Ext2'!BC11)/2 -> 8.725 | BD11: =('Ext1'!BD11+'Ext2'!BD11)/2 -> 8.87 | BE11: =('Ext1'!BE11+'Ext2'!BE11)/2 -> 9.715 | BF11: =('Ext1'!BF11+'Ext2'!BF11)/2 -> 9.135 | BG11: =('Ext1'!BG11+'Ext2'!BG11)/2 -> 9.765 | BH11: =('Ext1'!BH11+'Ext2'!BH11)/2 -> 9.275 | BI11: =('Ext1'!BI11+'Ext2'!BI11)/2 -> 10.275 | BJ11: =('Ext1'!BJ11+'Ext2'!BJ11)/2 -> 8.935 | BK11: =('Ext1'!BK11+'Ext2'!BK11)/2 -> 8.78 | BL11: =('Ext1'!BL11+'Ext2'!BL11)/2 -> 9.495 | BM11: =('Ext1'!BM11+'Ext2'!BM11)/2 -> 7.89 | BN11: =('Ext1'!BN11+'Ext2'!BN11)/2 -> 8.045 | BO11: =('Ext1'!BO11+'Ext2'!BO11)/2 -> 8.46 | BP11: =('Ext1'!BP11+'Ext2'!BP11)/2 -> 9.05 | BQ11: =('Ext1'!BQ11+'Ext2'!BQ11)/2 -> 7.845 | BR11: =('Ext1'!BR11+'Ext2'!BR11)/2 -> 8.63 | BS11: =('Ext1'!BS11+'Ext2'!BS11)/2 -> 7.505 | BT11: =('Ext1'!BT11+'Ext2'!BT11)/2 -> 8.07 | BU11: =('Ext1'!BU11+'Ext2'!BU11)/2 -> 7.52 | BV11: =('Ext1'!BV11+'Ext2'!BV11)/2 -> 7.71 | BW11: =('Ext1'!BW11+'Ext2'!BW11)/2 -> 7.43 | BX11: =('Ext1'!BX11+'Ext2'!BX11)/2 -> 7.545 | BY11: =('Ext1'!BY11+'Ext2'!BY11)/2 -> 6.95 | BZ11: =('Ext1'!BZ11+'Ext2'!BZ11)/2 -> 6.695 | CA11: =('Ext1'!CA11+'Ext2'!CA11)/2 -> 7.285 | CB11: =('Ext1'!CB11+'Ext2'!CB11)/2 -> 6.705 | CC11: =('Ext1'!CC11+'Ext2'!CC11)/2 -> 6.43 | CD11: =('Ext1'!CD11+'Ext2'!CD11)/2 -> 7.215 | CE11: =('Ext1'!CE11+'Ext2'!CE11)/2 -> 6.2 | CF11: =('Ext1'!CF11+'Ext2'!CF11)/2 -> 8.115 | CG11: =('Ext1'!CG11+'Ext2'!CG11)/2 -> 7.73 | CH11: =('Ext1'!CH11+'Ext2'!CH11)/2 -> 7.625 | CI11: =('Ext1'!CI11+'Ext2'!CI11)/2 -> 7.285 | CJ11: =('Ext1'!CJ11+'Ext2'!CJ11)/2 -> 6.32 | CK11: =('Ext1'!CK11+'Ext2'!CK11)/2 -> 6.52 | CL11: =('Ext1'!CL11+'Ext2'!CL11)/2 -> 6.595 | CM11: =('Ext1'!CM11+'Ext2'!CM11)/2 -> 5.74 | CN11: =('Ext1'!CN11+'Ext2'!CN11)/2 -> 6.615 | CO11: =('Ext1'!CO11+'Ext2'!CO11)/2 -> 6.905 | CP11: =('Ext1'!CP11+'Ext2'!CP11)/2 -> 5.78 | CQ11: =('Ext1'!CQ11+'Ext2'!CQ11)/2 -> 6.96 | CR11: =('Ext1'!CR11+'Ext2'!CR11)/2 -> 5.205 | CS11: =('Ext1'!CS11+'Ext2'!CS11)/2 -> 5.165 | CT11: =('Ext1'!CT11+'Ext2'!CT11)/2 -> 6.07
B12: Jour 11 | C12: =('Ext1'!C12+'Ext2'!C12)/2 -> 5.44 | D12: =('Ext1'!D12+'Ext2'!D12)/2 -> 6.005 | E12: =('Ext1'!E12+'Ext2'!E12)/2 -> 6.115 | F12: =('Ext1'!F12+'Ext2'!F12)/2 -> 5.5 | G12: =('Ext1'!G12+'Ext2'!G12)/2 -> 6.495 | H12: =('Ext1'!H12+'Ext2'!H12)/2 -> 5.6 | I12: =('Ext1'!I12+'Ext2'!I12)/2 -> 5.77 | J12: =('Ext1'!J12+'Ext2'!J12)/2 -> 5.67 | K12: =('Ext1'!K12+'Ext2'!K12)/2 -> 6.985 | L12: =('Ext1'!L12+'Ext2'!L12)/2 -> 7.29 | M12: =('Ext1'!M12+'Ext2'!M12)/2 -> 7.075 | N12: =('Ext1'!N12+'Ext2'!N12)/2 -> 6.6 | O12: =('Ext1'!O12+'Ext2'!O12)/2 -> 6.645 | P12: =('Ext1'!P12+'Ext2'!P12)/2 -> 8.65 | Q12: =('Ext1'!Q12+'Ext2'!Q12)/2 -> 7.615 | R12: =('Ext1'!R12+'Ext2'!R12)/2 -> 9.07 | S12: =('Ext1'!S12+'Ext2'!S12)/2 -> 9.765 | T12: =('Ext1'!T12+'Ext2'!T12)/2 -> 8.73 | U12: =('Ext1'!U12+'Ext2'!U12)/2 -> 10.255 | V12: =('Ext1'!V12+'Ext2'!V12)/2 -> 9.32 | W12: =('Ext1'!W12+'Ext2'!W12)/2 -> 9.48 | X12: =('Ext1'!X12+'Ext2'!X12)/2 -> 10.68 | Y12: =('Ext1'!Y12+'Ext2'!Y12)/2 -> 11.54 | Z12: =('Ext1'!Z12+'Ext2'!Z12)/2 -> 10.76 | AA12: =('Ext1'!AA12+'Ext2'!AA12)/2 -> 12.05 | AB12: =('Ext1'!AB12+'Ext2'!AB12)/2 -> 12.005 | AC12: =('Ext1'!AC12+'Ext2'!AC12)/2 -> 11.885 | AD12: =('Ext1'!AD12+'Ext2'!AD12)/2 -> 12.435 | AE12: =('Ext1'!AE12+'Ext2'!AE12)/2 -> 12.355 | AF12: =('Ext1'!AF12+'Ext2'!AF12)/2 -> 12.83 | AG12: =('Ext1'!AG12+'Ext2'!AG12)/2 -> 12.8 | AH12: =('Ext1'!AH12+'Ext2'!AH12)/2 -> 12.57 | AI12: =('Ext1'!AI12+'Ext2'!AI12)/2 -> 13.185 | AJ12: =('Ext1'!AJ12+'Ext2'!AJ12)/2 -> 12.6 | AK12: =('Ext1'!AK12+'Ext2'!AK12)/2 -> 13.13 | AL12: =('Ext1'!AL12+'Ext2'!AL12)/2 -> 11.585 | AM12: =('Ext1'!AM12+'Ext2'!AM12)/2 -> 11.605 | AN12: =('Ext1'!AN12+'Ext2'!AN12)/2 -> 11.37 | AO12: =('Ext1'!AO12+'Ext2'!AO12)/2 -> 10.7 | AP12: =('Ext1'!AP12+'Ext2'!AP12)/2 -> 10.82 | AQ12: =('Ext1'!AQ12+'Ext2'!AQ12)/2 -> 11.69 | AR12: =('Ext1'!AR12+'Ext2'!AR12)/2 -> 10.68 | AS12: =('Ext1'!AS12+'Ext2'!AS12)/2 -> 10.06 | AT12: =('Ext1'!AT12+'Ext2'!AT12)/2 -> 9.845 | AU12: =('Ext1'!AU12+'Ext2'!AU12)/2 -> 10.47 | AV12: =('Ext1'!AV12+'Ext2'!AV12)/2 -> 10.35 | AW12: =('Ext1'!AW12+'Ext2'!AW12)/2 -> 10.625 | AX12: =('Ext1'!AX12+'Ext2'!AX12)/2 -> 9.61 | AY12: =('Ext1'!AY12+'Ext2'!AY12)/2 -> 8.95 | AZ12: =('Ext1'!AZ12+'Ext2'!AZ12)/2 -> 9.37 | BA12: =('Ext1'!BA12+'Ext2'!BA12)/2 -> 9.595 | BB12: =('Ext1'!BB12+'Ext2'!BB12)/2 -> 10.6 | BC12: =('Ext1'!BC12+'Ext2'!BC12)/2 -> 10.025 | BD12: =('Ext1'!BD12+'Ext2'!BD12)/2 -> 9.27 | BE12: =('Ext1'!BE12+'Ext2'!BE12)/2 -> 8.915 | BF12: =('Ext1'!BF12+'Ext2'!BF12)/2 -> 9.435 | BG12: =('Ext1'!BG12+'Ext2'!BG12)/2 -> 8.765 | BH12: =('Ext1'!BH12+'Ext2'!BH12)/2 -> 8.875 | BI12: =('Ext1'!BI12+'Ext2'!BI12)/2 -> 9.875 | BJ12: =('Ext1'!BJ12+'Ext2'!BJ12)/2 -> 9.835 | BK12: =('Ext1'!BK12+'Ext2'!BK12)/2 -> 9.48 | BL12: =('Ext1'!BL12+'Ext2'!BL12)/2 -> 9.295 | BM12: =('Ext1'!BM12+'Ext2'!BM12)/2 -> 9.59 | BN12: =('Ext1'!BN12+'Ext2'!BN12)/2 -> 9.245 | BO12: =('Ext1'!BO12+'Ext2'!BO12)/2 -> 9.26 | BP12: =('Ext1'!BP12+'Ext2'!BP12)/2 -> 7.85 | BQ12: =('Ext1'!BQ12+'Ext2'!BQ12)/2 -> 9.045 | BR12: =('Ext1'!BR12+'Ext2'!BR12)/2 -> 7.53 | BS12: =('Ext1'!BS12+'Ext2'!BS12)/2 -> 9.205 | BT12: =('Ext1'!BT12+'Ext2'!BT12)/2 -> 8.07 | BU12: =('Ext1'!BU12+'Ext2'!BU12)/2 -> 7.22 | BV12: =('Ext1'!BV12+'Ext2'!BV12)/2 -> 7.21 | BW12: =('Ext1'!BW12+'Ext2'!BW12)/2 -> 8.23 | BX12: =('Ext1'!BX12+'Ext2'!BX12)/2 -> 6.745 | BY12: =('Ext1'!BY12+'Ext2'!BY12)/2 -> 7.95 | BZ12: =('Ext1'!BZ12+'Ext2'!BZ12)/2 -> 8.495 | CA12: =('Ext1'!CA12+'Ext2'!CA12)/2 -> 7.285 | CB12: =('Ext1'!CB12+'Ext2'!CB12)/2 -> 7.605 | CC12: =('Ext1'!CC12+'Ext2'!CC12)/2 -> 7.33 | CD12: =('Ext1'!CD12+'Ext2'!CD12)/2 -> 7.515 | CE12: =('Ext1'!CE12+'Ext2'!CE12)/2 -> 6.6 | CF12: =('Ext1'!CF12+'Ext2'!CF12)/2 -> 6.415 | CG12: =('Ext1'!CG12+'Ext2'!CG12)/2 -> 6.43 | CH12: =('Ext1'!CH12+'Ext2'!CH12)/2 -> 6.225 | CI12: =('Ext1'!CI12+'Ext2'!CI12)/2 -> 6.785 | CJ12: =('Ext1'!CJ12+'Ext2'!CJ12)/2 -> 6.22 | CK12: =('Ext1'!CK12+'Ext2'!CK12)/2 -> 6.42 | CL12: =('Ext1'!CL12+'Ext2'!CL12)/2 -> 6.895 | CM12: =('Ext1'!CM12+'Ext2'!CM12)/2 -> 6.64 | CN12: =('Ext1'!CN12+'Ext2'!CN12)/2 -> 7.515 | CO12: =('Ext1'!CO12+'Ext2'!CO12)/2 -> 6.705 | CP12: =('Ext1'!CP12+'Ext2'!CP12)/2 -> 5.58 | CQ12: =('Ext1'!CQ12+'Ext2'!CQ12)/2 -> 5.96 | CR12: =('Ext1'!CR12+'Ext2'!CR12)/2 -> 7.205 | CS12: =('Ext1'!CS12+'Ext2'!CS12)/2 -> 6.465 | CT12: =('Ext1'!CT12+'Ext2'!CT12)/2 -> 5.67
B13: Jour 12 | C13: =('Ext1'!C13+'Ext2'!C13)/2 -> 5.34 | D13: =('Ext1'!D13+'Ext2'!D13)/2 -> 5.905 | E13: =('Ext1'!E13+'Ext2'!E13)/2 -> 6.515 | F13: =('Ext1'!F13+'Ext2'!F13)/2 -> 6.8 | G13: =('Ext1'!G13+'Ext2'!G13)/2 -> 6.695 | H13: =('Ext1'!H13+'Ext2'!H13)/2 -> 6.4 | I13: =('Ext1'!I13+'Ext2'!I13)/2 -> 6.97 | J13: =('Ext1'!J13+'Ext2'!J13)/2 -> 6.67 | K13: =('Ext1'!K13+'Ext2'!K13)/2 -> 7.485 | L13: =('Ext1'!L13+'Ext2'!L13)/2 -> 7.39 | M13: =('Ext1'!M13+'Ext2'!M13)/2 -> 6.175 | N13: =('Ext1'!N13+'Ext2'!N13)/2 -> 6.4 | O13: =('Ext1'!O13+'Ext2'!O13)/2 -> 6.845 | P13: =('Ext1'!P13+'Ext2'!P13)/2 -> 8.45 | Q13: =('Ext1'!Q13+'Ext2'!Q13)/2 -> 8.815 | R13: =('Ext1'!R13+'Ext2'!R13)/2 -> 9.17 | S13: =('Ext1'!S13+'Ext2'!S13)/2 -> 8.765 | T13: =('Ext1'!T13+'Ext2'!T13)/2 -> 9.63 | U13: =('Ext1'!U13+'Ext2'!U13)/2 -> 9.455 | V13: =('Ext1'!V13+'Ext2'!V13)/2 -> 8.92 | W13: =('Ext1'!W13+'Ext2'!W13)/2 -> 9.68 | X13: =('Ext1'!X13+'Ext2'!X13)/2 -> 9.88 | Y13: =('Ext1'!Y13+'Ext2'!Y13)/2 -> 11.64 | Z13: =('Ext1'!Z13+'Ext2'!Z13)/2 -> 11.66 | AA13: =('Ext1'!AA13+'Ext2'!AA13)/2 -> 11.95 | AB13: =('Ext1'!AB13+'Ext2'!AB13)/2 -> 10.805 | AC13: =('Ext1'!AC13+'Ext2'!AC13)/2 -> 12.185 | AD13: =('Ext1'!AD13+'Ext2'!AD13)/2 -> 13.035 | AE13: =('Ext1'!AE13+'Ext2'!AE13)/2 -> 12.455 | AF13: =('Ext1'!AF13+'Ext2'!AF13)/2 -> 11.83 | AG13: =('Ext1'!AG13+'Ext2'!AG13)/2 -> 11.8 | AH13: =('Ext1'!AH13+'Ext2'!AH13)/2 -> 13.27 | AI13: =('Ext1'!AI13+'Ext2'!AI13)/2 -> 12.485 | AJ13: =('Ext1'!AJ13+'Ext2'!AJ13)/2 -> 12.7 | AK13: =('Ext1'!AK13+'Ext2'!AK13)/2 -> 11.63 | AL13: =('Ext1'!AL13+'Ext2'!AL13)/2 -> 11.285 | AM13: =('Ext1'!AM13+'Ext2'!AM13)/2 -> 11.005 | AN13: =('Ext1'!AN13+'Ext2'!AN13)/2 -> 11.87 | AO13: =('Ext1'!AO13+'Ext2'!AO13)/2 -> 12.6 | AP13: =('Ext1'!AP13+'Ext2'!AP13)/2 -> 11.12 | AQ13: =('Ext1'!AQ13+'Ext2'!AQ13)/2 -> 10.79 | AR13: =('Ext1'!AR13+'Ext2'!AR13)/2 -> 10.18 | AS13: =('Ext1'!AS13+'Ext2'!AS13)/2 -> 11.06 | AT13: =('Ext1'!AT13+'Ext2'!AT13)/2 -> 10.645 | AU13: =('Ext1'!AU13+'Ext2'!AU13)/2 -> 9.67 | AV13: =('Ext1'!AV13+'Ext2'!AV13)/2 -> 9.95 | AW13: =('Ext1'!AW13+'Ext2'!AW13)/2 -> 9.725 | AX13: =('Ext1'!AX13+'Ext2'!AX13)/2 -> 10.11 | AY13: =('Ext1'!AY13+'Ext2'!AY13)/2 -> 9.25 | AZ13: =('Ext1'!AZ13+'Ext2'!AZ13)/2 -> 10.77 | BA13: =('Ext1'!BA13+'Ext2'!BA13)/2 -> 10.395 | BB13: =('Ext1'!BB13+'Ext2'!BB13)/2 -> 10.2 | BC13: =('Ext1'!BC13+'Ext2'!BC13)/2 -> 9.625 | BD13: =('Ext1'!BD13+'Ext2'!BD13)/2 -> 9.67 | BE13: =('Ext1'!BE13+'Ext2'!BE13)/2 -> 10.315 | BF13: =('Ext1'!BF13+'Ext2'!BF13)/2 -> 9.435 | BG13: =('Ext1'!BG13+'Ext2'!BG13)/2 -> 9.065 | BH13: =('Ext1'!BH13+'Ext2'!BH13)/2 -> 9.075 | BI13: =('Ext1'!BI13+'Ext2'!BI13)/2 -> 8.975 | BJ13: =('Ext1'!BJ13+'Ext2'!BJ13)/2 -> 8.835 | BK13: =('Ext1'!BK13+'Ext2'!BK13)/2 -> 9.08 | BL13: =('Ext1'!BL13+'Ext2'!BL13)/2 -> 8.995 | BM13: =('Ext1'!BM13+'Ext2'!BM13)/2 -> 9.49 | BN13: =('Ext1'!BN13+'Ext2'!BN13)/2 -> 9.445 | BO13: =('Ext1'!BO13+'Ext2'!BO13)/2 -> 9.06 | BP13: =('Ext1'!BP13+'Ext2'!BP13)/2 -> 7.55 | BQ13: =('Ext1'!BQ13+'Ext2'!BQ13)/2 -> 8.245 | BR13: =('Ext1'!BR13+'Ext2'!BR13)/2 -> 7.63 | BS13: =('Ext1'!BS13+'Ext2'!BS13)/2 -> 7.505 | BT13: =('Ext1'!BT13+'Ext2'!BT13)/2 -> 8.17 | BU13: =('Ext1'!BU13+'Ext2'!BU13)/2 -> 8.22 | BV13: =('Ext1'!BV13+'Ext2'!BV13)/2 -> 8.51 | BW13: =('Ext1'!BW13+'Ext2'!BW13)/2 -> 7.03 | BX13: =('Ext1'!BX13+'Ext2'!BX13)/2 -> 8.245 | BY13: =('Ext1'!BY13+'Ext2'!BY13)/2 -> 8.35 | BZ13: =('Ext1'!BZ13+'Ext2'!BZ13)/2 -> 7.795 | CA13: =('Ext1'!CA13+'Ext2'!CA13)/2 -> 6.585 | CB13: =('Ext1'!CB13+'Ext2'!CB13)/2 -> 8.205 | CC13: =('Ext1'!CC13+'Ext2'!CC13)/2 -> 6.73 | CD13: =('Ext1'!CD13+'Ext2'!CD13)/2 -> 7.315 | CE13: =('Ext1'!CE13+'Ext2'!CE13)/2 -> 6.2 | CF13: =('Ext1'!CF13+'Ext2'!CF13)/2 -> 7.215 | CG13: =('Ext1'!CG13+'Ext2'!CG13)/2 -> 7.63 | CH13: =('Ext1'!CH13+'Ext2'!CH13)/2 -> 6.225 | CI13: =('Ext1'!CI13+'Ext2'!CI13)/2 -> 6.085 | CJ13: =('Ext1'!CJ13+'Ext2'!CJ13)/2 -> 6.52 | CK13: =('Ext1'!CK13+'Ext2'!CK13)/2 -> 5.72 | CL13: =('Ext1'!CL13+'Ext2'!CL13)/2 -> 6.495 | CM13: =('Ext1'!CM13+'Ext2'!CM13)/2 -> 6.34 | CN13: =('Ext1'!CN13+'Ext2'!CN13)/2 -> 7.215 | CO13: =('Ext1'!CO13+'Ext2'!CO13)/2 -> 5.505 | CP13: =('Ext1'!CP13+'Ext2'!CP13)/2 -> 5.58 | CQ13: =('Ext1'!CQ13+'Ext2'!CQ13)/2 -> 5.96 | CR13: =('Ext1'!CR13+'Ext2'!CR13)/2 -> 5.905 | CS13: =('Ext1'!CS13+'Ext2'!CS13)/2 -> 5.365 | CT13: =('Ext1'!CT13+'Ext2'!CT13)/2 -> 6.37
B14: Jour 13 | C14: =('Ext1'!C14+'Ext2'!C14)/2 -> 4.24 | D14: =('Ext1'!D14+'Ext2'!D14)/2 -> 4.605 | E14: =('Ext1'!E14+'Ext2'!E14)/2 -> 6.515 | F14: =('Ext1'!F14+'Ext2'!F14)/2 -> 5.4 | G14: =('Ext1'!G14+'Ext2'!G14)/2 -> 6.995 | H14: =('Ext1'!H14+'Ext2'!H14)/2 -> 5.9 | I14: =('Ext1'!I14+'Ext2'!I14)/2 -> 6.97 | J14: =('Ext1'!J14+'Ext2'!J14)/2 -> 6.77 | K14: =('Ext1'!K14+'Ext2'!K14)/2 -> 6.485 | L14: =('Ext1'!L14+'Ext2'!L14)/2 -> 6.99 | M14: =('Ext1'!M14+'Ext2'!M14)/2 -> 6.175 | N14: =('Ext1'!N14+'Ext2'!N14)/2 -> 8 | O14: =('Ext1'!O14+'Ext2'!O14)/2 -> 7.045 | P14: =('Ext1'!P14+'Ext2'!P14)/2 -> 7.25 | Q14: =('Ext1'!Q14+'Ext2'!Q14)/2 -> 8.015 | R14: =('Ext1'!R14+'Ext2'!R14)/2 -> 9.07 | S14: =('Ext1'!S14+'Ext2'!S14)/2 -> 9.865 | T14: =('Ext1'!T14+'Ext2'!T14)/2 -> 9.43 | U14: =('Ext1'!U14+'Ext2'!U14)/2 -> 10.255 | V14: =('Ext1'!V14+'Ext2'!V14)/2 -> 10.12 | W14: =('Ext1'!W14+'Ext2'!W14)/2 -> 11.28 | X14: =('Ext1'!X14+'Ext2'!X14)/2 -> 10.48 | Y14: =('Ext1'!Y14+'Ext2'!Y14)/2 -> 10.14 | Z14: =('Ext1'!Z14+'Ext2'!Z14)/2 -> 11.06 | AA14: =('Ext1'!AA14+'Ext2'!AA14)/2 -> 11.35 | AB14: =('Ext1'!AB14+'Ext2'!AB14)/2 -> 12.305 | AC14: =('Ext1'!AC14+'Ext2'!AC14)/2 -> 12.985 | AD14: =('Ext1'!AD14+'Ext2'!AD14)/2 -> 12.735 | AE14: =('Ext1'!AE14+'Ext2'!AE14)/2 -> 13.355 | AF14: =('Ext1'!AF14+'Ext2'!AF14)/2 -> 11.63 | AG14: =('Ext1'!AG14+'Ext2'!AG14)/2 -> 11.9 | AH14: =('Ext1'!AH14+'Ext2'!AH14)/2 -> 12.87 | AI14: =('Ext1'!AI14+'Ext2'!AI14)/2 -> 11.485 | AJ14: =('Ext1'!AJ14+'Ext2'!AJ14)/2 -> 12.2 | AK14: =('Ext1'!AK14+'Ext2'!AK14)/2 -> 11.73 | AL14: =('Ext1'!AL14+'Ext2'!AL14)/2 -> 12.285 | AM14: =('Ext1'!AM14+'Ext2'!AM14)/2 -> 11.005 | AN14: =('Ext1'!AN14+'Ext2'!AN14)/2 -> 12.87 | AO14: =('Ext1'!AO14+'Ext2'!AO14)/2 -> 11.8 | AP14: =('Ext1'!AP14+'Ext2'!AP14)/2 -> 11.02 | AQ14: =('Ext1'!AQ14+'Ext2'!AQ14)/2 -> 10.59 | AR14: =('Ext1'!AR14+'Ext2'!AR14)/2 -> 10.78 | AS14: =('Ext1'!AS14+'Ext2'!AS14)/2 -> 10.26 | AT14: =('Ext1'!AT14+'Ext2'!AT14)/2 -> 11.545 | AU14: =('Ext1'!AU14+'Ext2'!AU14)/2 -> 9.67 | AV14: =('Ext1'!AV14+'Ext2'!AV14)/2 -> 9.95 | AW14: =('Ext1'!AW14+'Ext2'!AW14)/2 -> 9.325 | AX14: =('Ext1'!AX14+'Ext2'!AX14)/2 -> 10.91 | AY14: =('Ext1'!AY14+'Ext2'!AY14)/2 -> 10.95 | AZ14: =('Ext1'!AZ14+'Ext2'!AZ14)/2 -> 10.97 | BA14: =('Ext1'!BA14+'Ext2'!BA14)/2 -> 9.895 | BB14: =('Ext1'!BB14+'Ext2'!BB14)/2 -> 10.9 | BC14: =('Ext1'!BC14+'Ext2'!BC14)/2 -> 9.825 | BD14: =('Ext1'!BD14+'Ext2'!BD14)/2 -> 8.77 | BE14: =('Ext1'!BE14+'Ext2'!BE14)/2 -> 10.015 | BF14: =('Ext1'!BF14+'Ext2'!BF14)/2 -> 10.135 | BG14: =('Ext1'!BG14+'Ext2'!BG14)/2 -> 10.565 | BH14: =('Ext1'!BH14+'Ext2'!BH14)/2 -> 10.375 | BI14: =('Ext1'!BI14+'Ext2'!BI14)/2 -> 8.675 | BJ14: =('Ext1'!BJ14+'Ext2'!BJ14)/2 -> 9.335 | BK14: =('Ext1'!BK14+'Ext2'!BK14)/2 -> 8.78 | BL14: =('Ext1'!BL14+'Ext2'!BL14)/2 -> 9.095 | BM14: =('Ext1'!BM14+'Ext2'!BM14)/2 -> 9.59 | BN14: =('Ext1'!BN14+'Ext2'!BN14)/2 -> 9.545 | BO14: =('Ext1'!BO14+'Ext2'!BO14)/2 -> 8.06 | BP14: =('Ext1'!BP14+'Ext2'!BP14)/2 -> 9.15 | BQ14: =('Ext1'!BQ14+'Ext2'!BQ14)/2 -> 7.545 | BR14: =('Ext1'!BR14+'Ext2'!BR14)/2 -> 9.23 | BS14: =('Ext1'!BS14+'Ext2'!BS14)/2 -> 7.705 | BT14: =('Ext1'!BT14+'Ext2'!BT14)/2 -> 9.07 | BU14: =('Ext1'!BU14+'Ext2'!BU14)/2 -> 7.32 | BV14: =('Ext1'!BV14+'Ext2'!BV14)/2 -> 8.91 | BW14: =('Ext1'!BW14+'Ext2'!BW14)/2 -> 8.13 | BX14: =('Ext1'!BX14+'Ext2'!BX14)/2 -> 6.845 | BY14: =('Ext1'!BY14+'Ext2'!BY14)/2 -> 8.55 | BZ14: =('Ext1'!BZ14+'Ext2'!BZ14)/2 -> 7.695 | CA14: =('Ext1'!CA14+'Ext2'!CA14)/2 -> 8.085 | CB14: =('Ext1'!CB14+'Ext2'!CB14)/2 -> 7.205 | CC14: =('Ext1'!CC14+'Ext2'!CC14)/2 -> 7.73 | CD14: =('Ext1'!CD14+'Ext2'!CD14)/2 -> 7.115 | CE14: =('Ext1'!CE14+'Ext2'!CE14)/2 -> 7.1 | CF14: =('Ext1'!CF14+'Ext2'!CF14)/2 -> 7.415 | CG14: =('Ext1'!CG14+'Ext2'!CG14)/2 -> 7.43 | CH14: =('Ext1'!CH14+'Ext2'!CH14)/2 -> 7.425 | CI14: =('Ext1'!CI14+'Ext2'!CI14)/2 -> 6.385 | CJ14: =('Ext1'!CJ14+'Ext2'!CJ14)/2 -> 7.02 | CK14: =('Ext1'!CK14+'Ext2'!CK14)/2 -> 6.62 | CL14: =('Ext1'!CL14+'Ext2'!CL14)/2 -> 7.195 | CM14: =('Ext1'!CM14+'Ext2'!CM14)/2 -> 7.14 | CN14: =('Ext1'!CN14+'Ext2'!CN14)/2 -> 5.615 | CO14: =('Ext1'!CO14+'Ext2'!CO14)/2 -> 6.405 | CP14: =('Ext1'!CP14+'Ext2'!CP14)/2 -> 5.78 | CQ14: =('Ext1'!CQ14+'Ext2'!CQ14)/2 -> 6.16 | CR14: =('Ext1'!CR14+'Ext2'!CR14)/2 -> 6.105 | CS14: =('Ext1'!CS14+'Ext2'!CS14)/2 -> 5.865 | CT14: =('Ext1'!CT14+'Ext2'!CT14)/2 -> 5.77
B15: Jour 14 | C15: =('Ext1'!C15+'Ext2'!C15)/2 -> 5.24 | D15: =('Ext1'!D15+'Ext2'!D15)/2 -> 6.605 | E15: =('Ext1'!E15+'Ext2'!E15)/2 -> 5.115 | F15: =('Ext1'!F15+'Ext2'!F15)/2 -> 5.7 | G15: =('Ext1'!G15+'Ext2'!G15)/2 -> 5.195 | H15: =('Ext1'!H15+'Ext2'!H15)/2 -> 6.7 | I15: =('Ext1'!I15+'Ext2'!I15)/2 -> 6.67 | J15: =('Ext1'!J15+'Ext2'!J15)/2 -> 7.27 | K15: =('Ext1'!K15+'Ext2'!K15)/2 -> 6.185 | L15: =('Ext1'!L15+'Ext2'!L15)/2 -> 5.79 | M15: =('Ext1'!M15+'Ext2'!M15)/2 -> 7.575 | N15: =('Ext1'!N15+'Ext2'!N15)/2 -> 7 | O15: =('Ext1'!O15+'Ext2'!O15)/2 -> 8.645 | P15: =('Ext1'!P15+'Ext2'!P15)/2 -> 6.95 | Q15: =('Ext1'!Q15+'Ext2'!Q15)/2 -> 8.715 | R15: =('Ext1'!R15+'Ext2'!R15)/2 -> 8.97 | S15: =('Ext1'!S15+'Ext2'!S15)/2 -> 8.365 | T15: =('Ext1'!T15+'Ext2'!T15)/2 -> 8.53 | U15: =('Ext1'!U15+'Ext2'!U15)/2 -> 9.855 | V15: =('Ext1'!V15+'Ext2'!V15)/2 -> 9.32 | W15: =('Ext1'!W15+'Ext2'!W15)/2 -> 9.98 | X15: =('Ext1'!X15+'Ext2'!X15)/2 -> 10.48 | Y15: =('Ext1'!Y15+'Ext2'!Y15)/2 -> 11.24 | Z15: =('Ext1'!Z15+'Ext2'!Z15)/2 -> 10.56 | AA15: =('Ext1'!AA15+'Ext2'!AA15)/2 -> 11.25 | AB15: =('Ext1'!AB15+'Ext2'!AB15)/2 -> 10.805 | AC15: =('Ext1'!AC15+'Ext2'!AC15)/2 -> 11.685 | AD15: =('Ext1'!AD15+'Ext2'!AD15)/2 -> 11.435 | AE15: =('Ext1'!AE15+'Ext2'!AE15)/2 -> 12.055 | AF15: =('Ext1'!AF15+'Ext2'!AF15)/2 -> 13.33 | AG15: =('Ext1'!AG15+'Ext2'!AG15)/2 -> 12 | AH15: =('Ext1'!AH15+'Ext2'!AH15)/2 -> 12.57 | AI15: =('Ext1'!AI15+'Ext2'!AI15)/2 -> 12.385 | AJ15: =('Ext1'!AJ15+'Ext2'!AJ15)/2 -> 12.7 | AK15: =('Ext1'!AK15+'Ext2'!AK15)/2 -> 11.43 | AL15: =('Ext1'!AL15+'Ext2'!AL15)/2 -> 12.785 | AM15: =('Ext1'!AM15+'Ext2'!AM15)/2 -> 11.705 | AN15: =('Ext1'!AN15+'Ext2'!AN15)/2 -> 12.27 | AO15: =('Ext1'!AO15+'Ext2'!AO15)/2 -> 11 | AP15: =('Ext1'!AP15+'Ext2'!AP15)/2 -> 10.72 | AQ15: =('Ext1'!AQ15+'Ext2'!AQ15)/2 -> 11.99 | AR15: =('Ext1'!AR15+'Ext2'!AR15)/2 -> 11.78 | AS15: =('Ext1'!AS15+'Ext2'!AS15)/2 -> 10.46 | AT15: =('Ext1'!AT15+'Ext2'!AT15)/2 -> 10.845 | AU15: =('Ext1'!AU15+'Ext2'!AU15)/2 -> 9.47 | AV15: =('Ext1'!AV15+'Ext2'!AV15)/2 -> 11.25 | AW15: =('Ext1'!AW15+'Ext2'!AW15)/2 -> 10.525 | AX15: =('Ext1'!AX15+'Ext2'!AX15)/2 -> 10.51 | AY15: =('Ext1'!AY15+'Ext2'!AY15)/2 -> 10.45 | AZ15: =('Ext1'!AZ15+'Ext2'!AZ15)/2 -> 10.57 | BA15: =('Ext1'!BA15+'Ext2'!BA15)/2 -> 9.995 | BB15: =('Ext1'!BB15+'Ext2'!BB15)/2 -> 10.8 | BC15: =('Ext1'!BC15+'Ext2'!BC15)/2 -> 9.325 | BD15: =('Ext1'!BD15+'Ext2'!BD15)/2 -> 9.37 | BE15: =('Ext1'!BE15+'Ext2'!BE15)/2 -> 8.615 | BF15: =('Ext1'!BF15+'Ext2'!BF15)/2 -> 10.535 | BG15: =('Ext1'!BG15+'Ext2'!BG15)/2 -> 9.165 | BH15: =('Ext1'!BH15+'Ext2'!BH15)/2 -> 9.275 | BI15: =('Ext1'!BI15+'Ext2'!BI15)/2 -> 10.175 | BJ15: =('Ext1'!BJ15+'Ext2'!BJ15)/2 -> 8.335 | BK15: =('Ext1'!BK15+'Ext2'!BK15)/2 -> 9.88 | BL15: =('Ext1'!BL15+'Ext2'!BL15)/2 -> 9.195 | BM15: =('Ext1'!BM15+'Ext2'!BM15)/2 -> 8.19 | BN15: =('Ext1'!BN15+'Ext2'!BN15)/2 -> 9.345 | BO15: =('Ext1'!BO15+'Ext2'!BO15)/2 -> 9.46 | BP15: =('Ext1'!BP15+'Ext2'!BP15)/2 -> 9.55 | BQ15: =('Ext1'!BQ15+'Ext2'!BQ15)/2 -> 9.345 | BR15: =('Ext1'!BR15+'Ext2'!BR15)/2 -> 8.63 | BS15: =('Ext1'!BS15+'Ext2'!BS15)/2 -> 8.805 | BT15: =('Ext1'!BT15+'Ext2'!BT15)/2 -> 7.57 | BU15: =('Ext1'!BU15+'Ext2'!BU15)/2 -> 8.42 | BV15: =('Ext1'!BV15+'Ext2'!BV15)/2 -> 7.01 | BW15: =('Ext1'!BW15+'Ext2'!BW15)/2 -> 6.93 | BX15: =('Ext1'!BX15+'Ext2'!BX15)/2 -> 7.945 | BY15: =('Ext1'!BY15+'Ext2'!BY15)/2 -> 8.05 | BZ15: =('Ext1'!BZ15+'Ext2'!BZ15)/2 -> 6.595 | CA15: =('Ext1'!CA15+'Ext2'!CA15)/2 -> 8.485 | CB15: =('Ext1'!CB15+'Ext2'!CB15)/2 -> 7.005 | CC15: =('Ext1'!CC15+'Ext2'!CC15)/2 -> 6.63 | CD15: =('Ext1'!CD15+'Ext2'!CD15)/2 -> 7.415 | CE15: =('Ext1'!CE15+'Ext2'!CE15)/2 -> 6.5 | CF15: =('Ext1'!CF15+'Ext2'!CF15)/2 -> 6.915 | CG15: =('Ext1'!CG15+'Ext2'!CG15)/2 -> 7.43 | CH15: =('Ext1'!CH15+'Ext2'!CH15)/2 -> 6.625 | CI15: =('Ext1'!CI15+'Ext2'!CI15)/2 -> 7.785 | CJ15: =('Ext1'!CJ15+'Ext2'!CJ15)/2 -> 7.72 | CK15: =('Ext1'!CK15+'Ext2'!CK15)/2 -> 7.02 | CL15: =('Ext1'!CL15+'Ext2'!CL15)/2 -> 7.395 | CM15: =('Ext1'!CM15+'Ext2'!CM15)/2 -> 6.94 | CN15: =('Ext1'!CN15+'Ext2'!CN15)/2 -> 6.415 | CO15: =('Ext1'!CO15+'Ext2'!CO15)/2 -> 7.005 | CP15: =('Ext1'!CP15+'Ext2'!CP15)/2 -> 6.18 | CQ15: =('Ext1'!CQ15+'Ext2'!CQ15)/2 -> 5.96 | CR15: =('Ext1'!CR15+'Ext2'!CR15)/2 -> 7.205 | CS15: =('Ext1'!CS15+'Ext2'!CS15)/2 -> 6.265 | CT15: =('Ext1'!CT15+'Ext2'!CT15)/2 -> 5.77
B16: Jour 15 | C16: =('Ext1'!C16+'Ext2'!C16)/2 -> 5.64 | D16: =('Ext1'!D16+'Ext2'!D16)/2 -> 5.905 | E16: =('Ext1'!E16+'Ext2'!E16)/2 -> 5.015 | F16: =('Ext1'!F16+'Ext2'!F16)/2 -> 5.9 | G16: =('Ext1'!G16+'Ext2'!G16)/2 -> 6.695 | H16: =('Ext1'!H16+'Ext2'!H16)/2 -> 6 | I16: =('Ext1'!I16+'Ext2'!I16)/2 -> 6.87 | J16: =('Ext1'!J16+'Ext2'!J16)/2 -> 6.07 | K16: =('Ext1'!K16+'Ext2'!K16)/2 -> 7.585 | L16: =('Ext1'!L16+'Ext2'!L16)/2 -> 6.39 | M16: =('Ext1'!M16+'Ext2'!M16)/2 -> 7.975 | N16: =('Ext1'!N16+'Ext2'!N16)/2 -> 7.1 | O16: =('Ext1'!O16+'Ext2'!O16)/2 -> 7.645 | P16: =('Ext1'!P16+'Ext2'!P16)/2 -> 7.45 | Q16: =('Ext1'!Q16+'Ext2'!Q16)/2 -> 8.315 | R16: =('Ext1'!R16+'Ext2'!R16)/2 -> 8.77 | S16: =('Ext1'!S16+'Ext2'!S16)/2 -> 8.865 | T16: =('Ext1'!T16+'Ext2'!T16)/2 -> 10.03 | U16: =('Ext1'!U16+'Ext2'!U16)/2 -> 10.055 | V16: =('Ext1'!V16+'Ext2'!V16)/2 -> 9.32 | W16: =('Ext1'!W16+'Ext2'!W16)/2 -> 9.38 | X16: =('Ext1'!X16+'Ext2'!X16)/2 -> 10.18 | Y16: =('Ext1'!Y16+'Ext2'!Y16)/2 -> 11.44 | Z16: =('Ext1'!Z16+'Ext2'!Z16)/2 -> 10.56 | AA16: =('Ext1'!AA16+'Ext2'!AA16)/2 -> 10.45 | AB16: =('Ext1'!AB16+'Ext2'!AB16)/2 -> 12.505 | AC16: =('Ext1'!AC16+'Ext2'!AC16)/2 -> 11.285 | AD16: =('Ext1'!AD16+'Ext2'!AD16)/2 -> 12.835 | AE16: =('Ext1'!AE16+'Ext2'!AE16)/2 -> 11.755 | AF16: =('Ext1'!AF16+'Ext2'!AF16)/2 -> 12.83 | AG16: =('Ext1'!AG16+'Ext2'!AG16)/2 -> 12.7 | AH16: =('Ext1'!AH16+'Ext2'!AH16)/2 -> 12.57 | AI16: =('Ext1'!AI16+'Ext2'!AI16)/2 -> 12.785 | AJ16: =('Ext1'!AJ16+'Ext2'!AJ16)/2 -> 13.3 | AK16: =('Ext1'!AK16+'Ext2'!AK16)/2 -> 11.33 | AL16: =('Ext1'!AL16+'Ext2'!AL16)/2 -> 12.685 | AM16: =('Ext1'!AM16+'Ext2'!AM16)/2 -> 10.905 | AN16: =('Ext1'!AN16+'Ext2'!AN16)/2 -> 11.07 | AO16: =('Ext1'!AO16+'Ext2'!AO16)/2 -> 12.4 | AP16: =('Ext1'!AP16+'Ext2'!AP16)/2 -> 11.82 | AQ16: =('Ext1'!AQ16+'Ext2'!AQ16)/2 -> 10.79 | AR16: =('Ext1'!AR16+'Ext2'!AR16)/2 -> 10.88 | AS16: =('Ext1'!AS16+'Ext2'!AS16)/2 -> 9.76 | AT16: =('Ext1'!AT16+'Ext2'!AT16)/2 -> 10.345 | AU16: =('Ext1'!AU16+'Ext2'!AU16)/2 -> 10.47 | AV16: =('Ext1'!AV16+'Ext2'!AV16)/2 -> 10.35 | AW16: =('Ext1'!AW16+'Ext2'!AW16)/2 -> 11.125 | AX16: =('Ext1'!AX16+'Ext2'!AX16)/2 -> 9.91 | AY16: =('Ext1'!AY16+'Ext2'!AY16)/2 -> 8.95 | AZ16: =('Ext1'!AZ16+'Ext2'!AZ16)/2 -> 10.87 | BA16: =('Ext1'!BA16+'Ext2'!BA16)/2 -> 10.295 | BB16: =('Ext1'!BB16+'Ext2'!BB16)/2 -> 10.9 | BC16: =('Ext1'!BC16+'Ext2'!BC16)/2 -> 9.825 | BD16: =('Ext1'!BD16+'Ext2'!BD16)/2 -> 9.67 | BE16: =('Ext1'!BE16+'Ext2'!BE16)/2 -> 9.915 | BF16: =('Ext1'!BF16+'Ext2'!BF16)/2 -> 9.235 | BG16: =('Ext1'!BG16+'Ext2'!BG16)/2 -> 10.265 | BH16: =('Ext1'!BH16+'Ext2'!BH16)/2 -> 9.375 | BI16: =('Ext1'!BI16+'Ext2'!BI16)/2 -> 9.075 | BJ16: =('Ext1'!BJ16+'Ext2'!BJ16)/2 -> 8.735 | BK16: =('Ext1'!BK16+'Ext2'!BK16)/2 -> 8.68 | BL16: =('Ext1'!BL16+'Ext2'!BL16)/2 -> 9.895 | BM16: =('Ext1'!BM16+'Ext2'!BM16)/2 -> 8.39 | BN16: =('Ext1'!BN16+'Ext2'!BN16)/2 -> 8.945 | BO16: =('Ext1'!BO16+'Ext2'!BO16)/2 -> 8.16 | BP16: =('Ext1'!BP16+'Ext2'!BP16)/2 -> 8.05 | BQ16: =('Ext1'!BQ16+'Ext2'!BQ16)/2 -> 7.945 | BR16: =('Ext1'!BR16+'Ext2'!BR16)/2 -> 8.13 | BS16: =('Ext1'!BS16+'Ext2'!BS16)/2 -> 8.005 | BT16: =('Ext1'!BT16+'Ext2'!BT16)/2 -> 7.07 | BU16: =('Ext1'!BU16+'Ext2'!BU16)/2 -> 7.02 | BV16: =('Ext1'!BV16+'Ext2'!BV16)/2 -> 8.41 | BW16: =('Ext1'!BW16+'Ext2'!BW16)/2 -> 8.83 | BX16: =('Ext1'!BX16+'Ext2'!BX16)/2 -> 8.545 | BY16: =('Ext1'!BY16+'Ext2'!BY16)/2 -> 7.55 | BZ16: =('Ext1'!BZ16+'Ext2'!BZ16)/2 -> 6.895 | CA16: =('Ext1'!CA16+'Ext2'!CA16)/2 -> 7.185 | CB16: =('Ext1'!CB16+'Ext2'!CB16)/2 -> 8.105 | CC16: =('Ext1'!CC16+'Ext2'!CC16)/2 -> 8.03 | CD16: =('Ext1'!CD16+'Ext2'!CD16)/2 -> 7.415 | CE16: =('Ext1'!CE16+'Ext2'!CE16)/2 -> 6.2 | CF16: =('Ext1'!CF16+'Ext2'!CF16)/2 -> 8.015 | CG16: =('Ext1'!CG16+'Ext2'!CG16)/2 -> 8.03 | CH16: =('Ext1'!CH16+'Ext2'!CH16)/2 -> 7.425 | CI16: =('Ext1'!CI16+'Ext2'!CI16)/2 -> 7.785 | CJ16: =('Ext1'!CJ16+'Ext2'!CJ16)/2 -> 6.32 | CK16: =('Ext1'!CK16+'Ext2'!CK16)/2 -> 7.62 | CL16: =('Ext1'!CL16+'Ext2'!CL16)/2 -> 6.695 | CM16: =('Ext1'!CM16+'Ext2'!CM16)/2 -> 6.54 | CN16: =('Ext1'!CN16+'Ext2'!CN16)/2 -> 6.215 | CO16: =('Ext1'!CO16+'Ext2'!CO16)/2 -> 5.905 | CP16: =('Ext1'!CP16+'Ext2'!CP16)/2 -> 6.98 | CQ16: =('Ext1'!CQ16+'Ext2'!CQ16)/2 -> 5.96 | CR16: =('Ext1'!CR16+'Ext2'!CR16)/2 -> 5.905 | CS16: =('Ext1'!CS16+'Ext2'!CS16)/2 -> 5.265 | CT16: =('Ext1'!CT16+'Ext2'!CT16)/2 -> 6.57
B17: Jour 16 | C17: =('Ext1'!C17+'Ext2'!C17)/2 -> 4.74 | D17: =('Ext1'!D17+'Ext2'!D17)/2 -> 5.805 | E17: =('Ext1'!E17+'Ext2'!E17)/2 -> 5.715 | F17: =('Ext1'!F17+'Ext2'!F17)/2 -> 6.1 | G17: =('Ext1'!G17+'Ext2'!G17)/2 -> 5.595 | H17: =('Ext1'!H17+'Ext2'!H17)/2 -> 6.1 | I17: =('Ext1'!I17+'Ext2'!I17)/2 -> 6.47 | J17: =('Ext1'!J17+'Ext2'!J17)/2 -> 7.67 | K17: =('Ext1'!K17+'Ext2'!K17)/2 -> 7.185 | L17: =('Ext1'!L17+'Ext2'!L17)/2 -> 6.99 | M17: =('Ext1'!M17+'Ext2'!M17)/2 -> 6.875 | N17: =('Ext1'!N17+'Ext2'!N17)/2 -> 8.3 | O17: =('Ext1'!O17+'Ext2'!O17)/2 -> 8.145 | P17: =('Ext1'!P17+'Ext2'!P17)/2 -> 7.75 | Q17: =('Ext1'!Q17+'Ext2'!Q17)/2 -> 8.015 | R17: =('Ext1'!R17+'Ext2'!R17)/2 -> 8.67 | S17: =('Ext1'!S17+'Ext2'!S17)/2 -> 7.865 | T17: =('Ext1'!T17+'Ext2'!T17)/2 -> 9.23 | U17: =('Ext1'!U17+'Ext2'!U17)/2 -> 9.855 | V17: =('Ext1'!V17+'Ext2'!V17)/2 -> 9.62 | W17: =('Ext1'!W17+'Ext2'!W17)/2 -> 9.78 | X17: =('Ext1'!X17+'Ext2'!X17)/2 -> 11.18 | Y17: =('Ext1'!Y17+'Ext2'!Y17)/2 -> 11.04 | Z17: =('Ext1'!Z17+'Ext2'!Z17)/2 -> 11.16 | AA17: =('Ext1'!AA17+'Ext2'!AA17)/2 -> 11.35 | AB17: =('Ext1'!AB17+'Ext2'!AB17)/2 -> 11.405 | AC17: =('Ext1'!AC17+'Ext2'!AC17)/2 -> 11.785 | AD17: =('Ext1'!AD17+'Ext2'!AD17)/2 -> 11.335 | AE17: =('Ext1'!AE17+'Ext2'!AE17)/2 -> 13.255 | AF17: =('Ext1'!AF17+'Ext2'!AF17)/2 -> 12.23 | AG17: =('Ext1'!AG17+'Ext2'!AG17)/2 -> 13.4 | AH17: =('Ext1'!AH17+'Ext2'!AH17)/2 -> 11.57 | AI17: =('Ext1'!AI17+'Ext2'!AI17)/2 -> 11.585 | AJ17: =('Ext1'!AJ17+'Ext2'!AJ17)/2 -> 12.5 | AK17: =('Ext1'!AK17+'Ext2'!AK17)/2 -> 13.13 | AL17: =('Ext1'!AL17+'Ext2'!AL17)/2 -> 12.085 | AM17: =('Ext1'!AM17+'Ext2'!AM17)/2 -> 12.805 | AN17: =('Ext1'!AN17+'Ext2'!AN17)/2 -> 11.77 | AO17: =('Ext1'!AO17+'Ext2'!AO17)/2 -> 10.7 | AP17: =('Ext1'!AP17+'Ext2'!AP17)/2 -> 10.62 | AQ17: =('Ext1'!AQ17+'Ext2'!AQ17)/2 -> 10.99 | AR17: =('Ext1'!AR17+'Ext2'!AR17)/2 -> 11.88 | AS17: =('Ext1'!AS17+'Ext2'!AS17)/2 -> 10.56 | AT17: =('Ext1'!AT17+'Ext2'!AT17)/2 -> 11.045 | AU17: =('Ext1'!AU17+'Ext2'!AU17)/2 -> 11.17 | AV17: =('Ext1'!AV17+'Ext2'!AV17)/2 -> 9.55 | AW17: =('Ext1'!AW17+'Ext2'!AW17)/2 -> 9.525 | AX17: =('Ext1'!AX17+'Ext2'!AX17)/2 -> 10.21 | AY17: =('Ext1'!AY17+'Ext2'!AY17)/2 -> 8.95 | AZ17: =('Ext1'!AZ17+'Ext2'!AZ17)/2 -> 9.77 | BA17: =('Ext1'!BA17+'Ext2'!BA17)/2 -> 9.995 | BB17: =('Ext1'!BB17+'Ext2'!BB17)/2 -> 9.1 | BC17: =('Ext1'!BC17+'Ext2'!BC17)/2 -> 8.825 | BD17: =('Ext1'!BD17+'Ext2'!BD17)/2 -> 10.27 | BE17: =('Ext1'!BE17+'Ext2'!BE17)/2 -> 10.115 | BF17: =('Ext1'!BF17+'Ext2'!BF17)/2 -> 8.835 | BG17: =('Ext1'!BG17+'Ext2'!BG17)/2 -> 8.565 | BH17: =('Ext1'!BH17+'Ext2'!BH17)/2 -> 9.975 | BI17: =('Ext1'!BI17+'Ext2'!BI17)/2 -> 9.475 | BJ17: =('Ext1'!BJ17+'Ext2'!BJ17)/2 -> 10.035 | BK17: =('Ext1'!BK17+'Ext2'!BK17)/2 -> 8.98 | BL17: =('Ext1'!BL17+'Ext2'!BL17)/2 -> 8.695 | BM17: =('Ext1'!BM17+'Ext2'!BM17)/2 -> 7.89 | BN17: =('Ext1'!BN17+'Ext2'!BN17)/2 -> 9.645 | BO17: =('Ext1'!BO17+'Ext2'!BO17)/2 -> 8.76 | BP17: =('Ext1'!BP17+'Ext2'!BP17)/2 -> 7.65 | BQ17: =('Ext1'!BQ17+'Ext2'!BQ17)/2 -> 8.745 | BR17: =('Ext1'!BR17+'Ext2'!BR17)/2 -> 9.03 | BS17: =('Ext1'!BS17+'Ext2'!BS17)/2 -> 7.905 | BT17: =('Ext1'!BT17+'Ext2'!BT17)/2 -> 8.37 | BU17: =('Ext1'!BU17+'Ext2'!BU17)/2 -> 8.02 | BV17: =('Ext1'!BV17+'Ext2'!BV17)/2 -> 8.11 | BW17: =('Ext1'!BW17+'Ext2'!BW17)/2 -> 7.83 | BX17: =('Ext1'!BX17+'Ext2'!BX17)/2 -> 7.345 | BY17: =('Ext1'!BY17+'Ext2'!BY17)/2 -> 7.65 | BZ17: =('Ext1'!BZ17+'Ext2'!BZ17)/2 -> 8.495 | CA17: =('Ext1'!CA17+'Ext2'!CA17)/2 -> 6.785 | CB17: =('Ext1'!CB17+'Ext2'!CB17)/2 -> 6.605 | CC17: =('Ext1'!CC17+'Ext2'!CC17)/2 -> 6.83 | CD17: =('Ext1'!CD17+'Ext2'!CD17)/2 -> 6.815 | CE17: =('Ext1'!CE17+'Ext2'!CE17)/2 -> 6.9 | CF17: =('Ext1'!CF17+'Ext2'!CF17)/2 -> 6.115 | CG17: =('Ext1'!CG17+'Ext2'!CG17)/2 -> 7.93 | CH17: =('Ext1'!CH17+'Ext2'!CH17)/2 -> 7.225 | CI17: =('Ext1'!CI17+'Ext2'!CI17)/2 -> 6.085 | CJ17: =('Ext1'!CJ17+'Ext2'!CJ17)/2 -> 6.42 | CK17: =('Ext1'!CK17+'Ext2'!CK17)/2 -> 6.62 | CL17: =('Ext1'!CL17+'Ext2'!CL17)/2 -> 6.095 | CM17: =('Ext1'!CM17+'Ext2'!CM17)/2 -> 6.74 | CN17: =('Ext1'!CN17+'Ext2'!CN17)/2 -> 5.815 | CO17: =('Ext1'!CO17+'Ext2'!CO17)/2 -> 6.605 | CP17: =('Ext1'!CP17+'Ext2'!CP17)/2 -> 7.38 | CQ17: =('Ext1'!CQ17+'Ext2'!CQ17)/2 -> 5.66 | CR17: =('Ext1'!CR17+'Ext2'!CR17)/2 -> 6.305 | CS17: =('Ext1'!CS17+'Ext2'!CS17)/2 -> 5.165 | CT17: =('Ext1'!CT17+'Ext2'!CT17)/2 -> 5.57
B18: Jour 17 | C18: =('Ext1'!C18+'Ext2'!C18)/2 -> 4.94 | D18: =('Ext1'!D18+'Ext2'!D18)/2 -> 4.805 | E18: =('Ext1'!E18+'Ext2'!E18)/2 -> 5.515 | F18: =('Ext1'!F18+'Ext2'!F18)/2 -> 5.6 | G18: =('Ext1'!G18+'Ext2'!G18)/2 -> 5.495 | H18: =('Ext1'!H18+'Ext2'!H18)/2 -> 6.6 | I18: =('Ext1'!I18+'Ext2'!I18)/2 -> 6.47 | J18: =('Ext1'!J18+'Ext2'!J18)/2 -> 7.37 | K18: =('Ext1'!K18+'Ext2'!K18)/2 -> 6.085 | L18: =('Ext1'!L18+'Ext2'!L18)/2 -> 6.99 | M18: =('Ext1'!M18+'Ext2'!M18)/2 -> 7.075 | N18: =('Ext1'!N18+'Ext2'!N18)/2 -> 6.4 | O18: =('Ext1'!O18+'Ext2'!O18)/2 -> 7.245 | P18: =('Ext1'!P18+'Ext2'!P18)/2 -> 7.45 | Q18: =('Ext1'!Q18+'Ext2'!Q18)/2 -> 8.715 | R18: =('Ext1'!R18+'Ext2'!R18)/2 -> 7.67 | S18: =('Ext1'!S18+'Ext2'!S18)/2 -> 8.665 | T18: =('Ext1'!T18+'Ext2'!T18)/2 -> 8.23 | U18: =('Ext1'!U18+'Ext2'!U18)/2 -> 9.955 | V18: =('Ext1'!V18+'Ext2'!V18)/2 -> 10.32 | W18: =('Ext1'!W18+'Ext2'!W18)/2 -> 9.58 | X18: =('Ext1'!X18+'Ext2'!X18)/2 -> 11.08 | Y18: =('Ext1'!Y18+'Ext2'!Y18)/2 -> 10.94 | Z18: =('Ext1'!Z18+'Ext2'!Z18)/2 -> 11.96 | AA18: =('Ext1'!AA18+'Ext2'!AA18)/2 -> 12.45 | AB18: =('Ext1'!AB18+'Ext2'!AB18)/2 -> 12.805 | AC18: =('Ext1'!AC18+'Ext2'!AC18)/2 -> 12.885 | AD18: =('Ext1'!AD18+'Ext2'!AD18)/2 -> 12.235 | AE18: =('Ext1'!AE18+'Ext2'!AE18)/2 -> 12.055 | AF18: =('Ext1'!AF18+'Ext2'!AF18)/2 -> 11.53 | AG18: =('Ext1'!AG18+'Ext2'!AG18)/2 -> 11.4 | AH18: =('Ext1'!AH18+'Ext2'!AH18)/2 -> 12.67 | AI18: =('Ext1'!AI18+'Ext2'!AI18)/2 -> 11.585 | AJ18: =('Ext1'!AJ18+'Ext2'!AJ18)/2 -> 12 | AK18: =('Ext1'!AK18+'Ext2'!AK18)/2 -> 11.93 | AL18: =('Ext1'!AL18+'Ext2'!AL18)/2 -> 12.385 | AM18: =('Ext1'!AM18+'Ext2'!AM18)/2 -> 12.905 | AN18: =('Ext1'!AN18+'Ext2'!AN18)/2 -> 11.77 | AO18: =('Ext1'!AO18+'Ext2'!AO18)/2 -> 11.5 | AP18: =('Ext1'!AP18+'Ext2'!AP18)/2 -> 10.82 | AQ18: =('Ext1'!AQ18+'Ext2'!AQ18)/2 -> 10.19 | AR18: =('Ext1'!AR18+'Ext2'!AR18)/2 -> 11.68 | AS18: =('Ext1'!AS18+'Ext2'!AS18)/2 -> 10.66 | AT18: =('Ext1'!AT18+'Ext2'!AT18)/2 -> 11.145 | AU18: =('Ext1'!AU18+'Ext2'!AU18)/2 -> 10.67 | AV18: =('Ext1'!AV18+'Ext2'!AV18)/2 -> 10.65 | AW18: =('Ext1'!AW18+'Ext2'!AW18)/2 -> 10.925 | AX18: =('Ext1'!AX18+'Ext2'!AX18)/2 -> 10.81 | AY18: =('Ext1'!AY18+'Ext2'!AY18)/2 -> 10.65 | AZ18: =('Ext1'!AZ18+'Ext2'!AZ18)/2 -> 10.87 | BA18: =('Ext1'!BA18+'Ext2'!BA18)/2 -> 9.795 | BB18: =('Ext1'!BB18+'Ext2'!BB18)/2 -> 9.8 | BC18: =('Ext1'!BC18+'Ext2'!BC18)/2 -> 10.125 | BD18: =('Ext1'!BD18+'Ext2'!BD18)/2 -> 10.47 | BE18: =('Ext1'!BE18+'Ext2'!BE18)/2 -> 10.115 | BF18: =('Ext1'!BF18+'Ext2'!BF18)/2 -> 9.535 | BG18: =('Ext1'!BG18+'Ext2'!BG18)/2 -> 9.365 | BH18: =('Ext1'!BH18+'Ext2'!BH18)/2 -> 10.275 | BI18: =('Ext1'!BI18+'Ext2'!BI18)/2 -> 8.575 | BJ18: =('Ext1'!BJ18+'Ext2'!BJ18)/2 -> 9.835 | BK18: =('Ext1'!BK18+'Ext2'!BK18)/2 -> 9.08 | BL18: =('Ext1'!BL18+'Ext2'!BL18)/2 -> 8.695 | BM18: =('Ext1'!BM18+'Ext2'!BM18)/2 -> 9.19 | BN18: =('Ext1'!BN18+'Ext2'!BN18)/2 -> 9.345 | BO18: =('Ext1'!BO18+'Ext2'!BO18)/2 -> 8.76 | BP18: =('Ext1'!BP18+'Ext2'!BP18)/2 -> 7.55 | BQ18: =('Ext1'!BQ18+'Ext2'!BQ18)/2 -> 7.445 | BR18: =('Ext1'!BR18+'Ext2'!BR18)/2 -> 7.93 | BS18: =('Ext1'!BS18+'Ext2'!BS18)/2 -> 8.005 | BT18: =('Ext1'!BT18+'Ext2'!BT18)/2 -> 7.27 | BU18: =('Ext1'!BU18+'Ext2'!BU18)/2 -> 7.52 | BV18: =('Ext1'!BV18+'Ext2'!BV18)/2 -> 8.71 | BW18: =('Ext1'!BW18+'Ext2'!BW18)/2 -> 8.53 | BX18: =('Ext1'!BX18+'Ext2'!BX18)/2 -> 8.145 | BY18: =('Ext1'!BY18+'Ext2'!BY18)/2 -> 7.15 | BZ18: =('Ext1'!BZ18+'Ext2'!BZ18)/2 -> 6.695 | CA18: =('Ext1'!CA18+'Ext2'!CA18)/2 -> 8.185 | CB18: =('Ext1'!CB18+'Ext2'!CB18)/2 -> 7.805 | CC18: =('Ext1'!CC18+'Ext2'!CC18)/2 -> 7.63 | CD18: =('Ext1'!CD18+'Ext2'!CD18)/2 -> 6.915 | CE18: =('Ext1'!CE18+'Ext2'!CE18)/2 -> 7.5 | CF18: =('Ext1'!CF18+'Ext2'!CF18)/2 -> 7.315 | CG18: =('Ext1'!CG18+'Ext2'!CG18)/2 -> 7.93 | CH18: =('Ext1'!CH18+'Ext2'!CH18)/2 -> 6.025 | CI18: =('Ext1'!CI18+'Ext2'!CI18)/2 -> 6.085 | CJ18: =('Ext1'!CJ18+'Ext2'!CJ18)/2 -> 7.22 | CK18: =('Ext1'!CK18+'Ext2'!CK18)/2 -> 6.52 | CL18: =('Ext1'!CL18+'Ext2'!CL18)/2 -> 7.395 | CM18: =('Ext1'!CM18+'Ext2'!CM18)/2 -> 6.14 | CN18: =('Ext1'!CN18+'Ext2'!CN18)/2 -> 5.815 | CO18: =('Ext1'!CO18+'Ext2'!CO18)/2 -> 6.405 | CP18: =('Ext1'!CP18+'Ext2'!CP18)/2 -> 6.48 | CQ18: =('Ext1'!CQ18+'Ext2'!CQ18)/2 -> 7.06 | CR18: =('Ext1'!CR18+'Ext2'!CR18)/2 -> 6.105 | CS18: =('Ext1'!CS18+'Ext2'!CS18)/2 -> 5.665 | CT18: =('Ext1'!CT18+'Ext2'!CT18)/2 -> 5.87
B19: Jour 18 | C19: =('Ext1'!C19+'Ext2'!C19)/2 -> 5.04 | D19: =('Ext1'!D19+'Ext2'!D19)/2 -> 6.605 | E19: =('Ext1'!E19+'Ext2'!E19)/2 -> 4.615 | F19: =('Ext1'!F19+'Ext2'!F19)/2 -> 6.7 | G19: =('Ext1'!G19+'Ext2'!G19)/2 -> 6.895 | H19: =('Ext1'!H19+'Ext2'!H19)/2 -> 5.6 | I19: =('Ext1'!I19+'Ext2'!I19)/2 -> 5.57 | J19: =('Ext1'!J19+'Ext2'!J19)/2 -> 7.37 | K19: =('Ext1'!K19+'Ext2'!K19)/2 -> 6.185 | L19: =('Ext1'!L19+'Ext2'!L19)/2 -> 6.49 | M19: =('Ext1'!M19+'Ext2'!M19)/2 -> 6.275 | N19: =('Ext1'!N19+'Ext2'!N19)/2 -> 7.1 | O19: =('Ext1'!O19+'Ext2'!O19)/2 -> 7.145 | P19: =('Ext1'!P19+'Ext2'!P19)/2 -> 8.75 | Q19: =('Ext1'!Q19+'Ext2'!Q19)/2 -> 8.915 | R19: =('Ext1'!R19+'Ext2'!R19)/2 -> 8.47 | S19: =('Ext1'!S19+'Ext2'!S19)/2 -> 9.565 | T19: =('Ext1'!T19+'Ext2'!T19)/2 -> 8.93 | U19: =('Ext1'!U19+'Ext2'!U19)/2 -> 10.255 | V19: =('Ext1'!V19+'Ext2'!V19)/2 -> 9.32 | W19: =('Ext1'!W19+'Ext2'!W19)/2 -> 10.48 | X19: =('Ext1'!X19+'Ext2'!X19)/2 -> 10.48 | Y19: =('Ext1'!Y19+'Ext2'!Y19)/2 -> 11.54 | Z19: =('Ext1'!Z19+'Ext2'!Z19)/2 -> 11.06 | AA19: =('Ext1'!AA19+'Ext2'!AA19)/2 -> 11.95 | AB19: =('Ext1'!AB19+'Ext2'!AB19)/2 -> 11.405 | AC19: =('Ext1'!AC19+'Ext2'!AC19)/2 -> 11.485 | AD19: =('Ext1'!AD19+'Ext2'!AD19)/2 -> 11.535 | AE19: =('Ext1'!AE19+'Ext2'!AE19)/2 -> 12.455 | AF19: =('Ext1'!AF19+'Ext2'!AF19)/2 -> 12.83 | AG19: =('Ext1'!AG19+'Ext2'!AG19)/2 -> 13.2 | AH19: =('Ext1'!AH19+'Ext2'!AH19)/2 -> 13.47 | AI19: =('Ext1'!AI19+'Ext2'!AI19)/2 -> 12.985 | AJ19: =('Ext1'!AJ19+'Ext2'!AJ19)/2 -> 11.6 | AK19: =('Ext1'!AK19+'Ext2'!AK19)/2 -> 11.63 | AL19: =('Ext1'!AL19+'Ext2'!AL19)/2 -> 12.885 | AM19: =('Ext1'!AM19+'Ext2'!AM19)/2 -> 11.405 | AN19: =('Ext1'!AN19+'Ext2'!AN19)/2 -> 12.87 | AO19: =('Ext1'!AO19+'Ext2'!AO19)/2 -> 12.5 | AP19: =('Ext1'!AP19+'Ext2'!AP19)/2 -> 12.12 | AQ19: =('Ext1'!AQ19+'Ext2'!AQ19)/2 -> 10.89 | AR19: =('Ext1'!AR19+'Ext2'!AR19)/2 -> 10.08 | AS19: =('Ext1'!AS19+'Ext2'!AS19)/2 -> 10.86 | AT19: =('Ext1'!AT19+'Ext2'!AT19)/2 -> 11.245 | AU19: =('Ext1'!AU19+'Ext2'!AU19)/2 -> 10.17 | AV19: =('Ext1'!AV19+'Ext2'!AV19)/2 -> 10.55 | AW19: =('Ext1'!AW19+'Ext2'!AW19)/2 -> 10.325 | AX19: =('Ext1'!AX19+'Ext2'!AX19)/2 -> 9.41 | AY19: =('Ext1'!AY19+'Ext2'!AY19)/2 -> 10.45 | AZ19: =('Ext1'!AZ19+'Ext2'!AZ19)/2 -> 9.77 | BA19: =('Ext1'!BA19+'Ext2'!BA19)/2 -> 9.995 | BB19: =('Ext1'!BB19+'Ext2'!BB19)/2 -> 9 | BC19: =('Ext1'!BC19+'Ext2'!BC19)/2 -> 9.225 | BD19: =('Ext1'!BD19+'Ext2'!BD19)/2 -> 9.27 | BE19: =('Ext1'!BE19+'Ext2'!BE19)/2 -> 9.715 | BF19: =('Ext1'!BF19+'Ext2'!BF19)/2 -> 9.635 | BG19: =('Ext1'!BG19+'Ext2'!BG19)/2 -> 10.465 | BH19: =('Ext1'!BH19+'Ext2'!BH19)/2 -> 9.875 | BI19: =('Ext1'!BI19+'Ext2'!BI19)/2 -> 10.475 | BJ19: =('Ext1'!BJ19+'Ext2'!BJ19)/2 -> 8.635 | BK19: =('Ext1'!BK19+'Ext2'!BK19)/2 -> 8.98 | BL19: =('Ext1'!BL19+'Ext2'!BL19)/2 -> 7.995 | BM19: =('Ext1'!BM19+'Ext2'!BM19)/2 -> 9.29 | BN19: =('Ext1'!BN19+'Ext2'!BN19)/2 -> 8.745 | BO19: =('Ext1'!BO19+'Ext2'!BO19)/2 -> 8.66 | BP19: =('Ext1'!BP19+'Ext2'!BP19)/2 -> 9.35 | BQ19: =('Ext1'!BQ19+'Ext2'!BQ19)/2 -> 9.145 | BR19: =('Ext1'!BR19+'Ext2'!BR19)/2 -> 8.73 | BS19: =('Ext1'!BS19+'Ext2'!BS19)/2 -> 7.505 | BT19: =('Ext1'!BT19+'Ext2'!BT19)/2 -> 7.07 | BU19: =('Ext1'!BU19+'Ext2'!BU19)/2 -> 7.32 | BV19: =('Ext1'!BV19+'Ext2'!BV19)/2 -> 8.01 | BW19: =('Ext1'!BW19+'Ext2'!BW19)/2 -> 8.53 | BX19: =('Ext1'!BX19+'Ext2'!BX19)/2 -> 7.445 | BY19: =('Ext1'!BY19+'Ext2'!BY19)/2 -> 7.15 | BZ19: =('Ext1'!BZ19+'Ext2'!BZ19)/2 -> 7.395 | CA19: =('Ext1'!CA19+'Ext2'!CA19)/2 -> 8.485 | CB19: =('Ext1'!CB19+'Ext2'!CB19)/2 -> 8.005 | CC19: =('Ext1'!CC19+'Ext2'!CC19)/2 -> 7.63 | CD19: =('Ext1'!CD19+'Ext2'!CD19)/2 -> 7.415 | CE19: =('Ext1'!CE19+'Ext2'!CE19)/2 -> 7.1 | CF19: =('Ext1'!CF19+'Ext2'!CF19)/2 -> 7.915 | CG19: =('Ext1'!CG19+'Ext2'!CG19)/2 -> 6.23 | CH19: =('Ext1'!CH19+'Ext2'!CH19)/2 -> 6.225 | CI19: =('Ext1'!CI19+'Ext2'!CI19)/2 -> 6.385 | CJ19: =('Ext1'!CJ19+'Ext2'!CJ19)/2 -> 6.02 | CK19: =('Ext1'!CK19+'Ext2'!CK19)/2 -> 6.52 | CL19: =('Ext1'!CL19+'Ext2'!CL19)/2 -> 5.895 | CM19: =('Ext1'!CM19+'Ext2'!CM19)/2 -> 7.64 | CN19: =('Ext1'!CN19+'Ext2'!CN19)/2 -> 7.415 | CO19: =('Ext1'!CO19+'Ext2'!CO19)/2 -> 5.605 | CP19: =('Ext1'!CP19+'Ext2'!CP19)/2 -> 5.58 | CQ19: =('Ext1'!CQ19+'Ext2'!CQ19)/2 -> 6.16 | CR19: =('Ext1'!CR19+'Ext2'!CR19)/2 -> 6.105 | CS19: =('Ext1'!CS19+'Ext2'!CS19)/2 -> 7.065 | CT19: =('Ext1'!CT19+'Ext2'!CT19)/2 -> 5.07
B20: Jour 19 | C20: =('Ext1'!C20+'Ext2'!C20)/2 -> 4.54 | D20: =('Ext1'!D20+'Ext2'!D20)/2 -> 6.205 | E20: =('Ext1'!E20+'Ext2'!E20)/2 -> 5.815 | F20: =('Ext1'!F20+'Ext2'!F20)/2 -> 6.4 | G20: =('Ext1'!G20+'Ext2'!G20)/2 -> 6.295 | H20: =('Ext1'!H20+'Ext2'!H20)/2 -> 6.5 | I20: =('Ext1'!I20+'Ext2'!I20)/2 -> 7.37 | J20: =('Ext1'!J20+'Ext2'!J20)/2 -> 6.97 | K20: =('Ext1'!K20+'Ext2'!K20)/2 -> 6.085 | L20: =('Ext1'!L20+'Ext2'!L20)/2 -> 6.99 | M20: =('Ext1'!M20+'Ext2'!M20)/2 -> 7.275 | N20: =('Ext1'!N20+'Ext2'!N20)/2 -> 6.6 | O20: =('Ext1'!O20+'Ext2'!O20)/2 -> 8.645 | P20: =('Ext1'!P20+'Ext2'!P20)/2 -> 8.25 | Q20: =('Ext1'!Q20+'Ext2'!Q20)/2 -> 9.015 | R20: =('Ext1'!R20+'Ext2'!R20)/2 -> 9.17 | S20: =('Ext1'!S20+'Ext2'!S20)/2 -> 9.165 | T20: =('Ext1'!T20+'Ext2'!T20)/2 -> 9.13 | U20: =('Ext1'!U20+'Ext2'!U20)/2 -> 9.555 | V20: =('Ext1'!V20+'Ext2'!V20)/2 -> 9.52 | W20: =('Ext1'!W20+'Ext2'!W20)/2 -> 11.38 | X20: =('Ext1'!X20+'Ext2'!X20)/2 -> 9.88 | Y20: =('Ext1'!Y20+'Ext2'!Y20)/2 -> 10.04 | Z20: =('Ext1'!Z20+'Ext2'!Z20)/2 -> 11.56 | AA20: =('Ext1'!AA20+'Ext2'!AA20)/2 -> 10.75 | AB20: =('Ext1'!AB20+'Ext2'!AB20)/2 -> 12.005 | AC20: =('Ext1'!AC20+'Ext2'!AC20)/2 -> 12.485 | AD20: =('Ext1'!AD20+'Ext2'!AD20)/2 -> 12.035 | AE20: =('Ext1'!AE20+'Ext2'!AE20)/2 -> 12.655 | AF20: =('Ext1'!AF20+'Ext2'!AF20)/2 -> 11.93 | AG20: =('Ext1'!AG20+'Ext2'!AG20)/2 -> 12.4 | AH20: =('Ext1'!AH20+'Ext2'!AH20)/2 -> 11.97 | AI20: =('Ext1'!AI20+'Ext2'!AI20)/2 -> 11.585 | AJ20: =('Ext1'!AJ20+'Ext2'!AJ20)/2 -> 12.6 | AK20: =('Ext1'!AK20+'Ext2'!AK20)/2 -> 12.63 | AL20: =('Ext1'!AL20+'Ext2'!AL20)/2 -> 11.985 | AM20: =('Ext1'!AM20+'Ext2'!AM20)/2 -> 11.105 | AN20: =('Ext1'!AN20+'Ext2'!AN20)/2 -> 10.97 | AO20: =('Ext1'!AO20+'Ext2'!AO20)/2 -> 11.7 | AP20: =('Ext1'!AP20+'Ext2'!AP20)/2 -> 10.52 | AQ20: =('Ext1'!AQ20+'Ext2'!AQ20)/2 -> 10.59 | AR20: =('Ext1'!AR20+'Ext2'!AR20)/2 -> 10.98 | AS20: =('Ext1'!AS20+'Ext2'!AS20)/2 -> 10.86 | AT20: =('Ext1'!AT20+'Ext2'!AT20)/2 -> 10.545 | AU20: =('Ext1'!AU20+'Ext2'!AU20)/2 -> 10.07 | AV20: =('Ext1'!AV20+'Ext2'!AV20)/2 -> 10.25 | AW20: =('Ext1'!AW20+'Ext2'!AW20)/2 -> 9.525 | AX20: =('Ext1'!AX20+'Ext2'!AX20)/2 -> 11.11 | AY20: =('Ext1'!AY20+'Ext2'!AY20)/2 -> 10.95 | AZ20: =('Ext1'!AZ20+'Ext2'!AZ20)/2 -> 10.87 | BA20: =('Ext1'!BA20+'Ext2'!BA20)/2 -> 9.995 | BB20: =('Ext1'!BB20+'Ext2'!BB20)/2 -> 10.7 | BC20: =('Ext1'!BC20+'Ext2'!BC20)/2 -> 10.225 | BD20: =('Ext1'!BD20+'Ext2'!BD20)/2 -> 10.27 | BE20: =('Ext1'!BE20+'Ext2'!BE20)/2 -> 9.115 | BF20: =('Ext1'!BF20+'Ext2'!BF20)/2 -> 10.135 | BG20: =('Ext1'!BG20+'Ext2'!BG20)/2 -> 10.465 | BH20: =('Ext1'!BH20+'Ext2'!BH20)/2 -> 8.475 | BI20: =('Ext1'!BI20+'Ext2'!BI20)/2 -> 10.075 | BJ20: =('Ext1'!BJ20+'Ext2'!BJ20)/2 -> 8.535 | BK20: =('Ext1'!BK20+'Ext2'!BK20)/2 -> 9.58 | BL20: =('Ext1'!BL20+'Ext2'!BL20)/2 -> 9.695 | BM20: =('Ext1'!BM20+'Ext2'!BM20)/2 -> 9.59 | BN20: =('Ext1'!BN20+'Ext2'!BN20)/2 -> 8.745 | BO20: =('Ext1'!BO20+'Ext2'!BO20)/2 -> 8.16 | BP20: =('Ext1'!BP20+'Ext2'!BP20)/2 -> 9.45 | BQ20: =('Ext1'!BQ20+'Ext2'!BQ20)/2 -> 8.345 | BR20: =('Ext1'!BR20+'Ext2'!BR20)/2 -> 8.23 | BS20: =('Ext1'!BS20+'Ext2'!BS20)/2 -> 7.305 | BT20: =('Ext1'!BT20+'Ext2'!BT20)/2 -> 7.17 | BU20: =('Ext1'!BU20+'Ext2'!BU20)/2 -> 7.32 | BV20: =('Ext1'!BV20+'Ext2'!BV20)/2 -> 8.01 | BW20: =('Ext1'!BW20+'Ext2'!BW20)/2 -> 8.23 | BX20: =('Ext1'!BX20+'Ext2'!BX20)/2 -> 7.745 | BY20: =('Ext1'!BY20+'Ext2'!BY20)/2 -> 6.85 | BZ20: =('Ext1'!BZ20+'Ext2'!BZ20)/2 -> 8.195 | CA20: =('Ext1'!CA20+'Ext2'!CA20)/2 -> 7.885 | CB20: =('Ext1'!CB20+'Ext2'!CB20)/2 -> 6.405 | CC20: =('Ext1'!CC20+'Ext2'!CC20)/2 -> 6.43 | CD20: =('Ext1'!CD20+'Ext2'!CD20)/2 -> 7.415 | CE20: =('Ext1'!CE20+'Ext2'!CE20)/2 -> 6.5 | CF20: =('Ext1'!CF20+'Ext2'!CF20)/2 -> 7.815 | CG20: =('Ext1'!CG20+'Ext2'!CG20)/2 -> 6.73 | CH20: =('Ext1'!CH20+'Ext2'!CH20)/2 -> 6.625 | CI20: =('Ext1'!CI20+'Ext2'!CI20)/2 -> 7.085 | CJ20: =('Ext1'!CJ20+'Ext2'!CJ20)/2 -> 6.62 | CK20: =('Ext1'!CK20+'Ext2'!CK20)/2 -> 5.72 | CL20: =('Ext1'!CL20+'Ext2'!CL20)/2 -> 6.695 | CM20: =('Ext1'!CM20+'Ext2'!CM20)/2 -> 6.94 | CN20: =('Ext1'!CN20+'Ext2'!CN20)/2 -> 5.615 | CO20: =('Ext1'!CO20+'Ext2'!CO20)/2 -> 7.405 | CP20: =('Ext1'!CP20+'Ext2'!CP20)/2 -> 7.28 | CQ20: =('Ext1'!CQ20+'Ext2'!CQ20)/2 -> 6.16 | CR20: =('Ext1'!CR20+'Ext2'!CR20)/2 -> 6.605 | CS20: =('Ext1'!CS20+'Ext2'!CS20)/2 -> 5.565 | CT20: =('Ext1'!CT20+'Ext2'!CT20)/2 -> 5.27
B21: Jour 20 | C21: =('Ext1'!C21+'Ext2'!C21)/2 -> 4.54 | D21: =('Ext1'!D21+'Ext2'!D21)/2 -> 5.905 | E21: =('Ext1'!E21+'Ext2'!E21)/2 -> 6.015 | F21: =('Ext1'!F21+'Ext2'!F21)/2 -> 6.8 | G21: =('Ext1'!G21+'Ext2'!G21)/2 -> 5.195 | H21: =('Ext1'!H21+'Ext2'!H21)/2 -> 6.6 | I21: =('Ext1'!I21+'Ext2'!I21)/2 -> 6.07 | J21: =('Ext1'!J21+'Ext2'!J21)/2 -> 5.77 | K21: =('Ext1'!K21+'Ext2'!K21)/2 -> 7.485 | L21: =('Ext1'!L21+'Ext2'!L21)/2 -> 6.09 | M21: =('Ext1'!M21+'Ext2'!M21)/2 -> 6.275 | N21: =('Ext1'!N21+'Ext2'!N21)/2 -> 7.1 | O21: =('Ext1'!O21+'Ext2'!O21)/2 -> 6.945 | P21: =('Ext1'!P21+'Ext2'!P21)/2 -> 6.95 | Q21: =('Ext1'!Q21+'Ext2'!Q21)/2 -> 7.515 | R21: =('Ext1'!R21+'Ext2'!R21)/2 -> 8.07 | S21: =('Ext1'!S21+'Ext2'!S21)/2 -> 9.865 | T21: =('Ext1'!T21+'Ext2'!T21)/2 -> 8.33 | U21: =('Ext1'!U21+'Ext2'!U21)/2 -> 8.755 | V21: =('Ext1'!V21+'Ext2'!V21)/2 -> 9.22 | W21: =('Ext1'!W21+'Ext2'!W21)/2 -> 9.68 | X21: =('Ext1'!X21+'Ext2'!X21)/2 -> 10.38 | Y21: =('Ext1'!Y21+'Ext2'!Y21)/2 -> 11.84 | Z21: =('Ext1'!Z21+'Ext2'!Z21)/2 -> 10.86 | AA21: =('Ext1'!AA21+'Ext2'!AA21)/2 -> 11.25 | AB21: =('Ext1'!AB21+'Ext2'!AB21)/2 -> 12.705 | AC21: =('Ext1'!AC21+'Ext2'!AC21)/2 -> 11.685 | AD21: =('Ext1'!AD21+'Ext2'!AD21)/2 -> 12.135 | AE21: =('Ext1'!AE21+'Ext2'!AE21)/2 -> 12.755 | AF21: =('Ext1'!AF21+'Ext2'!AF21)/2 -> 13.43 | AG21: =('Ext1'!AG21+'Ext2'!AG21)/2 -> 12.3 | AH21: =('Ext1'!AH21+'Ext2'!AH21)/2 -> 13.47 | AI21: =('Ext1'!AI21+'Ext2'!AI21)/2 -> 11.585 | AJ21: =('Ext1'!AJ21+'Ext2'!AJ21)/2 -> 12.9 | AK21: =('Ext1'!AK21+'Ext2'!AK21)/2 -> 12.83 | AL21: =('Ext1'!AL21+'Ext2'!AL21)/2 -> 11.485 | AM21: =('Ext1'!AM21+'Ext2'!AM21)/2 -> 11.605 | AN21: =('Ext1'!AN21+'Ext2'!AN21)/2 -> 11.77 | AO21: =('Ext1'!AO21+'Ext2'!AO21)/2 -> 11.4 | AP21: =('Ext1'!AP21+'Ext2'!AP21)/2 -> 10.52 | AQ21: =('Ext1'!AQ21+'Ext2'!AQ21)/2 -> 11.59 | AR21: =('Ext1'!AR21+'Ext2'!AR21)/2 -> 10.58 | AS21: =('Ext1'!AS21+'Ext2'!AS21)/2 -> 11.06 | AT21: =('Ext1'!AT21+'Ext2'!AT21)/2 -> 11.045 | AU21: =('Ext1'!AU21+'Ext2'!AU21)/2 -> 9.97 | AV21: =('Ext1'!AV21+'Ext2'!AV21)/2 -> 10.05 | AW21: =('Ext1'!AW21+'Ext2'!AW21)/2 -> 11.025 | AX21: =('Ext1'!AX21+'Ext2'!AX21)/2 -> 10.01 | AY21: =('Ext1'!AY21+'Ext2'!AY21)/2 -> 10.35 | AZ21: =('Ext1'!AZ21+'Ext2'!AZ21)/2 -> 9.67 | BA21: =('Ext1'!BA21+'Ext2'!BA21)/2 -> 9.495 | BB21: =('Ext1'!BB21+'Ext2'!BB21)/2 -> 10.7 | BC21: =('Ext1'!BC21+'Ext2'!BC21)/2 -> 9.825 | BD21: =('Ext1'!BD21+'Ext2'!BD21)/2 -> 8.67 | BE21: =('Ext1'!BE21+'Ext2'!BE21)/2 -> 10.015 | BF21: =('Ext1'!BF21+'Ext2'!BF21)/2 -> 9.035 | BG21: =('Ext1'!BG21+'Ext2'!BG21)/2 -> 10.465 | BH21: =('Ext1'!BH21+'Ext2'!BH21)/2 -> 8.775 | BI21: =('Ext1'!BI21+'Ext2'!BI21)/2 -> 8.575 | BJ21: =('Ext1'!BJ21+'Ext2'!BJ21)/2 -> 8.835 | BK21: =('Ext1'!BK21+'Ext2'!BK21)/2 -> 10.08 | BL21: =('Ext1'!BL21+'Ext2'!BL21)/2 -> 9.595 | BM21: =('Ext1'!BM21+'Ext2'!BM21)/2 -> 7.99 | BN21: =('Ext1'!BN21+'Ext2'!BN21)/2 -> 7.845 | BO21: =('Ext1'!BO21+'Ext2'!BO21)/2 -> 7.66 | BP21: =('Ext1'!BP21+'Ext2'!BP21)/2 -> 9.35 | BQ21: =('Ext1'!BQ21+'Ext2'!BQ21)/2 -> 9.345 | BR21: =('Ext1'!BR21+'Ext2'!BR21)/2 -> 7.33 | BS21: =('Ext1'!BS21+'Ext2'!BS21)/2 -> 9.205 | BT21: =('Ext1'!BT21+'Ext2'!BT21)/2 -> 7.07 | BU21: =('Ext1'!BU21+'Ext2'!BU21)/2 -> 7.52 | BV21: =('Ext1'!BV21+'Ext2'!BV21)/2 -> 7.31 | BW21: =('Ext1'!BW21+'Ext2'!BW21)/2 -> 8.13 | BX21: =('Ext1'!BX21+'Ext2'!BX21)/2 -> 6.745 | BY21: =('Ext1'!BY21+'Ext2'!BY21)/2 -> 7.25 | BZ21: =('Ext1'!BZ21+'Ext2'!BZ21)/2 -> 7.795 | CA21: =('Ext1'!CA21+'Ext2'!CA21)/2 -> 7.785 | CB21: =('Ext1'!CB21+'Ext2'!CB21)/2 -> 7.505 | CC21: =('Ext1'!CC21+'Ext2'!CC21)/2 -> 6.83 | CD21: =('Ext1'!CD21+'Ext2'!CD21)/2 -> 7.215 | CE21: =('Ext1'!CE21+'Ext2'!CE21)/2 -> 8.1 | CF21: =('Ext1'!CF21+'Ext2'!CF21)/2 -> 6.715 | CG21: =('Ext1'!CG21+'Ext2'!CG21)/2 -> 7.63 | CH21: =('Ext1'!CH21+'Ext2'!CH21)/2 -> 6.725 | CI21: =('Ext1'!CI21+'Ext2'!CI21)/2 -> 6.285 | CJ21: =('Ext1'!CJ21+'Ext2'!CJ21)/2 -> 6.22 | CK21: =('Ext1'!CK21+'Ext2'!CK21)/2 -> 6.22 | CL21: =('Ext1'!CL21+'Ext2'!CL21)/2 -> 6.095 | CM21: =('Ext1'!CM21+'Ext2'!CM21)/2 -> 6.14 | CN21: =('Ext1'!CN21+'Ext2'!CN21)/2 -> 7.115 | CO21: =('Ext1'!CO21+'Ext2'!CO21)/2 -> 5.705 | CP21: =('Ext1'!CP21+'Ext2'!CP21)/2 -> 6.18 | CQ21: =('Ext1'!CQ21+'Ext2'!CQ21)/2 -> 5.96 | CR21: =('Ext1'!CR21+'Ext2'!CR21)/2 -> 6.805 | CS21: =('Ext1'!CS21+'Ext2'!CS21)/2 -> 5.265 | CT21: =('Ext1'!CT21+'Ext2'!CT21)/2 -> 6.07
B22: Jour 21 | C22: =('Ext1'!C22+'Ext2'!C22)/2 -> 5.64 | D22: =('Ext1'!D22+'Ext2'!D22)/2 -> 5.305 | E22: =('Ext1'!E22+'Ext2'!E22)/2 -> 5.115 | F22: =('Ext1'!F22+'Ext2'!F22)/2 -> 5.5 | G22: =('Ext1'!G22+'Ext2'!G22)/2 -> 6.695 | H22: =('Ext1'!H22+'Ext2'!H22)/2 -> 5.9 | I22: =('Ext1'!I22+'Ext2'!I22)/2 -> 6.17 | J22: =('Ext1'!J22+'Ext2'!J22)/2 -> 6.27 | K22: =('Ext1'!K22+'Ext2'!K22)/2 -> 6.985 | L22: =('Ext1'!L22+'Ext2'!L22)/2 -> 7.39 | M22: =('Ext1'!M22+'Ext2'!M22)/2 -> 6.475 | N22: =('Ext1'!N22+'Ext2'!N22)/2 -> 6.4 | O22: =('Ext1'!O22+'Ext2'!O22)/2 -> 8.345 | P22: =('Ext1'!P22+'Ext2'!P22)/2 -> 7.35 | Q22: =('Ext1'!Q22+'Ext2'!Q22)/2 -> 7.515 | R22: =('Ext1'!R22+'Ext2'!R22)/2 -> 8.57 | S22: =('Ext1'!S22+'Ext2'!S22)/2 -> 9.665 | T22: =('Ext1'!T22+'Ext2'!T22)/2 -> 9.93 | U22: =('Ext1'!U22+'Ext2'!U22)/2 -> 9.155 | V22: =('Ext1'!V22+'Ext2'!V22)/2 -> 9.62 | W22: =('Ext1'!W22+'Ext2'!W22)/2 -> 9.48 | X22: =('Ext1'!X22+'Ext2'!X22)/2 -> 10.78 | Y22: =('Ext1'!Y22+'Ext2'!Y22)/2 -> 9.94 | Z22: =('Ext1'!Z22+'Ext2'!Z22)/2 -> 11.46 | AA22: =('Ext1'!AA22+'Ext2'!AA22)/2 -> 11.25 | AB22: =('Ext1'!AB22+'Ext2'!AB22)/2 -> 11.505 | AC22: =('Ext1'!AC22+'Ext2'!AC22)/2 -> 12.885 | AD22: =('Ext1'!AD22+'Ext2'!AD22)/2 -> 13.135 | AE22: =('Ext1'!AE22+'Ext2'!AE22)/2 -> 12.755 | AF22: =('Ext1'!AF22+'Ext2'!AF22)/2 -> 12.53 | AG22: =('Ext1'!AG22+'Ext2'!AG22)/2 -> 12.2 | AH22: =('Ext1'!AH22+'Ext2'!AH22)/2 -> 12.47 | AI22: =('Ext1'!AI22+'Ext2'!AI22)/2 -> 11.785 | AJ22: =('Ext1'!AJ22+'Ext2'!AJ22)/2 -> 12 | AK22: =('Ext1'!AK22+'Ext2'!AK22)/2 -> 13.23 | AL22: =('Ext1'!AL22+'Ext2'!AL22)/2 -> 11.585 | AM22: =('Ext1'!AM22+'Ext2'!AM22)/2 -> 11.305 | AN22: =('Ext1'!AN22+'Ext2'!AN22)/2 -> 11.57 | AO22: =('Ext1'!AO22+'Ext2'!AO22)/2 -> 11 | AP22: =('Ext1'!AP22+'Ext2'!AP22)/2 -> 11.62 | AQ22: =('Ext1'!AQ22+'Ext2'!AQ22)/2 -> 10.19 | AR22: =('Ext1'!AR22+'Ext2'!AR22)/2 -> 10.78 | AS22: =('Ext1'!AS22+'Ext2'!AS22)/2 -> 10.56 | AT22: =('Ext1'!AT22+'Ext2'!AT22)/2 -> 9.645 | AU22: =('Ext1'!AU22+'Ext2'!AU22)/2 -> 10.97 | AV22: =('Ext1'!AV22+'Ext2'!AV22)/2 -> 9.45 | AW22: =('Ext1'!AW22+'Ext2'!AW22)/2 -> 10.325 | AX22: =('Ext1'!AX22+'Ext2'!AX22)/2 -> 11.01 | AY22: =('Ext1'!AY22+'Ext2'!AY22)/2 -> 10.75 | AZ22: =('Ext1'!AZ22+'Ext2'!AZ22)/2 -> 10.77 | BA22: =('Ext1'!BA22+'Ext2'!BA22)/2 -> 9.395 | BB22: =('Ext1'!BB22+'Ext2'!BB22)/2 -> 10.3 | BC22: =('Ext1'!BC22+'Ext2'!BC22)/2 -> 9.225 | BD22: =('Ext1'!BD22+'Ext2'!BD22)/2 -> 9.17 | BE22: =('Ext1'!BE22+'Ext2'!BE22)/2 -> 8.815 | BF22: =('Ext1'!BF22+'Ext2'!BF22)/2 -> 10.035 | BG22: =('Ext1'!BG22+'Ext2'!BG22)/2 -> 9.365 | BH22: =('Ext1'!BH22+'Ext2'!BH22)/2 -> 9.075 | BI22: =('Ext1'!BI22+'Ext2'!BI22)/2 -> 8.475 | BJ22: =('Ext1'!BJ22+'Ext2'!BJ22)/2 -> 9.835 | BK22: =('Ext1'!BK22+'Ext2'!BK22)/2 -> 9.28 | BL22: =('Ext1'!BL22+'Ext2'!BL22)/2 -> 7.995 | BM22: =('Ext1'!BM22+'Ext2'!BM22)/2 -> 8.09 | BN22: =('Ext1'!BN22+'Ext2'!BN22)/2 -> 7.845 | BO22: =('Ext1'!BO22+'Ext2'!BO22)/2 -> 8.06 | BP22: =('Ext1'!BP22+'Ext2'!BP22)/2 -> 9.35 | BQ22: =('Ext1'!BQ22+'Ext2'!BQ22)/2 -> 7.445 | BR22: =('Ext1'!BR22+'Ext2'!BR22)/2 -> 8.33 | BS22: =('Ext1'!BS22+'Ext2'!BS22)/2 -> 8.505 | BT22: =('Ext1'!BT22+'Ext2'!BT22)/2 -> 7.37 | BU22: =('Ext1'!BU22+'Ext2'!BU22)/2 -> 7.72 | BV22: =('Ext1'!BV22+'Ext2'!BV22)/2 -> 7.81 | BW22: =('Ext1'!BW22+'Ext2'!BW22)/2 -> 8.53 | BX22: =('Ext1'!BX22+'Ext2'!BX22)/2 -> 7.845 | BY22: =('Ext1'!BY22+'Ext2'!BY22)/2 -> 7.55 | BZ22: =('Ext1'!BZ22+'Ext2'!BZ22)/2 -> 7.695 | CA22: =('Ext1'!CA22+'Ext2'!CA22)/2 -> 7.085 | CB22: =('Ext1'!CB22+'Ext2'!CB22)/2 -> 7.205 | CC22: =('Ext1'!CC22+'Ext2'!CC22)/2 -> 6.63 | CD22: =('Ext1'!CD22+'Ext2'!CD22)/2 -> 6.915 | CE22: =('Ext1'!CE22+'Ext2'!CE22)/2 -> 6.2 | CF22: =('Ext1'!CF22+'Ext2'!CF22)/2 -> 7.115 | CG22: =('Ext1'!CG22+'Ext2'!CG22)/2 -> 7.53 | CH22: =('Ext1'!CH22+'Ext2'!CH22)/2 -> 7.725 | CI22: =('Ext1'!CI22+'Ext2'!CI22)/2 -> 7.885 | CJ22: =('Ext1'!CJ22+'Ext2'!CJ22)/2 -> 5.92 | CK22: =('Ext1'!CK22+'Ext2'!CK22)/2 -> 7.12 | CL22: =('Ext1'!CL22+'Ext2'!CL22)/2 -> 7.495 | CM22: =('Ext1'!CM22+'Ext2'!CM22)/2 -> 7.64 | CN22: =('Ext1'!CN22+'Ext2'!CN22)/2 -> 7.015 | CO22: =('Ext1'!CO22+'Ext2'!CO22)/2 -> 7.305 | CP22: =('Ext1'!CP22+'Ext2'!CP22)/2 -> 5.88 | CQ22: =('Ext1'!CQ22+'Ext2'!CQ22)/2 -> 5.56 | CR22: =('Ext1'!CR22+'Ext2'!CR22)/2 -> 6.305 | CS22: =('Ext1'!CS22+'Ext2'!CS22)/2 -> 5.765 | CT22: =('Ext1'!CT22+'Ext2'!CT22)/2 -> 6.77
B23: Mini | C23: =MIN(C2:CT22) -> 4.14
B24: Maxi | C24: =MAX(C2:CT22) -> 13.47

Sheet Th1
B1: Ext Moy | C1: 6h | G1: 7h | K1: 8h | O1: 9h | S1: 10h | W1: 11h | AA1: 12h | AE1: 13h | AI1: 14h | AM1: 15h | AQ1: 16h | AU1: 17h | AY1: 18h | BC1: 19h | BG1: 20h | BK1: 21h | BO1: 22h | BS1: 23h | BW1: 24h | CA1: 1h | CE1: 2h | CI1: 3h | CM1: 4h | CQ1: 5h
B2: Jour 1 | C2: =('Ext1'!C2+'Ext2'!C2)/2 -> 4.64 | D2: =('Ext1'!D2+'Ext2'!D2)/2 -> 5.705 | E2: =('Ext1'!E2+'Ext2'!E2)/2 -> 5.315 | F2: =('Ext1'!F2+'Ext2'!F2)/2 -> 5.3 | G2: =('Ext1'!G2+'Ext2'!G2)/2 -> 5.195 | H2: =('Ext1'!H2+'Ext2'!H2)/2 -> 6.5 | I2: =('Ext1'!I2+'Ext2'!I2)/2 -> 6.67 | J2: =('Ext1'!J2+'Ext2'!J2)/2 -> 6.57 | K2: =('Ext1'!K2+'Ext2'!K2)/2 -> 6.185 | L2: =('Ext1'!L2+'Ext2'!L2)/2 -> 7.09 | M2: =('Ext1'!M2+'Ext2'!M2)/2 -> 6.375 | N2: =('Ext1'!N2+'Ext2'!N2)/2 -> 8 | O2: =('Ext1'!O2+'Ext2'!O2)/2 -> 7.745 | P2: =('Ext1'!P2+'Ext2'!P2)/2 -> 7.95 | Q2: =('Ext1'!Q2+'Ext2'!Q2)/2 -> 8.915 | R2: =('Ext1'!R2+'Ext2'!R2)/2 -> 8.07 | S2: =('Ext1'!S2+'Ext2'!S2)/2 -> 9.665 | T2: =('Ext1'!T2+'Ext2'!T2)/2 -> 8.23 | U2: =('Ext1'!U2+'Ext2'!U2)/2 -> 9.355 | V2: =('Ext1'!V2+'Ext2'!V2)/2 -> 10.62 | W2: =('Ext1'!W2+'Ext2'!W2)/2 -> 10.58 | X2: =('Ext1'!X2+'Ext2'!X2)/2 -> 11.58 | Y2: =('Ext1'!Y2+'Ext2'!Y2)/2 -> 11.44 | Z2: =('Ext1'!Z2+'Ext2'!Z2)/2 -> 10.46 | AA2: =('Ext1'!AA2+'Ext2'!AA2)/2 -> 11.65 | AB2: =('Ext1'!AB2+'Ext2'!AB2)/2 -> 10.805 | AC2: =('Ext1'!AC2+'Ext2'!AC2)/2 -> 11.685 | AD2: =('Ext1'!AD2+'Ext2'!AD2)/2 -> 13.335 | AE2: =('Ext1'!AE2+'Ext2'!AE2)/2 -> 12.955 | AF2: =('Ext1'!AF2+'Ext2'!AF2)/2 -> 12.53 | AG2: =('Ext1'!AG2+'Ext2'!AG2)/2 -> 13.3 | AH2: =('Ext1'!AH2+'Ext2'!AH2)/2 -> 12.67 | AI2: =('Ext1'!AI2+'Ext2'!AI2)/2 -> 11.785 | AJ2: =('Ext1'!AJ2+'Ext2'!AJ2)/2 -> 11.3 | AK2: =('Ext1'!AK2+'Ext2'!AK2)/2 -> 12.13 | AL2: =('Ext1'!AL2+'Ext2'!AL2)/2 -> 11.585 | AM2: =('Ext1'!AM2+'Ext2'!AM2)/2 -> 11.105 | AN2: =('Ext1'!AN2+'Ext2'!AN2)/2 -> 11.87 | AO2: =('Ext1'!AO2+'Ext2'!AO2)/2 -> 12.6 | AP2: =('Ext1'!AP2+'Ext2'!AP2)/2 -> 10.42 | AQ2: =('Ext1'!AQ2+'Ext2'!AQ2)/2 -> 11.29 | AR2: =('Ext1'!AR2+'Ext2'!AR2)/2 -> 11.78 | AS2: =('Ext1'!AS2+'Ext2'!AS2)/2 -> 10.76 | AT2: =('Ext1'!AT2+'Ext2'!AT2)/2 -> 10.145 | AU2: =('Ext1'!AU2+'Ext2'!AU2)/2 -> 10.27 | AV2: =('Ext1'!AV2+'Ext2'!AV2)/2 -> 10.05 | AW2: =('Ext1'!AW2+'Ext2'!AW2)/2 -> 10.525 | AX2: =('Ext1'!AX2+'Ext2'!AX2)/2 -> 10.31 | AY2: =('Ext1'!AY2+'Ext2'!AY2)/2 -> 10.05 | AZ2: =('Ext1'!AZ2+'Ext2'!AZ2)/2 -> 9.47 | BA2: =('Ext1'!BA2+'Ext2'!BA2)/2 -> 10.695 | BB2: =('Ext1'!BB2+'Ext2'!BB2)/2 -> 10.6 | BC2: =('Ext1'!BC2+'Ext2'!BC2)/2 -> 10.625 | BD2: =('Ext1'!BD2+'Ext2'!BD2)/2 -> 9.57 | BE2: =('Ext1'!BE2+'Ext2'!BE2)/2 -> 9.315 | BF2: =('Ext1'!BF2+'Ext2'!BF2)/2 -> 9.035 | BG2: =('Ext1'!BG2+'Ext2'!BG2)/2 -> 9.265 | BH2: =('Ext1'!BH2+'Ext2'!BH2)/2 -> 8.575 | BI2: =('Ext1'!BI2+'Ext2'!BI2)/2 -> 8.475 | BJ2: =('Ext1'!BJ2+'Ext2'!BJ2)/2 -> 10.035 | BK2: =('Ext1'!BK2+'Ext2'!BK2)/2 -> 9.08 | BL2: =('Ext1'!BL2+'Ext2'!BL2)/2 -> 8.695 | BM2: =('Ext1'!BM2+'Ext2'!BM2)/2 -> 8.39 | BN2: =('Ext1'!BN2+'Ext2'!BN2)/2 -> 7.845 | BO2: =('Ext1'!BO2+'Ext2'!BO2)/2 -> 7.86 | BP2: =('Ext1'!BP2+'Ext2'!BP2)/2 -> 7.95 | BQ2: =('Ext1'!BQ2+'Ext2'!BQ2)/2 -> 7.445 | BR2: =('Ext1'!BR2+'Ext2'!BR2)/2 -> 9.03 | BS2: =('Ext1'!BS2+'Ext2'!BS2)/2 -> 8.805 | BT2: =('Ext1'!BT2+'Ext2'!BT2)/2 -> 8.27 | BU2: =('Ext1'!BU2+'Ext2'!BU2)/2 -> 7.32 | BV2: =('Ext1'!BV2+'Ext2'!BV2)/2 -> 8.71 | BW2: =('Ext1'!BW2+'Ext2'!BW2)/2 -> 8.43 | BX2: =('Ext1'!BX2+'Ext2'!BX2)/2 -> 7.145 | BY2: =('Ext1'!BY2+'Ext2'!BY2)/2 -> 8.25 | BZ2: =('Ext1'!BZ2+'Ext2'!BZ2)/2 -> 7.095 | CA2: =('Ext1'!CA2+'Ext2'!CA2)/2 -> 8.585 | CB2: =('Ext1'!CB2+'Ext2'!CB2)/2 -> 7.005 | CC2: =('Ext1'!CC2+'Ext2'!CC2)/2 -> 6.53 | CD2: =('Ext1'!CD2+'Ext2'!CD2)/2 -> 7.315 | CE2: =('Ext1'!CE2+'Ext2'!CE2)/2 -> 6.8 | CF2: =('Ext1'!CF2+'Ext2'!CF2)/2 -> 6.915 | CG2: =('Ext1'!CG2+'Ext2'!CG2)/2 -> 7.93 | CH2: =('Ext1'!CH2+'Ext2'!CH2)/2 -> 7.925 | CI2: =('Ext1'!CI2+'Ext2'!CI2)/2 -> 6.185 | CJ2: =('Ext1'!CJ2+'Ext2'!CJ2)/2 -> 6.02 | CK2: =('Ext1'!CK2+'Ext2'!CK2)/2 -> 6.52 | CL2: =('Ext1'!CL2+'Ext2'!CL2)/2 -> 7.395 | CM2: =('Ext1'!CM2+'Ext2'!CM2)/2 -> 7.34 | CN2: =('Ext1'!CN2+'Ext2'!CN2)/2 -> 7.415 | CO2: =('Ext1'!CO2+'Ext2'!CO2)/2 -> 6.505 | CP2: =('Ext1'!CP2+'Ext2'!CP2)/2 -> 5.58 | CQ2: =('Ext1'!CQ2+'Ext2'!CQ2)/2 -> 6.96 | CR2: =('Ext1'!CR2+'Ext2'!CR2)/2 -> 6.805 | CS2: =('Ext1'!CS2+'Ext2'!CS2)/2 -> 5.765 | CT2: =('Ext1'!CT2+'Ext2'!CT2)/2 -> 6.97
B3: Jour 2 | C3: =('Ext1'!C3+'Ext2'!C3)/2 -> 5.54 | D3: =('Ext1'!D3+'Ext2'!D3)/2 -> 5.705 | E3: =('Ext1'!E3+'Ext2'!E3)/2 -> 5.715 | F3: =('Ext1'!F3+'Ext2'!F3)/2 -> 5.4 | G3: =('Ext1'!G3+'Ext2'!G3)/2 -> 4.995 | H3: =('Ext1'!H3+'Ext2'!H3)/2 -> 7 | I3: =('Ext1'!I3+'Ext2'!I3)/2 -> 6.37 | J3: =('Ext1'!J3+'Ext2'!J3)/2 -> 6.37 | K3: =('Ext1'!K3+'Ext2'!K3)/2 -> 7.585 | L3: =('Ext1'!L3+'Ext2'!L3)/2 -> 6.59 | M3: =('Ext1'!M3+'Ext2'!M3)/2 -> 7.075 | N3: =('Ext1'!N3+'Ext2'!N3)/2 -> 6.8 | O3: =('Ext1'!O3+'Ext2'!O3)/2 -> 7.945 | P3: =('Ext1'!P3+'Ext2'!P3)/2 -> 8.75 | Q3: =('Ext1'!Q3+'Ext2'!Q3)/2 -> 8.715 | R3: =('Ext1'!R3+'Ext2'!R3)/2 -> 8.07 | S3: =('Ext1'!S3+'Ext2'!S3)/2 -> 8.865 | T3: =('Ext1'!T3+'Ext2'!T3)/2 -> 8.83 | U3: =('Ext1'!U3+'Ext2'!U3)/2 -> 9.855 | V3: =('Ext1'!V3+'Ext2'!V3)/2 -> 8.92 | W3: =('Ext1'!W3+'Ext2'!W3)/2 -> 9.48 | X3: =('Ext1'!X3+'Ext2'!X3)/2 -> 9.68 | Y3: =('Ext1'!Y3+'Ext2'!Y3)/2 -> 10.44 | Z3: =('Ext1'!Z3+'Ext2'!Z3)/2 -> 12.16 | AA3: =('Ext1'!AA3+'Ext2'!AA3)/2 -> 12.05 | AB3: =('Ext1'!AB3+'Ext2'!AB3)/2 -> 11.305 | AC3: =('Ext1'!AC3+'Ext2'!AC3)/2 -> 12.985 | AD3: =('Ext1'!AD3+'Ext2'!AD3)/2 -> 12.735 | AE3: =('Ext1'!AE3+'Ext2'!AE3)/2 -> 12.955 | AF3: =('Ext1'!AF3+'Ext2'!AF3)/2 -> 12.23 | AG3: =('Ext1'!AG3+'Ext2'!AG3)/2 -> 12.1 | AH3: =('Ext1'!AH3+'Ext2'!AH3)/2 -> 12.17 | AI3: =('Ext1'!AI3+'Ext2'!AI3)/2 -> 11.385 | AJ3: =('Ext1'!AJ3+'Ext2'!AJ3)/2 -> 11.6 | AK3: =('Ext1'!AK3+'Ext2'!AK3)/2 -> 11.43 | AL3: =('Ext1'!AL3+'Ext2'!AL3)/2 -> 12.485 | AM3: =('Ext1'!AM3+'Ext2'!AM3)/2 -> 12.605 | AN3: =('Ext1'!AN3+'Ext2'!AN3)/2 -> 11.77 | AO3: =('Ext1'!AO3+'Ext2'!AO3)/2 -> 11.6 | AP3: =('Ext1'!AP3+'Ext2'!AP3)/2 -> 10.52 | AQ3: =('Ext1'!AQ3+'Ext2'!AQ3)/2 -> 11.39 | AR3: =('Ext1'!AR3+'Ext2'!AR3)/2 -> 9.88 | AS3: =('Ext1'!AS3+'Ext2'!AS3)/2 -> 11.76 | AT3: =('Ext1'!AT3+'Ext2'!AT3)/2 -> 11.045 | AU3: =('Ext1'!AU3+'Ext2'!AU3)/2 -> 11.37 | AV3: =('Ext1'!AV3+'Ext2'!AV3)/2 -> 10.35 | AW3: =('Ext1'!AW3+'Ext2'!AW3)/2 -> 10.625 | AX3: =('Ext1'!AX3+'Ext2'!AX3)/2 -> 11.11 | AY3: =('Ext1'!AY3+'Ext2'!AY3)/2 -> 9.65 | AZ3: =('Ext1'!AZ3+'Ext2'!AZ3)/2 -> 10.07 | BA3: =('Ext1'!BA3+'Ext2'!BA3)/2 -> 8.995 | BB3: =('Ext1'!BB3+'Ext2'!BB3)/2 -> 9.2 | BC3: =('Ext1'!BC3+'Ext2'!BC3)/2 -> 10.025 | BD3: =('Ext1'!BD3+'Ext2'!BD3)/2 -> 10.27 | BE3: =('Ext1'!BE3+'Ext2'!BE3)/2 -> 9.215 | BF3: =('Ext1'!BF3+'Ext2'!BF3)/2 -> 9.835 | BG3: =('Ext1'!BG3+'Ext2'!BG3)/2 -> 8.665 | BH3: =('Ext1'!BH3+'Ext2'!BH3)/2 -> 8.975 | BI3: =('Ext1'!BI3+'Ext2'!BI3)/2 -> 9.975 | BJ3: =('Ext1'!BJ3+'Ext2'!BJ3)/2 -> 8.935 | BK3: =('Ext1'!BK3+'Ext2'!BK3)/2 -> 8.58 | BL3: =('Ext1'!BL3+'Ext2'!BL3)/2 -> 8.095 | BM3: =('Ext1'!BM3+'Ext2'!BM3)/2 -> 9.39 | BN3: =('Ext1'!BN3+'Ext2'!BN3)/2 -> 8.145 | BO3: =('Ext1'!BO3+'Ext2'!BO3)/2 -> 8.16 | BP3: =('Ext1'!BP3+'Ext2'!BP3)/2 -> 8.35 | BQ3: =('Ext1'!BQ3+'Ext2'!BQ3)/2 -> 8.945 | BR3: =('Ext1'!BR3+'Ext2'!BR3)/2 -> 9.13 | BS3: =('Ext1'!BS3+'Ext2'!BS3)/2 -> 8.705 | BT3: =('Ext1'!BT3+'Ext2'!BT3)/2 -> 8.17 | BU3: =('Ext1'!BU3+'Ext2'!BU3)/2 -> 7.52 | BV3: =('Ext1'!BV3+'Ext2'!BV3)/2 -> 8.21 | BW3: =('Ext1'!BW3+'Ext2'!BW3)/2 -> 8.13 | BX3: =('Ext1'!BX3+'Ext2'!BX3)/2 -> 7.745 | BY3: =('Ext1'!BY3+'Ext2'!BY3)/2 -> 7.85 | BZ3: =('Ext1'!BZ3+'Ext2'!BZ3)/2 -> 7.195 | CA3: =('Ext1'!CA3+'Ext2'!CA3)/2 -> 6.585 | CB3: =('Ext1'!CB3+'Ext2'!CB3)/2 -> 6.605 | CC3: =('Ext1'!CC3+'Ext2'!CC3)/2 -> 8.13 | CD3: =('Ext1'!CD3+'Ext2'!CD3)/2 -> 7.415 | CE3: =('Ext1'!CE3+'Ext2'!CE3)/2 -> 7.7 | CF3: =('Ext1'!CF3+'Ext2'!CF3)/2 -> 7.815 | CG3: =('Ext1'!CG3+'Ext2'!CG3)/2 -> 7.83 | CH3: =('Ext1'!CH3+'Ext2'!CH3)/2 -> 6.525 | CI3: =('Ext1'!CI3+'Ext2'!CI3)/2 -> 6.285 | CJ3: =('Ext1'!CJ3+'Ext2'!CJ3)/2 -> 6.12 | CK3: =('Ext1'!CK3+'Ext2'!CK3)/2 -> 6.22 | CL3: =('Ext1'!CL3+'Ext2'!CL3)/2 -> 6.595 | CM3: =('Ext1'!CM3+'Ext2'!CM3)/2 -> 6.04 | CN3: =('Ext1'!CN3+'Ext2'!CN3)/2 -> 6.715 | CO3: =('Ext1'!CO3+'Ext2'!CO3)/2 -> 6.005 | CP3: =('Ext1'!CP3+'Ext2'!CP3)/2 -> 5.88 | CQ3: =('Ext1'!CQ3+'Ext2'!CQ3)/2 -> 6.36 | CR3: =('Ext1'!CR3+'Ext2'!CR3)/2 -> 5.505 | CS3: =('Ext1'!CS3+'Ext2'!CS3)/2 -> 6.365 | CT3: =('Ext1'!CT3+'Ext2'!CT3)/2 -> 6.77
B4: Jour 3 | C4: =('Ext1'!C4+'Ext2'!C4)/2 -> 4.64 | D4: =('Ext1'!D4+'Ext2'!D4)/2 -> 4.805 | E4: =('Ext1'!E4+'Ext2'!E4)/2 -> 5.415 | F4: =('Ext1'!F4+'Ext2'!F4)/2 -> 5 | G4: =('Ext1'!G4+'Ext2'!G4)/2 -> 4.995 | H4: =('Ext1'!H4+'Ext2'!H4)/2 -> 7 | I4: =('Ext1'!I4+'Ext2'!I4)/2 -> 5.37 | J4: =('Ext1'!J4+'Ext2'!J4)/2 -> 7.37 | K4: =('Ext1'!K4+'Ext2'!K4)/2 -> 6.185 | L4: =('Ext1'!L4+'Ext2'!L4)/2 -> 5.99 | M4: =('Ext1'!M4+'Ext2'!M4)/2 -> 6.275 | N4: =('Ext1'!N4+'Ext2'!N4)/2 -> 7.1 | O4: =('Ext1'!O4+'Ext2'!O4)/2 -> 7.545 | P4: =('Ext1'!P4+'Ext2'!P4)/2 -> 8.85 | Q4: =('Ext1'!Q4+'Ext2'!Q4)/2 -> 8.215 | R4: =('Ext1'!R4+'Ext2'!R4)/2 -> 8.57 | S4: =('Ext1'!S4+'Ext2'!S4)/2 -> 8.165 | T4: =('Ext1'!T4+'Ext2'!T4)/2 -> 10.13 | U4: =('Ext1'!U4+'Ext2'!U4)/2 -> 9.855 | V4: =('Ext1'!V4+'Ext2'!V4)/2 -> 10.62 | W4: =('Ext1'!W4+'Ext2'!W4)/2 -> 10.18 | X4: =('Ext1'!X4+'Ext2'!X4)/2 -> 10.58 | Y4: =('Ext1'!Y4+'Ext2'!Y4)/2 -> 11.84 | Z4: =('Ext1'!Z4+'Ext2'!Z4)/2 -> 11.86 | AA4: =('Ext1'!AA4+'Ext2'!AA4)/2 -> 12.15 | AB4: =('Ext1'!AB4+'Ext2'!AB4)/2 -> 12.305 | AC4: =('Ext1'!AC4+'Ext2'!AC4)/2 -> 13.185 | AD4: =('Ext1'!AD4+'Ext2'!AD4)/2 -> 13.135 | AE4: =('Ext1'!AE4+'Ext2'!AE4)/2 -> 12.255 | AF4: =('Ext1'!AF4+'Ext2'!AF4)/2 -> 12.33 | AG4: =('Ext1'!AG4+'Ext2'!AG4)/2 -> 12.7 | AH4: =('Ext1'!AH4+'Ext2'!AH4)/2 -> 12.07 | AI4: =('Ext1'!AI4+'Ext2'!AI4)/2 -> 13.285 | AJ4: =('Ext1'!AJ4+'Ext2'!AJ4)/2 -> 12.9 | AK4: =('Ext1'!AK4+'Ext2'!AK4)/2 -> 12.43 | AL4: =('Ext1'!AL4+'Ext2'!AL4)/2 -> 11.085 | AM4: =('Ext1'!AM4+'Ext2'!AM4)/2 -> 11.405 | AN4: =('Ext1'!AN4+'Ext2'!AN4)/2 -> 12.87 | AO4: =('Ext1'!AO4+'Ext2'!AO4)/2 -> 11.4 | AP4: =('Ext1'!AP4+'Ext2'!AP4)/2 -> 10.72 | AQ4: =('Ext1'!AQ4+'Ext2'!AQ4)/2 -> 11.69 | AR4: =('Ext1'!AR4+'Ext2'!AR4)/2 -> 10.38 | AS4: =('Ext1'!AS4+'Ext2'!AS4)/2 -> 10.56 | AT4: =('Ext1'!AT4+'Ext2'!AT4)/2 -> 10.745 | AU4: =('Ext1'!AU4+'Ext2'!AU4)/2 -> 10.17 | AV4: =('Ext1'!AV4+'Ext2'!AV4)/2 -> 11.35 | AW4: =('Ext1'!AW4+'Ext2'!AW4)/2 -> 9.525 | AX4: =('Ext1'!AX4+'Ext2'!AX4)/2 -> 10.01 | AY4: =('Ext1'!AY4+'Ext2'!AY4)/2 -> 8.95 | AZ4: =('Ext1'!AZ4+'Ext2'!AZ4)/2 -> 10.37 | BA4: =('Ext1'!BA4+'Ext2'!BA4)/2 -> 10.695 | BB4: =('Ext1'!BB4+'Ext2'!BB4)/2 -> 10.1 | BC4: =('Ext1'!BC4+'Ext2'!BC4)/2 -> 9.125 | BD4: =('Ext1'!BD4+'Ext2'!BD4)/2 -> 8.97 | BE4: =('Ext1'!BE4+'Ext2'!BE4)/2 -> 10.415 | BF4: =('Ext1'!BF4+'Ext2'!BF4)/2 -> 10.035 | BG4: =('Ext1'!BG4+'Ext2'!BG4)/2 -> 8.865 | BH4: =('Ext1'!BH4+'Ext2'!BH4)/2 -> 9.075 | BI4: =('Ext1'!BI4+'Ext2'!BI4)/2 -> 9.475 | BJ4: =('Ext1'!BJ4+'Ext2'!BJ4)/2 -> 10.135 | BK4: =('Ext1'!BK4+'Ext2'!BK4)/2 -> 9.28 | BL4: =('Ext1'!BL4+'Ext2'!BL4)/2 -> 8.695 | BM4: =('Ext1'!BM4+'Ext2'!BM4)/2 -> 8.39 | BN4: =('Ext1'!BN4+'Ext2'!BN4)/2 -> 9.345 | BO4: =('Ext1'!BO4+'Ext2'!BO4)/2 -> 7.86 | BP4: =('Ext1'!BP4+'Ext2'!BP4)/2 -> 8.75 | BQ4: =('Ext1'!BQ4+'Ext2'!BQ4)/2 -> 8.145 | BR4: =('Ext1'!BR4+'Ext2'!BR4)/2 -> 8.03 | BS4: =('Ext1'!BS4+'Ext2'!BS4)/2 -> 7.305 | BT4: =('Ext1'!BT4+'Ext2'!BT4)/2 -> 7.97 | BU4: =('Ext1'!BU4+'Ext2'!BU4)/2 -> 7.92 | BV4: =('Ext1'!BV4+'Ext2'!BV4)/2 -> 7.71 | BW4: =('Ext1'!BW4+'Ext2'!BW4)/2 -> 7.13 | BX4: =('Ext1'!BX4+'Ext2'!BX4)/2 -> 7.845 | BY4: =('Ext1'!BY4+'Ext2'!BY4)/2 -> 7.55 | BZ4: =('Ext1'!BZ4+'Ext2'!BZ4)/2 -> 8.095 | CA4: =('Ext1'!CA4+'Ext2'!CA4)/2 -> 6.885 | CB4: =('Ext1'!CB4+'Ext2'!CB4)/2 -> 7.605 | CC4: =('Ext1'!CC4+'Ext2'!CC4)/2 -> 6.63 | CD4: =('Ext1'!CD4+'Ext2'!CD4)/2 -> 7.315 | CE4: =('Ext1'!CE4+'Ext2'!CE4)/2 -> 6.6 | CF4: =('Ext1'!CF4+'Ext2'!CF4)/2 -> 6.815 | CG4: =('Ext1'!CG4+'Ext2'!CG4)/2 -> 7.83 | CH4: =('Ext1'!CH4+'Ext2'!CH4)/2 -> 6.625 | CI4: =('Ext1'!CI4+'Ext2'!CI4)/2 -> 7.385 | CJ4: =('Ext1'!CJ4+'Ext2'!CJ4)/2 -> 7.52 | CK4: =('Ext1'!CK4+'Ext2'!CK4)/2 -> 7.42 | CL4: =('Ext1'!CL4+'Ext2'!CL4)/2 -> 6.895 | CM4: =('Ext1'!CM4+'Ext2'!CM4)/2 -> 7.14 | CN4: =('Ext1'!CN4+'Ext2'!CN4)/2 -> 6.115 | CO4: =('Ext1'!CO4+'Ext2'!CO4)/2 -> 6.705 | CP4: =('Ext1'!CP4+'Ext2'!CP4)/2 -> 7.08 | CQ4: =('Ext1'!CQ4+'Ext2'!CQ4)/2 -> 7.26 | CR4: =('Ext1'!CR4+'Ext2'!CR4)/2 -> 5.505 | CS4: =('Ext1'!CS4+'Ext2'!CS4)/2 -> 6.665 | CT4: =('Ext1'!CT4+'Ext2'!CT4)/2 -> 5.47
B5: Jour 4 | C5: =('Ext1'!C5+'Ext2'!C5)/2 -> 4.74 | E5: 0.2604166667 | F5: 4.5 | G5: 4.78 | H5: 4.64 | I5: 4.64 | J5: 4.64 | K5: 4.64 | L5: 4.64 | M5: 4.64 | N5: 4.64 | O5: 4.64 | P5: 4.64 | Q5: 4.64 | R5: 4.64 | S5: 4.64 | T5: 4.64 | U5: 4.64 | V5: 4.64 | W5: 4.64 | X5: 4.64 | Y5: 4.64 | Z5: 4.64 | AA5: =('Ext1'!AA5+'Ext2'!AA5)/2 -> 11.55 | AB5: =('Ext1'!AB5+'Ext2'!AB5)/2 -> 11.205 | AC5: =('Ext1'!AC5+'Ext2'!AC5)/2 -> 11.685 | AD5: =('Ext1'!AD5+'Ext2'!AD5)/2 -> 12.835 | AE5: =('Ext1'!AE5+'Ext2'!AE5)/2 -> 12.655 | AF5: =('Ext1'!AF5+'Ext2'!AF5)/2 -> 12.03 | AG5: =('Ext1'!AG5+'Ext2'!AG5)/2 -> 11.5 | AH5: =('Ext1'!AH5+'Ext2'!AH5)/2 -> 12.77 | AI5: =('Ext1'!AI5+'Ext2'!AI5)/2 -> 12.085 | AJ5: =('Ext1'!AJ5+'Ext2'!AJ5)/2 -> 12.8 | AK5: =('Ext1'!AK5+'Ext2'!AK5)/2 -> 12.53 | AL5: =('Ext1'!AL5+'Ext2'!AL5)/2 -> 12.985 | AM5: =('Ext1'!AM5+'Ext2'!AM5)/2 -> 12.605 | AN5: =('Ext1'!AN5+'Ext2'!AN5)/2 -> 12.57 | AO5: =('Ext1'!AO5+'Ext2'!AO5)/2 -> 11.9 | AP5: =('Ext1'!AP5+'Ext2'!AP5)/2 -> 10.92 | AQ5: =('Ext1'!AQ5+'Ext2'!AQ5)/2 -> 11.59 | AR5: =('Ext1'!AR5+'Ext2'!AR5)/2 -> 11.28 | AS5: =('Ext1'!AS5+'Ext2'!AS5)/2 -> 10.16 | AT5: =('Ext1'!AT5+'Ext2'!AT5)/2 -> 9.745 | AU5: =('Ext1'!AU5+'Ext2'!AU5)/2 -> 11.27 | AV5: =('Ext1'!AV5+'Ext2'!AV5)/2 -> 10.15 | AW5: =('Ext1'!AW5+'Ext2'!AW5)/2 -> 10.225 | AX5: =('Ext1'!AX5+'Ext2'!AX5)/2 -> 9.71 | AY5: =('Ext1'!AY5+'Ext2'!AY5)/2 -> 9.75 | AZ5: =('Ext1'!AZ5+'Ext2'!AZ5)/2 -> 9.97 | BA5: =('Ext1'!BA5+'Ext2'!BA5)/2 -> 10.495 | BB5: =('Ext1'!BB5+'Ext2'!BB5)/2 -> 10.3 | BC5: =('Ext1'!BC5+'Ext2'!BC5)/2 -> 9.925 | BD5: =('Ext1'!BD5+'Ext2'!BD5)/2 -> 9.57 | BE5: =('Ext1'!BE5+'Ext2'!BE5)/2 -> 9.315 | BF5: =('Ext1'!BF5+'Ext2'!BF5)/2 -> 9.235 | BG5: =('Ext1'!BG5+'Ext2'!BG5)/2 -> 9.965 | BH5: =('Ext1'!BH5+'Ext2'!BH5)/2 -> 9.375 | BI5: =('Ext1'!BI5+'Ext2'!BI5)/2 -> 10.375 | BJ5: =('Ext1'!BJ5+'Ext2'!BJ5)/2 -> 10.235 | BK5: =('Ext1'!BK5+'Ext2'!BK5)/2 -> 8.18 | BL5: =('Ext1'!BL5+'Ext2'!BL5)/2 -> 9.195 | BM5: =('Ext1'!BM5+'Ext2'!BM5)/2 -> 9.69 | BN5: =('Ext1'!BN5+'Ext2'!BN5)/2 -> 9.045 | BO5: =('Ext1'!BO5+'Ext2'!BO5)/2 -> 8.76 | BP5: =('Ext1'!BP5+'Ext2'!BP5)/2 -> 9.05 | BQ5: =('Ext1'!BQ5+'Ext2'!BQ5)/2 -> 8.645 | BR5: =('Ext1'!BR5+'Ext2'!BR5)/2 -> 8.93 | BS5: =('Ext1'!BS5+'Ext2'!BS5)/2 -> 7.905 | BT5: =('Ext1'!BT5+'Ext2'!BT5)/2 -> 7.87 | BU5: =('Ext1'!BU5+'Ext2'!BU5)/2 -> 7.22 | BV5: =('Ext1'!BV5+'Ext2'!BV5)/2 -> 8.21 | BW5: =('Ext1'!BW5+'Ext2'!BW5)/2 -> 8.53 | BX5: =('Ext1'!BX5+'Ext2'!BX5)/2 -> 7.845 | BY5: =('Ext1'!BY5+'Ext2'!BY5)/2 -> 7.55 | BZ5: =('Ext1'!BZ5+'Ext2'!BZ5)/2 -> 7.395 | CA5: =('Ext1'!CA5+'Ext2'!CA5)/2 -> 8.185 | CB5: =('Ext1'!CB5+'Ext2'!CB5)/2 -> 6.705 | CC5: =('Ext1'!CC5+'Ext2'!CC5)/2 -> 6.33 | CD5: =('Ext1'!CD5+'Ext2'!CD5)/2 -> 7.215 | CE5: =('Ext1'!CE5+'Ext2'!CE5)/2 -> 7.6 | CF5: =('Ext1'!CF5+'Ext2'!CF5)/2 -> 6.115 | CG5: =('Ext1'!CG5+'Ext2'!CG5)/2 -> 6.23 | CH5: =('Ext1'!CH5+'Ext2'!CH5)/2 -> 7.225 | CI5: =('Ext1'!CI5+'Ext2'!CI5)/2 -> 7.585 | CJ5: =('Ext1'!CJ5+'Ext2'!CJ5)/2 -> 7.32 | CK5: =('Ext1'!CK5+'Ext2'!CK5)/2 -> 7.02 | CL5: =('Ext1'!CL5+'Ext2'!CL5)/2 -> 7.795 | CM5: =('Ext1'!CM5+'Ext2'!CM5)/2 -> 7.04 | CN5: =('Ext1'!CN5+'Ext2'!CN5)/2 -> 7.015 | CO5: =('Ext1'!CO5+'Ext2'!CO5)/2 -> 6.805 | CP5: =('Ext1'!CP5+'Ext2'!CP5)/2 -> 5.38 | CQ5: =('Ext1'!CQ5+'Ext2'!CQ5)/2 -> 5.36 | CR5: =('Ext1'!CR5+'Ext2'!CR5)/2 -> 6.305 | CS5: =('Ext1'!CS5+'Ext2'!CS5)/2 -> 6.065 | CT5: =('Ext1'!CT5+'Ext2'!CT5)/2 -> 7.07
B6: Jour 5 | C6: =('Ext1'!C6+'Ext2'!C6)/2 -> 6.14 | D6: =('Ext1'!D6+'Ext2'!D6)/2 -> 5.505 | E6: =('Ext1'!E6+'Ext2'!E6)/2 -> 4.715 | F6: =('Ext1'!F6+'Ext2'!F6)/2 -> 5 | G6: =('Ext1'!G6+'Ext2'!G6)/2 -> 5.895 | H6: =('Ext1'!H6+'Ext2'!H6)/2 -> 5.4 | I6: =('Ext1'!I6+'Ext2'!I6)/2 -> 6.37 | J6: =('Ext1'!J6+'Ext2'!J6)/2 -> 6.37 | K6: =('Ext1'!K6+'Ext2'!K6)/2 -> 7.085 | L6: =('Ext1'!L6+'Ext2'!L6)/2 -> 5.69 | M6: =('Ext1'!M6+'Ext2'!M6)/2 -> 8.175 | N6: =('Ext1'!N6+'Ext2'!N6)/2 -> 7.7 | O6: =('Ext1'!O6+'Ext2'!O6)/2 -> 8.345 | P6: =('Ext1'!P6+'Ext2'!P6)/2 -> 6.95 | Q6: =('Ext1'!Q6+'Ext2'!Q6)/2 -> 9.015 | R6: =('Ext1'!R6+'Ext2'!R6)/2 -> 8.77 | S6: =('Ext1'!S6+'Ext2'!S6)/2 -> 8.865 | T6: =('Ext1'!T6+'Ext2'!T6)/2 -> 8.13 | U6: =('Ext1'!U6+'Ext2'!U6)/2 -> 9.955 | V6: =('Ext1'!V6+'Ext2'!V6)/2 -> 9.02 | W6: =('Ext1'!W6+'Ext2'!W6)/2 -> 11.38 | X6: =('Ext1'!X6+'Ext2'!X6)/2 -> 10.08 | Y6: =('Ext1'!Y6+'Ext2'!Y6)/2 -> 10.64 | Z6: =('Ext1'!Z6+'Ext2'!Z6)/2 -> 11.36 | AA6: =('Ext1'!AA6+'Ext2'!AA6)/2 -> 10.55 | AB6: =('Ext1'!AB6+'Ext2'!AB6)/2 -> 12.605 | AC6: =('Ext1'!AC6+'Ext2'!AC6)/2 -> 11.185 | AD6: =('Ext1'!AD6+'Ext2'!AD6)/2 -> 11.435 | AE6: =('Ext1'!AE6+'Ext2'!AE6)/2 -> 13.155 | AF6: =('Ext1'!AF6+'Ext2'!AF6)/2 -> 11.53 | AG6: =('Ext1'!AG6+'Ext2'!AG6)/2 -> 11.4 | AH6: =('Ext1'!AH6+'Ext2'!AH6)/2 -> 13.47 | AI6: =('Ext1'!AI6+'Ext2'!AI6)/2 -> 12.885 | AJ6: =('Ext1'!AJ6+'Ext2'!AJ6)/2 -> 13.3 | AK6: =('Ext1'!AK6+'Ext2'!AK6)/2 -> 12.23 | AL6: =('Ext1'!AL6+'Ext2'!AL6)/2 -> 12.485 | AM6: =('Ext1'!AM6+'Ext2'!AM6)/2 -> 11.505 | AN6: =('Ext1'!AN6+'Ext2'!AN6)/2 -> 11.27 | AO6: =('Ext1'!AO6+'Ext2'!AO6)/2 -> 11.2 | AP6: =('Ext1'!AP6+'Ext2'!AP6)/2 -> 11.42 | AQ6: =('Ext1'!AQ6+'Ext2'!AQ6)/2 -> 11.59 | AR6: =('Ext1'!AR6+'Ext2'!AR6)/2 -> 9.98 | AS6: =('Ext1'!AS6+'Ext2'!AS6)/2 -> 10.86 | AT6: =('Ext1'!AT6+'Ext2'!AT6)/2 -> 10.545 | AU6: =('Ext1'!AU6+'Ext2'!AU6)/2 -> 9.47 | AV6: =('Ext1'!AV6+'Ext2'!AV6)/2 -> 9.95 | AW6: =('Ext1'!AW6+'Ext2'!AW6)/2 -> 10.625 | AX6: =('Ext1'!AX6+'Ext2'!AX6)/2 -> 10.81 | AY6: =('Ext1'!AY6+'Ext2'!AY6)/2 -> 10.05 | AZ6: =('Ext1'!AZ6+'Ext2'!AZ6)/2 -> 10.17 | BA6: =('Ext1'!BA6+'Ext2'!BA6)/2 -> 10.895 | BB6: =('Ext1'!BB6+'Ext2'!BB6)/2 -> 10 | BC6: =('Ext1'!BC6+'Ext2'!BC6)/2 -> 9.825 | BD6: =('Ext1'!BD6+'Ext2'!BD6)/2 -> 9.47 | BE6: =('Ext1'!BE6+'Ext2'!BE6)/2 -> 10.315 | BF6: =('Ext1'!BF6+'Ext2'!BF6)/2 -> 10.035 | BG6: =('Ext1'!BG6+'Ext2'!BG6)/2 -> 10.165 | BH6: =('Ext1'!BH6+'Ext2'!BH6)/2 -> 9.775 | BI6: =('Ext1'!BI6+'Ext2'!BI6)/2 -> 8.575 | BJ6: =('Ext1'!BJ6+'Ext2'!BJ6)/2 -> 9.835 | BK6: =('Ext1'!BK6+'Ext2'!BK6)/2 -> 8.98 | BL6: =('Ext1'!BL6+'Ext2'!BL6)/2 -> 8.695 | BM6: =('Ext1'!BM6+'Ext2'!BM6)/2 -> 9.69 | BN6: =('Ext1'!BN6+'Ext2'!BN6)/2 -> 8.245 | BO6: =('Ext1'!BO6+'Ext2'!BO6)/2 -> 8.66 | BP6: =('Ext1'!BP6+'Ext2'!BP6)/2 -> 8.95 | BQ6: =('Ext1'!BQ6+'Ext2'!BQ6)/2 -> 8.345 | BR6: =('Ext1'!BR6+'Ext2'!BR6)/2 -> 9.33 | BS6: =('Ext1'!BS6+'Ext2'!BS6)/2 -> 7.505 | BT6: =('Ext1'!BT6+'Ext2'!BT6)/2 -> 7.07 | BU6: =('Ext1'!BU6+'Ext2'!BU6)/2 -> 8.42 | BV6: =('Ext1'!BV6+'Ext2'!BV6)/2 -> 6.91 | BW6: =('Ext1'!BW6+'Ext2'!BW6)/2 -> 7.83 | BX6: =('Ext1'!BX6+'Ext2'!BX6)/2 -> 8.645 | BY6: =('Ext1'!BY6+'Ext2'!BY6)/2 -> 7.75 | BZ6: =('Ext1'!BZ6+'Ext2'!BZ6)/2 -> 8.495 | CA6: =('Ext1'!CA6+'Ext2'!CA6)/2 -> 6.585 | CB6: =('Ext1'!CB6+'Ext2'!CB6)/2 -> 7.705 | CC6: =('Ext1'!CC6+'Ext2'!CC6)/2 -> 6.43 | CD6: =('Ext1'!CD6+'Ext2'!CD6)/2 -> 7.315 | CE6: =('Ext1'!CE6+'Ext2'!CE6)/2 -> 7.4 | CF6: =('Ext1'!CF6+'Ext2'!CF6)/2 -> 7.215 | CG6: =('Ext1'!CG6+'Ext2'!CG6)/2 -> 8.03 | CH6: =('Ext1'!CH6+'Ext2'!CH6)/2 -> 7.125 | CI6: =('Ext1'!CI6+'Ext2'!CI6)/2 -> 7.385 | CJ6: =('Ext1'!CJ6+'Ext2'!CJ6)/2 -> 7.12 | CK6: =('Ext1'!CK6+'Ext2'!CK6)/2 -> 7.72 | CL6: =('Ext1'!CL6+'Ext2'!CL6)/2 -> 7.295 | CM6: =('Ext1'!CM6+'Ext2'!CM6)/2 -> 7.14 | CN6: =('Ext1'!CN6+'Ext2'!CN6)/2 -> 7.215 | CO6: =('Ext1'!CO6+'Ext2'!CO6)/2 -> 6.705 | CP6: =('Ext1'!CP6+'Ext2'!CP6)/2 -> 6.78 | CQ6: =('Ext1'!CQ6+'Ext2'!CQ6)/2 -> 7.06 | CR6: =('Ext1'!CR6+'Ext2'!CR6)/2 -> 6.705 | CS6: =('Ext1'!CS6+'Ext2'!CS6)/2 -> 6.165 | CT6: =('Ext1'!CT6+'Ext2'!CT6)/2 -> 5.17
B7: Jour 6 | C7: =('Ext1'!C7+'Ext2'!C7)/2 -> 4.64 | D7: =('Ext1'!D7+'Ext2'!D7)/2 -> 4.805 | E7: =('Ext1'!E7+'Ext2'!E7)/2 -> 6.515 | F7: =('Ext1'!F7+'Ext2'!F7)/2 -> 6.4 | G7: =('Ext1'!G7+'Ext2'!G7)/2 -> 6.595 | H7: =('Ext1'!H7+'Ext2'!H7)/2 -> 6.1 | I7: =('Ext1'!I7+'Ext2'!I7)/2 -> 6.47 | J7: =('Ext1'!J7+'Ext2'!J7)/2 -> 6.17 | K7: =('Ext1'!K7+'Ext2'!K7)/2 -> 5.885 | L7: =('Ext1'!L7+'Ext2'!L7)/2 -> 5.69 | M7: =('Ext1'!M7+'Ext2'!M7)/2 -> 7.275 | N7: =('Ext1'!N7+'Ext2'!N7)/2 -> 8.3 | O7: =('Ext1'!O7+'Ext2'!O7)/2 -> 6.645 | P7: =('Ext1'!P7+'Ext2'!P7)/2 -> 7.05 | Q7: =('Ext1'!Q7+'Ext2'!Q7)/2 -> 8.115 | R7: =('Ext1'!R7+'Ext2'!R7)/2 -> 9.27 | S7: =('Ext1'!S7+'Ext2'!S7)/2 -> 9.765 | T7: =('Ext1'!T7+'Ext2'!T7)/2 -> 8.33 | U7: =('Ext1'!U7+'Ext2'!U7)/2 -> 9.155 | V7: =('Ext1'!V7+'Ext2'!V7)/2 -> 10.82 | W7: =('Ext1'!W7+'Ext2'!W7)/2 -> 9.58 | X7: =('Ext1'!X7+'Ext2'!X7)/2 -> 11.68 | Y7: =('Ext1'!Y7+'Ext2'!Y7)/2 -> 11.24 | Z7: =('Ext1'!Z7+'Ext2'!Z7)/2 -> 11.46 | AA7: =('Ext1'!AA7+'Ext2'!AA7)/2 -> 10.95 | AB7: =('Ext1'!AB7+'Ext2'!AB7)/2 -> 12.305 | AC7: =('Ext1'!AC7+'Ext2'!AC7)/2 -> 11.885 | AD7: =('Ext1'!AD7+'Ext2'!AD7)/2 -> 12.035 | AE7: =('Ext1'!AE7+'Ext2'!AE7)/2 -> 11.355 | AF7: =('Ext1'!AF7+'Ext2'!AF7)/2 -> 12.23 | AG7: =('Ext1'!AG7+'Ext2'!AG7)/2 -> 11.4 | AH7: =('Ext1'!AH7+'Ext2'!AH7)/2 -> 11.67 | AI7: =('Ext1'!AI7+'Ext2'!AI7)/2 -> 13.285 | AJ7: =('Ext1'!AJ7+'Ext2'!AJ7)/2 -> 13.2 | AK7: =('Ext1'!AK7+'Ext2'!AK7)/2 -> 11.23 | AL7: =('Ext1'!AL7+'Ext2'!AL7)/2 -> 12.085 | AM7: =('Ext1'!AM7+'Ext2'!AM7)/2 -> 12.505 | AN7: =('Ext1'!AN7+'Ext2'!AN7)/2 -> 11.07 | AO7: =('Ext1'!AO7+'Ext2'!AO7)/2 -> 11.5 | AP7: =('Ext1'!AP7+'Ext2'!AP7)/2 -> 11.52 | AQ7: =('Ext1'!AQ7+'Ext2'!AQ7)/2 -> 11.49 | AR7: =('Ext1'!AR7+'Ext2'!AR7)/2 -> 11.78 | AS7: =('Ext1'!AS7+'Ext2'!AS7)/2 -> 11.06 | AT7: =('Ext1'!AT7+'Ext2'!AT7)/2 -> 10.545 | AU7: =('Ext1'!AU7+'Ext2'!AU7)/2 -> 10.97 | AV7: =('Ext1'!AV7+'Ext2'!AV7)/2 -> 10.25 | AW7: =('Ext1'!AW7+'Ext2'!AW7)/2 -> 10.925 | AX7: =('Ext1'!AX7+'Ext2'!AX7)/2 -> 10.81 | AY7: =('Ext1'!AY7+'Ext2'!AY7)/2 -> 9.95 | AZ7: =('Ext1'!AZ7+'Ext2'!AZ7)/2 -> 9.37 | BA7: =('Ext1'!BA7+'Ext2'!BA7)/2 -> 9.895 | BB7: =('Ext1'!BB7+'Ext2'!BB7)/2 -> 10.3 | BC7: =('Ext1'!BC7+'Ext2'!BC7)/2 -> 10.725 | BD7: =('Ext1'!BD7+'Ext2'!BD7)/2 -> 10.37 | BE7: =('Ext1'!BE7+'Ext2'!BE7)/2 -> 9.615 | BF7: =('Ext1'!BF7+'Ext2'!BF7)/2 -> 10.535 | BG7: =('Ext1'!BG7+'Ext2'!BG7)/2 -> 9.265 | BH7: =('Ext1'!BH7+'Ext2'!BH7)/2 -> 9.675 | BI7: =('Ext1'!BI7+'Ext2'!BI7)/2 -> 9.575 | BJ7: =('Ext1'!BJ7+'Ext2'!BJ7)/2 -> 8.335 | BK7: =('Ext1'!BK7+'Ext2'!BK7)/2 -> 9.48 | BL7: =('Ext1'!BL7+'Ext2'!BL7)/2 -> 9.395 | BM7: =('Ext1'!BM7+'Ext2'!BM7)/2 -> 7.89 | BN7: =('Ext1'!BN7+'Ext2'!BN7)/2 -> 9.145 | BO7: =('Ext1'!BO7+'Ext2'!BO7)/2 -> 8.46 | BP7: =('Ext1'!BP7+'Ext2'!BP7)/2 -> 8.85 | BQ7: =('Ext1'!BQ7+'Ext2'!BQ7)/2 -> 8.545 | BR7: =('Ext1'!BR7+'Ext2'!BR7)/2 -> 8.03 | BS7: =('Ext1'!BS7+'Ext2'!BS7)/2 -> 9.005 | BT7: =('Ext1'!BT7+'Ext2'!BT7)/2 -> 8.87 | BU7: =('Ext1'!BU7+'Ext2'!BU7)/2 -> 7.12 | BV7: =('Ext1'!BV7+'Ext2'!BV7)/2 -> 8.91 | BW7: =('Ext1'!BW7+'Ext2'!BW7)/2 -> 7.03 | BX7: =('Ext1'!BX7+'Ext2'!BX7)/2 -> 7.845 | BY7: =('Ext1'!BY7+'Ext2'!BY7)/2 -> 8.45 | BZ7: =('Ext1'!BZ7+'Ext2'!BZ7)/2 -> 6.595 | CA7: =('Ext1'!CA7+'Ext2'!CA7)/2 -> 8.385 | CB7: =('Ext1'!CB7+'Ext2'!CB7)/2 -> 6.705 | CC7: =('Ext1'!CC7+'Ext2'!CC7)/2 -> 7.23 | CD7: =('Ext1'!CD7+'Ext2'!CD7)/2 -> 8.215 | CE7: =('Ext1'!CE7+'Ext2'!CE7)/2 -> 6.2 | CF7: =('Ext1'!CF7+'Ext2'!CF7)/2 -> 6.915 | CG7: =('Ext1'!CG7+'Ext2'!CG7)/2 -> 7.83 | CH7: =('Ext1'!CH7+'Ext2'!CH7)/2 -> 6.125 | CI7: =('Ext1'!CI7+'Ext2'!CI7)/2 -> 7.585 | CJ7: =('Ext1'!CJ7+'Ext2'!CJ7)/2 -> 7.62 | CK7: =('Ext1'!CK7+'Ext2'!CK7)/2 -> 5.82 | CL7: =('Ext1'!CL7+'Ext2'!CL7)/2 -> 6.595 | CM7: =('Ext1'!CM7+'Ext2'!CM7)/2 -> 5.84 | CN7: =('Ext1'!CN7+'Ext2'!CN7)/2 -> 6.015 | CO7: =('Ext1'!CO7+'Ext2'!CO7)/2 -> 7.405 | CP7: =('Ext1'!CP7+'Ext2'!CP7)/2 -> 5.88 | CQ7: =('Ext1'!CQ7+'Ext2'!CQ7)/2 -> 6.66 | CR7: =('Ext1'!CR7+'Ext2'!CR7)/2 -> 7.105 | CS7: =('Ext1'!CS7+'Ext2'!CS7)/2 -> 5.665 | CT7: =('Ext1'!CT7+'Ext2'!CT7)/2 -> 5.97
B8: Jour 7 | C8: =('Ext1'!C8+'Ext2'!C8)/2 -> 6.04 | D8: =('Ext1'!D8+'Ext2'!D8)/2 -> 5.305 | E8: =('Ext1'!E8+'Ext2'!E8)/2 -> 5.615 | F8: =('Ext1'!F8+'Ext2'!F8)/2 -> 6.2 | G8: =('Ext1'!G8+'Ext2'!G8)/2 -> 5.595 | H8: =('Ext1'!H8+'Ext2'!H8)/2 -> 5.8 | I8: =('Ext1'!I8+'Ext2'!I8)/2 -> 5.47 | J8: =('Ext1'!J8+'Ext2'!J8)/2 -> 6.87 | K8: =('Ext1'!K8+'Ext2'!K8)/2 -> 7.085 | L8: =('Ext1'!L8+'Ext2'!L8)/2 -> 7.09 | M8: =('Ext1'!M8+'Ext2'!M8)/2 -> 7.575 | N8: =('Ext1'!N8+'Ext2'!N8)/2 -> 7.2 | O8: =('Ext1'!O8+'Ext2'!O8)/2 -> 8.245 | P8: =('Ext1'!P8+'Ext2'!P8)/2 -> 7.25 | Q8: =('Ext1'!Q8+'Ext2'!Q8)/2 -> 8.015 | R8: =('Ext1'!R8+'Ext2'!R8)/2 -> 9.57 | S8: =('Ext1'!S8+'Ext2'!S8)/2 -> 9.065 | T8: =('Ext1'!T8+'Ext2'!T8)/2 -> 10.13 | U8: =('Ext1'!U8+'Ext2'!U8)/2 -> 10.055 | V8: =('Ext1'!V8+'Ext2'!V8)/2 -> 9.02 | W8: =('Ext1'!W8+'Ext2'!W8)/2 -> 9.88 | X8: =('Ext1'!X8+'Ext2'!X8)/2 -> 11.38 | Y8: =('Ext1'!Y8+'Ext2'!Y8)/2 -> 9.94 | Z8: =('Ext1'!Z8+'Ext2'!Z8)/2 -> 11.16 | AA8: =('Ext1'!AA8+'Ext2'!AA8)/2 -> 12.35 | AB8: =('Ext1'!AB8+'Ext2'!AB8)/2 -> 11.405 | AC8: =('Ext1'!AC8+'Ext2'!AC8)/2 -> 11.885 | AD8: =('Ext1'!AD8+'Ext2'!AD8)/2 -> 12.135 | AE8: =('Ext1'!AE8+'Ext2'!AE8)/2 -> 11.955 | AF8: =('Ext1'!AF8+'Ext2'!AF8)/2 -> 12.53 | AG8: =('Ext1'!AG8+'Ext2'!AG8)/2 -> 12.1 | AH8: =('Ext1'!AH8+'Ext2'!AH8)/2 -> 13.37 | AI8: =('Ext1'!AI8+'Ext2'!AI8)/2 -> 11.985 | AJ8: =('Ext1'!AJ8+'Ext2'!AJ8)/2 -> 12.9 | AK8: =('Ext1'!AK8+'Ext2'!AK8)/2 -> 12.73 | AL8: =('Ext1'!AL8+'Ext2'!AL8)/2 -> 13.085 | AM8: =('Ext1'!AM8+'Ext2'!AM8)/2 -> 12.505 | AN8: =('Ext1'!AN8+'Ext2'!AN8)/2 -> 12.57 | AO8: =('Ext1'!AO8+'Ext2'!AO8)/2 -> 11.1 | AP8: =('Ext1'!AP8+'Ext2'!AP8)/2 -> 12.12 | AQ8: =('Ext1'!AQ8+'Ext2'!AQ8)/2 -> 10.89 | AR8: =('Ext1'!AR8+'Ext2'!AR8)/2 -> 11.78 | AS8: =('Ext1'!AS8+'Ext2'!AS8)/2 -> 10.46 | AT8: =('Ext1'!AT8+'Ext2'!AT8)/2 -> 9.945 | AU8: =('Ext1'!AU8+'Ext2'!AU8)/2 -> 11.47 | AV8: =('Ext1'!AV8+'Ext2'!AV8)/2 -> 9.55 | AW8: =('Ext1'!AW8+'Ext2'!AW8)/2 -> 10.725 | AX8: =('Ext1'!AX8+'Ext2'!AX8)/2 -> 9.41 | AY8: =('Ext1'!AY8+'Ext2'!AY8)/2 -> 10.55 | AZ8: =('Ext1'!AZ8+'Ext2'!AZ8)/2 -> 9.67 | BA8: =('Ext1'!BA8+'Ext2'!BA8)/2 -> 10.095 | BB8: =('Ext1'!BB8+'Ext2'!BB8)/2 -> 10.2 | BC8: =('Ext1'!BC8+'Ext2'!BC8)/2 -> 8.725 | BD8: =('Ext1'!BD8+'Ext2'!BD8)/2 -> 8.87 | BE8: =('Ext1'!BE8+'Ext2'!BE8)/2 -> 9.815 | BF8: =('Ext1'!BF8+'Ext2'!BF8)/2 -> 9.335 | BG8: =('Ext1'!BG8+'Ext2'!BG8)/2 -> 9.565 | BH8: =('Ext1'!BH8+'Ext2'!BH8)/2 -> 10.275 | BI8: =('Ext1'!BI8+'Ext2'!BI8)/2 -> 8.975 | BJ8: =('Ext1'!BJ8+'Ext2'!BJ8)/2 -> 8.435 | BK8: =('Ext1'!BK8+'Ext2'!BK8)/2 -> 8.98 | BL8: =('Ext1'!BL8+'Ext2'!BL8)/2 -> 9.795 | BM8: =('Ext1'!BM8+'Ext2'!BM8)/2 -> 7.99 | BN8: =('Ext1'!BN8+'Ext2'!BN8)/2 -> 8.745 | BO8: =('Ext1'!BO8+'Ext2'!BO8)/2 -> 8.76 | BP8: =('Ext1'!BP8+'Ext2'!BP8)/2 -> 8.15 | BQ8: =('Ext1'!BQ8+'Ext2'!BQ8)/2 -> 7.945 | BR8: =('Ext1'!BR8+'Ext2'!BR8)/2 -> 8.63 | BS8: =('Ext1'!BS8+'Ext2'!BS8)/2 -> 8.405 | BT8: =('Ext1'!BT8+'Ext2'!BT8)/2 -> 8.97 | BU8: =('Ext1'!BU8+'Ext2'!BU8)/2 -> 8.62 | BV8: =('Ext1'!BV8+'Ext2'!BV8)/2 -> 7.21 | BW8: =('Ext1'!BW8+'Ext2'!BW8)/2 -> 7.63 | BX8: =('Ext1'!BX8+'Ext2'!BX8)/2 -> 8.345 | BY8: =('Ext1'!BY8+'Ext2'!BY8)/2 -> 8.05 | BZ8: =('Ext1'!BZ8+'Ext2'!BZ8)/2 -> 8.195 | CA8: =('Ext1'!CA8+'Ext2'!CA8)/2 -> 6.985 | CB8: =('Ext1'!CB8+'Ext2'!CB8)/2 -> 8.305 | CC8: =('Ext1'!CC8+'Ext2'!CC8)/2 -> 7.83 | CD8: =('Ext1'!CD8+'Ext2'!CD8)/2 -> 6.715 | CE8: =('Ext1'!CE8+'Ext2'!CE8)/2 -> 7.6 | CF8: =('Ext1'!CF8+'Ext2'!CF8)/2 -> 6.215 | CG8: =('Ext1'!CG8+'Ext2'!CG8)/2 -> 6.83 | CH8: =('Ext1'!CH8+'Ext2'!CH8)/2 -> 7.825 | CI8: =('Ext1'!CI8+'Ext2'!CI8)/2 -> 6.985 | CJ8: =('Ext1'!CJ8+'Ext2'!CJ8)/2 -> 6.02 | CK8: =('Ext1'!CK8+'Ext2'!CK8)/2 -> 6.42 | CL8: =('Ext1'!CL8+'Ext2'!CL8)/2 -> 7.195 | CM8: =('Ext1'!CM8+'Ext2'!CM8)/2 -> 5.94 | CN8: =('Ext1'!CN8+'Ext2'!CN8)/2 -> 6.115 | CO8: =('Ext1'!CO8+'Ext2'!CO8)/2 -> 5.905 | CP8: =('Ext1'!CP8+'Ext2'!CP8)/2 -> 6.88 | CQ8: =('Ext1'!CQ8+'Ext2'!CQ8)/2 -> 6.56 | CR8: =('Ext1'!CR8+'Ext2'!CR8)/2 -> 7.205 | CS8: =('Ext1'!CS8+'Ext2'!CS8)/2 -> 6.465 | CT8: =('Ext1'!CT8+'Ext2'!CT8)/2 -> 6.27
B9: Jour 8 | C9: =('Ext1'!C9+'Ext2'!C9)/2 -> 4.14 | D9: =('Ext1'!D9+'Ext2'!D9)/2 -> 5.705 | E9: =('Ext1'!E9+'Ext2'!E9)/2 -> 5.815 | F9: =('Ext1'!F9+'Ext2'!F9)/2 -> 5.2 | G9: =('Ext1'!G9+'Ext2'!G9)/2 -> 6.495 | H9: =('Ext1'!H9+'Ext2'!H9)/2 -> 5.8 | I9: =('Ext1'!I9+'Ext2'!I9)/2 -> 6.17 | J9: =('Ext1'!J9+'Ext2'!J9)/2 -> 5.87 | K9: =('Ext1'!K9+'Ext2'!K9)/2 -> 5.785 | L9: =('Ext1'!L9+'Ext2'!L9)/2 -> 6.69 | M9: =('Ext1'!M9+'Ext2'!M9)/2 -> 6.575 | N9: =('Ext1'!N9+'Ext2'!N9)/2 -> 6.9 | O9: =('Ext1'!O9+'Ext2'!O9)/2 -> 7.645 | P9: =('Ext1'!P9+'Ext2'!P9)/2 -> 8.65 | Q9: =('Ext1'!Q9+'Ext2'!Q9)/2 -> 7.615 | R9: =('Ext1'!R9+'Ext2'!R9)/2 -> 9.17 | S9: =('Ext1'!S9+'Ext2'!S9)/2 -> 9.165 | T9: =('Ext1'!T9+'Ext2'!T9)/2 -> 9.53 | U9: =('Ext1'!U9+'Ext2'!U9)/2 -> 10.555 | V9: =('Ext1'!V9+'Ext2'!V9)/2 -> 9.62 | W9: =('Ext1'!W9+'Ext2'!W9)/2 -> 9.38 | X9: =('Ext1'!X9+'Ext2'!X9)/2 -> 11.28 | Y9: =('Ext1'!Y9+'Ext2'!Y9)/2 -> 11.24 | Z9: =('Ext1'!Z9+'Ext2'!Z9)/2 -> 10.16 | AA9: =('Ext1'!AA9+'Ext2'!AA9)/2 -> 12.15 | AB9: =('Ext1'!AB9+'Ext2'!AB9)/2 -> 11.305 | AC9: =('Ext1'!AC9+'Ext2'!AC9)/2 -> 12.085 | AD9: =('Ext1'!AD9+'Ext2'!AD9)/2 -> 13.335 | AE9: =('Ext1'!AE9+'Ext2'!AE9)/2 -> 12.655 | AF9: =('Ext1'!AF9+'Ext2'!AF9)/2 -> 13.03 | AG9: =('Ext1'!AG9+'Ext2'!AG9)/2 -> 12 | AH9: =('Ext1'!AH9+'Ext2'!AH9)/2 -> 12.77 | AI9: =('Ext1'!AI9+'Ext2'!AI9)/2 -> 12.085 | AJ9: =('Ext1'!AJ9+'Ext2'!AJ9)/2 -> 13.3 | AK9: =('Ext1'!AK9+'Ext2'!AK9)/2 -> 11.33 | AL9: =('Ext1'!AL9+'Ext2'!AL9)/2 -> 12.485 | AM9: =('Ext1'!AM9+'Ext2'!AM9)/2 -> 11.805 | AN9: =('Ext1'!AN9+'Ext2'!AN9)/2 -> 10.97 | AO9: =('Ext1'!AO9+'Ext2'!AO9)/2 -> 11.8 | AP9: =('Ext1'!AP9+'Ext2'!AP9)/2 -> 12.02 | AQ9: =('Ext1'!AQ9+'Ext2'!AQ9)/2 -> 11.29 | AR9: =('Ext1'!AR9+'Ext2'!AR9)/2 -> 11.78 | AS9: =('Ext1'!AS9+'Ext2'!AS9)/2 -> 11.46 | AT9: =('Ext1'!AT9+'Ext2'!AT9)/2 -> 9.945 | AU9: =('Ext1'!AU9+'Ext2'!AU9)/2 -> 11.27 | AV9: =('Ext1'!AV9+'Ext2'!AV9)/2 -> 9.95 | AW9: =('Ext1'!AW9+'Ext2'!AW9)/2 -> 10.725 | AX9: =('Ext1'!AX9+'Ext2'!AX9)/2 -> 10.21 | AY9: =('Ext1'!AY9+'Ext2'!AY9)/2 -> 10.15 | AZ9: =('Ext1'!AZ9+'Ext2'!AZ9)/2 -> 10.07 | BA9: =('Ext1'!BA9+'Ext2'!BA9)/2 -> 9.995 | BB9: =('Ext1'!BB9+'Ext2'!BB9)/2 -> 9.6 | BC9: =('Ext1'!BC9+'Ext2'!BC9)/2 -> 9.925 | BD9: =('Ext1'!BD9+'Ext2'!BD9)/2 -> 8.77 | BE9: =('Ext1'!BE9+'Ext2'!BE9)/2 -> 8.915 | BF9: =('Ext1'!BF9+'Ext2'!BF9)/2 -> 8.535 | BG9: =('Ext1'!BG9+'Ext2'!BG9)/2 -> 10.565 | BH9: =('Ext1'!BH9+'Ext2'!BH9)/2 -> 8.575 | BI9: =('Ext1'!BI9+'Ext2'!BI9)/2 -> 10.175 | BJ9: =('Ext1'!BJ9+'Ext2'!BJ9)/2 -> 9.135 | BK9: =('Ext1'!BK9+'Ext2'!BK9)/2 -> 9.18 | BL9: =('Ext1'!BL9+'Ext2'!BL9)/2 -> 8.695 | BM9: =('Ext1'!BM9+'Ext2'!BM9)/2 -> 8.89 | BN9: =('Ext1'!BN9+'Ext2'!BN9)/2 -> 8.845 | BO9: =('Ext1'!BO9+'Ext2'!BO9)/2 -> 7.76 | BP9: =('Ext1'!BP9+'Ext2'!BP9)/2 -> 7.95 | BQ9: =('Ext1'!BQ9+'Ext2'!BQ9)/2 -> 7.845 | BR9: =('Ext1'!BR9+'Ext2'!BR9)/2 -> 8.83 | BS9: =('Ext1'!BS9+'Ext2'!BS9)/2 -> 7.605 | BT9: =('Ext1'!BT9+'Ext2'!BT9)/2 -> 7.77 | BU9: =('Ext1'!BU9+'Ext2'!BU9)/2 -> 7.22 | BV9: =('Ext1'!BV9+'Ext2'!BV9)/2 -> 7.91 | BW9: =('Ext1'!BW9+'Ext2'!BW9)/2 -> 8.43 | BX9: =('Ext1'!BX9+'Ext2'!BX9)/2 -> 6.745 | BY9: =('Ext1'!BY9+'Ext2'!BY9)/2 -> 7.55 | BZ9: =('Ext1'!BZ9+'Ext2'!BZ9)/2 -> 7.095 | CA9: =('Ext1'!CA9+'Ext2'!CA9)/2 -> 7.785 | CB9: =('Ext1'!CB9+'Ext2'!CB9)/2 -> 6.805 | CC9: =('Ext1'!CC9+'Ext2'!CC9)/2 -> 7.33 | CD9: =('Ext1'!CD9+'Ext2'!CD9)/2 -> 7.515 | CE9: =('Ext1'!CE9+'Ext2'!CE9)/2 -> 7 | CF9: =('Ext1'!CF9+'Ext2'!CF9)/2 -> 7.815 | CG9: =('Ext1'!CG9+'Ext2'!CG9)/2 -> 6.23 | CH9: =('Ext1'!CH9+'Ext2'!CH9)/2 -> 6.825 | CI9: =('Ext1'!CI9+'Ext2'!CI9)/2 -> 6.085 | CJ9: =('Ext1'!CJ9+'Ext2'!CJ9)/2 -> 7.22 | CK9: =('Ext1'!CK9+'Ext2'!CK9)/2 -> 6.72 | CL9: =('Ext1'!CL9+'Ext2'!CL9)/2 -> 5.995 | CM9: =('Ext1'!CM9+'Ext2'!CM9)/2 -> 7.14 | CN9: =('Ext1'!CN9+'Ext2'!CN9)/2 -> 6.215 | CO9: =('Ext1'!CO9+'Ext2'!CO9)/2 -> 5.905 | CP9: =('Ext1'!CP9+'Ext2'!CP9)/2 -> 6.08 | CQ9: =('Ext1'!CQ9+'Ext2'!CQ9)/2 -> 6.66 | CR9: =('Ext1'!CR9+'Ext2'!CR9)/2 -> 6.605 | CS9: =('Ext1'!CS9+'Ext2'!CS9)/2 -> 5.265 | CT9: =('Ext1'!CT9+'Ext2'!CT9)/2 -> 6.07
B10: Jour 9 | C10: =('Ext1'!C10+'Ext2'!C10)/2 -> 5.44 | D10: =('Ext1'!D10+'Ext2'!D10)/2 -> 5.605 | E10: =('Ext1'!E10+'Ext2'!E10)/2 -> 5.315 | F10: =('Ext1'!F10+'Ext2'!F10)/2 -> 6.5 | G10: =('Ext1'!G10+'Ext2'!G10)/2 -> 6.495 | H10: =('Ext1'!H10+'Ext2'!H10)/2 -> 6.6 | I10: =('Ext1'!I10+'Ext2'!I10)/2 -> 5.37 | J10: =('Ext1'!J10+'Ext2'!J10)/2 -> 7.37 | K10: =('Ext1'!K10+'Ext2'!K10)/2 -> 6.585 | L10: =('Ext1'!L10+'Ext2'!L10)/2 -> 6.39 | M10: =('Ext1'!M10+'Ext2'!M10)/2 -> 7.275 | N10: =('Ext1'!N10+'Ext2'!N10)/2 -> 7.3 | O10: =('Ext1'!O10+'Ext2'!O10)/2 -> 7.945 | P10: =('Ext1'!P10+'Ext2'!P10)/2 -> 8.65 | Q10: =('Ext1'!Q10+'Ext2'!Q10)/2 -> 7.515 | R10: =('Ext1'!R10+'Ext2'!R10)/2 -> 9.17 | S10: =('Ext1'!S10+'Ext2'!S10)/2 -> 8.665 | T10: =('Ext1'!T10+'Ext2'!T10)/2 -> 9.93 | U10: =('Ext1'!U10+'Ext2'!U10)/2 -> 8.555 | V10: =('Ext1'!V10+'Ext2'!V10)/2 -> 10.52 | W10: =('Ext1'!W10+'Ext2'!W10)/2 -> 10.28 | X10: =('Ext1'!X10+'Ext2'!X10)/2 -> 10.88 | Y10: =('Ext1'!Y10+'Ext2'!Y10)/2 -> 11.74 | Z10: =('Ext1'!Z10+'Ext2'!Z10)/2 -> 12.06 | AA10: =('Ext1'!AA10+'Ext2'!AA10)/2 -> 12.15 | AB10: =('Ext1'!AB10+'Ext2'!AB10)/2 -> 10.805 | AC10: =('Ext1'!AC10+'Ext2'!AC10)/2 -> 13.085 | AD10: =('Ext1'!AD10+'Ext2'!AD10)/2 -> 12.535 | AE10: =('Ext1'!AE10+'Ext2'!AE10)/2 -> 12.855 | AF10: =('Ext1'!AF10+'Ext2'!AF10)/2 -> 12.13 | AG10: =('Ext1'!AG10+'Ext2'!AG10)/2 -> 12.8 | AH10: =('Ext1'!AH10+'Ext2'!AH10)/2 -> 12.07 | AI10: =('Ext1'!AI10+'Ext2'!AI10)/2 -> 13.285 | AJ10: =('Ext1'!AJ10+'Ext2'!AJ10)/2 -> 11.6 | AK10: =('Ext1'!AK10+'Ext2'!AK10)/2 -> 12.93 | AL10: =('Ext1'!AL10+'Ext2'!AL10)/2 -> 11.085 | AM10: =('Ext1'!AM10+'Ext2'!AM10)/2 -> 11.505 | AN10: =('Ext1'!AN10+'Ext2'!AN10)/2 -> 12.07 | AO10: =('Ext1'!AO10+'Ext2'!AO10)/2 -> 11.6 | AP10: =('Ext1'!AP10+'Ext2'!AP10)/2 -> 11.22 | AQ10: =('Ext1'!AQ10+'Ext2'!AQ10)/2 -> 11.49 | AR10: =('Ext1'!AR10+'Ext2'!AR10)/2 -> 11.78 | AS10: =('Ext1'!AS10+'Ext2'!AS10)/2 -> 10.86 | AT10: =('Ext1'!AT10+'Ext2'!AT10)/2 -> 10.045 | AU10: =('Ext1'!AU10+'Ext2'!AU10)/2 -> 9.57 | AV10: =('Ext1'!AV10+'Ext2'!AV10)/2 -> 11.15 | AW10: =('Ext1'!AW10+'Ext2'!AW10)/2 -> 10.825 | AX10: =('Ext1'!AX10+'Ext2'!AX10)/2 -> 10.01 | AY10: =('Ext1'!AY10+'Ext2'!AY10)/2 -> 8.95 | AZ10: =('Ext1'!AZ10+'Ext2'!AZ10)/2 -> 10.47 | BA10: =('Ext1'!BA10+'Ext2'!BA10)/2 -> 10.795 | BB10: =('Ext1'!BB10+'Ext2'!BB10)/2 -> 10.6 | BC10: =('Ext1'!BC10+'Ext2'!BC10)/2 -> 10.425 | BD10: =('Ext1'!BD10+'Ext2'!BD10)/2 -> 8.77 | BE10: =('Ext1'!BE10+'Ext2'!BE10)/2 -> 10.615 | BF10: =('Ext1'!BF10+'Ext2'!BF10)/2 -> 8.635 | BG10: =('Ext1'!BG10+'Ext2'!BG10)/2 -> 10.265 | BH10: =('Ext1'!BH10+'Ext2'!BH10)/2 -> 9.775 | BI10: =('Ext1'!BI10+'Ext2'!BI10)/2 -> 10.375 | BJ10: =('Ext1'!BJ10+'Ext2'!BJ10)/2 -> 9.735 | BK10: =('Ext1'!BK10+'Ext2'!BK10)/2 -> 8.68 | BL10: =('Ext1'!BL10+'Ext2'!BL10)/2 -> 8.095 | BM10: =('Ext1'!BM10+'Ext2'!BM10)/2 -> 8.99 | BN10: =('Ext1'!BN10+'Ext2'!BN10)/2 -> 9.545 | BO10: =('Ext1'!BO10+'Ext2'!BO10)/2 -> 8.66 | BP10: =('Ext1'!BP10+'Ext2'!BP10)/2 -> 8.75 | BQ10: =('Ext1'!BQ10+'Ext2'!BQ10)/2 -> 8.245 | BR10: =('Ext1'!BR10+'Ext2'!BR10)/2 -> 8.93 | BS10: =('Ext1'!BS10+'Ext2'!BS10)/2 -> 8.505 | BT10: =('Ext1'!BT10+'Ext2'!BT10)/2 -> 7.97 | BU10: =('Ext1'!BU10+'Ext2'!BU10)/2 -> 7.92 | BV10: =('Ext1'!BV10+'Ext2'!BV10)/2 -> 6.91 | BW10: =('Ext1'!BW10+'Ext2'!BW10)/2 -> 8.03 | BX10: =('Ext1'!BX10+'Ext2'!BX10)/2 -> 6.945 | BY10: =('Ext1'!BY10+'Ext2'!BY10)/2 -> 7.75 | BZ10: =('Ext1'!BZ10+'Ext2'!BZ10)/2 -> 7.495 | CA10: =('Ext1'!CA10+'Ext2'!CA10)/2 -> 6.685 | CB10: =('Ext1'!CB10+'Ext2'!CB10)/2 -> 7.105 | CC10: =('Ext1'!CC10+'Ext2'!CC10)/2 -> 6.53 | CD10: =('Ext1'!CD10+'Ext2'!CD10)/2 -> 7.715 | CE10: =('Ext1'!CE10+'Ext2'!CE10)/2 -> 6.4 | CF10: =('Ext1'!CF10+'Ext2'!CF10)/2 -> 8.115 | CG10: =('Ext1'!CG10+'Ext2'!CG10)/2 -> 7.13 | CH10: =('Ext1'!CH10+'Ext2'!CH10)/2 -> 7.825 | CI10: =('Ext1'!CI10+'Ext2'!CI10)/2 -> 6.285 | CJ10: =('Ext1'!CJ10+'Ext2'!CJ10)/2 -> 6.72 | CK10: =('Ext1'!CK10+'Ext2'!CK10)/2 -> 6.62 | CL10: =('Ext1'!CL10+'Ext2'!CL10)/2 -> 7.395 | CM10: =('Ext1'!CM10+'Ext2'!CM10)/2 -> 6.04 | CN10: =('Ext1'!CN10+'Ext2'!CN10)/2 -> 6.615 | CO10: =('Ext1'!CO10+'Ext2'!CO10)/2 -> 7.005 | CP10: =('Ext1'!CP10+'Ext2'!CP10)/2 -> 5.98 | CQ10: =('Ext1'!CQ10+'Ext2'!CQ10)/2 -> 6.86 | CR10: =('Ext1'!CR10+'Ext2'!CR10)/2 -> 6.705 | CS10: =('Ext1'!CS10+'Ext2'!CS10)/2 -> 6.965 | CT10: =('Ext1'!CT10+'Ext2'!CT10)/2 -> 5.17
B11: Jour 10 | C11: =('Ext1'!C11+'Ext2'!C11)/2 -> 5.24 | D11: =('Ext1'!D11+'Ext2'!D11)/2 -> 6.005 | E11: =('Ext1'!E11+'Ext2'!E11)/2 -> 4.715 | F11: =('Ext1'!F11+'Ext2'!F11)/2 -> 5.8 | G11: =('Ext1'!G11+'Ext2'!G11)/2 -> 6.795 | H11: =('Ext1'!H11+'Ext2'!H11)/2 -> 5.8 | I11: =('Ext1'!I11+'Ext2'!I11)/2 -> 5.37 | J11: =('Ext1'!J11+'Ext2'!J11)/2 -> 6.17 | K11: =('Ext1'!K11+'Ext2'!K11)/2 -> 7.085 | L11: =('Ext1'!L11+'Ext2'!L11)/2 -> 7.19 | M11: =('Ext1'!M11+'Ext2'!M11)/2 -> 7.675 | N11: =('Ext1'!N11+'Ext2'!N11)/2 -> 7 | O11: =('Ext1'!O11+'Ext2'!O11)/2 -> 8.445 | P11: =('Ext1'!P11+'Ext2'!P11)/2 -> 7.25 | Q11: =('Ext1'!Q11+'Ext2'!Q11)/2 -> 9.015 | R11: =('Ext1'!R11+'Ext2'!R11)/2 -> 7.77 | S11: =('Ext1'!S11+'Ext2'!S11)/2 -> 7.865 | T11: =('Ext1'!T11+'Ext2'!T11)/2 -> 8.93 | U11: =('Ext1'!U11+'Ext2'!U11)/2 -> 8.955 | V11: =('Ext1'!V11+'Ext2'!V11)/2 -> 10.62 | W11: =('Ext1'!W11+'Ext2'!W11)/2 -> 9.98 | X11: =('Ext1'!X11+'Ext2'!X11)/2 -> 11.28 | Y11: =('Ext1'!Y11+'Ext2'!Y11)/2 -> 11.24 | Z11: =('Ext1'!Z11+'Ext2'!Z11)/2 -> 10.66 | AA11: =('Ext1'!AA11+'Ext2'!AA11)/2 -> 11.05 | AB11: =('Ext1'!AB11+'Ext2'!AB11)/2 -> 11.205 | AC11: =('Ext1'!AC11+'Ext2'!AC11)/2 -> 12.785 | AD11: =('Ext1'!AD11+'Ext2'!AD11)/2 -> 13.335 | AE11: =('Ext1'!AE11+'Ext2'!AE11)/2 -> 12.555 | AF11: =('Ext1'!AF11+'Ext2'!AF11)/2 -> 11.83 | AG11: =('Ext1'!AG11+'Ext2'!AG11)/2 -> 12.1 | AH11: =('Ext1'!AH11+'Ext2'!AH11)/2 -> 13.07 | AI11: =('Ext1'!AI11+'Ext2'!AI11)/2 -> 12.285 | AJ11: =('Ext1'!AJ11+'Ext2'!AJ11)/2 -> 12.3 | AK11: =('Ext1'!AK11+'Ext2'!AK11)/2 -> 12.43 | AL11: =('Ext1'!AL11+'Ext2'!AL11)/2 -> 11.185 | AM11: =('Ext1'!AM11+'Ext2'!AM11)/2 -> 11.905 | AN11: =('Ext1'!AN11+'Ext2'!AN11)/2 -> 12.87 | AO11: =('Ext1'!AO11+'Ext2'!AO11)/2 -> 11.8 | AP11: =('Ext1'!AP11+'Ext2'!AP11)/2 -> 11.72 | AQ11: =('Ext1'!AQ11+'Ext2'!AQ11)/2 -> 11.89 | AR11: =('Ext1'!AR11+'Ext2'!AR11)/2 -> 10.78 | AS11: =('Ext1'!AS11+'Ext2'!AS11)/2 -> 10.86 | AT11: =('Ext1'!AT11+'Ext2'!AT11)/2 -> 9.945 | AU11: =('Ext1'!AU11+'Ext2'!AU11)/2 -> 10.07 | AV11: =('Ext1'!AV11+'Ext2'!AV11)/2 -> 10.75 | AW11: =('Ext1'!AW11+'Ext2'!AW11)/2 -> 9.825 | AX11: =('Ext1'!AX11+'Ext2'!AX11)/2 -> 9.51 | AY11: =('Ext1'!AY11+'Ext2'!AY11)/2 -> 10.15 | AZ11: =('Ext1'!AZ11+'Ext2'!AZ11)/2 -> 10.27 | BA11: =('Ext1'!BA11+'Ext2'!BA11)/2 -> 9.695 | BB11: =('Ext1'!BB11+'Ext2'!BB11)/2 -> 8.9 | BC11: =('Ext1'!BC11+'Ext2'!BC11)/2 -> 8.725 | BD11: =('Ext1'!BD11+'Ext2'!BD11)/2 -> 8.87 | BE11: =('Ext1'!BE11+'Ext2'!BE11)/2 -> 9.715 | BF11: =('Ext1'!BF11+'Ext2'!BF11)/2 -> 9.135 | BG11: =('Ext1'!BG11+'Ext2'!BG11)/2 -> 9.765 | BH11: =('Ext1'!BH11+'Ext2'!BH11)/2 -> 9.275 | BI11: =('Ext1'!BI11+'Ext2'!BI11)/2 -> 10.275 | BJ11: =('Ext1'!BJ11+'Ext2'!BJ11)/2 -> 8.935 | BK11: =('Ext1'!BK11+'Ext2'!BK11)/2 -> 8.78 | BL11: =('Ext1'!BL11+'Ext2'!BL11)/2 -> 9.495 | BM11: =('Ext1'!BM11+'Ext2'!BM11)/2 -> 7.89 | BN11: =('Ext1'!BN11+'Ext2'!BN11)/2 -> 8.045 | BO11: =('Ext1'!BO11+'Ext2'!BO11)/2 -> 8.46 | BP11: =('Ext1'!BP11+'Ext2'!BP11)/2 -> 9.05 | BQ11: =('Ext1'!BQ11+'Ext2'!BQ11)/2 -> 7.845 | BR11: =('Ext1'!BR11+'Ext2'!BR11)/2 -> 8.63 | BS11: =('Ext1'!BS11+'Ext2'!BS11)/2 -> 7.505 | BT11: =('Ext1'!BT11+'Ext2'!BT11)/2 -> 8.07 | BU11: =('Ext1'!BU11+'Ext2'!BU11)/2 -> 7.52 | BV11: =('Ext1'!BV11+'Ext2'!BV11)/2 -> 7.71 | BW11: =('Ext1'!BW11+'Ext2'!BW11)/2 -> 7.43 | BX11: =('Ext1'!BX11+'Ext2'!BX11)/2 -> 7.545 | BY11: =('Ext1'!BY11+'Ext2'!BY11)/2 -> 6.95 | BZ11: =('Ext1'!BZ11+'Ext2'!BZ11)/2 -> 6.695 | CA11: =('Ext1'!CA11+'Ext2'!CA11)/2 -> 7.285 | CB11: =('Ext1'!CB11+'Ext2'!CB11)/2 -> 6.705 | CC11: =('Ext1'!CC11+'Ext2'!CC11)/2 -> 6.43 | CD11: =('Ext1'!CD11+'Ext2'!CD11)/2 -> 7.215 | CE11: =('Ext1'!CE11+'Ext2'!CE11)/2 -> 6.2 | CF11: =('Ext1'!CF11+'Ext2'!CF11)/2 -> 8.115 | CG11: =('Ext1'!CG11+'Ext2'!CG11)/2 -> 7.73 | CH11: =('Ext1'!CH11+'Ext2'!CH11)/2 -> 7.625 | CI11: =('Ext1'!CI11+'Ext2'!CI11)/2 -> 7.285 | CJ11: =('Ext1'!CJ11+'Ext2'!CJ11)/2 -> 6.32 | CK11: =('Ext1'!CK11+'Ext2'!CK11)/2 -> 6.52 | CL11: =('Ext1'!CL11+'Ext2'!CL11)/2 -> 6.595 | CM11: =('Ext1'!CM11+'Ext2'!CM11)/2 -> 5.74 | CN11: =('Ext1'!CN11+'Ext2'!CN11)/2 -> 6.615 | CO11: =('Ext1'!CO11+'Ext2'!CO11)/2 -> 6.905 | CP11: =('Ext1'!CP11+'Ext2'!CP11)/2 -> 5.78 | CQ11: =('Ext1'!CQ11+'Ext2'!CQ11)/2 -> 6.96 | CR11: =('Ext1'!CR11+'Ext2'!CR11)/2 -> 5.205 | CS11: =('Ext1'!CS11+'Ext2'!CS11)/2 -> 5.165 | CT11: =('Ext1'!CT11+'Ext2'!CT11)/2 -> 6.07
B12: Jour 11 | C12: =('Ext1'!C12+'Ext2'!C12)/2 -> 5.44 | D12: =('Ext1'!D12+'Ext2'!D12)/2 -> 6.005 | E12: =('Ext1'!E12+'Ext2'!E12)/2 -> 6.115 | F12: =('Ext1'!F12+'Ext2'!F12)/2 -> 5.5 | G12: =('Ext1'!G12+'Ext2'!G12)/2 -> 6.495 | H12: =('Ext1'!H12+'Ext2'!H12)/2 -> 5.6 | I12: =('Ext1'!I12+'Ext2'!I12)/2 -> 5.77 | J12: =('Ext1'!J12+'Ext2'!J12)/2 -> 5.67 | K12: =('Ext1'!K12+'Ext2'!K12)/2 -> 6.985 | L12: =('Ext1'!L12+'Ext2'!L12)/2 -> 7.29 | M12: =('Ext1'!M12+'Ext2'!M12)/2 -> 7.075 | N12: =('Ext1'!N12+'Ext2'!N12)/2 -> 6.6 | O12: =('Ext1'!O12+'Ext2'!O12)/2 -> 6.645 | P12: =('Ext1'!P12+'Ext2'!P12)/2 -> 8.65 | Q12: =('Ext1'!Q12+'Ext2'!Q12)/2 -> 7.615 | R12: =('Ext1'!R12+'Ext2'!R12)/2 -> 9.07 | S12: =('Ext1'!S12+'Ext2'!S12)/2 -> 9.765 | T12: =('Ext1'!T12+'Ext2'!T12)/2 -> 8.73 | U12: =('Ext1'!U12+'Ext2'!U12)/2 -> 10.255 | V12: =('Ext1'!V12+'Ext2'!V12)/2 -> 9.32 | W12: =('Ext1'!W12+'Ext2'!W12)/2 -> 9.48 | X12: =('Ext1'!X12+'Ext2'!X12)/2 -> 10.68 | Y12: =('Ext1'!Y12+'Ext2'!Y12)/2 -> 11.54 | Z12: =('Ext1'!Z12+'Ext2'!Z12)/2 -> 10.76 | AA12: =('Ext1'!AA12+'Ext2'!AA12)/2 -> 12.05 | AB12: =('Ext1'!AB12+'Ext2'!AB12)/2 -> 12.005 | AC12: =('Ext1'!AC12+'Ext2'!AC12)/2 -> 11.885 | AD12: =('Ext1'!AD12+'Ext2'!AD12)/2 -> 12.435 | AE12: =('Ext1'!AE12+'Ext2'!AE12)/2 -> 12.355 | AF12: =('Ext1'!AF12+'Ext2'!AF12)/2 -> 12.83 | AG12: =('Ext1'!AG12+'Ext2'!AG12)/2 -> 12.8 | AH12: =('Ext1'!AH12+'Ext2'!AH12)/2 -> 12.57 | AI12: =('Ext1'!AI12+'Ext2'!AI12)/2 -> 13.185 | AJ12: =('Ext1'!AJ12+'Ext2'!AJ12)/2 -> 12.6 | AK12: =('Ext1'!AK12+'Ext2'!AK12)/2 -> 13.13 | AL12: =('Ext1'!AL12+'Ext2'!AL12)/2 -> 11.585 | AM12: =('Ext1'!AM12+'Ext2'!AM12)/2 -> 11.605 | AN12: =('Ext1'!AN12+'Ext2'!AN12)/2 -> 11.37 | AO12: =('Ext1'!AO12+'Ext2'!AO12)/2 -> 10.7 | AP12: =('Ext1'!AP12+'Ext2'!AP12)/2 -> 10.82 | AQ12: =('Ext1'!AQ12+'Ext2'!AQ12)/2 -> 11.69 | AR12: =('Ext1'!AR12+'Ext2'!AR12)/2 -> 10.68 | AS12: =('Ext1'!AS12+'Ext2'!AS12)/2 -> 10.06 | AT12: =('Ext1'!AT12+'Ext2'!AT12)/2 -> 9.845 | AU12: =('Ext1'!AU12+'Ext2'!AU12)/2 -> 10.47 | AV12: =('Ext1'!AV12+'Ext2'!AV12)/2 -> 10.35 | AW12: =('Ext1'!AW12+'Ext2'!AW12)/2 -> 10.625 | AX12: =('Ext1'!AX12+'Ext2'!AX12)/2 -> 9.61 | AY12: =('Ext1'!AY12+'Ext2'!AY12)/2 -> 8.95 | AZ12: =('Ext1'!AZ12+'Ext2'!AZ12)/2 -> 9.37 | BA12: =('Ext1'!BA12+'Ext2'!BA12)/2 -> 9.595 | BB12: =('Ext1'!BB12+'Ext2'!BB12)/2 -> 10.6 | BC12: =('Ext1'!BC12+'Ext2'!BC12)/2 -> 10.025 | BD12: =('Ext1'!BD12+'Ext2'!BD12)/2 -> 9.27 | BE12: =('Ext1'!BE12+'Ext2'!BE12)/2 -> 8.915 | BF12: =('Ext1'!BF12+'Ext2'!BF12)/2 -> 9.435 | BG12: =('Ext1'!BG12+'Ext2'!BG12)/2 -> 8.765 | BH12: =('Ext1'!BH12+'Ext2'!BH12)/2 -> 8.875 | BI12: =('Ext1'!BI12+'Ext2'!BI12)/2 -> 9.875 | BJ12: =('Ext1'!BJ12+'Ext2'!BJ12)/2 -> 9.835 | BK12: =('Ext1'!BK12+'Ext2'!BK12)/2 -> 9.48 | BL12: =('Ext1'!BL12+'Ext2'!BL12)/2 -> 9.295 | BM12: =('Ext1'!BM12+'Ext2'!BM12)/2 -> 9.59 | BN12: =('Ext1'!BN12+'Ext2'!BN12)/2 -> 9.245 | BO12: =('Ext1'!BO12+'Ext2'!BO12)/2 -> 9.26 | BP12: =('Ext1'!BP12+'Ext2'!BP12)/2 -> 7.85 | BQ12: =('Ext1'!BQ12+'Ext2'!BQ12)/2 -> 9.045 | BR12: =('Ext1'!BR12+'Ext2'!BR12)/2 -> 7.53 | BS12: =('Ext1'!BS12+'Ext2'!BS12)/2 -> 9.205 | BT12: =('Ext1'!BT12+'Ext2'!BT12)/2 -> 8.07 | BU12: =('Ext1'!BU12+'Ext2'!BU12)/2 -> 7.22 | BV12: =('Ext1'!BV12+'Ext2'!BV12)/2 -> 7.21 | BW12: =('Ext1'!BW12+'Ext2'!BW12)/2 -> 8.23 | BX12: =('Ext1'!BX12+'Ext2'!BX12)/2 -> 6.745 | BY12: =('Ext1'!BY12+'Ext2'!BY12)/2 -> 7.95 | BZ12: =('Ext1'!BZ12+'Ext2'!BZ12)/2 -> 8.495 | CA12: =('Ext1'!CA12+'Ext2'!CA12)/2 -> 7.285 | CB12: =('Ext1'!CB12+'Ext2'!CB12)/2 -> 7.605 | CC12: =('Ext1'!CC12+'Ext2'!CC12)/2 -> 7.33 | CD12: =('Ext1'!CD12+'Ext2'!CD12)/2 -> 7.515 | CE12: =('Ext1'!CE12+'Ext2'!CE12)/2 -> 6.6 | CF12: =('Ext1'!CF12+'Ext2'!CF12)/2 -> 6.415 | CG12: =('Ext1'!CG12+'Ext2'!CG12)/2 -> 6.43 | CH12: =('Ext1'!CH12+'Ext2'!CH12)/2 -> 6.225 | CI12: =('Ext1'!CI12+'Ext2'!CI12)/2 -> 6.785 | CJ12: =('Ext1'!CJ12+'Ext2'!CJ12)/2 -> 6.22 | CK12: =('Ext1'!CK12+'Ext2'!CK12)/2 -> 6.42 | CL12: =('Ext1'!CL12+'Ext2'!CL12)/2 -> 6.895 | CM12: =('Ext1'!CM12+'Ext2'!CM12)/2 -> 6.64 | CN12: =('Ext1'!CN12+'Ext2'!CN12)/2 -> 7.515 | CO12: =('Ext1'!CO12+'Ext2'!CO12)/2 -> 6.705 | CP12: =('Ext1'!CP12+'Ext2'!CP12)/2 -> 5.58 | CQ12: =('Ext1'!CQ12+'Ext2'!CQ12)/2 -> 5.96 | CR12: =('Ext1'!CR12+'Ext2'!CR12)/2 -> 7.205 | CS12: =('Ext1'!CS12+'Ext2'!CS12)/2 -> 6.465 | CT12: =('Ext1'!CT12+'Ext2'!CT12)/2 -> 5.67
B13: Jour 12 | C13: =('Ext1'!C13+'Ext2'!C13)/2 -> 5.34 | D13: =('Ext1'!D13+'Ext2'!D13)/2 -> 5.905 | E13: =('Ext1'!E13+'Ext2'!E13)/2 -> 6.515 | F13: =('Ext1'!F13+'Ext2'!F13)/2 -> 6.8 | G13: =('Ext1'!G13+'Ext2'!G13)/2 -> 6.695 | H13: =('Ext1'!H13+'Ext2'!H13)/2 -> 6.4 | I13: =('Ext1'!I13+'Ext2'!I13)/2 -> 6.97 | J13: =('Ext1'!J13+'Ext2'!J13)/2 -> 6.67 | K13: =('Ext1'!K13+'Ext2'!K13)/2 -> 7.485 | L13: =('Ext1'!L13+'Ext2'!L13)/2 -> 7.39 | M13: =('Ext1'!M13+'Ext2'!M13)/2 -> 6.175 | N13: =('Ext1'!N13+'Ext2'!N13)/2 -> 6.4 | O13: =('Ext1'!O13+'Ext2'!O13)/2 -> 6.845 | P13: =('Ext1'!P13+'Ext2'!P13)/2 -> 8.45 | Q13: =('Ext1'!Q13+'Ext2'!Q13)/2 -> 8.815 | R13: =('Ext1'!R13+'Ext2'!R13)/2 -> 9.17 | S13: =('Ext1'!S13+'Ext2'!S13)/2 -> 8.765 | T13: =('Ext1'!T13+'Ext2'!T13)/2 -> 9.63 | U13: =('Ext1'!U13+'Ext2'!U13)/2 -> 9.455 | V13: =('Ext1'!V13+'Ext2'!V13)/2 -> 8.92 | W13: =('Ext1'!W13+'Ext2'!W13)/2 -> 9.68 | X13: =('Ext1'!X13+'Ext2'!X13)/2 -> 9.88 | Y13: =('Ext1'!Y13+'Ext2'!Y13)/2 -> 11.64 | Z13: =('Ext1'!Z13+'Ext2'!Z13)/2 -> 11.66 | AA13: =('Ext1'!AA13+'Ext2'!AA13)/2 -> 11.95 | AB13: =('Ext1'!AB13+'Ext2'!AB13)/2 -> 10.805 | AC13: =('Ext1'!AC13+'Ext2'!AC13)/2 -> 12.185 | AD13: =('Ext1'!AD13+'Ext2'!AD13)/2 -> 13.035 | AE13: =('Ext1'!AE13+'Ext2'!AE13)/2 -> 12.455 | AF13: =('Ext1'!AF13+'Ext2'!AF13)/2 -> 11.83 | AG13: =('Ext1'!AG13+'Ext2'!AG13)/2 -> 11.8 | AH13: =('Ext1'!AH13+'Ext2'!AH13)/2 -> 13.27 | AI13: =('Ext1'!AI13+'Ext2'!AI13)/2 -> 12.485 | AJ13: =('Ext1'!AJ13+'Ext2'!AJ13)/2 -> 12.7 | AK13: =('Ext1'!AK13+'Ext2'!AK13)/2 -> 11.63 | AL13: =('Ext1'!AL13+'Ext2'!AL13)/2 -> 11.285 | AM13: =('Ext1'!AM13+'Ext2'!AM13)/2 -> 11.005 | AN13: =('Ext1'!AN13+'Ext2'!AN13)/2 -> 11.87 | AO13: =('Ext1'!AO13+'Ext2'!AO13)/2 -> 12.6 | AP13: =('Ext1'!AP13+'Ext2'!AP13)/2 -> 11.12 | AQ13: =('Ext1'!AQ13+'Ext2'!AQ13)/2 -> 10.79 | AR13: =('Ext1'!AR13+'Ext2'!AR13)/2 -> 10.18 | AS13: =('Ext1'!AS13+'Ext2'!AS13)/2 -> 11.06 | AT13: =('Ext1'!AT13+'Ext2'!AT13)/2 -> 10.645 | AU13: =('Ext1'!AU13+'Ext2'!AU13)/2 -> 9.67 | AV13: =('Ext1'!AV13+'Ext2'!AV13)/2 -> 9.95 | AW13: =('Ext1'!AW13+'Ext2'!AW13)/2 -> 9.725 | AX13: =('Ext1'!AX13+'Ext2'!AX13)/2 -> 10.11 | AY13: =('Ext1'!AY13+'Ext2'!AY13)/2 -> 9.25 | AZ13: =('Ext1'!AZ13+'Ext2'!AZ13)/2 -> 10.77 | BA13: =('Ext1'!BA13+'Ext2'!BA13)/2 -> 10.395 | BB13: =('Ext1'!BB13+'Ext2'!BB13)/2 -> 10.2 | BC13: =('Ext1'!BC13+'Ext2'!BC13)/2 -> 9.625 | BD13: =('Ext1'!BD13+'Ext2'!BD13)/2 -> 9.67 | BE13: =('Ext1'!BE13+'Ext2'!BE13)/2 -> 10.315 | BF13: =('Ext1'!BF13+'Ext2'!BF13)/2 -> 9.435 | BG13: =('Ext1'!BG13+'Ext2'!BG13)/2 -> 9.065 | BH13: =('Ext1'!BH13+'Ext2'!BH13)/2 -> 9.075 | BI13: =('Ext1'!BI13+'Ext2'!BI13)/2 -> 8.975 | BJ13: =('Ext1'!BJ13+'Ext2'!BJ13)/2 -> 8.835 | BK13: =('Ext1'!BK13+'Ext2'!BK13)/2 -> 9.08 | BL13: =('Ext1'!BL13+'Ext2'!BL13)/2 -> 8.995 | BM13: =('Ext1'!BM13+'Ext2'!BM13)/2 -> 9.49 | BN13: =('Ext1'!BN13+'Ext2'!BN13)/2 -> 9.445 | BO13: =('Ext1'!BO13+'Ext2'!BO13)/2 -> 9.06 | BP13: =('Ext1'!BP13+'Ext2'!BP13)/2 -> 7.55 | BQ13: =('Ext1'!BQ13+'Ext2'!BQ13)/2 -> 8.245 | BR13: =('Ext1'!BR13+'Ext2'!BR13)/2 -> 7.63 | BS13: =('Ext1'!BS13+'Ext2'!BS13)/2 -> 7.505 | BT13: =('Ext1'!BT13+'Ext2'!BT13)/2 -> 8.17 | BU13: =('Ext1'!BU13+'Ext2'!BU13)/2 -> 8.22 | BV13: =('Ext1'!BV13+'Ext2'!BV13)/2 -> 8.51 | BW13: =('Ext1'!BW13+'Ext2'!BW13)/2 -> 7.03 | BX13: =('Ext1'!BX13+'Ext2'!BX13)/2 -> 8.245 | BY13: =('Ext1'!BY13+'Ext2'!BY13)/2 -> 8.35 | BZ13: =('Ext1'!BZ13+'Ext2'!BZ13)/2 -> 7.795 | CA13: =('Ext1'!CA13+'Ext2'!CA13)/2 -> 6.585 | CB13: =('Ext1'!CB13+'Ext2'!CB13)/2 -> 8.205 | CC13: =('Ext1'!CC13+'Ext2'!CC13)/2 -> 6.73 | CD13: =('Ext1'!CD13+'Ext2'!CD13)/2 -> 7.315 | CE13: =('Ext1'!CE13+'Ext2'!CE13)/2 -> 6.2 | CF13: =('Ext1'!CF13+'Ext2'!CF13)/2 -> 7.215 | CG13: =('Ext1'!CG13+'Ext2'!CG13)/2 -> 7.63 | CH13: =('Ext1'!CH13+'Ext2'!CH13)/2 -> 6.225 | CI13: =('Ext1'!CI13+'Ext2'!CI13)/2 -> 6.085 | CJ13: =('Ext1'!CJ13+'Ext2'!CJ13)/2 -> 6.52 | CK13: =('Ext1'!CK13+'Ext2'!CK13)/2 -> 5.72 | CL13: =('Ext1'!CL13+'Ext2'!CL13)/2 -> 6.495 | CM13: =('Ext1'!CM13+'Ext2'!CM13)/2 -> 6.34 | CN13: =('Ext1'!CN13+'Ext2'!CN13)/2 -> 7.215 | CO13: =('Ext1'!CO13+'Ext2'!CO13)/2 -> 5.505 | CP13: =('Ext1'!CP13+'Ext2'!CP13)/2 -> 5.58 | CQ13: =('Ext1'!CQ13+'Ext2'!CQ13)/2 -> 5.96 | CR13: =('Ext1'!CR13+'Ext2'!CR13)/2 -> 5.905 | CS13: =('Ext1'!CS13+'Ext2'!CS13)/2 -> 5.365 | CT13: =('Ext1'!CT13+'Ext2'!CT13)/2 -> 6.37
B14: Jour 13 | C14: =('Ext1'!C14+'Ext2'!C14)/2 -> 4.24 | D14: =('Ext1'!D14+'Ext2'!D14)/2 -> 4.605 | E14: =('Ext1'!E14+'Ext2'!E14)/2 -> 6.515 | F14: =('Ext1'!F14+'Ext2'!F14)/2 -> 5.4 | G14: =('Ext1'!G14+'Ext2'!G14)/2 -> 6.995 | H14: =('Ext1'!H14+'Ext2'!H14)/2 -> 5.9 | I14: =('Ext1'!I14+'Ext2'!I14)/2 -> 6.97 | J14: =('Ext1'!J14+'Ext2'!J14)/2 -> 6.77 | K14: =('Ext1'!K14+'Ext2'!K14)/2 -> 6.485 | L14: =('Ext1'!L14+'Ext2'!L14)/2 -> 6.99 | M14: =('Ext1'!M14+'Ext2'!M14)/2 -> 6.175 | N14: =('Ext1'!N14+'Ext2'!N14)/2 -> 8 | O14: =('Ext1'!O14+'Ext2'!O14)/2 -> 7.045 | P14: =('Ext1'!P14+'Ext2'!P14)/2 -> 7.25 | Q14: =('Ext1'!Q14+'Ext2'!Q14)/2 -> 8.015 | R14: =('Ext1'!R14+'Ext2'!R14)/2 -> 9.07 | S14: =('Ext1'!S14+'Ext2'!S14)/2 -> 9.865 | T14: =('Ext1'!T14+'Ext2'!T14)/2 -> 9.43 | U14: =('Ext1'!U14+'Ext2'!U14)/2 -> 10.255 | V14: =('Ext1'!V14+'Ext2'!V14)/2 -> 10.12 | W14: =('Ext1'!W14+'Ext2'!W14)/2 -> 11.28 | X14: =('Ext1'!X14+'Ext2'!X14)/2 -> 10.48 | Y14: =('Ext1'!Y14+'Ext2'!Y14)/2 -> 10.14 | Z14: =('Ext1'!Z14+'Ext2'!Z14)/2 -> 11.06 | AA14: =('Ext1'!AA14+'Ext2'!AA14)/2 -> 11.35 | AB14: =('Ext1'!AB14+'Ext2'!AB14)/2 -> 12.305 | AC14: =('Ext1'!AC14+'Ext2'!AC14)/2 -> 12.985 | AD14: =('Ext1'!AD14+'Ext2'!AD14)/2 -> 12.735 | AE14: =('Ext1'!AE14+'Ext2'!AE14)/2 -> 13.355 | AF14: =('Ext1'!AF14+'Ext2'!AF14)/2 -> 11.63 | AG14: =('Ext1'!AG14+'Ext2'!AG14)/2 -> 11.9 | AH14: =('Ext1'!AH14+'Ext2'!AH14)/2 -> 12.87 | AI14: =('Ext1'!AI14+'Ext2'!AI14)/2 -> 11.485 | AJ14: =('Ext1'!AJ14+'Ext2'!AJ14)/2 -> 12.2 | AK14: =('Ext1'!AK14+'Ext2'!AK14)/2 -> 11.73 | AL14: =('Ext1'!AL14+'Ext2'!AL14)/2 -> 12.285 | AM14: =('Ext1'!AM14+'Ext2'!AM14)/2 -> 11.005 | AN14: =('Ext1'!AN14+'Ext2'!AN14)/2 -> 12.87 | AO14: =('Ext1'!AO14+'Ext2'!AO14)/2 -> 11.8 | AP14: =('Ext1'!AP14+'Ext2'!AP14)/2 -> 11.02 | AQ14: =('Ext1'!AQ14+'Ext2'!AQ14)/2 -> 10.59 | AR14: =('Ext1'!AR14+'Ext2'!AR14)/2 -> 10.78 | AS14: =('Ext1'!AS14+'Ext2'!AS14)/2 -> 10.26 | AT14: =('Ext1'!AT14+'Ext2'!AT14)/2 -> 11.545 | AU14: =('Ext1'!AU14+'Ext2'!AU14)/2 -> 9.67 | AV14: =('Ext1'!AV14+'Ext2'!AV14)/2 -> 9.95 | AW14: =('Ext1'!AW14+'Ext2'!AW14)/2 -> 9.325 | AX14: =('Ext1'!AX14+'Ext2'!AX14)/2 -> 10.91 | AY14: =('Ext1'!AY14+'Ext2'!AY14)/2 -> 10.95 | AZ14: =('Ext1'!AZ14+'Ext2'!AZ14)/2 -> 10.97 | BA14: =('Ext1'!BA14+'Ext2'!BA14)/2 -> 9.895 | BB14: =('Ext1'!BB14+'Ext2'!BB14)/2 -> 10.9 | BC14: =('Ext1'!BC14+'Ext2'!BC14)/2 -> 9.825 | BD14: =('Ext1'!BD14+'Ext2'!BD14)/2 -> 8.77 | BE14: =('Ext1'!BE14+'Ext2'!BE14)/2 -> 10.015 | BF14: =('Ext1'!BF14+'Ext2'!BF14)/2 -> 10.135 | BG14: =('Ext1'!BG14+'Ext2'!BG14)/2 -> 10.565 | BH14: =('Ext1'!BH14+'Ext2'!BH14)/2 -> 10.375 | BI14: =('Ext1'!BI14+'Ext2'!BI14)/2 -> 8.675 | BJ14: =('Ext1'!BJ14+'Ext2'!BJ14)/2 -> 9.335 | BK14: =('Ext1'!BK14+'Ext2'!BK14)/2 -> 8.78 | BL14: =('Ext1'!BL14+'Ext2'!BL14)/2 -> 9.095 | BM14: =('Ext1'!BM14+'Ext2'!BM14)/2 -> 9.59 | BN14: =('Ext1'!BN14+'Ext2'!BN14)/2 -> 9.545 | BO14: =('Ext1'!BO14+'Ext2'!BO14)/2 -> 8.06 | BP14: =('Ext1'!BP14+'Ext2'!BP14)/2 -> 9.15 | BQ14: =('Ext1'!BQ14+'Ext2'!BQ14)/2 -> 7.545 | BR14: =('Ext1'!BR14+'Ext2'!BR14)/2 -> 9.23 | BS14: =('Ext1'!BS14+'Ext2'!BS14)/2 -> 7.705 | BT14: =('Ext1'!BT14+'Ext2'!BT14)/2 -> 9.07 | BU14: =('Ext1'!BU14+'Ext2'!BU14)/2 -> 7.32 | BV14: =('Ext1'!BV14+'Ext2'!BV14)/2 -> 8.91 | BW14: =('Ext1'!BW14+'Ext2'!BW14)/2 -> 8.13 | BX14: =('Ext1'!BX14+'Ext2'!BX14)/2 -> 6.845 | BY14: =('Ext1'!BY14+'Ext2'!BY14)/2 -> 8.55 | BZ14: =('Ext1'!BZ14+'Ext2'!BZ14)/2 -> 7.695 | CA14: =('Ext1'!CA14+'Ext2'!CA14)/2 -> 8.085 | CB14: =('Ext1'!CB14+'Ext2'!CB14)/2 -> 7.205 | CC14: =('Ext1'!CC14+'Ext2'!CC14)/2 -> 7.73 | CD14: =('Ext1'!CD14+'Ext2'!CD14)/2 -> 7.115 | CE14: =('Ext1'!CE14+'Ext2'!CE14)/2 -> 7.1 | CF14: =('Ext1'!CF14+'Ext2'!CF14)/2 -> 7.415 | CG14: =('Ext1'!CG14+'Ext2'!CG14)/2 -> 7.43 | CH14: =('Ext1'!CH14+'Ext2'!CH14)/2 -> 7.425 | CI14: =('Ext1'!CI14+'Ext2'!CI14)/2 -> 6.385 | CJ14: =('Ext1'!CJ14+'Ext2'!CJ14)/2 -> 7.02 | CK14: =('Ext1'!CK14+'Ext2'!CK14)/2 -> 6.62 | CL14: =('Ext1'!CL14+'Ext2'!CL14)/2 -> 7.195 | CM14: =('Ext1'!CM14+'Ext2'!CM14)/2 -> 7.14 | CN14: =('Ext1'!CN14+'Ext2'!CN14)/2 -> 5.615 | CO14: =('Ext1'!CO14+'Ext2'!CO14)/2 -> 6.405 | CP14: =('Ext1'!CP14+'Ext2'!CP14)/2 -> 5.78 | CQ14: =('Ext1'!CQ14+'Ext2'!CQ14)/2 -> 6.16 | CR14: =('Ext1'!CR14+'Ext2'!CR14)/2 -> 6.105 | CS14: =('Ext1'!CS14+'Ext2'!CS14)/2 -> 5.865 | CT14: =('Ext1'!CT14+'Ext2'!CT14)/2 -> 5.77
B15: Jour 14 | C15: =('Ext1'!C15+'Ext2'!C15)/2 -> 5.24 | D15: =('Ext1'!D15+'Ext2'!D15)/2 -> 6.605 | E15: =('Ext1'!E15+'Ext2'!E15)/2 -> 5.115 | F15: =('Ext1'!F15+'Ext2'!F15)/2 -> 5.7 | G15: =('Ext1'!G15+'Ext2'!G15)/2 -> 5.195 | H15: =('Ext1'!H15+'Ext2'!H15)/2 -> 6.7 | I15: =('Ext1'!I15+'Ext2'!I15)/2 -> 6.67 | J15: =('Ext1'!J15+'Ext2'!J15)/2 -> 7.27 | K15: =('Ext1'!K15+'Ext2'!K15)/2 -> 6.185 | L15: =('Ext1'!L15+'Ext2'!L15)/2 -> 5.79 | M15: =('Ext1'!M15+'Ext2'!M15)/2 -> 7.575 | N15: =('Ext1'!N15+'Ext2'!N15)/2 -> 7 | O15: =('Ext1'!O15+'Ext2'!O15)/2 -> 8.645 | P15: =('Ext1'!P15+'Ext2'!P15)/2 -> 6.95 | Q15: =('Ext1'!Q15+'Ext2'!Q15)/2 -> 8.715 | R15: =('Ext1'!R15+'Ext2'!R15)/2 -> 8.97 | S15: =('Ext1'!S15+'Ext2'!S15)/2 -> 8.365 | T15: =('Ext1'!T15+'Ext2'!T15)/2 -> 8.53 | U15: =('Ext1'!U15+'Ext2'!U15)/2 -> 9.855 | V15: =('Ext1'!V15+'Ext2'!V15)/2 -> 9.32 | W15: =('Ext1'!W15+'Ext2'!W15)/2 -> 9.98 | X15: =('Ext1'!X15+'Ext2'!X15)/2 -> 10.48 | Y15: =('Ext1'!Y15+'Ext2'!Y15)/2 -> 11.24 | Z15: =('Ext1'!Z15+'Ext2'!Z15)/2 -> 10.56 | AA15: =('Ext1'!AA15+'Ext2'!AA15)/2 -> 11.25 | AB15: =('Ext1'!AB15+'Ext2'!AB15)/2 -> 10.805 | AC15: =('Ext1'!AC15+'Ext2'!AC15)/2 -> 11.685 | AD15: =('Ext1'!AD15+'Ext2'!AD15)/2 -> 11.435 | AE15: =('Ext1'!AE15+'Ext2'!AE15)/2 -> 12.055 | AF15: =('Ext1'!AF15+'Ext2'!AF15)/2 -> 13.33 | AG15: =('Ext1'!AG15+'Ext2'!AG15)/2 -> 12 | AH15: =('Ext1'!AH15+'Ext2'!AH15)/2 -> 12.57 | AI15: =('Ext1'!AI15+'Ext2'!AI15)/2 -> 12.385 | AJ15: =('Ext1'!AJ15+'Ext2'!AJ15)/2 -> 12.7 | AK15: =('Ext1'!AK15+'Ext2'!AK15)/2 -> 11.43 | AL15: =('Ext1'!AL15+'Ext2'!AL15)/2 -> 12.785 | AM15: =('Ext1'!AM15+'Ext2'!AM15)/2 -> 11.705 | AN15: =('Ext1'!AN15+'Ext2'!AN15)/2 -> 12.27 | AO15: =('Ext1'!AO15+'Ext2'!AO15)/2 -> 11 | AP15: =('Ext1'!AP15+'Ext2'!AP15)/2 -> 10.72 | AQ15: =('Ext1'!AQ15+'Ext2'!AQ15)/2 -> 11.99 | AR15: =('Ext1'!AR15+'Ext2'!AR15)/2 -> 11.78 | AS15: =('Ext1'!AS15+'Ext2'!AS15)/2 -> 10.46 | AT15: =('Ext1'!AT15+'Ext2'!AT15)/2 -> 10.845 | AU15: =('Ext1'!AU15+'Ext2'!AU15)/2 -> 9.47 | AV15: =('Ext1'!AV15+'Ext2'!AV15)/2 -> 11.25 | AW15: =('Ext1'!AW15+'Ext2'!AW15)/2 -> 10.525 | AX15: =('Ext1'!AX15+'Ext2'!AX15)/2 -> 10.51 | AY15: =('Ext1'!AY15+'Ext2'!AY15)/2 -> 10.45 | AZ15: =('Ext1'!AZ15+'Ext2'!AZ15)/2 -> 10.57 | BA15: =('Ext1'!BA15+'Ext2'!BA15)/2 -> 9.995 | BB15: =('Ext1'!BB15+'Ext2'!BB15)/2 -> 10.8 | BC15: =('Ext1'!BC15+'Ext2'!BC15)/2 -> 9.325 | BD15: =('Ext1'!BD15+'Ext2'!BD15)/2 -> 9.37 | BE15: =('Ext1'!BE15+'Ext2'!BE15)/2 -> 8.615 | BF15: =('Ext1'!BF15+'Ext2'!BF15)/2 -> 10.535 | BG15: =('Ext1'!BG15+'Ext2'!BG15)/2 -> 9.165 | BH15: =('Ext1'!BH15+'Ext2'!BH15)/2 -> 9.275 | BI15: =('Ext1'!BI15+'Ext2'!BI15)/2 -> 10.175 | BJ15: =('Ext1'!BJ15+'Ext2'!BJ15)/2 -> 8.335 | BK15: =('Ext1'!BK15+'Ext2'!BK15)/2 -> 9.88 | BL15: =('Ext1'!BL15+'Ext2'!BL15)/2 -> 9.195 | BM15: =('Ext1'!BM15+'Ext2'!BM15)/2 -> 8.19 | BN15: =('Ext1'!BN15+'Ext2'!BN15)/2 -> 9.345 | BO15: =('Ext1'!BO15+'Ext2'!BO15)/2 -> 9.46 | BP15: =('Ext1'!BP15+'Ext2'!BP15)/2 -> 9.55 | BQ15: =('Ext1'!BQ15+'Ext2'!BQ15)/2 -> 9.345 | BR15: =('Ext1'!BR15+'Ext2'!BR15)/2 -> 8.63 | BS15: =('Ext1'!BS15+'Ext2'!BS15)/2 -> 8.805 | BT15: =('Ext1'!BT15+'Ext2'!BT15)/2 -> 7.57 | BU15: =('Ext1'!BU15+'Ext2'!BU15)/2 -> 8.42 | BV15: =('Ext1'!BV15+'Ext2'!BV15)/2 -> 7.01 | BW15: =('Ext1'!BW15+'Ext2'!BW15)/2 -> 6.93 | BX15: =('Ext1'!BX15+'Ext2'!BX15)/2 -> 7.945 | BY15: =('Ext1'!BY15+'Ext2'!BY15)/2 -> 8.05 | BZ15: =('Ext1'!BZ15+'Ext2'!BZ15)/2 -> 6.595 | CA15: =('Ext1'!CA15+'Ext2'!CA15)/2 -> 8.485 | CB15: =('Ext1'!CB15+'Ext2'!CB15)/2 -> 7.005 | CC15: =('Ext1'!CC15+'Ext2'!CC15)/2 -> 6.63 | CD15: =('Ext1'!CD15+'Ext2'!CD15)/2 -> 7.415 | CE15: =('Ext1'!CE15+'Ext2'!CE15)/2 -> 6.5 | CF15: =('Ext1'!CF15+'Ext2'!CF15)/2 -> 6.915 | CG15: =('Ext1'!CG15+'Ext2'!CG15)/2 -> 7.43 | CH15: =('Ext1'!CH15+'Ext2'!CH15)/2 -> 6.625 | CI15: =('Ext1'!CI15+'Ext2'!CI15)/2 -> 7.785 | CJ15: =('Ext1'!CJ15+'Ext2'!CJ15)/2 -> 7.72 | CK15: =('Ext1'!CK15+'Ext2'!CK15)/2 -> 7.02 | CL15: =('Ext1'!CL15+'Ext2'!CL15)/2 -> 7.395 | CM15: =('Ext1'!CM15+'Ext2'!CM15)/2 -> 6.94 | CN15: =('Ext1'!CN15+'Ext2'!CN15)/2 -> 6.415 | CO15: =('Ext1'!CO15+'Ext2'!CO15)/2 -> 7.005 | CP15: =('Ext1'!CP15+'Ext2'!CP15)/2 -> 6.18 | CQ15: =('Ext1'!CQ15+'Ext2'!CQ15)/2 -> 5.96 | CR15: =('Ext1'!CR15+'Ext2'!CR15)/2 -> 7.205 | CS15: =('Ext1'!CS15+'Ext2'!CS15)/2 -> 6.265 | CT15: =('Ext1'!CT15+'Ext2'!CT15)/2 -> 5.77
B16: Jour 15 | C16: =('Ext1'!C16+'Ext2'!C16)/2 -> 5.64 | D16: =('Ext1'!D16+'Ext2'!D16)/2 -> 5.905 | E16: =('Ext1'!E16+'Ext2'!E16)/2 -> 5.015 | F16: =('Ext1'!F16+'Ext2'!F16)/2 -> 5.9 | G16: =('Ext1'!G16+'Ext2'!G16)/2 -> 6.695 | H16: =('Ext1'!H16+'Ext2'!H16)/2 -> 6 | I16: =('Ext1'!I16+'Ext2'!I16)/2 -> 6.87 | J16: =('Ext1'!J16+'Ext2'!J16)/2 -> 6.07 | K16: =('Ext1'!K16+'Ext2'!K16)/2 -> 7.585 | L16: =('Ext1'!L16+'Ext2'!L16)/2 -> 6.39 | M16: =('Ext1'!M16+'Ext2'!M16)/2 -> 7.975 | N16: =('Ext1'!N16+'Ext2'!N16)/2 -> 7.1 | O16: =('Ext1'!O16+'Ext2'!O16)/2 -> 7.645 | P16: =('Ext1'!P16+'Ext2'!P16)/2 -> 7.45 | Q16: =('Ext1'!Q16+'Ext2'!Q16)/2 -> 8.315 | R16: =('Ext1'!R16+'Ext2'!R16)/2 -> 8.77 | S16: =('Ext1'!S16+'Ext2'!S16)/2 -> 8.865 | T16: =('Ext1'!T16+'Ext2'!T16)/2 -> 10.03 | U16: =('Ext1'!U16+'Ext2'!U16)/2 -> 10.055 | V16: =('Ext1'!V16+'Ext2'!V16)/2 -> 9.32 | W16: =('Ext1'!W16+'Ext2'!W16)/2 -> 9.38 | X16: =('Ext1'!X16+'Ext2'!X16)/2 -> 10.18 | Y16: =('Ext1'!Y16+'Ext2'!Y16)/2 -> 11.44 | Z16: =('Ext1'!Z16+'Ext2'!Z16)/2 -> 10.56 | AA16: =('Ext1'!AA16+'Ext2'!AA16)/2 -> 10.45 | AB16: =('Ext1'!AB16+'Ext2'!AB16)/2 -> 12.505 | AC16: =('Ext1'!AC16+'Ext2'!AC16)/2 -> 11.285 | AD16: =('Ext1'!AD16+'Ext2'!AD16)/2 -> 12.835 | AE16: =('Ext1'!AE16+'Ext2'!AE16)/2 -> 11.755 | AF16: =('Ext1'!AF16+'Ext2'!AF16)/2 -> 12.83 | AG16: =('Ext1'!AG16+'Ext2'!AG16)/2 -> 12.7 | AH16: =('Ext1'!AH16+'Ext2'!AH16)/2 -> 12.57 | AI16: =('Ext1'!AI16+'Ext2'!AI16)/2 -> 12.785 | AJ16: =('Ext1'!AJ16+'Ext2'!AJ16)/2 -> 13.3 | AK16: =('Ext1'!AK16+'Ext2'!AK16)/2 -> 11.33 | AL16: =('Ext1'!AL16+'Ext2'!AL16)/2 -> 12.685 | AM16: =('Ext1'!AM16+'Ext2'!AM16)/2 -> 10.905 | AN16: =('Ext1'!AN16+'Ext2'!AN16)/2 -> 11.07 | AO16: =('Ext1'!AO16+'Ext2'!AO16)/2 -> 12.4 | AP16: =('Ext1'!AP16+'Ext2'!AP16)/2 -> 11.82 | AQ16: =('Ext1'!AQ16+'Ext2'!AQ16)/2 -> 10.79 | AR16: =('Ext1'!AR16+'Ext2'!AR16)/2 -> 10.88 | AS16: =('Ext1'!AS16+'Ext2'!AS16)/2 -> 9.76 | AT16: =('Ext1'!AT16+'Ext2'!AT16)/2 -> 10.345 | AU16: =('Ext1'!AU16+'Ext2'!AU16)/2 -> 10.47 | AV16: =('Ext1'!AV16+'Ext2'!AV16)/2 -> 10.35 | AW16: =('Ext1'!AW16+'Ext2'!AW16)/2 -> 11.125 | AX16: =('Ext1'!AX16+'Ext2'!AX16)/2 -> 9.91 | AY16: =('Ext1'!AY16+'Ext2'!AY16)/2 -> 8.95 | AZ16: =('Ext1'!AZ16+'Ext2'!AZ16)/2 -> 10.87 | BA16: =('Ext1'!BA16+'Ext2'!BA16)/2 -> 10.295 | BB16: =('Ext1'!BB16+'Ext2'!BB16)/2 -> 10.9 | BC16: =('Ext1'!BC16+'Ext2'!BC16)/2 -> 9.825 | BD16: =('Ext1'!BD16+'Ext2'!BD16)/2 -> 9.67 | BE16: =('Ext1'!BE16+'Ext2'!BE16)/2 -> 9.915 | BF16: =('Ext1'!BF16+'Ext2'!BF16)/2 -> 9.235 | BG16: =('Ext1'!BG16+'Ext2'!BG16)/2 -> 10.265 | BH16: =('Ext1'!BH16+'Ext2'!BH16)/2 -> 9.375 | BI16: =('Ext1'!BI16+'Ext2'!BI16)/2 -> 9.075 | BJ16: =('Ext1'!BJ16+'Ext2'!BJ16)/2 -> 8.735 | BK16: =('Ext1'!BK16+'Ext2'!BK16)/2 -> 8.68 | BL16: =('Ext1'!BL16+'Ext2'!BL16)/2 -> 9.895 | BM16: =('Ext1'!BM16+'Ext2'!BM16)/2 -> 8.39 | BN16: =('Ext1'!BN16+'Ext2'!BN16)/2 -> 8.945 | BO16: =('Ext1'!BO16+'Ext2'!BO16)/2 -> 8.16 | BP16: =('Ext1'!BP16+'Ext2'!BP16)/2 -> 8.05 | BQ16: =('Ext1'!BQ16+'Ext2'!BQ16)/2 -> 7.945 | BR16: =('Ext1'!BR16+'Ext2'!BR16)/2 -> 8.13 | BS16: =('Ext1'!BS16+'Ext2'!BS16)/2 -> 8.005 | BT16: =('Ext1'!BT16+'Ext2'!BT16)/2 -> 7.07 | BU16: =('Ext1'!BU16+'Ext2'!BU16)/2 -> 7.02 | BV16: =('Ext1'!BV16+'Ext2'!BV16)/2 -> 8.41 | BW16: =('Ext1'!BW16+'Ext2'!BW16)/2 -> 8.83 | BX16: =('Ext1'!BX16+'Ext2'!BX16)/2 -> 8.545 | BY16: =('Ext1'!BY16+'Ext2'!BY16)/2 -> 7.55 | BZ16: =('Ext1'!BZ16+'Ext2'!BZ16)/2 -> 6.895 | CA16: =('Ext1'!CA16+'Ext2'!CA16)/2 -> 7.185 | CB16: =('Ext1'!CB16+'Ext2'!CB16)/2 -> 8.105 | CC16: =('Ext1'!CC16+'Ext2'!CC16)/2 -> 8.03 | CD16: =('Ext1'!CD16+'Ext2'!CD16)/2 -> 7.415 | CE16: =('Ext1'!CE16+'Ext2'!CE16)/2 -> 6.2 | CF16: =('Ext1'!CF16+'Ext2'!CF16)/2 -> 8.015 | CG16: =('Ext1'!CG16+'Ext2'!CG16)/2 -> 8.03 | CH16: =('Ext1'!CH16+'Ext2'!CH16)/2 -> 7.425 | CI16: =('Ext1'!CI16+'Ext2'!CI16)/2 -> 7.785 | CJ16: =('Ext1'!CJ16+'Ext2'!CJ16)/2 -> 6.32 | CK16: =('Ext1'!CK16+'Ext2'!CK16)/2 -> 7.62 | CL16: =('Ext1'!CL16+'Ext2'!CL16)/2 -> 6.695 | CM16: =('Ext1'!CM16+'Ext2'!CM16)/2 -> 6.54 | CN16: =('Ext1'!CN16+'Ext2'!CN16)/2 -> 6.215 | CO16: =('Ext1'!CO16+'Ext2'!CO16)/2 -> 5.905 | CP16: =('Ext1'!CP16+'Ext2'!CP16)/2 -> 6.98 | CQ16: =('Ext1'!CQ16+'Ext2'!CQ16)/2 -> 5.96 | CR16: =('Ext1'!CR16+'Ext2'!CR16)/2 -> 5.905 | CS16: =('Ext1'!CS16+'Ext2'!CS16)/2 -> 5.265 | CT16: =('Ext1'!CT16+'Ext2'!CT16)/2 -> 6.57
B17: Jour 16 | C17: =('Ext1'!C17+'Ext2'!C17)/2 -> 4.74 | D17: =('Ext1'!D17+'Ext2'!D17)/2 -> 5.805 | E17: =('Ext1'!E17+'Ext2'!E17)/2 -> 5.715 | F17: =('Ext1'!F17+'Ext2'!F17)/2 -> 6.1 | G17: =('Ext1'!G17+'Ext2'!G17)/2 -> 5.595 | H17: =('Ext1'!H17+'Ext2'!H17)/2 -> 6.1 | I17: =('Ext1'!I17+'Ext2'!I17)/2 -> 6.47 | J17: =('Ext1'!J17+'Ext2'!J17)/2 -> 7.67 | K17: =('Ext1'!K17+'Ext2'!K17)/2 -> 7.185 | L17: =('Ext1'!L17+'Ext2'!L17)/2 -> 6.99 | M17: =('Ext1'!M17+'Ext2'!M17)/2 -> 6.875 | N17: =('Ext1'!N17+'Ext2'!N17)/2 -> 8.3 | O17: =('Ext1'!O17+'Ext2'!O17)/2 -> 8.145 | P17: =('Ext1'!P17+'Ext2'!P17)/2 -> 7.75 | Q17: =('Ext1'!Q17+'Ext2'!Q17)/2 -> 8.015 | R17: =('Ext1'!R17+'Ext2'!R17)/2 -> 8.67 | S17: =('Ext1'!S17+'Ext2'!S17)/2 -> 7.865 | T17: =('Ext1'!T17+'Ext2'!T17)/2 -> 9.23 | U17: =('Ext1'!U17+'Ext2'!U17)/2 -> 9.855 | V17: =('Ext1'!V17+'Ext2'!V17)/2 -> 9.62 | W17: =('Ext1'!W17+'Ext2'!W17)/2 -> 9.78 | X17: =('Ext1'!X17+'Ext2'!X17)/2 -> 11.18 | Y17: =('Ext1'!Y17+'Ext2'!Y17)/2 -> 11.04 | Z17: =('Ext1'!Z17+'Ext2'!Z17)/2 -> 11.16 | AA17: =('Ext1'!AA17+'Ext2'!AA17)/2 -> 11.35 | AB17: =('Ext1'!AB17+'Ext2'!AB17)/2 -> 11.405 | AC17: =('Ext1'!AC17+'Ext2'!AC17)/2 -> 11.785 | AD17: =('Ext1'!AD17+'Ext2'!AD17)/2 -> 11.335 | AE17: =('Ext1'!AE17+'Ext2'!AE17)/2 -> 13.255 | AF17: =('Ext1'!AF17+'Ext2'!AF17)/2 -> 12.23 | AG17: =('Ext1'!AG17+'Ext2'!AG17)/2 -> 13.4 | AH17: =('Ext1'!AH17+'Ext2'!AH17)/2 -> 11.57 | AI17: =('Ext1'!AI17+'Ext2'!AI17)/2 -> 11.585 | AJ17: =('Ext1'!AJ17+'Ext2'!AJ17)/2 -> 12.5 | AK17: =('Ext1'!AK17+'Ext2'!AK17)/2 -> 13.13 | AL17: =('Ext1'!AL17+'Ext2'!AL17)/2 -> 12.085 | AM17: =('Ext1'!AM17+'Ext2'!AM17)/2 -> 12.805 | AN17: =('Ext1'!AN17+'Ext2'!AN17)/2 -> 11.77 | AO17: =('Ext1'!AO17+'Ext2'!AO17)/2 -> 10.7 | AP17: =('Ext1'!AP17+'Ext2'!AP17)/2 -> 10.62 | AQ17: =('Ext1'!AQ17+'Ext2'!AQ17)/2 -> 10.99 | AR17: =('Ext1'!AR17+'Ext2'!AR17)/2 -> 11.88 | AS17: =('Ext1'!AS17+'Ext2'!AS17)/2 -> 10.56 | AT17: =('Ext1'!AT17+'Ext2'!AT17)/2 -> 11.045 | AU17: =('Ext1'!AU17+'Ext2'!AU17)/2 -> 11.17 | AV17: =('Ext1'!AV17+'Ext2'!AV17)/2 -> 9.55 | AW17: =('Ext1'!AW17+'Ext2'!AW17)/2 -> 9.525 | AX17: =('Ext1'!AX17+'Ext2'!AX17)/2 -> 10.21 | AY17: =('Ext1'!AY17+'Ext2'!AY17)/2 -> 8.95 | AZ17: =('Ext1'!AZ17+'Ext2'!AZ17)/2 -> 9.77 | BA17: =('Ext1'!BA17+'Ext2'!BA17)/2 -> 9.995 | BB17: =('Ext1'!BB17+'Ext2'!BB17)/2 -> 9.1 | BC17: =('Ext1'!BC17+'Ext2'!BC17)/2 -> 8.825 | BD17: =('Ext1'!BD17+'Ext2'!BD17)/2 -> 10.27 | BE17: =('Ext1'!BE17+'Ext2'!BE17)/2 -> 10.115 | BF17: =('Ext1'!BF17+'Ext2'!BF17)/2 -> 8.835 | BG17: =('Ext1'!BG17+'Ext2'!BG17)/2 -> 8.565 | BH17: =('Ext1'!BH17+'Ext2'!BH17)/2 -> 9.975 | BI17: =('Ext1'!BI17+'Ext2'!BI17)/2 -> 9.475 | BJ17: =('Ext1'!BJ17+'Ext2'!BJ17)/2 -> 10.035 | BK17: =('Ext1'!BK17+'Ext2'!BK17)/2 -> 8.98 | BL17: =('Ext1'!BL17+'Ext2'!BL17)/2 -> 8.695 | BM17: =('Ext1'!BM17+'Ext2'!BM17)/2 -> 7.89 | BN17: =('Ext1'!BN17+'Ext2'!BN17)/2 -> 9.645 | BO17: =('Ext1'!BO17+'Ext2'!BO17)/2 -> 8.76 | BP17: =('Ext1'!BP17+'Ext2'!BP17)/2 -> 7.65 | BQ17: =('Ext1'!BQ17+'Ext2'!BQ17)/2 -> 8.745 | BR17: =('Ext1'!BR17+'Ext2'!BR17)/2 -> 9.03 | BS17: =('Ext1'!BS17+'Ext2'!BS17)/2 -> 7.905 | BT17: =('Ext1'!BT17+'Ext2'!BT17)/2 -> 8.37 | BU17: =('Ext1'!BU17+'Ext2'!BU17)/2 -> 8.02 | BV17: =('Ext1'!BV17+'Ext2'!BV17)/2 -> 8.11 | BW17: =('Ext1'!BW17+'Ext2'!BW17)/2 -> 7.83 | BX17: =('Ext1'!BX17+'Ext2'!BX17)/2 -> 7.345 | BY17: =('Ext1'!BY17+'Ext2'!BY17)/2 -> 7.65 | BZ17: =('Ext1'!BZ17+'Ext2'!BZ17)/2 -> 8.495 | CA17: =('Ext1'!CA17+'Ext2'!CA17)/2 -> 6.785 | CB17: =('Ext1'!CB17+'Ext2'!CB17)/2 -> 6.605 | CC17: =('Ext1'!CC17+'Ext2'!CC17)/2 -> 6.83 | CD17: =('Ext1'!CD17+'Ext2'!CD17)/2 -> 6.815 | CE17: =('Ext1'!CE17+'Ext2'!CE17)/2 -> 6.9 | CF17: =('Ext1'!CF17+'Ext2'!CF17)/2 -> 6.115 | CG17: =('Ext1'!CG17+'Ext2'!CG17)/2 -> 7.93 | CH17: =('Ext1'!CH17+'Ext2'!CH17)/2 -> 7.225 | CI17: =('Ext1'!CI17+'Ext2'!CI17)/2 -> 6.085 | CJ17: =('Ext1'!CJ17+'Ext2'!CJ17)/2 -> 6.42 | CK17: =('Ext1'!CK17+'Ext2'!CK17)/2 -> 6.62 | CL17: =('Ext1'!CL17+'Ext2'!CL17)/2 -> 6.095 | CM17: =('Ext1'!CM17+'Ext2'!CM17)/2 -> 6.74 | CN17: =('Ext1'!CN17+'Ext2'!CN17)/2 -> 5.815 | CO17: =('Ext1'!CO17+'Ext2'!CO17)/2 -> 6.605 | CP17: =('Ext1'!CP17+'Ext2'!CP17)/2 -> 7.38 | CQ17: =('Ext1'!CQ17+'Ext2'!CQ17)/2 -> 5.66 | CR17: =('Ext1'!CR17+'Ext2'!CR17)/2 -> 6.305 | CS17: =('Ext1'!CS17+'Ext2'!CS17)/2 -> 5.165 | CT17: =('Ext1'!CT17+'Ext2'!CT17)/2 -> 5.57
B18: Jour 17 | C18: =('Ext1'!C18+'Ext2'!C18)/2 -> 4.94 | D18: =('Ext1'!D18+'Ext2'!D18)/2 -> 4.805 | E18: =('Ext1'!E18+'Ext2'!E18)/2 -> 5.515 | F18: =('Ext1'!F18+'Ext2'!F18)/2 -> 5.6 | G18: =('Ext1'!G18+'Ext2'!G18)/2 -> 5.495 | H18: =('Ext1'!H18+'Ext2'!H18)/2 -> 6.6 | I18: =('Ext1'!I18+'Ext2'!I18)/2 -> 6.47 | J18: =('Ext1'!J18+'Ext2'!J18)/2 -> 7.37 | K18: =('Ext1'!K18+'Ext2'!K18)/2 -> 6.085 | L18: =('Ext1'!L18+'Ext2'!L18)/2 -> 6.99 | M18: =('Ext1'!M18+'Ext2'!M18)/2 -> 7.075 | N18: =('Ext1'!N18+'Ext2'!N18)/2 -> 6.4 | O18: =('Ext1'!O18+'Ext2'!O18)/2 -> 7.245 | P18: =('Ext1'!P18+'Ext2'!P18)/2 -> 7.45 | Q18: =('Ext1'!Q18+'Ext2'!Q18)/2 -> 8.715 | R18: =('Ext1'!R18+'Ext2'!R18)/2 -> 7.67 | S18: =('Ext1'!S18+'Ext2'!S18)/2 -> 8.665 | T18: =('Ext1'!T18+'Ext2'!T18)/2 -> 8.23 | U18: =('Ext1'!U18+'Ext2'!U18)/2 -> 9.955 | V18: =('Ext1'!V18+'Ext2'!V18)/2 -> 10.32 | W18: =('Ext1'!W18+'Ext2'!W18)/2 -> 9.58 | X18: =('Ext1'!X18+'Ext2'!X18)/2 -> 11.08 | Y18: =('Ext1'!Y18+'Ext2'!Y18)/2 -> 10.94 | Z18: =('Ext1'!Z18+'Ext2'!Z18)/2 -> 11.96 | AA18: =('Ext1'!AA18+'Ext2'!AA18)/2 -> 12.45 | AB18: =('Ext1'!AB18+'Ext2'!AB18)/2 -> 12.805 | AC18: =('Ext1'!AC18+'Ext2'!AC18)/2 -> 12.885 | AD18: =('Ext1'!AD18+'Ext2'!AD18)/2 -> 12.235 | AE18: =('Ext1'!AE18+'Ext2'!AE18)/2 -> 12.055 | AF18: =('Ext1'!AF18+'Ext2'!AF18)/2 -> 11.53 | AG18: =('Ext1'!AG18+'Ext2'!AG18)/2 -> 11.4 | AH18: =('Ext1'!AH18+'Ext2'!AH18)/2 -> 12.67 | AI18: =('Ext1'!AI18+'Ext2'!AI18)/2 -> 11.585 | AJ18: =('Ext1'!AJ18+'Ext2'!AJ18)/2 -> 12 | AK18: =('Ext1'!AK18+'Ext2'!AK18)/2 -> 11.93 | AL18: =('Ext1'!AL18+'Ext2'!AL18)/2 -> 12.385 | AM18: =('Ext1'!AM18+'Ext2'!AM18)/2 -> 12.905 | AN18: =('Ext1'!AN18+'Ext2'!AN18)/2 -> 11.77 | AO18: =('Ext1'!AO18+'Ext2'!AO18)/2 -> 11.5 | AP18: =('Ext1'!AP18+'Ext2'!AP18)/2 -> 10.82 | AQ18: =('Ext1'!AQ18+'Ext2'!AQ18)/2 -> 10.19 | AR18: =('Ext1'!AR18+'Ext2'!AR18)/2 -> 11.68 | AS18: =('Ext1'!AS18+'Ext2'!AS18)/2 -> 10.66 | AT18: =('Ext1'!AT18+'Ext2'!AT18)/2 -> 11.145 | AU18: =('Ext1'!AU18+'Ext2'!AU18)/2 -> 10.67 | AV18: =('Ext1'!AV18+'Ext2'!AV18)/2 -> 10.65 | AW18: =('Ext1'!AW18+'Ext2'!AW18)/2 -> 10.925 | AX18: =('Ext1'!AX18+'Ext2'!AX18)/2 -> 10.81 | AY18: =('Ext1'!AY18+'Ext2'!AY18)/2 -> 10.65 | AZ18: =('Ext1'!AZ18+'Ext2'!AZ18)/2 -> 10.87 | BA18: =('Ext1'!BA18+'Ext2'!BA18)/2 -> 9.795 | BB18: =('Ext1'!BB18+'Ext2'!BB18)/2 -> 9.8 | BC18: =('Ext1'!BC18+'Ext2'!BC18)/2 -> 10.125 | BD18: =('Ext1'!BD18+'Ext2'!BD18)/2 -> 10.47 | BE18: =('Ext1'!BE18+'Ext2'!BE18)/2 -> 10.115 | BF18: =('Ext1'!BF18+'Ext2'!BF18)/2 -> 9.535 | BG18: =('Ext1'!BG18+'Ext2'!BG18)/2 -> 9.365 | BH18: =('Ext1'!BH18+'Ext2'!BH18)/2 -> 10.275 | BI18: =('Ext1'!BI18+'Ext2'!BI18)/2 -> 8.575 | BJ18: =('Ext1'!BJ18+'Ext2'!BJ18)/2 -> 9.835 | BK18: =('Ext1'!BK18+'Ext2'!BK18)/2 -> 9.08 | BL18: =('Ext1'!BL18+'Ext2'!BL18)/2 -> 8.695 | BM18: =('Ext1'!BM18+'Ext2'!BM18)/2 -> 9.19 | BN18: =('Ext1'!BN18+'Ext2'!BN18)/2 -> 9.345 | BO18: =('Ext1'!BO18+'Ext2'!BO18)/2 -> 8.76 | BP18: =('Ext1'!BP18+'Ext2'!BP18)/2 -> 7.55 | BQ18: =('Ext1'!BQ18+'Ext2'!BQ18)/2 -> 7.445 | BR18: =('Ext1'!BR18+'Ext2'!BR18)/2 -> 7.93 | BS18: =('Ext1'!BS18+'Ext2'!BS18)/2 -> 8.005 | BT18: =('Ext1'!BT18+'Ext2'!BT18)/2 -> 7.27 | BU18: =('Ext1'!BU18+'Ext2'!BU18)/2 -> 7.52 | BV18: =('Ext1'!BV18+'Ext2'!BV18)/2 -> 8.71 | BW18: =('Ext1'!BW18+'Ext2'!BW18)/2 -> 8.53 | BX18: =('Ext1'!BX18+'Ext2'!BX18)/2 -> 8.145 | BY18: =('Ext1'!BY18+'Ext2'!BY18)/2 -> 7.15 | BZ18: =('Ext1'!BZ18+'Ext2'!BZ18)/2 -> 6.695 | CA18: =('Ext1'!CA18+'Ext2'!CA18)/2 -> 8.185 | CB18: =('Ext1'!CB18+'Ext2'!CB18)/2 -> 7.805 | CC18: =('Ext1'!CC18+'Ext2'!CC18)/2 -> 7.63 | CD18: =('Ext1'!CD18+'Ext2'!CD18)/2 -> 6.915 | CE18: =('Ext1'!CE18+'Ext2'!CE18)/2 -> 7.5 | CF18: =('Ext1'!CF18+'Ext2'!CF18)/2 -> 7.315 | CG18: =('Ext1'!CG18+'Ext2'!CG18)/2 -> 7.93 | CH18: =('Ext1'!CH18+'Ext2'!CH18)/2 -> 6.025 | CI18: =('Ext1'!CI18+'Ext2'!CI18)/2 -> 6.085 | CJ18: =('Ext1'!CJ18+'Ext2'!CJ18)/2 -> 7.22 | CK18: =('Ext1'!CK18+'Ext2'!CK18)/2 -> 6.52 | CL18: =('Ext1'!CL18+'Ext2'!CL18)/2 -> 7.395 | CM18: =('Ext1'!CM18+'Ext2'!CM18)/2 -> 6.14 | CN18: =('Ext1'!CN18+'Ext2'!CN18)/2 -> 5.815 | CO18: =('Ext1'!CO18+'Ext2'!CO18)/2 -> 6.405 | CP18: =('Ext1'!CP18+'Ext2'!CP18)/2 -> 6.48 | CQ18: =('Ext1'!CQ18+'Ext2'!CQ18)/2 -> 7.06 | CR18: =('Ext1'!CR18+'Ext2'!CR18)/2 -> 6.105 | CS18: =('Ext1'!CS18+'Ext2'!CS18)/2 -> 5.665 | CT18: =('Ext1'!CT18+'Ext2'!CT18)/2 -> 5.87
B19: Jour 18 | C19: =('Ext1'!C19+'Ext2'!C19)/2 -> 5.04 | D19: =('Ext1'!D19+'Ext2'!D19)/2 -> 6.605 | E19: =('Ext1'!E19+'Ext2'!E19)/2 -> 4.615 | F19: =('Ext1'!F19+'Ext2'!F19)/2 -> 6.7 | G19: =('Ext1'!G19+'Ext2'!G19)/2 -> 6.895 | H19: =('Ext1'!H19+'Ext2'!H19)/2 -> 5.6 | I19: =('Ext1'!I19+'Ext2'!I19)/2 -> 5.57 | J19: =('Ext1'!J19+'Ext2'!J19)/2 -> 7.37 | K19: =('Ext1'!K19+'Ext2'!K19)/2 -> 6.185 | L19: =('Ext1'!L19+'Ext2'!L19)/2 -> 6.49 | M19: =('Ext1'!M19+'Ext2'!M19)/2 -> 6.275 | N19: =('Ext1'!N19+'Ext2'!N19)/2 -> 7.1 | O19: =('Ext1'!O19+'Ext2'!O19)/2 -> 7.145 | P19: =('Ext1'!P19+'Ext2'!P19)/2 -> 8.75 | Q19: =('Ext1'!Q19+'Ext2'!Q19)/2 -> 8.915 | R19: =('Ext1'!R19+'Ext2'!R19)/2 -> 8.47 | S19: =('Ext1'!S19+'Ext2'!S19)/2 -> 9.565 | T19: =('Ext1'!T19+'Ext2'!T19)/2 -> 8.93 | U19: =('Ext1'!U19+'Ext2'!U19)/2 -> 10.255 | V19: =('Ext1'!V19+'Ext2'!V19)/2 -> 9.32 | W19: =('Ext1'!W19+'Ext2'!W19)/2 -> 10.48 | X19: =('Ext1'!X19+'Ext2'!X19)/2 -> 10.48 | Y19: =('Ext1'!Y19+'Ext2'!Y19)/2 -> 11.54 | Z19: =('Ext1'!Z19+'Ext2'!Z19)/2 -> 11.06 | AA19: =('Ext1'!AA19+'Ext2'!AA19)/2 -> 11.95 | AB19: =('Ext1'!AB19+'Ext2'!AB19)/2 -> 11.405 | AC19: =('Ext1'!AC19+'Ext2'!AC19)/2 -> 11.485 | AD19: =('Ext1'!AD19+'Ext2'!AD19)/2 -> 11.535 | AE19: =('Ext1'!AE19+'Ext2'!AE19)/2 -> 12.455 | AF19: =('Ext1'!AF19+'Ext2'!AF19)/2 -> 12.83 | AG19: =('Ext1'!AG19+'Ext2'!AG19)/2 -> 13.2 | AH19: =('Ext1'!AH19+'Ext2'!AH19)/2 -> 13.47 | AI19: =('Ext1'!AI19+'Ext2'!AI19)/2 -> 12.985 | AJ19: =('Ext1'!AJ19+'Ext2'!AJ19)/2 -> 11.6 | AK19: =('Ext1'!AK19+'Ext2'!AK19)/2 -> 11.63 | AL19: =('Ext1'!AL19+'Ext2'!AL19)/2 -> 12.885 | AM19: =('Ext1'!AM19+'Ext2'!AM19)/2 -> 11.405 | AN19: =('Ext1'!AN19+'Ext2'!AN19)/2 -> 12.87 | AO19: =('Ext1'!AO19+'Ext2'!AO19)/2 -> 12.5 | AP19: =('Ext1'!AP19+'Ext2'!AP19)/2 -> 12.12 | AQ19: =('Ext1'!AQ19+'Ext2'!AQ19)/2 -> 10.89 | AR19: =('Ext1'!AR19+'Ext2'!AR19)/2 -> 10.08 | AS19: =('Ext1'!AS19+'Ext2'!AS19)/2 -> 10.86 | AT19: =('Ext1'!AT19+'Ext2'!AT19)/2 -> 11.245 | AU19: =('Ext1'!AU19+'Ext2'!AU19)/2 -> 10.17 | AV19: =('Ext1'!AV19+'Ext2'!AV19)/2 -> 10.55 | AW19: =('Ext1'!AW19+'Ext2'!AW19)/2 -> 10.325 | AX19: =('Ext1'!AX19+'Ext2'!AX19)/2 -> 9.41 | AY19: =('Ext1'!AY19+'Ext2'!AY19)/2 -> 10.45 | AZ19: =('Ext1'!AZ19+'Ext2'!AZ19)/2 -> 9.77 | BA19: =('Ext1'!BA19+'Ext2'!BA19)/2 -> 9.995 | BB19: =('Ext1'!BB19+'Ext2'!BB19)/2 -> 9 | BC19: =('Ext1'!BC19+'Ext2'!BC19)/2 -> 9.225 | BD19: =('Ext1'!BD19+'Ext2'!BD19)/2 -> 9.27 | BE19: =('Ext1'!BE19+'Ext2'!BE19)/2 -> 9.715 | BF19: =('Ext1'!BF19+'Ext2'!BF19)/2 -> 9.635 | BG19: =('Ext1'!BG19+'Ext2'!BG19)/2 -> 10.465 | BH19: =('Ext1'!BH19+'Ext2'!BH19)/2 -> 9.875 | BI19: =('Ext1'!BI19+'Ext2'!BI19)/2 -> 10.475 | BJ19: =('Ext1'!BJ19+'Ext2'!BJ19)/2 -> 8.635 | BK19: =('Ext1'!BK19+'Ext2'!BK19)/2 -> 8.98 | BL19: =('Ext1'!BL19+'Ext2'!BL19)/2 -> 7.995 | BM19: =('Ext1'!BM19+'Ext2'!BM19)/2 -> 9.29 | BN19: =('Ext1'!BN19+'Ext2'!BN19)/2 -> 8.745 | BO19: =('Ext1'!BO19+'Ext2'!BO19)/2 -> 8.66 | BP19: =('Ext1'!BP19+'Ext2'!BP19)/2 -> 9.35 | BQ19: =('Ext1'!BQ19+'Ext2'!BQ19)/2 -> 9.145 | BR19: =('Ext1'!BR19+'Ext2'!BR19)/2 -> 8.73 | BS19: =('Ext1'!BS19+'Ext2'!BS19)/2 -> 7.505 | BT19: =('Ext1'!BT19+'Ext2'!BT19)/2 -> 7.07 | BU19: =('Ext1'!BU19+'Ext2'!BU19)/2 -> 7.32 | BV19: =('Ext1'!BV19+'Ext2'!BV19)/2 -> 8.01 | BW19: =('Ext1'!BW19+'Ext2'!BW19)/2 -> 8.53 | BX19: =('Ext1'!BX19+'Ext2'!BX19)/2 -> 7.445 | BY19: =('Ext1'!BY19+'Ext2'!BY19)/2 -> 7.15 | BZ19: =('Ext1'!BZ19+'Ext2'!BZ19)/2 -> 7.395 | CA19: =('Ext1'!CA19+'Ext2'!CA19)/2 -> 8.485 | CB19: =('Ext1'!CB19+'Ext2'!CB19)/2 -> 8.005 | CC19: =('Ext1'!CC19+'Ext2'!CC19)/2 -> 7.63 | CD19: =('Ext1'!CD19+'Ext2'!CD19)/2 -> 7.415 | CE19: =('Ext1'!CE19+'Ext2'!CE19)/2 -> 7.1 | CF19: =('Ext1'!CF19+'Ext2'!CF19)/2 -> 7.915 | CG19: =('Ext1'!CG19+'Ext2'!CG19)/2 -> 6.23 | CH19: =('Ext1'!CH19+'Ext2'!CH19)/2 -> 6.225 | CI19: =('Ext1'!CI19+'Ext2'!CI19)/2 -> 6.385 | CJ19: =('Ext1'!CJ19+'Ext2'!CJ19)/2 -> 6.02 | CK19: =('Ext1'!CK19+'Ext2'!CK19)/2 -> 6.52 | CL19: =('Ext1'!CL19+'Ext2'!CL19)/2 -> 5.895 | CM19: =('Ext1'!CM19+'Ext2'!CM19)/2 -> 7.64 | CN19: =('Ext1'!CN19+'Ext2'!CN19)/2 -> 7.415 | CO19: =('Ext1'!CO19+'Ext2'!CO19)/2 -> 5.605 | CP19: =('Ext1'!CP19+'Ext2'!CP19)/2 -> 5.58 | CQ19: =('Ext1'!CQ19+'Ext2'!CQ19)/2 -> 6.16 | CR19: =('Ext1'!CR19+'Ext2'!CR19)/2 -> 6.105 | CS19: =('Ext1'!CS19+'Ext2'!CS19)/2 -> 7.065 | CT19: =('Ext1'!CT19+'Ext2'!CT19)/2 -> 5.07
B20: Jour 19 | C20: =('Ext1'!C20+'Ext2'!C20)/2 -> 4.54 | D20: =('Ext1'!D20+'Ext2'!D20)/2 -> 6.205 | E20: =('Ext1'!E20+'Ext2'!E20)/2 -> 5.815 | F20: =('Ext1'!F20+'Ext2'!F20)/2 -> 6.4 | G20: =('Ext1'!G20+'Ext2'!G20)/2 -> 6.295 | H20: =('Ext1'!H20+'Ext2'!H20)/2 -> 6.5 | I20: =('Ext1'!I20+'Ext2'!I20)/2 -> 7.37 | J20: =('Ext1'!J20+'Ext2'!J20)/2 -> 6.97 | K20: =('Ext1'!K20+'Ext2'!K20)/2 -> 6.085 | L20: =('Ext1'!L20+'Ext2'!L20)/2 -> 6.99 | M20: =('Ext1'!M20+'Ext2'!M20)/2 -> 7.275 | N20: =('Ext1'!N20+'Ext2'!N20)/2 -> 6.6 | O20: =('Ext1'!O20+'Ext2'!O20)/2 -> 8.645 | P20: =('Ext1'!P20+'Ext2'!P20)/2 -> 8.25 | Q20: =('Ext1'!Q20+'Ext2'!Q20)/2 -> 9.015 | R20: =('Ext1'!R20+'Ext2'!R20)/2 -> 9.17 | S20: =('Ext1'!S20+'Ext2'!S20)/2 -> 9.165 | T20: =('Ext1'!T20+'Ext2'!T20)/2 -> 9.13 | U20: =('Ext1'!U20+'Ext2'!U20)/2 -> 9.555 | V20: =('Ext1'!V20+'Ext2'!V20)/2 -> 9.52 | W20: =('Ext1'!W20+'Ext2'!W20)/2 -> 11.38 | X20: =('Ext1'!X20+'Ext2'!X20)/2 -> 9.88 | Y20: =('Ext1'!Y20+'Ext2'!Y20)/2 -> 10.04 | Z20: =('Ext1'!Z20+'Ext2'!Z20)/2 -> 11.56 | AA20: =('Ext1'!AA20+'Ext2'!AA20)/2 -> 10.75 | AB20: =('Ext1'!AB20+'Ext2'!AB20)/2 -> 12.005 | AC20: =('Ext1'!AC20+'Ext2'!AC20)/2 -> 12.485 | AD20: =('Ext1'!AD20+'Ext2'!AD20)/2 -> 12.035 | AE20: =('Ext1'!AE20+'Ext2'!AE20)/2 -> 12.655 | AF20: =('Ext1'!AF20+'Ext2'!AF20)/2 -> 11.93 | AG20: =('Ext1'!AG20+'Ext2'!AG20)/2 -> 12.4 | AH20: =('Ext1'!AH20+'Ext2'!AH20)/2 -> 11.97 | AI20: =('Ext1'!AI20+'Ext2'!AI20)/2 -> 11.585 | AJ20: =('Ext1'!AJ20+'Ext2'!AJ20)/2 -> 12.6 | AK20: =('Ext1'!AK20+'Ext2'!AK20)/2 -> 12.63 | AL20: =('Ext1'!AL20+'Ext2'!AL20)/2 -> 11.985 | AM20: =('Ext1'!AM20+'Ext2'!AM20)/2 -> 11.105 | AN20: =('Ext1'!AN20+'Ext2'!AN20)/2 -> 10.97 | AO20: =('Ext1'!AO20+'Ext2'!AO20)/2 -> 11.7 | AP20: =('Ext1'!AP20+'Ext2'!AP20)/2 -> 10.52 | AQ20: =('Ext1'!AQ20+'Ext2'!AQ20)/2 -> 10.59 | AR20: =('Ext1'!AR20+'Ext2'!AR20)/2 -> 10.98 | AS20: =('Ext1'!AS20+'Ext2'!AS20)/2 -> 10.86 | AT20: =('Ext1'!AT20+'Ext2'!AT20)/2 -> 10.545 | AU20: =('Ext1'!AU20+'Ext2'!AU20)/2 -> 10.07 | AV20: =('Ext1'!AV20+'Ext2'!AV20)/2 -> 10.25 | AW20: =('Ext1'!AW20+'Ext2'!AW20)/2 -> 9.525 | AX20: =('Ext1'!AX20+'Ext2'!AX20)/2 -> 11.11 | AY20: =('Ext1'!AY20+'Ext2'!AY20)/2 -> 10.95 | AZ20: =('Ext1'!AZ20+'Ext2'!AZ20)/2 -> 10.87 | BA20: =('Ext1'!BA20+'Ext2'!BA20)/2 -> 9.995 | BB20: =('Ext1'!BB20+'Ext2'!BB20)/2 -> 10.7 | BC20: =('Ext1'!BC20+'Ext2'!BC20)/2 -> 10.225 | BD20: =('Ext1'!BD20+'Ext2'!BD20)/2 -> 10.27 | BE20: =('Ext1'!BE20+'Ext2'!BE20)/2 -> 9.115 | BF20: =('Ext1'!BF20+'Ext2'!BF20)/2 -> 10.135 | BG20: =('Ext1'!BG20+'Ext2'!BG20)/2 -> 10.465 | BH20: =('Ext1'!BH20+'Ext2'!BH20)/2 -> 8.475 | BI20: =('Ext1'!BI20+'Ext2'!BI20)/2 -> 10.075 | BJ20: =('Ext1'!BJ20+'Ext2'!BJ20)/2 -> 8.535 | BK20: =('Ext1'!BK20+'Ext2'!BK20)/2 -> 9.58 | BL20: =('Ext1'!BL20+'Ext2'!BL20)/2 -> 9.695 | BM20: =('Ext1'!BM20+'Ext2'!BM20)/2 -> 9.59 | BN20: =('Ext1'!BN20+'Ext2'!BN20)/2 -> 8.745 | BO20: =('Ext1'!BO20+'Ext2'!BO20)/2 -> 8.16 | BP20: =('Ext1'!BP20+'Ext2'!BP20)/2 -> 9.45 | BQ20: =('Ext1'!BQ20+'Ext2'!BQ20)/2 -> 8.345 | BR20: =('Ext1'!BR20+'Ext2'!BR20)/2 -> 8.23 | BS20: =('Ext1'!BS20+'Ext2'!BS20)/2 -> 7.305 | BT20: =('Ext1'!BT20+'Ext2'!BT20)/2 -> 7.17 | BU20: =('Ext1'!BU20+'Ext2'!BU20)/2 -> 7.32 | BV20: =('Ext1'!BV20+'Ext2'!BV20)/2 -> 8.01 | BW20: =('Ext1'!BW20+'Ext2'!BW20)/2 -> 8.23 | BX20: =('Ext1'!BX20+'Ext2'!BX20)/2 -> 7.745 | BY20: =('Ext1'!BY20+'Ext2'!BY20)/2 -> 6.85 | BZ20: =('Ext1'!BZ20+'Ext2'!BZ20)/2 -> 8.195 | CA20: =('Ext1'!CA20+'Ext2'!CA20)/2 -> 7.885 | CB20: =('Ext1'!CB20+'Ext2'!CB20)/2 -> 6.405 | CC20: =('Ext1'!CC20+'Ext2'!CC20)/2 -> 6.43 | CD20: =('Ext1'!CD20+'Ext2'!CD20)/2 -> 7.415 | CE20: =('Ext1'!CE20+'Ext2'!CE20)/2 -> 6.5 | CF20: =('Ext1'!CF20+'Ext2'!CF20)/2 -> 7.815 | CG20: =('Ext1'!CG20+'Ext2'!CG20)/2 -> 6.73 | CH20: =('Ext1'!CH20+'Ext2'!CH20)/2 -> 6.625 | CI20: =('Ext1'!CI20+'Ext2'!CI20)/2 -> 7.085 | CJ20: =('Ext1'!CJ20+'Ext2'!CJ20)/2 -> 6.62 | CK20: =('Ext1'!CK20+'Ext2'!CK20)/2 -> 5.72 | CL20: =('Ext1'!CL20+'Ext2'!CL20)/2 -> 6.695 | CM20: =('Ext1'!CM20+'Ext2'!CM20)/2 -> 6.94 | CN20: =('Ext1'!CN20+'Ext2'!CN20)/2 -> 5.615 | CO20: =('Ext1'!CO20+'Ext2'!CO20)/2 -> 7.405 | CP20: =('Ext1'!CP20+'Ext2'!CP20)/2 -> 7.28 | CQ20: =('Ext1'!CQ20+'Ext2'!CQ20)/2 -> 6.16 | CR20: =('Ext1'!CR20+'Ext2'!CR20)/2 -> 6.605 | CS20: =('Ext1'!CS20+'Ext2'!CS20)/2 -> 5.565 | CT20: =('Ext1'!CT20+'Ext2'!CT20)/2 -> 5.27
B21: Jour 20 | C21: =('Ext1'!C21+'Ext2'!C21)/2 -> 4.54 | D21: =('Ext1'!D21+'Ext2'!D21)/2 -> 5.905 | E21: =('Ext1'!E21+'Ext2'!E21)/2 -> 6.015 | F21: =('Ext1'!F21+'Ext2'!F21)/2 -> 6.8 | G21: =('Ext1'!G21+'Ext2'!G21)/2 -> 5.195 | H21: =('Ext1'!H21+'Ext2'!H21)/2 -> 6.6 | I21: =('Ext1'!I21+'Ext2'!I21)/2 -> 6.07 | J21: =('Ext1'!J21+'Ext2'!J21)/2 -> 5.77 | K21: =('Ext1'!K21+'Ext2'!K21)/2 -> 7.485 | L21: =('Ext1'!L21+'Ext2'!L21)/2 -> 6.09 | M21: =('Ext1'!M21+'Ext2'!M21)/2 -> 6.275 | N21: =('Ext1'!N21+'Ext2'!N21)/2 -> 7.1 | O21: =('Ext1'!O21+'Ext2'!O21)/2 -> 6.945 | P21: =('Ext1'!P21+'Ext2'!P21)/2 -> 6.95 | Q21: =('Ext1'!Q21+'Ext2'!Q21)/2 -> 7.515 | R21: =('Ext1'!R21+'Ext2'!R21)/2 -> 8.07 | S21: =('Ext1'!S21+'Ext2'!S21)/2 -> 9.865 | T21: =('Ext1'!T21+'Ext2'!T21)/2 -> 8.33 | U21: =('Ext1'!U21+'Ext2'!U21)/2 -> 8.755 | V21: =('Ext1'!V21+'Ext2'!V21)/2 -> 9.22 | W21: =('Ext1'!W21+'Ext2'!W21)/2 -> 9.68 | X21: =('Ext1'!X21+'Ext2'!X21)/2 -> 10.38 | Y21: =('Ext1'!Y21+'Ext2'!Y21)/2 -> 11.84 | Z21: =('Ext1'!Z21+'Ext2'!Z21)/2 -> 10.86 | AA21: =('Ext1'!AA21+'Ext2'!AA21)/2 -> 11.25 | AB21: =('Ext1'!AB21+'Ext2'!AB21)/2 -> 12.705 | AC21: =('Ext1'!AC21+'Ext2'!AC21)/2 -> 11.685 | AD21: =('Ext1'!AD21+'Ext2'!AD21)/2 -> 12.135 | AE21: =('Ext1'!AE21+'Ext2'!AE21)/2 -> 12.755 | AF21: =('Ext1'!AF21+'Ext2'!AF21)/2 -> 13.43 | AG21: =('Ext1'!AG21+'Ext2'!AG21)/2 -> 12.3 | AH21: =('Ext1'!AH21+'Ext2'!AH21)/2 -> 13.47 | AI21: =('Ext1'!AI21+'Ext2'!AI21)/2 -> 11.585 | AJ21: =('Ext1'!AJ21+'Ext2'!AJ21)/2 -> 12.9 | AK21: =('Ext1'!AK21+'Ext2'!AK21)/2 -> 12.83 | AL21: =('Ext1'!AL21+'Ext2'!AL21)/2 -> 11.485 | AM21: =('Ext1'!AM21+'Ext2'!AM21)/2 -> 11.605 | AN21: =('Ext1'!AN21+'Ext2'!AN21)/2 -> 11.77 | AO21: =('Ext1'!AO21+'Ext2'!AO21)/2 -> 11.4 | AP21: =('Ext1'!AP21+'Ext2'!AP21)/2 -> 10.52 | AQ21: =('Ext1'!AQ21+'Ext2'!AQ21)/2 -> 11.59 | AR21: =('Ext1'!AR21+'Ext2'!AR21)/2 -> 10.58 | AS21: =('Ext1'!AS21+'Ext2'!AS21)/2 -> 11.06 | AT21: =('Ext1'!AT21+'Ext2'!AT21)/2 -> 11.045 | AU21: =('Ext1'!AU21+'Ext2'!AU21)/2 -> 9.97 | AV21: =('Ext1'!AV21+'Ext2'!AV21)/2 -> 10.05 | AW21: =('Ext1'!AW21+'Ext2'!AW21)/2 -> 11.025 | AX21: =('Ext1'!AX21+'Ext2'!AX21)/2 -> 10.01 | AY21: =('Ext1'!AY21+'Ext2'!AY21)/2 -> 10.35 | AZ21: =('Ext1'!AZ21+'Ext2'!AZ21)/2 -> 9.67 | BA21: =('Ext1'!BA21+'Ext2'!BA21)/2 -> 9.495 | BB21: =('Ext1'!BB21+'Ext2'!BB21)/2 -> 10.7 | BC21: =('Ext1'!BC21+'Ext2'!BC21)/2 -> 9.825 | BD21: =('Ext1'!BD21+'Ext2'!BD21)/2 -> 8.67 | BE21: =('Ext1'!BE21+'Ext2'!BE21)/2 -> 10.015 | BF21: =('Ext1'!BF21+'Ext2'!BF21)/2 -> 9.035 | BG21: =('Ext1'!BG21+'Ext2'!BG21)/2 -> 10.465 | BH21: =('Ext1'!BH21+'Ext2'!BH21)/2 -> 8.775 | BI21: =('Ext1'!BI21+'Ext2'!BI21)/2 -> 8.575 | BJ21: =('Ext1'!BJ21+'Ext2'!BJ21)/2 -> 8.835 | BK21: =('Ext1'!BK21+'Ext2'!BK21)/2 -> 10.08 | BL21: =('Ext1'!BL21+'Ext2'!BL21)/2 -> 9.595 | BM21: =('Ext1'!BM21+'Ext2'!BM21)/2 -> 7.99 | BN21: =('Ext1'!BN21+'Ext2'!BN21)/2 -> 7.845 | BO21: =('Ext1'!BO21+'Ext2'!BO21)/2 -> 7.66 | BP21: =('Ext1'!BP21+'Ext2'!BP21)/2 -> 9.35 | BQ21: =('Ext1'!BQ21+'Ext2'!BQ21)/2 -> 9.345 | BR21: =('Ext1'!BR21+'Ext2'!BR21)/2 -> 7.33 | BS21: =('Ext1'!BS21+'Ext2'!BS21)/2 -> 9.205 | BT21: =('Ext1'!BT21+'Ext2'!BT21)/2 -> 7.07 | BU21: =('Ext1'!BU21+'Ext2'!BU21)/2 -> 7.52 | BV21: =('Ext1'!BV21+'Ext2'!BV21)/2 -> 7.31 | BW21: =('Ext1'!BW21+'Ext2'!BW21)/2 -> 8.13 | BX21: =('Ext1'!BX21+'Ext2'!BX21)/2 -> 6.745 | BY21: =('Ext1'!BY21+'Ext2'!BY21)/2 -> 7.25 | BZ21: =('Ext1'!BZ21+'Ext2'!BZ21)/2 -> 7.795 | CA21: =('Ext1'!CA21+'Ext2'!CA21)/2 -> 7.785 | CB21: =('Ext1'!CB21+'Ext2'!CB21)/2 -> 7.505 | CC21: =('Ext1'!CC21+'Ext2'!CC21)/2 -> 6.83 | CD21: =('Ext1'!CD21+'Ext2'!CD21)/2 -> 7.215 | CE21: =('Ext1'!CE21+'Ext2'!CE21)/2 -> 8.1 | CF21: =('Ext1'!CF21+'Ext2'!CF21)/2 -> 6.715 | CG21: =('Ext1'!CG21+'Ext2'!CG21)/2 -> 7.63 | CH21: =('Ext1'!CH21+'Ext2'!CH21)/2 -> 6.725 | CI21: =('Ext1'!CI21+'Ext2'!CI21)/2 -> 6.285 | CJ21: =('Ext1'!CJ21+'Ext2'!CJ21)/2 -> 6.22 | CK21: =('Ext1'!CK21+'Ext2'!CK21)/2 -> 6.22 | CL21: =('Ext1'!CL21+'Ext2'!CL21)/2 -> 6.095 | CM21: =('Ext1'!CM21+'Ext2'!CM21)/2 -> 6.14 | CN21: =('Ext1'!CN21+'Ext2'!CN21)/2 -> 7.115 | CO21: =('Ext1'!CO21+'Ext2'!CO21)/2 -> 5.705 | CP21: =('Ext1'!CP21+'Ext2'!CP21)/2 -> 6.18 | CQ21: =('Ext1'!CQ21+'Ext2'!CQ21)/2 -> 5.96 | CR21: =('Ext1'!CR21+'Ext2'!CR21)/2 -> 6.805 | CS21: =('Ext1'!CS21+'Ext2'!CS21)/2 -> 5.265 | CT21: =('Ext1'!CT21+'Ext2'!CT21)/2 -> 6.07
B22: Jour 21 | C22: =('Ext1'!C22+'Ext2'!C22)/2 -> 5.64 | D22: =('Ext1'!D22+'Ext2'!D22)/2 -> 5.305 | E22: =('Ext1'!E22+'Ext2'!E22)/2 -> 5.115 | F22: =('Ext1'!F22+'Ext2'!F22)/2 -> 5.5 | G22: =('Ext1'!G22+'Ext2'!G22)/2 -> 6.695 | H22: =('Ext1'!H22+'Ext2'!H22)/2 -> 5.9 | I22: =('Ext1'!I22+'Ext2'!I22)/2 -> 6.17 | J22: =('Ext1'!J22+'Ext2'!J22)/2 -> 6.27 | K22: =('Ext1'!K22+'Ext2'!K22)/2 -> 6.985 | L22: =('Ext1'!L22+'Ext2'!L22)/2 -> 7.39 | M22: =('Ext1'!M22+'Ext2'!M22)/2 -> 6.475 | N22: =('Ext1'!N22+'Ext2'!N22)/2 -> 6.4 | O22: =('Ext1'!O22+'Ext2'!O22)/2 -> 8.345 | P22: =('Ext1'!P22+'Ext2'!P22)/2 -> 7.35 | Q22: =('Ext1'!Q22+'Ext2'!Q22)/2 -> 7.515 | R22: =('Ext1'!R22+'Ext2'!R22)/2 -> 8.57 | S22: =('Ext1'!S22+'Ext2'!S22)/2 -> 9.665 | T22: =('Ext1'!T22+'Ext2'!T22)/2 -> 9.93 | U22: =('Ext1'!U22+'Ext2'!U22)/2 -> 9.155 | V22: =('Ext1'!V22+'Ext2'!V22)/2 -> 9.62 | W22: =('Ext1'!W22+'Ext2'!W22)/2 -> 9.48 | X22: =('Ext1'!X22+'Ext2'!X22)/2 -> 10.78 | Y22: =('Ext1'!Y22+'Ext2'!Y22)/2 -> 9.94 | Z22: =('Ext1'!Z22+'Ext2'!Z22)/2 -> 11.46 | AA22: =('Ext1'!AA22+'Ext2'!AA22)/2 -> 11.25 | AB22: =('Ext1'!AB22+'Ext2'!AB22)/2 -> 11.505 | AC22: =('Ext1'!AC22+'Ext2'!AC22)/2 -> 12.885 | AD22: =('Ext1'!AD22+'Ext2'!AD22)/2 -> 13.135 | AE22: =('Ext1'!AE22+'Ext2'!AE22)/2 -> 12.755 | AF22: =('Ext1'!AF22+'Ext2'!AF22)/2 -> 12.53 | AG22: =('Ext1'!AG22+'Ext2'!AG22)/2 -> 12.2 | AH22: =('Ext1'!AH22+'Ext2'!AH22)/2 -> 12.47 | AI22: =('Ext1'!AI22+'Ext2'!AI22)/2 -> 11.785 | AJ22: =('Ext1'!AJ22+'Ext2'!AJ22)/2 -> 12 | AK22: =('Ext1'!AK22+'Ext2'!AK22)/2 -> 13.23 | AL22: =('Ext1'!AL22+'Ext2'!AL22)/2 -> 11.585 | AM22: =('Ext1'!AM22+'Ext2'!AM22)/2 -> 11.305 | AN22: =('Ext1'!AN22+'Ext2'!AN22)/2 -> 11.57 | AO22: =('Ext1'!AO22+'Ext2'!AO22)/2 -> 11 | AP22: =('Ext1'!AP22+'Ext2'!AP22)/2 -> 11.62 | AQ22: =('Ext1'!AQ22+'Ext2'!AQ22)/2 -> 10.19 | AR22: =('Ext1'!AR22+'Ext2'!AR22)/2 -> 10.78 | AS22: =('Ext1'!AS22+'Ext2'!AS22)/2 -> 10.56 | AT22: =('Ext1'!AT22+'Ext2'!AT22)/2 -> 9.645 | AU22: =('Ext1'!AU22+'Ext2'!AU22)/2 -> 10.97 | AV22: =('Ext1'!AV22+'Ext2'!AV22)/2 -> 9.45 | AW22: =('Ext1'!AW22+'Ext2'!AW22)/2 -> 10.325 | AX22: =('Ext1'!AX22+'Ext2'!AX22)/2 -> 11.01 | AY22: =('Ext1'!AY22+'Ext2'!AY22)/2 -> 10.75 | AZ22: =('Ext1'!AZ22+'Ext2'!AZ22)/2 -> 10.77 | BA22: =('Ext1'!BA22+'Ext2'!BA22)/2 -> 9.395 | BB22: =('Ext1'!BB22+'Ext2'!BB22)/2 -> 10.3 | BC22: =('Ext1'!BC22+'Ext2'!BC22)/2 -> 9.225 | BD22: =('Ext1'!BD22+'Ext2'!BD22)/2 -> 9.17 | BE22: =('Ext1'!BE22+'Ext2'!BE22)/2 -> 8.815 | BF22: =('Ext1'!BF22+'Ext2'!BF22)/2 -> 10.035 | BG22: =('Ext1'!BG22+'Ext2'!BG22)/2 -> 9.365 | BH22: =('Ext1'!BH22+'Ext2'!BH22)/2 -> 9.075 | BI22: =('Ext1'!BI22+'Ext2'!BI22)/2 -> 8.475 | BJ22: =('Ext1'!BJ22+'Ext2'!BJ22)/2 -> 9.835 | BK22: =('Ext1'!BK22+'Ext2'!BK22)/2 -> 9.28 | BL22: =('Ext1'!BL22+'Ext2'!BL22)/2 -> 7.995 | BM22: =('Ext1'!BM22+'Ext2'!BM22)/2 -> 8.09 | BN22: =('Ext1'!BN22+'Ext2'!BN22)/2 -> 7.845 | BO22: =('Ext1'!BO22+'Ext2'!BO22)/2 -> 8.06 | BP22: =('Ext1'!BP22+'Ext2'!BP22)/2 -> 9.35 | BQ22: =('Ext1'!BQ22+'Ext2'!BQ22)/2 -> 7.445 | BR22: =('Ext1'!BR22+'Ext2'!BR22)/2 -> 8.33 | BS22: =('Ext1'!BS22+'Ext2'!BS22)/2 -> 8.505 | BT22: =('Ext1'!BT22+'Ext2'!BT22)/2 -> 7.37 | BU22: =('Ext1'!BU22+'Ext2'!BU22)/2 -> 7.72 | BV22: =('Ext1'!BV22+'Ext2'!BV22)/2 -> 7.81 | BW22: =('Ext1'!BW22+'Ext2'!BW22)/2 -> 8.53 | BX22: =('Ext1'!BX22+'Ext2'!BX22)/2 -> 7.845 | BY22: =('Ext1'!BY22+'Ext2'!BY22)/2 -> 7.55 | BZ22: =('Ext1'!BZ22+'Ext2'!BZ22)/2 -> 7.695 | CA22: =('Ext1'!CA22+'Ext2'!CA22)/2 -> 7.085 | CB22: =('Ext1'!CB22+'Ext2'!CB22)/2 -> 7.205 | CC22: =('Ext1'!CC22+'Ext2'!CC22)/2 -> 6.63 | CD22: =('Ext1'!CD22+'Ext2'!CD22)/2 -> 6.915 | CE22: =('Ext1'!CE22+'Ext2'!CE22)/2 -> 6.2 | CF22: =('Ext1'!CF22+'Ext2'!CF22)/2 -> 7.115 | CG22: =('Ext1'!CG22+'Ext2'!CG22)/2 -> 7.53 | CH22: =('Ext1'!CH22+'Ext2'!CH22)/2 -> 7.725 | CI22: =('Ext1'!CI22+'Ext2'!CI22)/2 -> 7.885 | CJ22: =('Ext1'!CJ22+'Ext2'!CJ22)/2 -> 5.92 | CK22: =('Ext1'!CK22+'Ext2'!CK22)/2 -> 7.12 | CL22: =('Ext1'!CL22+'Ext2'!CL22)/2 -> 7.495 | CM22: =('Ext1'!CM22+'Ext2'!CM22)/2 -> 7.64 | CN22: =('Ext1'!CN22+'Ext2'!CN22)/2 -> 7.015 | CO22: =('Ext1'!CO22+'Ext2'!CO22)/2 -> 7.305 | CP22: =('Ext1'!CP22+'Ext2'!CP22)/2 -> 5.88 | CQ22: =('Ext1'!CQ22+'Ext2'!CQ22)/2 -> 5.56 | CR22: =('Ext1'!CR22+'Ext2'!CR22)/2 -> 6.305 | CS22: =('Ext1'!CS22+'Ext2'!CS22)/2 -> 5.765 | CT22: =('Ext1'!CT22+'Ext2'!CT22)/2 -> 6.77
B25: Th 1 | C25: 6h | G25: 7h | K25: 8h | O25: 9h | S25: 10h | W25: 11h | AA25: 12h | AE25: 13h | AI25: 14h | AM25: 15h | AQ25: 16h | AU25: 17h | AY25: 18h | BC25: 19h | BG25: 20h | BK25: 21h | BO25: 22h | BS25: 23h | BW25: 24h | CA25: 1h | CE25: 2h | CI25: 3h | CM25: 4h | CQ25: 5h
B26: Jour 1 | C26: =BDD!B51 -> 10 | D26: =BDD!C51 -> 11 | E26: =BDD!D51 -> 12 | F26: =BDD!E51 -> 13 | G26: =BDD!F51 -> 14 | H26: =BDD!G51 -> 15 | I26: =BDD!H51 -> 16 | J26: =BDD!I51 -> 17 | K26: =BDD!J51 -> 18 | L26: =BDD!K51 -> 19 | M26: =BDD!L51 -> 20 | N26: =BDD!M51 -> 21 | O26: =BDD!N51 -> 22 | P26: =BDD!O51 -> 23 | Q26: =BDD!P51 -> 24 | R26: =BDD!Q51 -> 25 | S26: =BDD!R51 -> 26 | T26: =BDD!S51 -> 27 | U26: =BDD!T51 -> 28 | V26: =BDD!U51 -> 29 | W26: =BDD!V51 -> 28 | X26: =BDD!W51 -> 27 | Y26: =BDD!X51 -> 26 | Z26: =BDD!Y51 -> 25 | AA26: =BDD!Z51 -> 24 | AB26: =BDD!AA51 -> 23 | AC26: =BDD!AB51 -> 22 | AD26: =BDD!AC51 -> 21 | AE26: =BDD!AD51 -> 20 | AF26: =BDD!AE51 -> 19 | AG26: =BDD!AF51 -> 18 | AH26: =BDD!AG51 -> 17 | AI26: =BDD!AH51 -> 16 | AJ26: =BDD!AI51 -> 15 | AK26: =BDD!AJ51 -> 14 | AL26: =BDD!AK51 -> 13 | AM26: =BDD!AL51 -> 12 | AN26: =BDD!AM51 -> 10 | AO26: =BDD!AN51 -> 11 | AP26: =BDD!AO51 -> 12 | AQ26: =BDD!AP51 -> 13 | AR26: =BDD!AQ51 -> 14 | AS26: =BDD!AR51 -> 15 | AT26: =BDD!AS51 -> 16 | AU26: =BDD!AT51 -> 17 | AV26: =BDD!AU51 -> 18 | AW26: =BDD!AV51 -> 19 | AX26: =BDD!AW51 -> 20 | AY26: =BDD!AX51 -> 21 | AZ26: =BDD!AY51 -> 22 | BA26: =BDD!AZ51 -> 23 | BB26: =BDD!BA51 -> 24 | BC26: =BDD!BB51 -> 25 | BD26: =BDD!BC51 -> 26 | BE26: =BDD!BD51 -> 27 | BF26: =BDD!BE51 -> 28 | BG26: =BDD!BF51 -> 29 | BH26: =BDD!BG51 -> 28 | BI26: =BDD!BH51 -> 27 | BJ26: =BDD!BI51 -> 26 | BK26: =BDD!BJ51 -> 25 | BL26: =BDD!BK51 -> 24 | BM26: =BDD!BL51 -> 23 | BN26: =BDD!BM51 -> 22 | BO26: =BDD!BN51 -> 21 | BP26: =BDD!BO51 -> 20 | BQ26: =BDD!BP51 -> 19 | BR26: =BDD!BQ51 -> 18 | BS26: =BDD!BR51 -> 17 | BT26: =BDD!BS51 -> 16 | BU26: =BDD!BT51 -> 15 | BV26: =BDD!BU51 -> 14 | BW26: =BDD!BV51 -> 13 | BX26: =BDD!BW51 -> 12 | BY26: =BDD!BX51 -> 10 | BZ26: =BDD!BY51 -> 11 | CA26: =BDD!BZ51 -> 12 | CB26: =BDD!CA51 -> 13 | CC26: =BDD!CB51 -> 14 | CD26: =BDD!CC51 -> 15 | CE26: =BDD!CD51 -> 16 | CF26: =BDD!CE51 -> 17 | CG26: =BDD!CF51 -> 18 | CH26: =BDD!CG51 -> 19 | CI26: =BDD!CH51 -> 20 | CJ26: =BDD!CI51 -> 21 | CK26: =BDD!CJ51 -> 22 | CL26: =BDD!CK51 -> 23 | CM26: =BDD!CL51 -> 24 | CN26: =BDD!CM51 -> 25 | CO26: =BDD!CN51 -> 26 | CP26: =BDD!CO51 -> 27 | CQ26: =BDD!CP51 -> 28 | CR26: =BDD!CQ51 -> 29 | CS26: =BDD!CR51 -> 28 | CT26: =BDD!CS51 -> 27
B27: Jour 2 | C27: =BDD!B52 -> 18.1 | D27: =BDD!C52 -> 20 | E27: =BDD!D52 -> 18.9 | F27: =BDD!E52 -> 20.9 | G27: =BDD!F52 -> 20 | H27: =BDD!G52 -> 20.5 | I27: =BDD!H52 -> 22.3 | J27: =BDD!I52 -> 19.1 | K27: =BDD!J52 -> 20.3 | L27: =BDD!K52 -> 19.4 | M27: =BDD!L52 -> 21.4 | N27: =BDD!M52 -> 18.9 | O27: =BDD!N52 -> 22 | P27: =BDD!O52 -> 18.4 | Q27: =BDD!P52 -> 21.8 | R27: =BDD!Q52 -> 20.1 | S27: =BDD!R52 -> 20 | T27: =BDD!S52 -> 18.6 | U27: =BDD!T52 -> 20.2 | V27: =BDD!U52 -> 22.2 | W27: =BDD!V52 -> 18.6 | X27: =BDD!W52 -> 19.2 | Y27: =BDD!X52 -> 18.8 | Z27: =BDD!Y52 -> 19.2 | AA27: =BDD!Z52 -> 18.3 | AB27: =BDD!AA52 -> 21.8 | AC27: =BDD!AB52 -> 21.2 | AD27: =BDD!AC52 -> 18.6 | AE27: =BDD!AD52 -> 19.2 | AF27: =BDD!AE52 -> 18.1 | AG27: =BDD!AF52 -> 22.2 | AH27: =BDD!AG52 -> 22 | AI27: =BDD!AH52 -> 19 | AJ27: =BDD!AI52 -> 20.8 | AK27: =BDD!AJ52 -> 19.6 | AL27: =BDD!AK52 -> 21.5 | AM27: =BDD!AL52 -> 21.4 | AN27: =BDD!AM52 -> 18.7 | AO27: =BDD!AN52 -> 20.8 | AP27: =BDD!AO52 -> 21.5 | AQ27: =BDD!AP52 -> 19.2 | AR27: =BDD!AQ52 -> 18.4 | AS27: =BDD!AR52 -> 19.8 | AT27: =BDD!AS52 -> 21.1 | AU27: =BDD!AT52 -> 20.2 | AV27: =BDD!AU52 -> 18.1 | AW27: =BDD!AV52 -> 19.7 | AX27: =BDD!AW52 -> 21.2 | AY27: =BDD!AX52 -> 20.7 | AZ27: =BDD!AY52 -> 22.1 | BA27: =BDD!AZ52 -> 21.3 | BB27: =BDD!BA52 -> 20.3 | BC27: =BDD!BB52 -> 19.4 | BD27: =BDD!BC52 -> 19.4 | BE27: =BDD!BD52 -> 21.9 | BF27: =BDD!BE52 -> 18.2 | BG27: =BDD!BF52 -> 19.8 | BH27: =BDD!BG52 -> 20.9 | BI27: =BDD!BH52 -> 21.2 | BJ27: =BDD!BI52 -> 19.6 | BK27: =BDD!BJ52 -> 21 | BL27: =BDD!BK52 -> 22.2 | BM27: =BDD!BL52 -> 21 | BN27: =BDD!BM52 -> 20.4 | BO27: =BDD!BN52 -> 21.9 | BP27: =BDD!BO52 -> 19 | BQ27: =BDD!BP52 -> 21.8 | BR27: =BDD!BQ52 -> 19.7 | BS27: =BDD!BR52 -> 20.5 | BT27: =BDD!BS52 -> 18.4 | BU27: =BDD!BT52 -> 21.8 | BV27: =BDD!BU52 -> 19.1 | BW27: =BDD!BV52 -> 20.4 | BX27: =BDD!BW52 -> 20.5 | BY27: =BDD!BX52 -> 20.2 | BZ27: =BDD!BY52 -> 18.8 | CA27: =BDD!BZ52 -> 19.9 | CB27: =BDD!CA52 -> 19.6 | CC27: =BDD!CB52 -> 17.8 | CD27: =BDD!CC52 -> 20.3 | CE27: =BDD!CD52 -> 18.1 | CF27: =BDD!CE52 -> 18.2 | CG27: =BDD!CF52 -> 18.5 | CH27: =BDD!CG52 -> 19 | CI27: =BDD!CH52 -> 20.1 | CJ27: =BDD!CI52 -> 18.1 | CK27: =BDD!CJ52 -> 20.7 | CL27: =BDD!CK52 -> 20.4 | CM27: =BDD!CL52 -> 19.6 | CN27: =BDD!CM52 -> 17.5 | CO27: =BDD!CN52 -> 20.8 | CP27: =BDD!CO52 -> 17.7 | CQ27: =BDD!CP52 -> 19.4 | CR27: =BDD!CQ52 -> 19.9 | CS27: =BDD!CR52 -> 19.4 | CT27: =BDD!CS52 -> 19.3
B28: Jour 3 | C28: =BDD!B53 -> 18.3 | D28: =BDD!C53 -> 19.3 | E28: =BDD!D53 -> 19.5 | F28: =BDD!E53 -> 18.7 | G28: =BDD!F53 -> 19 | H28: =BDD!G53 -> 22.1 | I28: =BDD!H53 -> 19.8 | J28: =BDD!I53 -> 20.3 | K28: =BDD!J53 -> 21.3 | L28: =BDD!K53 -> 20.4 | M28: =BDD!L53 -> 19.2 | N28: =BDD!M53 -> 19.4 | O28: =BDD!N53 -> 20.8 | P28: =BDD!O53 -> 21.8 | Q28: =BDD!P53 -> 20.4 | R28: =BDD!Q53 -> 22.5 | S28: =BDD!R53 -> 19.6 | T28: =BDD!S53 -> 20.5 | U28: =BDD!T53 -> 21.6 | V28: =BDD!U53 -> 21 | W28: =BDD!V53 -> 19.5 | X28: =BDD!W53 -> 20.7 | Y28: =BDD!X53 -> 20.2 | Z28: =BDD!Y53 -> 21.6 | AA28: =BDD!Z53 -> 20.5 | AB28: =BDD!AA53 -> 21 | AC28: =BDD!AB53 -> 21.2 | AD28: =BDD!AC53 -> 19.8 | AE28: =BDD!AD53 -> 21.6 | AF28: =BDD!AE53 -> 21 | AG28: =BDD!AF53 -> 20.2 | AH28: =BDD!AG53 -> 21.6 | AI28: =BDD!AH53 -> 22 | AJ28: =BDD!AI53 -> 20.2 | AK28: =BDD!AJ53 -> 18.9 | AL28: =BDD!AK53 -> 21.8 | AM28: =BDD!AL53 -> 21.9 | AN28: =BDD!AM53 -> 19.1 | AO28: =BDD!AN53 -> 18.9 | AP28: =BDD!AO53 -> 20.6 | AQ28: =BDD!AP53 -> 19.5 | AR28: =BDD!AQ53 -> 18.2 | AS28: =BDD!AR53 -> 18.6 | AT28: =BDD!AS53 -> 21.8 | AU28: =BDD!AT53 -> 19.1 | AV28: =BDD!AU53 -> 19 | AW28: =BDD!AV53 -> 21.3 | AX28: =BDD!AW53 -> 20.4 | AY28: =BDD!AX53 -> 20.8 | AZ28: =BDD!AY53 -> 20.8 | BA28: =BDD!AZ53 -> 18.5 | BB28: =BDD!BA53 -> 20.8 | BC28: =BDD!BB53 -> 21.9 | BD28: =BDD!BC53 -> 18.5 | BE28: =BDD!BD53 -> 21 | BF28: =BDD!BE53 -> 18.3 | BG28: =BDD!BF53 -> 18.2 | BH28: =BDD!BG53 -> 18 | BI28: =BDD!BH53 -> 21.2 | BJ28: =BDD!BI53 -> 20.9 | BK28: =BDD!BJ53 -> 20.8 | BL28: =BDD!BK53 -> 19.5 | BM28: =BDD!BL53 -> 22.1 | BN28: =BDD!BM53 -> 21 | BO28: =BDD!BN53 -> 19.6 | BP28: =BDD!BO53 -> 19.2 | BQ28: =BDD!BP53 -> 18.7 | BR28: =BDD!BQ53 -> 18.4 | BS28: =BDD!BR53 -> 20.5 | BT28: =BDD!BS53 -> 19.9 | BU28: =BDD!BT53 -> 21.1 | BV28: =BDD!BU53 -> 19.6 | BW28: =BDD!BV53 -> 21.5 | BX28: =BDD!BW53 -> 18.1 | BY28: =BDD!BX53 -> 20.5 | BZ28: =BDD!BY53 -> 20.4 | CA28: =BDD!BZ53 -> 18 | CB28: =BDD!CA53 -> 17.6 | CC28: =BDD!CB53 -> 20.2 | CD28: =BDD!CC53 -> 18.8 | CE28: =BDD!CD53 -> 17.8 | CF28: =BDD!CE53 -> 17.5 | CG28: =BDD!CF53 -> 18.1 | CH28: =BDD!CG53 -> 17.8 | CI28: =BDD!CH53 -> 19.3 | CJ28: =BDD!CI53 -> 20.4 | CK28: =BDD!CJ53 -> 21 | CL28: =BDD!CK53 -> 18.2 | CM28: =BDD!CL53 -> 18.4 | CN28: =BDD!CM53 -> 18.2 | CO28: =BDD!CN53 -> 21.1 | CP28: =BDD!CO53 -> 21.4 | CQ28: =BDD!CP53 -> 19.5 | CR28: =BDD!CQ53 -> 18.1 | CS28: =BDD!CR53 -> 21 | CT28: =BDD!CS53 -> 18.7
B29: Jour 4 | C29: =BDD!B54 -> 18.9 | D29: =BDD!C54 -> 18.7 | E29: =BDD!D54 -> 20.5 | F29: =BDD!E54 -> 21.4 | G29: =BDD!F54 -> 20.3 | H29: =BDD!G54 -> 21.8 | I29: =BDD!H54 -> 19.4 | J29: =BDD!I54 -> 18.6 | K29: =BDD!J54 -> 20.4 | L29: =BDD!K54 -> 18.5 | M29: =BDD!L54 -> 19 | N29: =BDD!M54 -> 21.1 | O29: =BDD!N54 -> 18.6 | P29: =BDD!O54 -> 19.9 | Q29: =BDD!P54 -> 20.2 | R29: =BDD!Q54 -> 21.1 | S29: =BDD!R54 -> 19.1 | T29: =BDD!S54 -> 22.3 | U29: =BDD!T54 -> 20.9 | V29: =BDD!U54 -> 19.7 | W29: =BDD!V54 -> 22.4 | X29: =BDD!W54 -> 22 | Y29: =BDD!X54 -> 21.3 | Z29: =BDD!Y54 -> 21.3 | AA29: =BDD!Z54 -> 17.8 | AB29: =BDD!AA54 -> 19.6 | AC29: =BDD!AB54 -> 21.4 | AD29: =BDD!AC54 -> 20.6 | AE29: =BDD!AD54 -> 18.3 | AF29: =BDD!AE54 -> 21.7 | AG29: =BDD!AF54 -> 21.1 | AH29: =BDD!AG54 -> 18.3 | AI29: =BDD!AH54 -> 18.8 | AJ29: =BDD!AI54 -> 21.8 | AK29: =BDD!AJ54 -> 19.4 | AL29: =BDD!AK54 -> 19.1 | AM29: =BDD!AL54 -> 21.8 | AN29: =BDD!AM54 -> 21.2 | AO29: =BDD!AN54 -> 21.3 | AP29: =BDD!AO54 -> 21.5 | AQ29: =BDD!AP54 -> 18.7 | AR29: =BDD!AQ54 -> 22.1 | AS29: =BDD!AR54 -> 20.9 | AT29: =BDD!AS54 -> 18.7 | AU29: =BDD!AT54 -> 19.1 | AV29: =BDD!AU54 -> 21.2 | AW29: =BDD!AV54 -> 19.6 | AX29: =BDD!AW54 -> 20.4 | AY29: =BDD!AX54 -> 18.4 | AZ29: =BDD!AY54 -> 19.5 | BA29: =BDD!AZ54 -> 19.5 | BB29: =BDD!BA54 -> 18.3 | BC29: =BDD!BB54 -> 19.1 | BD29: =BDD!BC54 -> 22.3 | BE29: =BDD!BD54 -> 19 | BF29: =BDD!BE54 -> 20.7 | BG29: =BDD!BF54 -> 20 | BH29: =BDD!BG54 -> 19.6 | BI29: =BDD!BH54 -> 21.7 | BJ29: =BDD!BI54 -> 18.5 | BK29: =BDD!BJ54 -> 18.8 | BL29: =BDD!BK54 -> 19.5 | BM29: =BDD!BL54 -> 21.3 | BN29: =BDD!BM54 -> 19.1 | BO29: =BDD!BN54 -> 20.7 | BP29: =BDD!BO54 -> 19.8 | BQ29: =BDD!BP54 -> 20.8 | BR29: =BDD!BQ54 -> 18.7 | BS29: =BDD!BR54 -> 19 | BT29: =BDD!BS54 -> 21.5 | BU29: =BDD!BT54 -> 21 | BV29: =BDD!BU54 -> 20.1 | BW29: =BDD!BV54 -> 20.6 | BX29: =BDD!BW54 -> 19.5 | BY29: =BDD!BX54 -> 18.2 | BZ29: =BDD!BY54 -> 18.2 | CA29: =BDD!BZ54 -> 20.4 | CB29: =BDD!CA54 -> 20.2 | CC29: =BDD!CB54 -> 18.7 | CD29: =BDD!CC54 -> 18.8 | CE29: =BDD!CD54 -> 20.5 | CF29: =BDD!CE54 -> 21 | CG29: =BDD!CF54 -> 17.7 | CH29: =BDD!CG54 -> 19.7 | CI29: =BDD!CH54 -> 20.9 | CJ29: =BDD!CI54 -> 19.6 | CK29: =BDD!CJ54 -> 21.2 | CL29: =BDD!CK54 -> 18.6 | CM29: =BDD!CL54 -> 21.3 | CN29: =BDD!CM54 -> 19.8 | CO29: =BDD!CN54 -> 17.8 | CP29: =BDD!CO54 -> 21.4 | CQ29: =BDD!CP54 -> 19.5 | CR29: =BDD!CQ54 -> 20.5 | CS29: =BDD!CR54 -> 18.8 | CT29: =BDD!CS54 -> 19.4
B30: Jour 5 | C30: =BDD!B55 -> 21.3 | D30: =BDD!C55 -> 20.2 | E30: =BDD!D55 -> 18.1 | F30: =BDD!E55 -> 18.8 | G30: =BDD!F55 -> 19.9 | H30: =BDD!G55 -> 22.1 | I30: =BDD!H55 -> 20.6 | J30: =BDD!I55 -> 19 | K30: =BDD!J55 -> 20.6 | L30: =BDD!K55 -> 21.7 | M30: =BDD!L55 -> 20 | N30: =BDD!M55 -> 21 | O30: =BDD!N55 -> 18.9 | P30: =BDD!O55 -> 22.1 | Q30: =BDD!P55 -> 19.5 | R30: =BDD!Q55 -> 21.7 | S30: =BDD!R55 -> 21.2 | T30: =BDD!S55 -> 19.1 | U30: =BDD!T55 -> 22.1 | V30: =BDD!U55 -> 21.9 | W30: =BDD!V55 -> 20.1 | X30: =BDD!W55 -> 19.7 | Y30: =BDD!X55 -> 22 | Z30: =BDD!Y55 -> 19.8 | AA30: =BDD!Z55 -> 21.8 | AB30: =BDD!AA55 -> 20.1 | AC30: =BDD!AB55 -> 18.4 | AD30: =BDD!AC55 -> 18 | AE30: =BDD!AD55 -> 20.6 | AF30: =BDD!AE55 -> 20.1 | AG30: =BDD!AF55 -> 21.9 | AH30: =BDD!AG55 -> 20.2 | AI30: =BDD!AH55 -> 20.2 | AJ30: =BDD!AI55 -> 21.6 | AK30: =BDD!AJ55 -> 20.3 | AL30: =BDD!AK55 -> 20.5 | AM30: =BDD!AL55 -> 20.1 | AN30: =BDD!AM55 -> 21 | AO30: =BDD!AN55 -> 18.6 | AP30: =BDD!AO55 -> 21.3 | AQ30: =BDD!AP55 -> 22.3 | AR30: =BDD!AQ55 -> 21.6 | AS30: =BDD!AR55 -> 20.5 | AT30: =BDD!AS55 -> 19.8 | AU30: =BDD!AT55 -> 21.1 | AV30: =BDD!AU55 -> 19.5 | AW30: =BDD!AV55 -> 18.7 | AX30: =BDD!AW55 -> 18.8 | AY30: =BDD!AX55 -> 20.5 | AZ30: =BDD!AY55 -> 19.3 | BA30: =BDD!AZ55 -> 20.7 | BB30: =BDD!BA55 -> 21.3 | BC30: =BDD!BB55 -> 18.9 | BD30: =BDD!BC55 -> 22.2 | BE30: =BDD!BD55 -> 22 | BF30: =BDD!BE55 -> 19.2 | BG30: =BDD!BF55 -> 19.8 | BH30: =BDD!BG55 -> 20.1 | BI30: =BDD!BH55 -> 20.7 | BJ30: =BDD!BI55 -> 18.5 | BK30: =BDD!BJ55 -> 20.1 | BL30: =BDD!BK55 -> 18.6 | BM30: =BDD!BL55 -> 18.6 | BN30: =BDD!BM55 -> 19.1 | BO30: =BDD!BN55 -> 19.2 | BP30: =BDD!BO55 -> 18.4 | BQ30: =BDD!BP55 -> 21.8 | BR30: =BDD!BQ55 -> 18.8 | BS30: =BDD!BR55 -> 22.1 | BT30: =BDD!BS55 -> 20.9 | BU30: =BDD!BT55 -> 18.5 | BV30: =BDD!BU55 -> 20.3 | BW30: =BDD!BV55 -> 17.6 | BX30: =BDD!BW55 -> 18.6 | BY30: =BDD!BX55 -> 19.9 | BZ30: =BDD!BY55 -> 18 | CA30: =BDD!BZ55 -> 17.7 | CB30: =BDD!CA55 -> 20.6 | CC30: =BDD!CB55 -> 18.6 | CD30: =BDD!CC55 -> 20.2 | CE30: =BDD!CD55 -> 18.3 | CF30: =BDD!CE55 -> 19.7 | CG30: =BDD!CF55 -> 18.8 | CH30: =BDD!CG55 -> 18.8 | CI30: =BDD!CH55 -> 18.4 | CJ30: =BDD!CI55 -> 21 | CK30: =BDD!CJ55 -> 18.2 | CL30: =BDD!CK55 -> 20.2 | CM30: =BDD!CL55 -> 19.8 | CN30: =BDD!CM55 -> 21.4 | CO30: =BDD!CN55 -> 19.7 | CP30: =BDD!CO55 -> 21.4 | CQ30: =BDD!CP55 -> 19.7 | CR30: =BDD!CQ55 -> 17.8 | CS30: =BDD!CR55 -> 18.6 | CT30: =BDD!CS55 -> 18.4
B31: Jour 6 | C31: =BDD!B56 -> 19.5 | D31: =BDD!C56 -> 18.3 | E31: =BDD!D56 -> 19.9 | F31: =BDD!E56 -> 20.8 | G31: =BDD!F56 -> 22 | H31: =BDD!G56 -> 22 | I31: =BDD!H56 -> 21.4 | J31: =BDD!I56 -> 19.5 | K31: =BDD!J56 -> 19.6 | L31: =BDD!K56 -> 18.5 | M31: =BDD!L56 -> 18.9 | N31: =BDD!M56 -> 21.6 | O31: =BDD!N56 -> 21.1 | P31: =BDD!O56 -> 21 | Q31: =BDD!P56 -> 18.7 | R31: =BDD!Q56 -> 20.8 | S31: =BDD!R56 -> 20.1 | T31: =BDD!S56 -> 19.1 | U31: =BDD!T56 -> 21 | V31: =BDD!U56 -> 21.4 | W31: =BDD!V56 -> 21.1 | X31: =BDD!W56 -> 22.3 | Y31: =BDD!X56 -> 21 | Z31: =BDD!Y56 -> 20 | AA31: =BDD!Z56 -> 21.3 | AB31: =BDD!AA56 -> 21.2 | AC31: =BDD!AB56 -> 20.9 | AD31: =BDD!AC56 -> 19.4 | AE31: =BDD!AD56 -> 18.2 | AF31: =BDD!AE56 -> 19 | AG31: =BDD!AF56 -> 19.4 | AH31: =BDD!AG56 -> 19.8 | AI31: =BDD!AH56 -> 21.3 | AJ31: =BDD!AI56 -> 19.4 | AK31: =BDD!AJ56 -> 19.6 | AL31: =BDD!AK56 -> 19.5 | AM31: =BDD!AL56 -> 19.8 | AN31: =BDD!AM56 -> 20.8 | AO31: =BDD!AN56 -> 20.6 | AP31: =BDD!AO56 -> 21.6 | AQ31: =BDD!AP56 -> 21.9 | AR31: =BDD!AQ56 -> 21.7 | AS31: =BDD!AR56 -> 21.7 | AT31: =BDD!AS56 -> 20.5 | AU31: =BDD!AT56 -> 19.9 | AV31: =BDD!AU56 -> 18.5 | AW31: =BDD!AV56 -> 21.2 | AX31: =BDD!AW56 -> 21.5 | AY31: =BDD!AX56 -> 21.7 | AZ31: =BDD!AY56 -> 20.8 | BA31: =BDD!AZ56 -> 18.8 | BB31: =BDD!BA56 -> 20.6 | BC31: =BDD!BB56 -> 21.3 | BD31: =BDD!BC56 -> 19.9 | BE31: =BDD!BD56 -> 21.6 | BF31: =BDD!BE56 -> 18.3 | BG31: =BDD!BF56 -> 21 | BH31: =BDD!BG56 -> 21.3 | BI31: =BDD!BH56 -> 18.9 | BJ31: =BDD!BI56 -> 20.3 | BK31: =BDD!BJ56 -> 19.4 | BL31: =BDD!BK56 -> 18.4 | BM31: =BDD!BL56 -> 20.8 | BN31: =BDD!BM56 -> 19.9 | BO31: =BDD!BN56 -> 21.1 | BP31: =BDD!BO56 -> 21.5 | BQ31: =BDD!BP56 -> 18.3 | BR31: =BDD!BQ56 -> 19 | BS31: =BDD!BR56 -> 22.1 | BT31: =BDD!BS56 -> 19.8 | BU31: =BDD!BT56 -> 19.7 | BV31: =BDD!BU56 -> 20 | BW31: =BDD!BV56 -> 20.2 | BX31: =BDD!BW56 -> 19.3 | BY31: =BDD!BX56 -> 18.6 | BZ31: =BDD!BY56 -> 18.6 | CA31: =BDD!BZ56 -> 20.3 | CB31: =BDD!CA56 -> 18.9 | CC31: =BDD!CB56 -> 19.4 | CD31: =BDD!CC56 -> 18.8 | CE31: =BDD!CD56 -> 18 | CF31: =BDD!CE56 -> 20 | CG31: =BDD!CF56 -> 17.4 | CH31: =BDD!CG56 -> 20.5 | CI31: =BDD!CH56 -> 17.9 | CJ31: =BDD!CI56 -> 20.1 | CK31: =BDD!CJ56 -> 19.1 | CL31: =BDD!CK56 -> 20.8 | CM31: =BDD!CL56 -> 20.8 | CN31: =BDD!CM56 -> 18.1 | CO31: =BDD!CN56 -> 20.3 | CP31: =BDD!CO56 -> 17.8 | CQ31: =BDD!CP56 -> 21.1 | CR31: =BDD!CQ56 -> 19.1 | CS31: =BDD!CR56 -> 20.8 | CT31: =BDD!CS56 -> 20.7
B32: Jour 7 | C32: =BDD!B57 -> 22 | D32: =BDD!C57 -> 20.8 | E32: =BDD!D57 -> 18.7 | F32: =BDD!E57 -> 18.6 | G32: =BDD!F57 -> 22.2 | H32: =BDD!G57 -> 18.7 | I32: =BDD!H57 -> 21.4 | J32: =BDD!I57 -> 21.4 | K32: =BDD!J57 -> 21.9 | L32: =BDD!K57 -> 22.3 | M32: =BDD!L57 -> 19.7 | N32: =BDD!M57 -> 21.6 | O32: =BDD!N57 -> 22.2 | P32: =BDD!O57 -> 22.3 | Q32: =BDD!P57 -> 19.4 | R32: =BDD!Q57 -> 20.9 | S32: =BDD!R57 -> 20.9 | T32: =BDD!S57 -> 20.4 | U32: =BDD!T57 -> 19 | V32: =BDD!U57 -> 19.5 | W32: =BDD!V57 -> 20.2 | X32: =BDD!W57 -> 19.9 | Y32: =BDD!X57 -> 19.6 | Z32: =BDD!Y57 -> 21.9 | AA32: =BDD!Z57 -> 20.4 | AB32: =BDD!AA57 -> 19.3 | AC32: =BDD!AB57 -> 21 | AD32: =BDD!AC57 -> 20 | AE32: =BDD!AD57 -> 20.3 | AF32: =BDD!AE57 -> 19.2 | AG32: =BDD!AF57 -> 21.6 | AH32: =BDD!AG57 -> 21.4 | AI32: =BDD!AH57 -> 19.2 | AJ32: =BDD!AI57 -> 20.5 | AK32: =BDD!AJ57 -> 20 | AL32: =BDD!AK57 -> 20.5 | AM32: =BDD!AL57 -> 18.7 | AN32: =BDD!AM57 -> 20.5 | AO32: =BDD!AN57 -> 22 | AP32: =BDD!AO57 -> 20.1 | AQ32: =BDD!AP57 -> 20.2 | AR32: =BDD!AQ57 -> 19.4 | AS32: =BDD!AR57 -> 20.3 | AT32: =BDD!AS57 -> 18.7 | AU32: =BDD!AT57 -> 18.6 | AV32: =BDD!AU57 -> 20.1 | AW32: =BDD!AV57 -> 20.8 | AX32: =BDD!AW57 -> 20.1 | AY32: =BDD!AX57 -> 21.4 | AZ32: =BDD!AY57 -> 20.2 | BA32: =BDD!AZ57 -> 20.1 | BB32: =BDD!BA57 -> 21.2 | BC32: =BDD!BB57 -> 21 | BD32: =BDD!BC57 -> 22.2 | BE32: =BDD!BD57 -> 22 | BF32: =BDD!BE57 -> 19.2 | BG32: =BDD!BF57 -> 21.9 | BH32: =BDD!BG57 -> 18.1 | BI32: =BDD!BH57 -> 19 | BJ32: =BDD!BI57 -> 21.5 | BK32: =BDD!BJ57 -> 21 | BL32: =BDD!BK57 -> 22 | BM32: =BDD!BL57 -> 20.9 | BN32: =BDD!BM57 -> 19.6 | BO32: =BDD!BN57 -> 19.5 | BP32: =BDD!BO57 -> 18.3 | BQ32: =BDD!BP57 -> 19.4 | BR32: =BDD!BQ57 -> 18.3 | BS32: =BDD!BR57 -> 21.6 | BT32: =BDD!BS57 -> 17.8 | BU32: =BDD!BT57 -> 21 | BV32: =BDD!BU57 -> 20.9 | BW32: =BDD!BV57 -> 20.3 | BX32: =BDD!BW57 -> 21.5 | BY32: =BDD!BX57 -> 20.2 | BZ32: =BDD!BY57 -> 19 | CA32: =BDD!BZ57 -> 20.8 | CB32: =BDD!CA57 -> 20.5 | CC32: =BDD!CB57 -> 18.4 | CD32: =BDD!CC57 -> 19.9 | CE32: =BDD!CD57 -> 17.9 | CF32: =BDD!CE57 -> 17.1 | CG32: =BDD!CF57 -> 20.5 | CH32: =BDD!CG57 -> 18.1 | CI32: =BDD!CH57 -> 18.4 | CJ32: =BDD!CI57 -> 19.9 | CK32: =BDD!CJ57 -> 20 | CL32: =BDD!CK57 -> 18.8 | CM32: =BDD!CL57 -> 19.7 | CN32: =BDD!CM57 -> 18.4 | CO32: =BDD!CN57 -> 19.9 | CP32: =BDD!CO57 -> 19.7 | CQ32: =BDD!CP57 -> 18.2 | CR32: =BDD!CQ57 -> 20.2 | CS32: =BDD!CR57 -> 21.1 | CT32: =BDD!CS57 -> 19
B33: Jour 8 | C33: =BDD!B58 -> 21.7 | D33: =BDD!C58 -> 19 | E33: =BDD!D58 -> 19.6 | F33: =BDD!E58 -> 21.4 | G33: =BDD!F58 -> 18.6 | H33: =BDD!G58 -> 19.2 | I33: =BDD!H58 -> 20.6 | J33: =BDD!I58 -> 20.4 | K33: =BDD!J58 -> 20.3 | L33: =BDD!K58 -> 21.1 | M33: =BDD!L58 -> 19.9 | N33: =BDD!M58 -> 21.9 | O33: =BDD!N58 -> 21.4 | P33: =BDD!O58 -> 21.9 | Q33: =BDD!P58 -> 20.3 | R33: =BDD!Q58 -> 21.9 | S33: =BDD!R58 -> 19.9 | T33: =BDD!S58 -> 20.3 | U33: =BDD!T58 -> 19.8 | V33: =BDD!U58 -> 20.4 | W33: =BDD!V58 -> 21.5 | X33: =BDD!W58 -> 20.7 | Y33: =BDD!X58 -> 20.4 | Z33: =BDD!Y58 -> 19.4 | AA33: =BDD!Z58 -> 17.9 | AB33: =BDD!AA58 -> 19.9 | AC33: =BDD!AB58 -> 18.8 | AD33: =BDD!AC58 -> 21.2 | AE33: =BDD!AD58 -> 18.8 | AF33: =BDD!AE58 -> 18.3 | AG33: =BDD!AF58 -> 19.3 | AH33: =BDD!AG58 -> 20.3 | AI33: =BDD!AH58 -> 21.1 | AJ33: =BDD!AI58 -> 21.7 | AK33: =BDD!AJ58 -> 21.1 | AL33: =BDD!AK58 -> 20.3 | AM33: =BDD!AL58 -> 18.9 | AN33: =BDD!AM58 -> 20.8 | AO33: =BDD!AN58 -> 22 | AP33: =BDD!AO58 -> 22.1 | AQ33: =BDD!AP58 -> 20.9 | AR33: =BDD!AQ58 -> 19.5 | AS33: =BDD!AR58 -> 21.1 | AT33: =BDD!AS58 -> 20.4 | AU33: =BDD!AT58 -> 21.2 | AV33: =BDD!AU58 -> 19.7 | AW33: =BDD!AV58 -> 18.4 | AX33: =BDD!AW58 -> 18.8 | AY33: =BDD!AX58 -> 19.3 | AZ33: =BDD!AY58 -> 20.4 | BA33: =BDD!AZ58 -> 20.7 | BB33: =BDD!BA58 -> 22.3 | BC33: =BDD!BB58 -> 19.8 | BD33: =BDD!BC58 -> 19.3 | BE33: =BDD!BD58 -> 21.2 | BF33: =BDD!BE58 -> 21.7 | BG33: =BDD!BF58 -> 18.1 | BH33: =BDD!BG58 -> 18 | BI33: =BDD!BH58 -> 21.6 | BJ33: =BDD!BI58 -> 21.2 | BK33: =BDD!BJ58 -> 20.5 | BL33: =BDD!BK58 -> 20.2 | BM33: =BDD!BL58 -> 20.3 | BN33: =BDD!BM58 -> 20.6 | BO33: =BDD!BN58 -> 19.8 | BP33: =BDD!BO58 -> 18.1 | BQ33: =BDD!BP58 -> 21.3 | BR33: =BDD!BQ58 -> 18.9 | BS33: =BDD!BR58 -> 19.1 | BT33: =BDD!BS58 -> 21.4 | BU33: =BDD!BT58 -> 20.5 | BV33: =BDD!BU58 -> 17.6 | BW33: =BDD!BV58 -> 21.5 | BX33: =BDD!BW58 -> 21 | BY33: =BDD!BX58 -> 20.8 | BZ33: =BDD!BY58 -> 17.8 | CA33: =BDD!BZ58 -> 19.9 | CB33: =BDD!CA58 -> 17.2 | CC33: =BDD!CB58 -> 20.6 | CD33: =BDD!CC58 -> 18.5 | CE33: =BDD!CD58 -> 17.5 | CF33: =BDD!CE58 -> 17.1 | CG33: =BDD!CF58 -> 21.1 | CH33: =BDD!CG58 -> 21.2 | CI33: =BDD!CH58 -> 17.8 | CJ33: =BDD!CI58 -> 17.7 | CK33: =BDD!CJ58 -> 17.5 | CL33: =BDD!CK58 -> 17.5 | CM33: =BDD!CL58 -> 18.7 | CN33: =BDD!CM58 -> 19.5 | CO33: =BDD!CN58 -> 19.8 | CP33: =BDD!CO58 -> 20.1 | CQ33: =BDD!CP58 -> 20 | CR33: =BDD!CQ58 -> 19.7 | CS33: =BDD!CR58 -> 18.6 | CT33: =BDD!CS58 -> 18.7
